Workbook

Sheet Base (hidden)
A1: LLAVE (TIPO ID - DOCUMENTO) | B1: CIUDAD - DIVIPOLA - R | C1: Ciudad | D1: TOTAL COTIZANTES CON CONCEPTO DE CONFORMIDAD TOTAL A GIRAR | E1: TOTAL COTIZANTES CON CONCEPTO DE NO CONFORMIDAD | F1: TIPO DE PERSONA | G1: Departamento DIVIPOLA (P) | H1: NOMBRE DEPTO DIVIOLA | I1: ESTADO_TOTAL A GIRAR | J1: Numero total empleados | K1: Tamaño del Empleador | L1: STRCODPAR_CIIU_EMPRESA | M1: ACTIVIDAD ECONOMICA | N1: SEXO_F_ | O1: SEXO_M_ | P1: SEXO_ND_ | Q1: Jovenes | R1: Mujeres 28 años | S1: Hombres 28 años | X1: LLAVE (TIPO ID - DOCUMENTO) | Y1: CIUDAD - DIVIPOLA - R | Z1: Ciudad | AA1: TOTAL COTIZANTES CON CONCEPTO DE CONFORMIDAD TOTAL A GIRAR | AB1: TOTAL COTIZANTES CON CONCEPTO DE NO CONFORMIDAD | AC1: TIPO DE PERSONA | AD1: Departamento DIVIPOLA (P) | AE1: NOMBRE DEPTO DIVIOLA | AF1: ESTADO_TOTAL A GIRAR | AG1: Numero total empleados | AH1: Tamaño del Empleador | AI1: STRCODPAR_CIIU_EMPRESA | AJ1: ACTIVIDAD ECONOMICA | AK1: SEXO_F_ | AL1: SEXO_M_ | AM1: SEXO_ND_ | AN1: Jovenes | AO1: Mujeres 28 años | AP1: Hombres 28 años | AU1: Empleadores | AV1: % | AW1: Empleados | AX1: % | AY1: Recursos | AZ1: Mpio | BF1: Jóvenes | BG1: Mujeres > 28 años | BH1: Hombres > 28 años | BK1: Jóvenes | BL1: Mujeres > 28 años | BM1: Hombres > 28 años
B2: 17380 | C2: LA DORADA | D2: 0 | E2: 0 | F2: Natural | G2: 17 | H2: CALDAS | I2: 0 | J2: 0 | K2: MICRO | L2: 141 | M2: AGRICULTURA, GANADERÍA, CAZA, SILVICULTURA Y PESCA | N2: 0 | O2: 0 | P2: 0 | Q2: 0 | R2: 0 | S2: 0 | U2: =+_xlfn.UNIQUE(M2:M399999) -> AGRICULTURA, GANADERÍA, CAZA, SILVICULTURA Y PESCA | X2: =+_xlfn._xlws.FILTER($A$2:$S$399999,$H$2:$H$399999=Visor!$M$7,"") -> 0 | Y2: 5001 | Z2: MEDELLÍN | AA2: 2 | AB2: 1 | AC2: Natural | AD2: 5 | AE2: ANTIOQUIA | AF2: Aprobado con subsidio | AG2: 3 | AH2: MICRO | AI2: 141 | AJ2: AGRICULTURA, GANADERÍA, CAZA, SILVICULTURA Y PESCA | AK2: 0 | AL2: 2 | AM2: 0 | AN2: 2 | AO2: 0 | AP2: 0 | AT2: =CONCATENATE(AU2,COUNTIF($AU$2:AU2,AU2)) -> 29411 | AU2: =+COUNTIFS($Z$2:$Z$399999,AZ2,$AF$2:$AF$399999,"Aprobado con subsidio")*1 -> 2941 | AV2: =+AU2/SUM($AU$2:$AU$129) -> 0.6260110685 | AW2: =+SUMIFS($AA$2:$AA$399999,$Z$2:$Z$399999,AZ2,$AF$2:$AF$399999,"Aprobado con subsidio") -> 112927 | AX2: =+AW2/SUM($AW$2:$AW$129) -> 0.7399032917 | AY2: =+(SUMIFS(Montos!$Y$2:$Y$396864,Montos!$R$2:$R$396864,Base!AZ2)/1000000) -> 94145.10138 | AZ2: =_xlfn.UNIQUE('$Base'!$AB$2:$AB$400000) -> MEDELLÍN | BE2: Micro | BF2: =SUMIFS($Q$2:$Q$400000,$K$2:$K$400000,"MICRO",$I$2:$I$400000,"Aprobado con subsidio") -> 38646 | BG2: =SUMIFS($R$2:$R$400000,$K$2:$K$400000,"MICRO",$I$2:$I$400000,"Aprobado con subsidio") -> 17005 | BH2: =SUMIFS($S$2:$S$400000,$K$2:$K$400000,"MICRO",$I$2:$I$400000,"Aprobado con subsidio") -> 24250 | BJ2: Micro | BK2: =BF2/SUM(BF2:BH2) -> 0.483673546 | BL2: =BG2/SUM(BF2:BH2) -> 0.212825872 | BM2: =BH2/SUM(BF2:BH2) -> 0.303500582
B3: 68001 | C3: BUCARAMANGA | D3: 0 | E3: 0 | F3: Natural | G3: 68 | H3: SANTANDER | I3: 0 | J3: 0 | K3: 0 | L3: 4771 | M3: COMERCIO AL POR MAYOR Y AL POR MENOR; REPARACIÓN DE VEHÍCULOS AUTOMOTORES Y MOTOCICLETAS | N3: 0 | O3: 0 | P3: 0 | Q3: 0 | R3: 0 | S3: 0 | U3: COMERCIO AL POR MAYOR Y AL POR MENOR; REPARACIÓN DE VEHÍCULOS AUTOMOTORES Y MOTOCICLETAS | X3: 0 | Y3: 5001 | Z3: MEDELLÍN | AA3: 0 | AB3: 1 | AC3: Natural | AD3: 5 | AE3: ANTIOQUIA | AF3: 0 | AG3: 1 | AH3: MICRO | AI3: 3315 | AJ3: INDUSTRIAS MANUFACTURERAS | AK3: 0 | AL3: 0 | AM3: 0 | AN3: 0 | AO3: 0 | AP3: 0 | AT3: =CONCATENATE(AU3,COUNTIF($AU$2:AU3,AU3)) -> 1771 | AU3: 177 | AV3: 0.03767560664 | AW3: 5379 | AX3: =+AW3/SUM($AW$2:$AW$129) -> 0.03524347416 | AY3: =+(SUMIFS(Montos!$Y$2:$Y$396864,Montos!$R$2:$R$396864,Base!AZ3)/1000000) -> 4552.327864 | AZ3: RIONEGRO | BE3: Pequeña | BF3: =SUMIFS($Q$2:$Q$400000,$K$2:$K$400000,"PEQUEÑA",$I$2:$I$400000,"Aprobado con subsidio") -> 64896 | BG3: =SUMIFS($R$2:$R$400000,$K$2:$K$400000,"PEQUEÑA",$I$2:$I$400000,"Aprobado con subsidio") -> 22804 | BH3: =SUMIFS($S$2:$S$400000,$K$2:$K$400000,"PEQUEÑA",$I$2:$I$400000,"Aprobado con subsidio") -> 26036 | BJ3: Pequeña | BK3: =BF3/SUM(BF3:BH3) -> 0.5705845115 | BL3: =BG3/SUM(BF3:BH3) -> 0.2004994021 | BM3: =BH3/SUM(BF3:BH3) -> 0.2289160864
B4: 68001 | C4: BUCARAMANGA | D4: 0 | E4: 0 | F4: Natural | G4: 68 | H4: SANTANDER | I4: 0 | J4: 0 | K4: 0 | L4: 1089 | M4: INDUSTRIAS MANUFACTURERAS | N4: 0 | O4: 0 | P4: 0 | Q4: 0 | R4: 0 | S4: 0 | U4: INDUSTRIAS MANUFACTURERAS | X4: 0 | Y4: 5001 | Z4: MEDELLÍN | AA4: 0 | AB4: 0 | AC4: Natural | AD4: 5 | AE4: ANTIOQUIA | AF4: 0 | AG4: 0 | AH4: PEQUEÑA | AI4: 5611 | AJ4: ALOJAMIENTO Y SERVICIOS DE COMIDA | AK4: 0 | AL4: 0 | AM4: 0 | AN4: 0 | AO4: 0 | AP4: 0 | AT4: =CONCATENATE(AU4,COUNTIF($AU$2:AU4,AU4)) -> 3051 | AU4: 305 | AV4: 0.06492124308 | AW4: 7262 | AX4: 0.04758098333 | AY4: =+(SUMIFS(Montos!$Y$2:$Y$396864,Montos!$R$2:$R$396864,Base!AZ4)/1000000) -> 6512.499347 | AZ4: ITAGUI | BE4: Mediana | BF4: =SUMIFS($Q$2:$Q$400000,$K$2:$K$400000,"MEDIANA",$I$2:$I$400000,"Aprobado con subsidio") -> 82810 | BG4: =SUMIFS($R$2:$R$400000,$K$2:$K$400000,"MEDIANA",$I$2:$I$400000,"Aprobado con subsidio") -> 23625 | BH4: =SUMIFS($S$2:$S$400000,$K$2:$K$400000,"MEDIANA",$I$2:$I$400000,"Aprobado con subsidio") -> 24134 | BJ4: Mediana | BK4: 0.6342240501 | BL4: 0.180938814 | BM4: 0.1848371359
B5: 44430 | C5: MAICAO | D5: 0 | E5: 0 | F5: Natural | G5: 44 | H5: LA GUAJIRA | I5: 0 | J5: 0 | K5: 0 | L5: 4530 | M5: COMERCIO AL POR MAYOR Y AL POR MENOR; REPARACIÓN DE VEHÍCULOS AUTOMOTORES Y MOTOCICLETAS | N5: 0 | O5: 0 | P5: 0 | Q5: 0 | R5: 0 | S5: 0 | U5: ALOJAMIENTO Y SERVICIOS DE COMIDA | X5: 0 | Y5: 5001 | Z5: MEDELLÍN | AA5: 3 | AB5: 1 | AC5: Natural | AD5: 5 | AE5: ANTIOQUIA | AF5: Aprobado con subsidio | AG5: 4 | AH5: MICRO | AI5: 5611 | AJ5: ALOJAMIENTO Y SERVICIOS DE COMIDA | AK5: 0 | AL5: 3 | AM5: 0 | AN5: 2 | AO5: 0 | AP5: 1 | AT5: =CONCATENATE(AU5,COUNTIF($AU$2:AU5,AU5)) -> 51 | AU5: 5 | AV5: 0.001064282673 | AW5: 24 | AX5: 0.0001572491875 | AY5: =+(SUMIFS(Montos!$Y$2:$Y$396864,Montos!$R$2:$R$396864,Base!AZ5)/1000000) -> 20.474011 | AZ5: PUERTO TRIUNFO | BE5: Grande | BF5: =SUMIFS($Q$2:$Q$400000,$K$2:$K$400000,"GRANDE",$I$2:$I$400000,"Aprobado con subsidio") -> 71186 | BG5: =SUMIFS($R$2:$R$400000,$K$2:$K$400000,"GRANDE",$I$2:$I$400000,"Aprobado con subsidio") -> 13102 | BH5: =SUMIFS($S$2:$S$400000,$K$2:$K$400000,"GRANDE",$I$2:$I$400000,"Aprobado con subsidio") -> 9071 | BJ5: Grande | BK5: 0.7624974561 | BL5: 0.1403399779 | BM5: 0.09716256601
B6: 5001 | C6: MEDELLÍN | D6: 2 | E6: 1 | F6: Natural | G6: 5 | H6: ANTIOQUIA | I6: Aprobado con subsidio | J6: 3 | K6: MICRO | L6: 141 | M6: AGRICULTURA, GANADERÍA, CAZA, SILVICULTURA Y PESCA | N6: 0 | O6: 2 | P6: 0 | Q6: 2 | R6: 0 | S6: 0 | U6: TRANSPORTE Y ALMACENAMIENTO | X6: 0 | Y6: 5615 | Z6: RIONEGRO | AA6: 0 | AB6: 0 | AC6: Natural | AD6: 5 | AE6: ANTIOQUIA | AF6: 0 | AG6: 0 | AH6: PEQUEÑA | AI6: 2012 | AJ6: INDUSTRIAS MANUFACTURERAS | AK6: 0 | AL6: 0 | AM6: 0 | AN6: 0 | AO6: 0 | AP6: 0 | AT6: =CONCATENATE(AU6,COUNTIF($AU$2:AU6,AU6)) -> 91 | AU6: 9 | AV6: 0.001915708812 | AW6: 101 | AX6: 0.0006617569976 | AY6: =+(SUMIFS(Montos!$Y$2:$Y$396864,Montos!$R$2:$R$396864,Base!AZ6)/1000000) -> 57.933905 | AZ6: ENTRERRIOS | BE6: Muy Grande | BF6: =SUMIFS($Q$2:$Q$400000,$K$2:$K$400000,"MUY GRANDE",$I$2:$I$400000,"Aprobado con subsidio") -> 305310 | BG6: =SUMIFS($R$2:$R$400000,$K$2:$K$400000,"MUY GRANDE",$I$2:$I$400000,"Aprobado con subsidio") -> 38517 | BH6: =SUMIFS($S$2:$S$400000,$K$2:$K$400000,"MUY GRANDE",$I$2:$I$400000,"Aprobado con subsidio") -> 17097 | BJ6: Muy Grande | BK6: 0.8459121588 | BL6: 0.1067177578 | BM6: 0.04737008345
B7: 41001 | C7: NEIVA | D7: 0 | E7: 0 | F7: Natural | G7: 41 | H7: HUILA | I7: 0 | J7: 0 | K7: 0 | L7: 4773 | M7: COMERCIO AL POR MAYOR Y AL POR MENOR; REPARACIÓN DE VEHÍCULOS AUTOMOTORES Y MOTOCICLETAS | N7: 0 | O7: 0 | P7: 0 | Q7: 0 | R7: 0 | S7: 0 | U7: OTRAS | X7: 0 | Y7: 5360 | Z7: ITAGUI | AA7: 0 | AB7: 0 | AC7: Natural | AD7: 5 | AE7: ANTIOQUIA | AF7: 0 | AG7: 0 | AH7: MICRO | AI7: 1921 | AJ7: INDUSTRIAS MANUFACTURERAS | AK7: 0 | AL7: 0 | AM7: 0 | AN7: 0 | AO7: 0 | AP7: 0 | AT7: =CONCATENATE(AU7,COUNTIF($AU$2:AU7,AU7)) -> 11 | AU7: 1 | AV7: 0.0002128565347 | AW7: 2 | AX7: 1.310409896e-05 | AY7: =+(SUMIFS(Montos!$Y$2:$Y$396864,Montos!$R$2:$R$396864,Base!AZ7)/1000000) -> 1.227131 | AZ7: CONCORDIA | BE7: Total | BF7: =SUM(BF2:BF6) -> 562848 | BG7: =SUM(BG2:BG6) -> 115053 | BH7: =SUM(BH2:BH6) -> 100588 | BJ7: Total | BK7: =BF7/SUM(BF7:BH7) -> 0.7230005819 | BL7: =BG7/SUM(BF7:BH7) -> 0.1477901422 | BM7: =BH7/SUM(BF7:BH7) -> 0.1292092759
B8: 25307 | C8: GIRARDOT | D8: 1 | E8: 3 | F8: Natural | G8: 25 | H8: CUNDINAMARCA | I8: Aprobado con subsidio | J8: 4 | K8: MICRO | L8: 4530 | M8: COMERCIO AL POR MAYOR Y AL POR MENOR; REPARACIÓN DE VEHÍCULOS AUTOMOTORES Y MOTOCICLETAS | N8: 1 | O8: 0 | P8: 0 | Q8: 1 | R8: 0 | S8: 0 | U8: EDUCACIÓN | X8: 0 | Y8: 5001 | Z8: MEDELLÍN | AA8: 1 | AB8: 1 | AC8: Natural | AD8: 5 | AE8: ANTIOQUIA | AF8: Aprobado con subsidio | AG8: 2 | AH8: MICRO | AI8: 90 | AJ8: OTRAS | AK8: 0 | AL8: 1 | AM8: 0 | AN8: 0 | AO8: 0 | AP8: 1 | AT8: =CONCATENATE(AU8,COUNTIF($AU$2:AU8,AU8)) -> 191 | AU8: 19 | AV8: 0.004044274159 | AW8: 201 | AX8: 0.001316961946 | AY8: =+(SUMIFS(Montos!$Y$2:$Y$396864,Montos!$R$2:$R$396864,Base!AZ8)/1000000) -> 174.350722 | AZ8: EL SANTUARIO
B9: 5001 | C9: MEDELLÍN | D9: 0 | E9: 1 | F9: Natural | G9: 5 | H9: ANTIOQUIA | I9: 0 | J9: 1 | K9: MICRO | L9: 3315 | M9: INDUSTRIAS MANUFACTURERAS | N9: 0 | O9: 0 | P9: 0 | Q9: 0 | R9: 0 | S9: 0 | U9: CONSTRUCCIÓN | X9: 0 | Y9: 5001 | Z9: MEDELLÍN | AA9: 0 | AB9: 0 | AC9: Natural | AD9: 5 | AE9: ANTIOQUIA | AF9: 0 | AG9: 0 | AH9: MICRO | AI9: 141 | AJ9: AGRICULTURA, GANADERÍA, CAZA, SILVICULTURA Y PESCA | AK9: 0 | AL9: 0 | AM9: 0 | AN9: 0 | AO9: 0 | AP9: 0 | AT9: =CONCATENATE(AU9,COUNTIF($AU$2:AU9,AU9)) -> 2881 | AU9: 288 | AV9: 0.06130268199 | AW9: 9937 | AX9: 0.06510771569 | AY9: =+(SUMIFS(Montos!$Y$2:$Y$396864,Montos!$R$2:$R$396864,Base!AZ9)/1000000) -> 7085.230637 | AZ9: ENVIGADO | BE9: Micro | BF9: =SUMIFS($AN$2:$AN$400000,$AF$2:$AF$400000,"Aprobado con subsidio",$AH$2:$AH$400000,"MICRO") -> 6719 | BG9: =SUMIFS($AO$2:$AO$400000,$AF$2:$AF$400000,"Aprobado con subsidio",$AH$2:$AH$400000,"MICRO") -> 3264 | BH9: =SUMIFS($AP$2:$AP$400000,$AF$2:$AF$400000,"Aprobado con subsidio",$AH$2:$AH$400000,"MICRO") -> 3521 | BJ9: Micro | BK9: =BF9/SUM(BF9:BH9) -> 0.4975562796 | BL9: =BG9/SUM(BF9:BH9) -> 0.2417061611 | BM9: =BH9/SUM(BF9:BH9) -> 0.2607375592
B10: 5001 | C10: MEDELLÍN | D10: 0 | E10: 0 | F10: Natural | G10: 5 | H10: ANTIOQUIA | I10: 0 | J10: 0 | K10: PEQUEÑA | L10: 5611 | M10: ALOJAMIENTO Y SERVICIOS DE COMIDA | N10: 0 | O10: 0 | P10: 0 | Q10: 0 | R10: 0 | S10: 0 | U10: ACTIVIDADES PROFESIONALES, CIENTÍFICAS Y TÉCNICAS | X10: 0 | Y10: 5001 | Z10: MEDELLÍN | AA10: 1 | AB10: 2 | AC10: Natural | AD10: 5 | AE10: ANTIOQUIA | AF10: Aprobado con subsidio | AG10: 3 | AH10: MICRO | AI10: 5611 | AJ10: ALOJAMIENTO Y SERVICIOS DE COMIDA | AK10: 0 | AL10: 1 | AM10: 0 | AN10: 0 | AO10: 0 | AP10: 1 | AT10: =CONCATENATE(AU10,COUNTIF($AU$2:AU10,AU10)) -> 1211 | AU10: 121 | AV10: 0.0257556407 | AW10: 2603 | AX10: 0.0170549848 | AY10: =+(SUMIFS(Montos!$Y$2:$Y$396864,Montos!$R$2:$R$396864,Base!AZ10)/1000000) -> 1685.466625 | AZ10: BELLO | BE10: Pequeña | BF10: =SUMIFS($AN$2:$AN$400000,$AF$2:$AF$400000,"Aprobado con subsidio",$AH$2:$AH$400000,"PEQUEÑA") -> 15044 | BG10: =SUMIFS($AO$2:$AO$400000,$AF$2:$AF$400000,"Aprobado con subsidio",$AH$2:$AH$400000,"PEQUEÑA") -> 5532 | BH10: =SUMIFS($AP$2:$AP$400000,$AF$2:$AF$400000,"Aprobado con subsidio",$AH$2:$AH$400000,"PEQUEÑA") -> 5683 | BJ10: Pequeña | BK10: =BF10/SUM(BF10:BH10) -> 0.5729083362 | BL10: =BG10/SUM(BF10:BH10) -> 0.2106706272 | BM10: =BH10/SUM(BF10:BH10) -> 0.2164210366
B11: 5001 | C11: MEDELLÍN | D11: 3 | E11: 1 | F11: Natural | G11: 5 | H11: ANTIOQUIA | I11: Aprobado con subsidio | J11: 4 | K11: MICRO | L11: 5611 | M11: ALOJAMIENTO Y SERVICIOS DE COMIDA | N11: 0 | O11: 3 | P11: 0 | Q11: 2 | R11: 0 | S11: 1 | U11: ACTIVIDADES DE SERVICIOS ADMINISTRATIVOS Y DE APOYO | X11: 0 | Y11: 5001 | Z11: MEDELLÍN | AA11: 4 | AB11: 0 | AC11: Natural | AD11: 5 | AE11: ANTIOQUIA | AF11: Aprobado con subsidio | AG11: 4 | AH11: MICRO | AI11: 4722 | AJ11: COMERCIO AL POR MAYOR Y AL POR MENOR; REPARACIÓN DE VEHÍCULOS AUTOMOTORES Y MOTOCICLETAS | AK11: 1 | AL11: 3 | AM11: 0 | AN11: 2 | AO11: 1 | AP11: 1 | AT11: =CONCATENATE(AU11,COUNTIF($AU$2:AU11,AU11)) -> 1691 | AU11: 169 | AV11: 0.03597275436 | AW11: 4239 | AX11: 0.02777413775 | AY11: =+(SUMIFS(Montos!$Y$2:$Y$396864,Montos!$R$2:$R$396864,Base!AZ11)/1000000) -> 3773.049005 | AZ11: SABANETA | BE11: Mediana | BF11: =SUMIFS($AN$2:$AN$400000,$AF$2:$AF$400000,"Aprobado con subsidio",$AH$2:$AH$400000,"MEDIANA") -> 17875 | BG11: =SUMIFS($AO$2:$AO$400000,$AF$2:$AF$400000,"Aprobado con subsidio",$AH$2:$AH$400000,"MEDIANA") -> 4316 | BH11: =SUMIFS($AP$2:$AP$400000,$AF$2:$AF$400000,"Aprobado con subsidio",$AH$2:$AH$400000,"MEDIANA") -> 4886 | BJ11: Mediana | BK11: 0.6601543746 | BL11: 0.1593972744 | BM11: 0.180448351
B12: 11001 | C12: BOGOTÁ, D.C. | D12: 5 | E12: 3 | F12: Natural | G12: 11 | H12: BOGOTÁ, D.C. | I12: Aprobado con subsidio | J12: 8 | K12: MICRO | L12: 4663 | M12: COMERCIO AL POR MAYOR Y AL POR MENOR; REPARACIÓN DE VEHÍCULOS AUTOMOTORES Y MOTOCICLETAS | N12: 1 | O12: 4 | P12: 0 | Q12: 5 | R12: 0 | S12: 0 | U12: ACTIVIDADES ARTÍSTICAS, DE ENTRETENIMIENTO Y RECREACIÓN | X12: 0 | Y12: 5001 | Z12: MEDELLÍN | AA12: 2 | AB12: 0 | AC12: Natural | AD12: 5 | AE12: ANTIOQUIA | AF12: Aprobado con subsidio | AG12: 2 | AH12: MICRO | AI12: 3240 | AJ12: INDUSTRIAS MANUFACTURERAS | AK12: 1 | AL12: 1 | AM12: 0 | AN12: 1 | AO12: 0 | AP12: 1 | AT12: =CONCATENATE(AU12,COUNTIF($AU$2:AU12,AU12)) -> 311 | AU12: 31 | AV12: 0.006598552576 | AW12: 746 | AX12: 0.004887828913 | AY12: =+(SUMIFS(Montos!$Y$2:$Y$396864,Montos!$R$2:$R$396864,Base!AZ12)/1000000) -> 525.539881 | AZ12: GUARNE | BE12: Grande | BF12: =SUMIFS($AN$2:$AN$400000,$AF$2:$AF$400000,"Aprobado con subsidio",$AH$2:$AH$400000,"GRANDE") -> 16496 | BG12: =SUMIFS($AO$2:$AO$400000,$AF$2:$AF$400000,"Aprobado con subsidio",$AH$2:$AH$400000,"GRANDE") -> 2307 | BH12: =SUMIFS($AP$2:$AP$400000,$AF$2:$AF$400000,"Aprobado con subsidio",$AH$2:$AH$400000,"GRANDE") -> 2031 | BJ12: Grande | BK12: 0.791782663 | BL12: 0.1107324566 | BM12: 0.09748488048
B13: 15176 | C13: CHIQUINQUIRÁ | D13: 4 | E13: 1 | F13: Natural | G13: 15 | H13: BOYACÁ | I13: Aprobado con subsidio | J13: 5 | K13: MICRO | L13: 4752 | M13: COMERCIO AL POR MAYOR Y AL POR MENOR; REPARACIÓN DE VEHÍCULOS AUTOMOTORES Y MOTOCICLETAS | N13: 2 | O13: 2 | P13: 0 | Q13: 2 | R13: 1 | S13: 1 | U13: ACTIVIDADES INMOBILIARIAS | X13: 0 | Y13: 5001 | Z13: MEDELLÍN | AA13: 1 | AB13: 0 | AC13: Natural | AD13: 5 | AE13: ANTIOQUIA | AF13: Aprobado con subsidio | AG13: 1 | AH13: MICRO | AI13: 4771 | AJ13: COMERCIO AL POR MAYOR Y AL POR MENOR; REPARACIÓN DE VEHÍCULOS AUTOMOTORES Y MOTOCICLETAS | AK13: 1 | AL13: 0 | AM13: 0 | AN13: 1 | AO13: 0 | AP13: 0 | AT13: =CONCATENATE(AU13,COUNTIF($AU$2:AU13,AU13)) -> 241 | AU13: 24 | AV13: 0.005108556833 | AW13: 315 | AX13: 0.002063895587 | AY13: =+(SUMIFS(Montos!$Y$2:$Y$396864,Montos!$R$2:$R$396864,Base!AZ13)/1000000) -> 230.212059 | AZ13: CALDAS | BE13: Muy Grande | BF13: =SUMIFS($AN$2:$AN$400000,$AF$2:$AF$400000,"Aprobado con subsidio",$AH$2:$AH$400000,"MUY GRANDE") -> 55905 | BG13: =SUMIFS($AO$2:$AO$400000,$AF$2:$AF$400000,"Aprobado con subsidio",$AH$2:$AH$400000,"MUY GRANDE") -> 4684 | BH13: =SUMIFS($AP$2:$AP$400000,$AF$2:$AF$400000,"Aprobado con subsidio",$AH$2:$AH$400000,"MUY GRANDE") -> 4361 | BJ13: Muy Grande | BK13: 0.86073903 | BL13: 0.07211701309 | BM13: 0.06714395689
B14: 76001 | C14: CALI | D14: 1 | E14: 0 | F14: Natural | G14: 76 | H14: VALLE DEL CAUCA | I14: Aprobado con subsidio | J14: 1 | K14: MICRO | L14: 4774 | M14: COMERCIO AL POR MAYOR Y AL POR MENOR; REPARACIÓN DE VEHÍCULOS AUTOMOTORES Y MOTOCICLETAS | N14: 0 | O14: 1 | P14: 0 | Q14: 1 | R14: 0 | S14: 0 | U14: EXPLOTACIÓN DE MINAS Y CANTERAS | X14: 0 | Y14: 5591 | Z14: PUERTO TRIUNFO | AA14: 0 | AB14: 0 | AC14: Natural | AD14: 5 | AE14: ANTIOQUIA | AF14: 0 | AG14: 0 | AH14: MICRO | AI14: 4711 | AJ14: COMERCIO AL POR MAYOR Y AL POR MENOR; REPARACIÓN DE VEHÍCULOS AUTOMOTORES Y MOTOCICLETAS | AK14: 0 | AL14: 0 | AM14: 0 | AN14: 0 | AO14: 0 | AP14: 0 | AT14: =CONCATENATE(AU14,COUNTIF($AU$2:AU14,AU14)) -> 151 | AU14: 15 | AV14: 0.00319284802 | AW14: 317 | AX14: 0.002076999686 | AY14: =+(SUMIFS(Montos!$Y$2:$Y$396864,Montos!$R$2:$R$396864,Base!AZ14)/1000000) -> 224.204007 | AZ14: SANTA ROSA DE OSOS | BE14: Total | BF14: =SUM(BF9:BF13) -> 112039 | BG14: =SUM(BG9:BG13) -> 20103 | BH14: =SUM(BH9:BH13) -> 20482 | BJ14: Total | BK14: 0.7340850718 | BL14: 0.1317158507 | BM14: 0.1341990775
B15: 76001 | C15: CALI | D15: 2 | E15: 1 | F15: Natural | G15: 76 | H15: VALLE DEL CAUCA | I15: Aprobado con subsidio | J15: 3 | K15: MICRO | L15: 5511 | M15: ALOJAMIENTO Y SERVICIOS DE COMIDA | N15: 2 | O15: 0 | P15: 0 | Q15: 2 | R15: 0 | S15: 0 | U15: OTRAS ACTIVIDADES DE SERVICIOS | X15: 0 | Y15: 5001 | Z15: MEDELLÍN | AA15: 0 | AB15: 0 | AC15: Natural | AD15: 5 | AE15: ANTIOQUIA | AF15: 0 | AG15: 0 | AH15: PEQUEÑA | AI15: 121 | AJ15: AGRICULTURA, GANADERÍA, CAZA, SILVICULTURA Y PESCA | AK15: 0 | AL15: 0 | AM15: 0 | AN15: 0 | AO15: 0 | AP15: 0 | AT15: =CONCATENATE(AU15,COUNTIF($AU$2:AU15,AU15)) -> 291 | AU15: 29 | AV15: 0.006172839506 | AW15: 267 | AX15: 0.001749397211 | AY15: =+(SUMIFS(Montos!$Y$2:$Y$396864,Montos!$R$2:$R$396864,Base!AZ15)/1000000) -> 280.511053 | AZ15: JERICÓ
B16: 41001 | C16: NEIVA | D16: 4 | E16: 0 | F16: Natural | G16: 41 | H16: HUILA | I16: Aprobado con subsidio | J16: 4 | K16: MICRO | L16: 4729 | M16: COMERCIO AL POR MAYOR Y AL POR MENOR; REPARACIÓN DE VEHÍCULOS AUTOMOTORES Y MOTOCICLETAS | N16: 4 | O16: 0 | P16: 0 | Q16: 1 | R16: 3 | S16: 0 | U16: ACTIVIDADES FINANCIERAS Y DE SEGUROS | X16: 0 | Y16: 5264 | Z16: ENTRERRIOS | AA16: 0 | AB16: 0 | AC16: Natural | AD16: 5 | AE16: ANTIOQUIA | AF16: 0 | AG16: 0 | AH16: MEDIANA | AI16: 121 | AJ16: AGRICULTURA, GANADERÍA, CAZA, SILVICULTURA Y PESCA | AK16: 0 | AL16: 0 | AM16: 0 | AN16: 0 | AO16: 0 | AP16: 0 | AT16: =CONCATENATE(AU16,COUNTIF($AU$2:AU16,AU16)) -> 41 | AU16: 4 | AV16: 0.0008514261388 | AW16: 91 | AX16: 0.0005962365028 | AY16: =+(SUMIFS(Montos!$Y$2:$Y$396864,Montos!$R$2:$R$396864,Base!AZ16)/1000000) -> 49.191259 | AZ16: REMEDIOS | BE16: Micro | BF16: =SUMIFS($AN$2:$AN$400000,$AF$2:$AF$400000,"Aprobado con subsidio",$AH$2:$AH$400000,"MICRO",$Z$2:$Z$400000,Visor!$M$8) -> 4586 | BG16: =SUMIFS($AO$2:$AO$400000,$AF$2:$AF$400000,"Aprobado con subsidio",$AH$2:$AH$400000,"MICRO",$Z$2:$Z$400000,Visor!$M$8) -> 2215 | BH16: =SUMIFS($AP$2:$AP$400000,$AF$2:$AF$400000,"Aprobado con subsidio",$AH$2:$AH$400000,"MICRO",$Z$2:$Z$400000,Visor!$M$8) -> 2347 | BJ16: Micro | BK16: =BF16/SUM(BF16:BH16) -> 0.5013117621 | BL16: =BG16/SUM(BF16:BH16) -> 0.2421294272 | BM16: =BH16/SUM(BF16:BH16) -> 0.2565588107
B17: 52356 | C17: IPIALES | D17: 2 | E17: 0 | F17: Natural | G17: 52 | H17: NARIÑO | I17: Aprobado con subsidio | J17: 2 | K17: MICRO | L17: 4923 | M17: TRANSPORTE Y ALMACENAMIENTO | N17: 0 | O17: 2 | P17: 0 | Q17: 0 | R17: 0 | S17: 2 | U17: ACTIVIDADES DE ATENCIÓN DE LA SALUD HUMANA Y DE ASISTENCIA SOCIAL | X17: 0 | Y17: 5264 | Z17: ENTRERRIOS | AA17: 0 | AB17: 0 | AC17: Natural | AD17: 5 | AE17: ANTIOQUIA | AF17: 0 | AG17: 0 | AH17: MICRO | AI17: 4724 | AJ17: COMERCIO AL POR MAYOR Y AL POR MENOR; REPARACIÓN DE VEHÍCULOS AUTOMOTORES Y MOTOCICLETAS | AK17: 0 | AL17: 0 | AM17: 0 | AN17: 0 | AO17: 0 | AP17: 0 | AT17: =CONCATENATE(AU17,COUNTIF($AU$2:AU17,AU17)) -> 42 | AU17: 4 | AV17: 0.0008514261388 | AW17: 384 | AX17: 0.002515987001 | AY17: =+(SUMIFS(Montos!$Y$2:$Y$396864,Montos!$R$2:$R$396864,Base!AZ17)/1000000) -> 299.381572 | AZ17: SEGOVIA | BE17: Pequeña | BF17: =SUMIFS($AN$2:$AN$400000,$AF$2:$AF$400000,"Aprobado con subsidio",$AH$2:$AH$400000,"PEQUEÑA",$Z$2:$Z$400000,Visor!$M$8) -> 9352 | BG17: =SUMIFS($AO$2:$AO$400000,$AF$2:$AF$400000,"Aprobado con subsidio",$AH$2:$AH$400000,"PEQUEÑA",$Z$2:$Z$400000,Visor!$M$8) -> 3565 | BH17: =SUMIFS($AP$2:$AP$400000,$AF$2:$AF$400000,"Aprobado con subsidio",$AH$2:$AH$400000,"PEQUEÑA",$Z$2:$Z$400000,Visor!$M$8) -> 3505 | BJ17: Pequeña | BK17: =BF17/SUM(BF17:BH17) -> 0.5694799659 | BL17: =BG17/SUM(BF17:BH17) -> 0.2170868347 | BM17: =BH17/SUM(BF17:BH17) -> 0.2134331994
B18: 54001 | C18: CÚCUTA | D18: 12 | E18: 13 | F18: Natural | G18: 54 | H18: NORTE DE SANTANDER | I18: Aprobado con subsidio | J18: 25 | K18: PEQUEÑA | L18: 90 | M18: OTRAS | N18: 3 | O18: 9 | P18: 0 | Q18: 2 | R18: 2 | S18: 8 | U18: INFORMACIÓN Y COMUNICACIONES | X18: 0 | Y18: 5264 | Z18: ENTRERRIOS | AA18: 0 | AB18: 0 | AC18: Natural | AD18: 5 | AE18: ANTIOQUIA | AF18: 0 | AG18: 0 | AH18: MICRO | AI18: 121 | AJ18: AGRICULTURA, GANADERÍA, CAZA, SILVICULTURA Y PESCA | AK18: 0 | AL18: 0 | AM18: 0 | AN18: 0 | AO18: 0 | AP18: 0 | AT18: =CONCATENATE(AU18,COUNTIF($AU$2:AU18,AU18)) -> 101 | AU18: 10 | AV18: 0.002128565347 | AW18: 46 | AX18: 0.0003013942761 | AY18: =+(SUMIFS(Montos!$Y$2:$Y$396864,Montos!$R$2:$R$396864,Base!AZ18)/1000000) -> 25.680594 | AZ18: TURBO | BE18: Mediana | BF18: =SUMIFS($AN$2:$AN$400000,$AF$2:$AF$400000,"Aprobado con subsidio",$AH$2:$AH$400000,"MEDIANA",$Z$2:$Z$400000,Visor!$M$8) -> 11365 | BG18: =SUMIFS($AO$2:$AO$400000,$AF$2:$AF$400000,"Aprobado con subsidio",$AH$2:$AH$400000,"MEDIANA",$Z$2:$Z$400000,Visor!$M$8) -> 2838 | BH18: =SUMIFS($AP$2:$AP$400000,$AF$2:$AF$400000,"Aprobado con subsidio",$AH$2:$AH$400000,"MEDIANA",$Z$2:$Z$400000,Visor!$M$8) -> 3388 | BJ18: Mediana | BK18: 0.6460690126 | BL18: 0.1613324996 | BM18: 0.1925984879
B19: 54405 | C19: LOS PATIOS | D19: 2 | E19: 0 | F19: Natural | G19: 54 | H19: NORTE DE SANTANDER | I19: Aprobado con subsidio | J19: 2 | K19: MICRO | L19: 4923 | M19: TRANSPORTE Y ALMACENAMIENTO | N19: 1 | O19: 1 | P19: 0 | Q19: 1 | R19: 0 | S19: 1 | U19: ACTIVIDADES DE LOS HOGARES INDIVIDUALES EN CALIDAD DE EMPLEADORES; ACTIVIDADES NO DIFERENCIADAS DE LOS HOGARES INDIVIDUALES COMO PRODUCTORES DE BIENES Y SERVICIOS PARA USO PROPIO | X19: 0 | Y19: 5001 | Z19: MEDELLÍN | AA19: 0 | AB19: 0 | AC19: Natural | AD19: 5 | AE19: ANTIOQUIA | AF19: 0 | AG19: 0 | AH19: PEQUEÑA | AI19: 4711 | AJ19: COMERCIO AL POR MAYOR Y AL POR MENOR; REPARACIÓN DE VEHÍCULOS AUTOMOTORES Y MOTOCICLETAS | AK19: 0 | AL19: 0 | AM19: 0 | AN19: 0 | AO19: 0 | AP19: 0 | AT19: =CONCATENATE(AU19,COUNTIF($AU$2:AU19,AU19)) -> 501 | AU19: 50 | AV19: 0.01064282673 | AW19: 576 | AX19: 0.003773980501 | AY19: =+(SUMIFS(Montos!$Y$2:$Y$396864,Montos!$R$2:$R$396864,Base!AZ19)/1000000) -> 423.968028 | AZ19: LA CEJA | BE19: Grande | BF19: =SUMIFS($AN$2:$AN$400000,$AF$2:$AF$400000,"Aprobado con subsidio",$AH$2:$AH$400000,"GRANDE",$Z$2:$Z$400000,Visor!$M$8) -> 11614 | BG19: =SUMIFS($AO$2:$AO$400000,$AF$2:$AF$400000,"Aprobado con subsidio",$AH$2:$AH$400000,"GRANDE",$Z$2:$Z$400000,Visor!$M$8) -> 1483 | BH19: =SUMIFS($AP$2:$AP$400000,$AF$2:$AF$400000,"Aprobado con subsidio",$AH$2:$AH$400000,"GRANDE",$Z$2:$Z$400000,Visor!$M$8) -> 1574 | BJ19: Grande | BK19: 0.7916297458 | BL19: 0.1010837707 | BM19: 0.1072864835
B20: 76400 | C20: LA UNIÓN | D20: 0 | E20: 0 | F20: Natural | G20: 76 | H20: VALLE DEL CAUCA | I20: 0 | J20: 0 | K20: MICRO | L20: 4620 | M20: COMERCIO AL POR MAYOR Y AL POR MENOR; REPARACIÓN DE VEHÍCULOS AUTOMOTORES Y MOTOCICLETAS | N20: 0 | O20: 0 | P20: 0 | Q20: 0 | R20: 0 | S20: 0 | U20: SUMINISTRO DE ELECTRICIDAD, GAS, VAPOR Y AIRE ACONDICIONADO | X20: 0 | Y20: 5001 | Z20: MEDELLÍN | AA20: 0 | AB20: 0 | AC20: Natural | AD20: 5 | AE20: ANTIOQUIA | AF20: 0 | AG20: 0 | AH20: MICRO | AI20: 4520 | AJ20: COMERCIO AL POR MAYOR Y AL POR MENOR; REPARACIÓN DE VEHÍCULOS AUTOMOTORES Y MOTOCICLETAS | AK20: 0 | AL20: 0 | AM20: 0 | AN20: 0 | AO20: 0 | AP20: 0 | AT20: =CONCATENATE(AU20,COUNTIF($AU$2:AU20,AU20)) -> 31 | AU20: 3 | AV20: 0.0006385696041 | AW20: 15 | AX20: 9.828074222e-05 | AY20: =+(SUMIFS(Montos!$Y$2:$Y$396864,Montos!$R$2:$R$396864,Base!AZ20)/1000000) -> 10.735026 | AZ20: ANDES | BE20: Muy Grande | BF20: =SUMIFS($AN$2:$AN$400000,$AF$2:$AF$400000,"Aprobado con subsidio",$AH$2:$AH$400000,"MUY GRANDE",$Z$2:$Z$400000,Visor!$M$8) -> 47525 | BG20: =SUMIFS($AO$2:$AO$400000,$AF$2:$AF$400000,"Aprobado con subsidio",$AH$2:$AH$400000,"MUY GRANDE",$Z$2:$Z$400000,Visor!$M$8) -> 3699 | BH20: =SUMIFS($AP$2:$AP$400000,$AF$2:$AF$400000,"Aprobado con subsidio",$AH$2:$AH$400000,"MUY GRANDE",$Z$2:$Z$400000,Visor!$M$8) -> 3871 | BJ20: Muy Grande | BK20: 0.862600962 | BL20: 0.06713857882 | BM20: 0.07026045921
B21: 63001 | C21: ARMENIA | D21: 0 | E21: 0 | F21: Natural | G21: 63 | H21: QUINDÍO | I21: 0 | J21: 0 | K21: PEQUEÑA | L21: 4771 | M21: COMERCIO AL POR MAYOR Y AL POR MENOR; REPARACIÓN DE VEHÍCULOS AUTOMOTORES Y MOTOCICLETAS | N21: 0 | O21: 0 | P21: 0 | Q21: 0 | R21: 0 | S21: 0 | U21: ADMINISTRACIÓN PÚBLICA Y DEFENSA; PLANES DE SEGURIDAD SOCIAL DE AFILIACIÓN OBLIGATORIA | X21: 0 | Y21: 5209 | Z21: CONCORDIA | AA21: 0 | AB21: 0 | AC21: Natural | AD21: 5 | AE21: ANTIOQUIA | AF21: 0 | AG21: 0 | AH21: MICRO | AI21: 123 | AJ21: AGRICULTURA, GANADERÍA, CAZA, SILVICULTURA Y PESCA | AK21: 0 | AL21: 0 | AM21: 0 | AN21: 0 | AO21: 0 | AP21: 0 | AT21: =CONCATENATE(AU21,COUNTIF($AU$2:AU21,AU21)) -> 531 | AU21: 53 | AV21: 0.01128139634 | AW21: 556 | AX21: 0.003642939511 | AY21: =+(SUMIFS(Montos!$Y$2:$Y$396864,Montos!$R$2:$R$396864,Base!AZ21)/1000000) -> 448.861609 | AZ21: APARTADÓ | BE21: Total | BF21: =SUM(BF16:BF20) -> 84442 | BG21: =SUM(BG16:BG20) -> 13800 | BH21: =SUM(BH16:BH20) -> 14685 | BJ21: Total | BK21: 0.7477574008 | BL21: 0.122202839 | BM21: 0.1300397602
B22: 52001 | C22: PASTO | D22: 0 | E22: 0 | F22: Natural | G22: 52 | H22: NARIÑO | I22: 0 | J22: 0 | K22: MICRO | L22: 5611 | M22: ALOJAMIENTO Y SERVICIOS DE COMIDA | N22: 0 | O22: 0 | P22: 0 | Q22: 0 | R22: 0 | S22: 0 | U22: DISTRIBUCIÓN DE AGUA; EVACUACIÓN Y TRATAMIENTO DE AGUAS RESIDUALES, GESTIÓN DE DESECHOS Y ACTIVIDADES DE SANEAMIENTO AMBIENTAL | X22: 0 | Y22: 5697 | Z22: EL SANTUARIO | AA22: 1 | AB22: 1 | AC22: Natural | AD22: 5 | AE22: ANTIOQUIA | AF22: Aprobado con subsidio | AG22: 2 | AH22: MICRO | AI22: 4773 | AJ22: COMERCIO AL POR MAYOR Y AL POR MENOR; REPARACIÓN DE VEHÍCULOS AUTOMOTORES Y MOTOCICLETAS | AK22: 1 | AL22: 0 | AM22: 0 | AN22: 1 | AO22: 0 | AP22: 0 | AT22: =CONCATENATE(AU22,COUNTIF($AU$2:AU22,AU22)) -> 1121 | AU22: 112 | AV22: 0.02383993189 | AW22: 1567 | AX22: 0.01026706154 | AY22: =+(SUMIFS(Montos!$Y$2:$Y$396864,Montos!$R$2:$R$396864,Base!AZ22)/1000000) -> 1196.087183 | AZ22: LA ESTRELLA
B23: 76828 | C23: TRUJILLO | D23: 6 | E23: 1 | F23: Natural | G23: 76 | H23: VALLE DEL CAUCA | I23: Aprobado con subsidio | J23: 7 | K23: MICRO | L23: 4752 | M23: COMERCIO AL POR MAYOR Y AL POR MENOR; REPARACIÓN DE VEHÍCULOS AUTOMOTORES Y MOTOCICLETAS | N23: 3 | O23: 3 | P23: 0 | Q23: 3 | R23: 0 | S23: 3 | U23: 0 | X23: 0 | Y23: 5001 | Z23: MEDELLÍN | AA23: 0 | AB23: 0 | AC23: Natural | AD23: 5 | AE23: ANTIOQUIA | AF23: 0 | AG23: 0 | AH23: PEQUEÑA | AI23: 141 | AJ23: AGRICULTURA, GANADERÍA, CAZA, SILVICULTURA Y PESCA | AK23: 0 | AL23: 0 | AM23: 0 | AN23: 0 | AO23: 0 | AP23: 0 | AT23: =CONCATENATE(AU23,COUNTIF($AU$2:AU23,AU23)) -> 12 | AU23: 1 | AV23: 0.0002128565347 | AW23: 2 | AX23: 1.310409896e-05 | AY23: =+(SUMIFS(Montos!$Y$2:$Y$396864,Montos!$R$2:$R$396864,Base!AZ23)/1000000) -> 0.577131 | AZ23: EBÉJICO
B24: 76001 | C24: CALI | D24: 0 | E24: 0 | F24: Natural | G24: 76 | H24: VALLE DEL CAUCA | I24: 0 | J24: 0 | K24: MICRO | L24: 121 | M24: AGRICULTURA, GANADERÍA, CAZA, SILVICULTURA Y PESCA | N24: 0 | O24: 0 | P24: 0 | Q24: 0 | R24: 0 | S24: 0 | X24: 0 | Y24: 5001 | Z24: MEDELLÍN | AA24: 1 | AB24: 2 | AC24: Natural | AD24: 5 | AE24: ANTIOQUIA | AF24: Aprobado con subsidio | AG24: 3 | AH24: MICRO | AI24: 6810 | AJ24: ACTIVIDADES INMOBILIARIAS | AK24: 0 | AL24: 1 | AM24: 0 | AN24: 0 | AO24: 0 | AP24: 1 | AT24: =CONCATENATE(AU24,COUNTIF($AU$2:AU24,AU24)) -> 102 | AU24: 10 | AV24: 0.002128565347 | AW24: 83 | AX24: 0.0005438201069 | AY24: =+(SUMIFS(Montos!$Y$2:$Y$396864,Montos!$R$2:$R$396864,Base!AZ24)/1000000) -> 84.260965 | AZ24: YARUMAL
B25: 5615 | C25: RIONEGRO | D25: 0 | E25: 0 | F25: Natural | G25: 5 | H25: ANTIOQUIA | I25: 0 | J25: 0 | K25: PEQUEÑA | L25: 2012 | M25: INDUSTRIAS MANUFACTURERAS | N25: 0 | O25: 0 | P25: 0 | Q25: 0 | R25: 0 | S25: 0 | X25: 0 | Y25: 5266 | Z25: ENVIGADO | AA25: 0 | AB25: 0 | AC25: Natural | AD25: 5 | AE25: ANTIOQUIA | AF25: Aprobado con subsidio | AG25: 0 | AH25: MICRO | AI25: 4541 | AJ25: COMERCIO AL POR MAYOR Y AL POR MENOR; REPARACIÓN DE VEHÍCULOS AUTOMOTORES Y MOTOCICLETAS | AK25: 0 | AL25: 0 | AM25: 0 | AN25: 0 | AO25: 0 | AP25: 0 | AT25: =CONCATENATE(AU25,COUNTIF($AU$2:AU25,AU25)) -> 32 | AU25: 3 | AV25: 0.0006385696041 | AW25: 77 | AX25: 0.00050450781 | AY25: =+(SUMIFS(Montos!$Y$2:$Y$396864,Montos!$R$2:$R$396864,Base!AZ25)/1000000) -> 88.013643 | AZ25: SANTA BÁRBARA
B26: 11001 | C26: BOGOTÁ, D.C. | D26: 2 | E26: 1 | F26: Natural | G26: 11 | H26: BOGOTÁ, D.C. | I26: Aprobado con subsidio | J26: 3 | K26: MICRO | L26: 1313 | M26: INDUSTRIAS MANUFACTURERAS | N26: 2 | O26: 0 | P26: 0 | Q26: 1 | R26: 1 | S26: 0 | X26: 0 | Y26: 5001 | Z26: MEDELLÍN | AA26: 0 | AB26: 0 | AC26: Natural | AD26: 5 | AE26: ANTIOQUIA | AF26: 0 | AG26: 0 | AH26: PEQUEÑA | AI26: 4390 | AJ26: CONSTRUCCIÓN | AK26: 0 | AL26: 0 | AM26: 0 | AN26: 0 | AO26: 0 | AP26: 0 | AT26: =CONCATENATE(AU26,COUNTIF($AU$2:AU26,AU26)) -> 152 | AU26: 15 | AV26: 0.00319284802 | AW26: 359 | AX26: 0.002352185764 | AY26: =+(SUMIFS(Montos!$Y$2:$Y$396864,Montos!$R$2:$R$396864,Base!AZ26)/1000000) -> 264.059946 | AZ26: EL CARMEN DE VIBORAL
B27: 25214 | C27: COTA | D27: 0 | E27: 0 | F27: Natural | G27: 25 | H27: CUNDINAMARCA | I27: 0 | J27: 0 | K27: PEQUEÑA | L27: 8530 | M27: EDUCACIÓN | N27: 0 | O27: 0 | P27: 0 | Q27: 0 | R27: 0 | S27: 0 | X27: 0 | Y27: 5001 | Z27: MEDELLÍN | AA27: 0 | AB27: 0 | AC27: Natural | AD27: 5 | AE27: ANTIOQUIA | AF27: 0 | AG27: 0 | AH27: MICRO | AI27: 4719 | AJ27: COMERCIO AL POR MAYOR Y AL POR MENOR; REPARACIÓN DE VEHÍCULOS AUTOMOTORES Y MOTOCICLETAS | AK27: 0 | AL27: 0 | AM27: 0 | AN27: 0 | AO27: 0 | AP27: 0 | AT27: =CONCATENATE(AU27,COUNTIF($AU$2:AU27,AU27)) -> 01 | AU27: 0 | AV27: 0 | AW27: 0 | AX27: 0 | AY27: =+(SUMIFS(Montos!$Y$2:$Y$396864,Montos!$R$2:$R$396864,Base!AZ27)/1000000) -> 0 | AZ27: SOPETRÁN
B28: 25386 | C28: LA MESA | D28: 0 | E28: 0 | F28: Natural | G28: 25 | H28: CUNDINAMARCA | I28: 0 | J28: 0 | K28: MICRO | L28: 4721 | M28: COMERCIO AL POR MAYOR Y AL POR MENOR; REPARACIÓN DE VEHÍCULOS AUTOMOTORES Y MOTOCICLETAS | N28: 0 | O28: 0 | P28: 0 | Q28: 0 | R28: 0 | S28: 0 | X28: 0 | Y28: 5001 | Z28: MEDELLÍN | AA28: 0 | AB28: 0 | AC28: Natural | AD28: 5 | AE28: ANTIOQUIA | AF28: 0 | AG28: 0 | AH28: PEQUEÑA | AI28: 1410 | AJ28: INDUSTRIAS MANUFACTURERAS | AK28: 0 | AL28: 0 | AM28: 0 | AN28: 0 | AO28: 0 | AP28: 0 | AT28: =CONCATENATE(AU28,COUNTIF($AU$2:AU28,AU28)) -> 321 | AU28: 32 | AV28: 0.00681140911 | AW28: 351 | AX28: 0.002299769368 | AY28: =+(SUMIFS(Montos!$Y$2:$Y$396864,Montos!$R$2:$R$396864,Base!AZ28)/1000000) -> 325.461016 | AZ28: MARINILLA
B29: 50001 | C29: VILLAVICENCIO | D29: 0 | E29: 0 | F29: Natural | G29: 50 | H29: META | I29: 0 | J29: 0 | K29: MICRO | L29: 4530 | M29: COMERCIO AL POR MAYOR Y AL POR MENOR; REPARACIÓN DE VEHÍCULOS AUTOMOTORES Y MOTOCICLETAS | N29: 0 | O29: 0 | P29: 0 | Q29: 0 | R29: 0 | S29: 0 | X29: 0 | Y29: 5088 | Z29: BELLO | AA29: 2 | AB29: 1 | AC29: Natural | AD29: 5 | AE29: ANTIOQUIA | AF29: Aprobado con subsidio | AG29: 3 | AH29: MICRO | AI29: 4752 | AJ29: COMERCIO AL POR MAYOR Y AL POR MENOR; REPARACIÓN DE VEHÍCULOS AUTOMOTORES Y MOTOCICLETAS | AK29: 0 | AL29: 2 | AM29: 0 | AN29: 2 | AO29: 0 | AP29: 0 | AT29: =CONCATENATE(AU29,COUNTIF($AU$2:AU29,AU29)) -> 292 | AU29: 29 | AV29: 0.006172839506 | AW29: 1048 | AX29: 0.006866547856 | AY29: =+(SUMIFS(Montos!$Y$2:$Y$396864,Montos!$R$2:$R$396864,Base!AZ29)/1000000) -> 1406.966177 | AZ29: COPACABANA
B30: 11001 | C30: BOGOTÁ, D.C. | D30: 1 | E30: 1 | F30: Natural | G30: 11 | H30: BOGOTÁ, D.C. | I30: Aprobado con subsidio | J30: 2 | K30: MICRO | L30: 4754 | M30: COMERCIO AL POR MAYOR Y AL POR MENOR; REPARACIÓN DE VEHÍCULOS AUTOMOTORES Y MOTOCICLETAS | N30: 0 | O30: 1 | P30: 0 | Q30: 1 | R30: 0 | S30: 0 | X30: 0 | Y30: 5631 | Z30: SABANETA | AA30: 2 | AB30: 6 | AC30: Natural | AD30: 5 | AE30: ANTIOQUIA | AF30: Aprobado con subsidio | AG30: 8 | AH30: MICRO | AI30: 4771 | AJ30: COMERCIO AL POR MAYOR Y AL POR MENOR; REPARACIÓN DE VEHÍCULOS AUTOMOTORES Y MOTOCICLETAS | AK30: 2 | AL30: 0 | AM30: 0 | AN30: 2 | AO30: 0 | AP30: 0 | AT30: =CONCATENATE(AU30,COUNTIF($AU$2:AU30,AU30)) -> 103 | AU30: 10 | AV30: 0.002128565347 | AW30: 85 | AX30: 0.0005569242059 | AY30: =+(SUMIFS(Montos!$Y$2:$Y$396864,Montos!$R$2:$R$396864,Base!AZ30)/1000000) -> 38.658528 | AZ30: CAUCASIA
B31: 11001 | C31: BOGOTÁ, D.C. | D31: 2 | E31: 2 | F31: Natural | G31: 11 | H31: BOGOTÁ, D.C. | I31: Aprobado con subsidio | J31: 4 | K31: MICRO | L31: 8512 | M31: EDUCACIÓN | N31: 2 | O31: 0 | P31: 0 | Q31: 0 | R31: 2 | S31: 0 | X31: 0 | Y31: 5266 | Z31: ENVIGADO | AA31: 4 | AB31: 4 | AC31: Natural | AD31: 5 | AE31: ANTIOQUIA | AF31: Aprobado con subsidio | AG31: 8 | AH31: MICRO | AI31: 7111 | AJ31: ACTIVIDADES PROFESIONALES, CIENTÍFICAS Y TÉCNICAS | AK31: 2 | AL31: 2 | AM31: 0 | AN31: 3 | AO31: 1 | AP31: 0 | AT31: =CONCATENATE(AU31,COUNTIF($AU$2:AU31,AU31)) -> 02 | AU31: 0 | AV31: 0 | AW31: 0 | AX31: 0 | AY31: =+(SUMIFS(Montos!$Y$2:$Y$396864,Montos!$R$2:$R$396864,Base!AZ31)/1000000) -> 0 | AZ31: ARMENIA
B32: 25181 | C32: CHOACHÍ | D32: 1 | E32: 0 | F32: Natural | G32: 25 | H32: CUNDINAMARCA | I32: Aprobado con subsidio | J32: 1 | K32: MICRO | L32: 145 | M32: AGRICULTURA, GANADERÍA, CAZA, SILVICULTURA Y PESCA | N32: 0 | O32: 1 | P32: 0 | Q32: 0 | R32: 0 | S32: 1 | X32: 0 | Y32: 5318 | Z32: GUARNE | AA32: 6 | AB32: 12 | AC32: Natural | AD32: 5 | AE32: ANTIOQUIA | AF32: Aprobado con subsidio | AG32: 18 | AH32: PEQUEÑA | AI32: 2221 | AJ32: INDUSTRIAS MANUFACTURERAS | AK32: 4 | AL32: 2 | AM32: 0 | AN32: 2 | AO32: 4 | AP32: 0 | AT32: =CONCATENATE(AU32,COUNTIF($AU$2:AU32,AU32)) -> 111 | AU32: 11 | AV32: 0.002341421882 | AW32: 125 | AX32: 0.0008190061851 | AY32: =+(SUMIFS(Montos!$Y$2:$Y$396864,Montos!$R$2:$R$396864,Base!AZ32)/1000000) -> 98.32308 | AZ32: AMAGÁ
B33: 25181 | C33: CHOACHÍ | D33: 1 | E33: 1 | F33: Natural | G33: 25 | H33: CUNDINAMARCA | I33: Aprobado con subsidio | J33: 2 | K33: PEQUEÑA | L33: 4663 | M33: COMERCIO AL POR MAYOR Y AL POR MENOR; REPARACIÓN DE VEHÍCULOS AUTOMOTORES Y MOTOCICLETAS | N33: 0 | O33: 1 | P33: 0 | Q33: 0 | R33: 0 | S33: 1 | X33: 0 | Y33: 5001 | Z33: MEDELLÍN | AA33: 6 | AB33: 0 | AC33: Natural | AD33: 5 | AE33: ANTIOQUIA | AF33: Aprobado con subsidio | AG33: 6 | AH33: MICRO | AI33: 8299 | AJ33: ACTIVIDADES DE SERVICIOS ADMINISTRATIVOS Y DE APOYO | AK33: 4 | AL33: 2 | AM33: 0 | AN33: 3 | AO33: 1 | AP33: 2 | AT33: =CONCATENATE(AU33,COUNTIF($AU$2:AU33,AU33)) -> 33 | AU33: 3 | AV33: 0.0006385696041 | AW33: 17 | AX33: 0.0001113848412 | AY33: =+(SUMIFS(Montos!$Y$2:$Y$396864,Montos!$R$2:$R$396864,Base!AZ33)/1000000) -> 20.533655 | AZ33: SAN JERÓNIMO
B34: 11001 | C34: BOGOTÁ, D.C. | D34: 0 | E34: 0 | F34: Natural | G34: 11 | H34: BOGOTÁ, D.C. | I34: 0 | J34: 0 | K34: PEQUEÑA | L34: 4520 | M34: COMERCIO AL POR MAYOR Y AL POR MENOR; REPARACIÓN DE VEHÍCULOS AUTOMOTORES Y MOTOCICLETAS | N34: 0 | O34: 0 | P34: 0 | Q34: 0 | R34: 0 | S34: 0 | X34: 0 | Y34: 5001 | Z34: MEDELLÍN | AA34: 1 | AB34: 2 | AC34: Natural | AD34: 5 | AE34: ANTIOQUIA | AF34: Aprobado con subsidio | AG34: 3 | AH34: MICRO | AI34: 2511 | AJ34: INDUSTRIAS MANUFACTURERAS | AK34: 0 | AL34: 1 | AM34: 0 | AN34: 1 | AO34: 0 | AP34: 0 | AT34: =CONCATENATE(AU34,COUNTIF($AU$2:AU34,AU34)) -> 13 | AU34: =+COUNTIFS($Z$2:$Z$399999,AZ34,$AF$2:$AF$399999,"Aprobado con subsidio")*1 -> 1 | AV34: =+AU34/SUM($AU$2:$AU$129) -> 0.0002128565347 | AW34: =+SUMIFS($AA$2:$AA$399999,$Z$2:$Z$399999,AZ34,$AF$2:$AF$399999,"Aprobado con subsidio") -> 4 | AX34: 2.620819792e-05 | AY34: =+(SUMIFS(Montos!$Y$2:$Y$396864,Montos!$R$2:$R$396864,Base!AZ34)/1000000) -> 5.222243 | AZ34: SABANALARGA
B35: 25279 | C35: FOMEQUE | D35: 1 | E35: 5 | F35: Natural | G35: 25 | H35: CUNDINAMARCA | I35: Aprobado con subsidio | J35: 6 | K35: PEQUEÑA | L35: 145 | M35: AGRICULTURA, GANADERÍA, CAZA, SILVICULTURA Y PESCA | N35: 0 | O35: 1 | P35: 0 | Q35: 1 | R35: 0 | S35: 0 | X35: 0 | Y35: 5360 | Z35: ITAGUI | AA35: 0 | AB35: 0 | AC35: Natural | AD35: 5 | AE35: ANTIOQUIA | AF35: 0 | AG35: 0 | AH35: MICRO | AI35: 4759 | AJ35: COMERCIO AL POR MAYOR Y AL POR MENOR; REPARACIÓN DE VEHÍCULOS AUTOMOTORES Y MOTOCICLETAS | AK35: 0 | AL35: 0 | AM35: 0 | AN35: 0 | AO35: 0 | AP35: 0 | AT35: =CONCATENATE(AU35,COUNTIF($AU$2:AU35,AU35)) -> 14 | AU35: 1 | AV35: 0.0002128565347 | AW35: 3 | AX35: 1.965614844e-05 | AY35: =+(SUMIFS(Montos!$Y$2:$Y$396864,Montos!$R$2:$R$396864,Base!AZ35)/1000000) -> 4.658524 | AZ35: MUTATÁ
B36: 25214 | C36: COTA | D36: 1 | E36: 6 | F36: Natural | G36: 25 | H36: CUNDINAMARCA | I36: Aprobado con subsidio | J36: 7 | K36: MICRO | L36: 4290 | M36: CONSTRUCCIÓN | N36: 0 | O36: 1 | P36: 0 | Q36: 0 | R36: 0 | S36: 1 | X36: 0 | Y36: 5615 | Z36: RIONEGRO | AA36: 0 | AB36: 0 | AC36: Natural | AD36: 5 | AE36: ANTIOQUIA | AF36: 0 | AG36: 0 | AH36: MICRO | AI36: 6920 | AJ36: ACTIVIDADES PROFESIONALES, CIENTÍFICAS Y TÉCNICAS | AK36: 0 | AL36: 0 | AM36: 0 | AN36: 0 | AO36: 0 | AP36: 0 | AT36: =CONCATENATE(AU36,COUNTIF($AU$2:AU36,AU36)) -> 43 | AU36: 4 | AV36: 0.0008514261388 | AW36: 27 | AX36: 0.000176905336 | AY36: =+(SUMIFS(Montos!$Y$2:$Y$396864,Montos!$R$2:$R$396864,Base!AZ36)/1000000) -> 14.130769 | AZ36: SAN PEDRO DE LOS MILAGROS
B37: 25758 | C37: SOPÓ | D37: 2 | E37: 3 | F37: Natural | G37: 25 | H37: CUNDINAMARCA | I37: Aprobado con subsidio | J37: 5 | K37: MICRO | L37: 141 | M37: AGRICULTURA, GANADERÍA, CAZA, SILVICULTURA Y PESCA | N37: 1 | O37: 1 | P37: 0 | Q37: 1 | R37: 1 | S37: 0 | X37: 0 | Y37: 5631 | Z37: SABANETA | AA37: 3 | AB37: 0 | AC37: Natural | AD37: 5 | AE37: ANTIOQUIA | AF37: Aprobado con subsidio | AG37: 3 | AH37: MICRO | AI37: 5630 | AJ37: ALOJAMIENTO Y SERVICIOS DE COMIDA | AK37: 2 | AL37: 1 | AM37: 0 | AN37: 1 | AO37: 2 | AP37: 0 | AT37: =CONCATENATE(AU37,COUNTIF($AU$2:AU37,AU37)) -> 34 | AU37: 3 | AV37: 0.0006385696041 | AW37: 57 | AX37: 0.0003734668204 | AY37: =+(SUMIFS(Montos!$Y$2:$Y$396864,Montos!$R$2:$R$396864,Base!AZ37)/1000000) -> 53.03 | AZ37: FREDONIA
B38: 25297 | C38: GACHETÁ | D38: 1 | E38: 3 | F38: Natural | G38: 25 | H38: CUNDINAMARCA | I38: Aprobado con subsidio | J38: 4 | K38: MICRO | L38: 4663 | M38: COMERCIO AL POR MAYOR Y AL POR MENOR; REPARACIÓN DE VEHÍCULOS AUTOMOTORES Y MOTOCICLETAS | N38: 1 | O38: 0 | P38: 0 | Q38: 1 | R38: 0 | S38: 0 | X38: 0 | Y38: 5001 | Z38: MEDELLÍN | AA38: 4 | AB38: 2 | AC38: Natural | AD38: 5 | AE38: ANTIOQUIA | AF38: Aprobado con subsidio | AG38: 6 | AH38: MICRO | AI38: 1089 | AJ38: INDUSTRIAS MANUFACTURERAS | AK38: 3 | AL38: 1 | AM38: 0 | AN38: 2 | AO38: 2 | AP38: 0 | AT38: =CONCATENATE(AU38,COUNTIF($AU$2:AU38,AU38)) -> 35 | AU38: 3 | AV38: 0.0006385696041 | AW38: 10 | AX38: 6.552049481e-05 | AY38: =+(SUMIFS(Montos!$Y$2:$Y$396864,Montos!$R$2:$R$396864,Base!AZ38)/1000000) -> 9.794262 | AZ38: SAN PEDRO DE URABA
B39: 11001 | C39: BOGOTÁ, D.C. | D39: 0 | E39: 0 | F39: Natural | G39: 11 | H39: BOGOTÁ, D.C. | I39: 0 | J39: 0 | K39: MICRO | L39: 2711 | M39: INDUSTRIAS MANUFACTURERAS | N39: 0 | O39: 0 | P39: 0 | Q39: 0 | R39: 0 | S39: 0 | X39: 0 | Y39: 5001 | Z39: MEDELLÍN | AA39: 2 | AB39: 5 | AC39: Natural | AD39: 5 | AE39: ANTIOQUIA | AF39: Aprobado con subsidio | AG39: 7 | AH39: MICRO | AI39: 7420 | AJ39: ACTIVIDADES PROFESIONALES, CIENTÍFICAS Y TÉCNICAS | AK39: 2 | AL39: 0 | AM39: 0 | AN39: 2 | AO39: 0 | AP39: 0 | AT39: =CONCATENATE(AU39,COUNTIF($AU$2:AU39,AU39)) -> 15 | AU39: 1 | AV39: 0.0002128565347 | AW39: 1 | AX39: 6.552049481e-06 | AY39: =+(SUMIFS(Montos!$Y$2:$Y$396864,Montos!$R$2:$R$396864,Base!AZ39)/1000000) -> 0.25 | AZ39: LA PINTADA
B40: 11001 | C40: BOGOTÁ, D.C. | D40: 0 | E40: 0 | F40: Natural | G40: 11 | H40: BOGOTÁ, D.C. | I40: 0 | J40: 0 | K40: PEQUEÑA | L40: 8521 | M40: EDUCACIÓN | N40: 0 | O40: 0 | P40: 0 | Q40: 0 | R40: 0 | S40: 0 | X40: 0 | Y40: 5129 | Z40: CALDAS | AA40: 0 | AB40: 0 | AC40: Natural | AD40: 5 | AE40: ANTIOQUIA | AF40: 0 | AG40: 0 | AH40: MICRO | AI40: 8622 | AJ40: ACTIVIDADES DE ATENCIÓN DE LA SALUD HUMANA Y DE ASISTENCIA SOCIAL | AK40: 0 | AL40: 0 | AM40: 0 | AN40: 0 | AO40: 0 | AP40: 0 | AT40: =CONCATENATE(AU40,COUNTIF($AU$2:AU40,AU40)) -> 52 | AU40: 5 | AV40: 0.001064282673 | AW40: 28 | AX40: 0.0001834573855 | AY40: =+(SUMIFS(Montos!$Y$2:$Y$396864,Montos!$R$2:$R$396864,Base!AZ40)/1000000) -> 22.448179 | AZ40: CAREPA
B41: 11001 | C41: BOGOTÁ, D.C. | D41: 0 | E41: 0 | F41: Natural | G41: 11 | H41: BOGOTÁ, D.C. | I41: 0 | J41: 0 | K41: PEQUEÑA | L41: 1513 | M41: INDUSTRIAS MANUFACTURERAS | N41: 0 | O41: 0 | P41: 0 | Q41: 0 | R41: 0 | S41: 0 | X41: 0 | Y41: 5001 | Z41: MEDELLÍN | AA41: 4 | AB41: 1 | AC41: Natural | AD41: 5 | AE41: ANTIOQUIA | AF41: Aprobado con subsidio | AG41: 5 | AH41: MICRO | AI41: 5612 | AJ41: ALOJAMIENTO Y SERVICIOS DE COMIDA | AK41: 2 | AL41: 2 | AM41: 0 | AN41: 1 | AO41: 2 | AP41: 1 | AT41: =CONCATENATE(AU41,COUNTIF($AU$2:AU41,AU41)) -> 71 | AU41: 7 | AV41: 0.001489995743 | AW41: 40 | AX41: 0.0002620819792 | AY41: =+(SUMIFS(Montos!$Y$2:$Y$396864,Montos!$R$2:$R$396864,Base!AZ41)/1000000) -> 15.115585 | AZ41: BARBOSA
B42: 11001 | C42: BOGOTÁ, D.C. | D42: 1 | E42: 3 | F42: Natural | G42: 11 | H42: BOGOTÁ, D.C. | I42: Aprobado con subsidio | J42: 4 | K42: MICRO | L42: 7310 | M42: ACTIVIDADES PROFESIONALES, CIENTÍFICAS Y TÉCNICAS | N42: 0 | O42: 1 | P42: 0 | Q42: 1 | R42: 0 | S42: 0 | X42: 0 | Y42: 5001 | Z42: MEDELLÍN | AA42: 0 | AB42: 0 | AC42: Natural | AD42: 5 | AE42: ANTIOQUIA | AF42: 0 | AG42: 0 | AH42: MICRO | AI42: 4711 | AJ42: COMERCIO AL POR MAYOR Y AL POR MENOR; REPARACIÓN DE VEHÍCULOS AUTOMOTORES Y MOTOCICLETAS | AK42: 0 | AL42: 0 | AM42: 0 | AN42: 0 | AO42: 0 | AP42: 0 | AT42: =CONCATENATE(AU42,COUNTIF($AU$2:AU42,AU42)) -> 36 | AU42: 3 | AV42: 0.0006385696041 | AW42: 91 | AX42: 0.0005962365028 | AY42: =+(SUMIFS(Montos!$Y$2:$Y$396864,Montos!$R$2:$R$396864,Base!AZ42)/1000000) -> 24.904262 | AZ42: JARDÍN
B43: 15407 | C43: VILLA DE LEYVA | D43: 0 | E43: 0 | F43: Natural | G43: 15 | H43: BOYACÁ | I43: 0 | J43: 0 | K43: MICRO | L43: 5511 | M43: ALOJAMIENTO Y SERVICIOS DE COMIDA | N43: 0 | O43: 0 | P43: 0 | Q43: 0 | R43: 0 | S43: 0 | X43: 0 | Y43: 5686 | Z43: SANTA ROSA DE OSOS | AA43: 1 | AB43: 1 | AC43: Natural | AD43: 5 | AE43: ANTIOQUIA | AF43: Aprobado con subsidio | AG43: 2 | AH43: MICRO | AI43: 141 | AJ43: AGRICULTURA, GANADERÍA, CAZA, SILVICULTURA Y PESCA | AK43: 0 | AL43: 1 | AM43: 0 | AN43: 0 | AO43: 0 | AP43: 1 | AT43: =CONCATENATE(AU43,COUNTIF($AU$2:AU43,AU43)) -> 281 | AU43: 28 | AV43: 0.005959982971 | AW43: 200 | AX43: 0.001310409896 | AY43: =+(SUMIFS(Montos!$Y$2:$Y$396864,Montos!$R$2:$R$396864,Base!AZ43)/1000000) -> 222.634 | AZ43: PEÑOL
B44: 25430 | C44: MADRID | D44: 1 | E44: 4 | F44: Natural | G44: 25 | H44: CUNDINAMARCA | I44: Aprobado con subsidio | J44: 5 | K44: MICRO | L44: 145 | M44: AGRICULTURA, GANADERÍA, CAZA, SILVICULTURA Y PESCA | N44: 1 | O44: 0 | P44: 0 | Q44: 1 | R44: 0 | S44: 0 | X44: 0 | Y44: 5686 | Z44: SANTA ROSA DE OSOS | AA44: 6 | AB44: 7 | AC44: Natural | AD44: 5 | AE44: ANTIOQUIA | AF44: Aprobado con subsidio | AG44: 13 | AH44: MICRO | AI44: 1610 | AJ44: INDUSTRIAS MANUFACTURERAS | AK44: 0 | AL44: 6 | AM44: 0 | AN44: 1 | AO44: 0 | AP44: 5 | AT44: =CONCATENATE(AU44,COUNTIF($AU$2:AU44,AU44)) -> 161 | AU44: 16 | AV44: 0.003405704555 | AW44: 105 | AX44: 0.0006879651955 | AY44: =+(SUMIFS(Montos!$Y$2:$Y$396864,Montos!$R$2:$R$396864,Base!AZ44)/1000000) -> 65.578551 | AZ44: DON MATÍAS
B45: 25599 | C45: APULO | D45: 0 | E45: 0 | F45: Natural | G45: 25 | H45: CUNDINAMARCA | I45: 0 | J45: 0 | K45: MICRO | L45: 4322 | M45: CONSTRUCCIÓN | N45: 0 | O45: 0 | P45: 0 | Q45: 0 | R45: 0 | S45: 0 | X45: 0 | Y45: 5001 | Z45: MEDELLÍN | AA45: 3 | AB45: 8 | AC45: Natural | AD45: 5 | AE45: ANTIOQUIA | AF45: Aprobado con subsidio | AG45: 11 | AH45: MICRO | AI45: 4741 | AJ45: COMERCIO AL POR MAYOR Y AL POR MENOR; REPARACIÓN DE VEHÍCULOS AUTOMOTORES Y MOTOCICLETAS | AK45: 1 | AL45: 2 | AM45: 0 | AN45: 2 | AO45: 0 | AP45: 1 | AT45: =CONCATENATE(AU45,COUNTIF($AU$2:AU45,AU45)) -> 37 | AU45: 3 | AV45: 0.0006385696041 | AW45: 134 | AX45: 0.0008779746305 | AY45: =+(SUMIFS(Montos!$Y$2:$Y$396864,Montos!$R$2:$R$396864,Base!AZ45)/1000000) -> 179.101131 | AZ45: PUERTO BERRÍO
B46: 25754 | C46: SOACHA | D46: 2 | E46: 0 | F46: Natural | G46: 25 | H46: CUNDINAMARCA | I46: Aprobado con subsidio | J46: 2 | K46: MICRO | L46: 8219 | M46: ACTIVIDADES DE SERVICIOS ADMINISTRATIVOS Y DE APOYO | N46: 2 | O46: 0 | P46: 0 | Q46: 1 | R46: 1 | S46: 0 | X46: 0 | Y46: 5001 | Z46: MEDELLÍN | AA46: 0 | AB46: 0 | AC46: Natural | AD46: 5 | AE46: ANTIOQUIA | AF46: 0 | AG46: 0 | AH46: MICRO | AI46: 9609 | AJ46: OTRAS ACTIVIDADES DE SERVICIOS | AK46: 0 | AL46: 0 | AM46: 0 | AN46: 0 | AO46: 0 | AP46: 0 | AT46: =CONCATENATE(AU46,COUNTIF($AU$2:AU46,AU46)) -> 53 | AU46: 5 | AV46: 0.001064282673 | AW46: 71 | AX46: 0.0004651955132 | AY46: =+(SUMIFS(Montos!$Y$2:$Y$396864,Montos!$R$2:$R$396864,Base!AZ46)/1000000) -> 42.19562 | AZ46: SALGAR
B47: 11001 | C47: BOGOTÁ, D.C. | D47: 11 | E47: 11 | F47: Natural | G47: 11 | H47: BOGOTÁ, D.C. | I47: Aprobado con subsidio | J47: 22 | K47: PEQUEÑA | L47: 6910 | M47: ACTIVIDADES PROFESIONALES, CIENTÍFICAS Y TÉCNICAS | N47: 8 | O47: 3 | P47: 0 | Q47: 11 | R47: 0 | S47: 0 | X47: 0 | Y47: 5001 | Z47: MEDELLÍN | AA47: 1 | AB47: 4 | AC47: Natural | AD47: 5 | AE47: ANTIOQUIA | AF47: Aprobado con subsidio | AG47: 5 | AH47: PEQUEÑA | AI47: 1081 | AJ47: INDUSTRIAS MANUFACTURERAS | AK47: 0 | AL47: 1 | AM47: 0 | AN47: 1 | AO47: 0 | AP47: 0 | AT47: =CONCATENATE(AU47,COUNTIF($AU$2:AU47,AU47)) -> 38 | AU47: 3 | AV47: 0.0006385696041 | AW47: 12 | AX47: 7.862459377e-05 | AY47: =+(SUMIFS(Montos!$Y$2:$Y$396864,Montos!$R$2:$R$396864,Base!AZ47)/1000000) -> 7.865342 | AZ47: NECOCLÍ
B48: 11001 | C48: BOGOTÁ, D.C. | D48: 0 | E48: 2 | F48: Natural | G48: 11 | H48: BOGOTÁ, D.C. | I48: Aprobado con subsidio | J48: 2 | K48: MICRO | L48: 4751 | M48: COMERCIO AL POR MAYOR Y AL POR MENOR; REPARACIÓN DE VEHÍCULOS AUTOMOTORES Y MOTOCICLETAS | N48: 0 | O48: 0 | P48: 0 | Q48: 0 | R48: 0 | S48: 0 | X48: 0 | Y48: 5001 | Z48: MEDELLÍN | AA48: 0 | AB48: 0 | AC48: Natural | AD48: 5 | AE48: ANTIOQUIA | AF48: 0 | AG48: 0 | AH48: MICRO | AI48: 5611 | AJ48: ALOJAMIENTO Y SERVICIOS DE COMIDA | AK48: 0 | AL48: 0 | AM48: 0 | AN48: 0 | AO48: 0 | AP48: 0 | AT48: =CONCATENATE(AU48,COUNTIF($AU$2:AU48,AU48)) -> 72 | AU48: 7 | AV48: 0.001489995743 | AW48: 45 | AX48: 0.0002948422266 | AY48: =+(SUMIFS(Montos!$Y$2:$Y$396864,Montos!$R$2:$R$396864,Base!AZ48)/1000000) -> 41.712007 | AZ48: CHIGORODÓ
B49: 25785 | C49: TABIO | D49: 1 | E49: 2 | F49: Natural | G49: 25 | H49: CUNDINAMARCA | I49: Aprobado con subsidio | J49: 3 | K49: MICRO | L49: 9004 | M49: ACTIVIDADES ARTÍSTICAS, DE ENTRETENIMIENTO Y RECREACIÓN | N49: 1 | O49: 0 | P49: 0 | Q49: 1 | R49: 0 | S49: 0 | X49: 0 | Y49: 5001 | Z49: MEDELLÍN | AA49: 1 | AB49: 5 | AC49: Natural | AD49: 5 | AE49: ANTIOQUIA | AF49: Aprobado con subsidio | AG49: 6 | AH49: PEQUEÑA | AI49: 1410 | AJ49: INDUSTRIAS MANUFACTURERAS | AK49: 1 | AL49: 0 | AM49: 0 | AN49: 1 | AO49: 0 | AP49: 0 | AT49: =CONCATENATE(AU49,COUNTIF($AU$2:AU49,AU49)) -> 44 | AU49: 4 | AV49: 0.0008514261388 | AW49: 33 | AX49: 0.0002162176329 | AY49: =+(SUMIFS(Montos!$Y$2:$Y$396864,Montos!$R$2:$R$396864,Base!AZ49)/1000000) -> 29.516406 | AZ49: CIUDAD BOLÍVAR
B50: 25799 | C50: TENJO | D50: 0 | E50: 0 | F50: Natural | G50: 25 | H50: CUNDINAMARCA | I50: 0 | J50: 0 | K50: PEQUEÑA | L50: 4711 | M50: COMERCIO AL POR MAYOR Y AL POR MENOR; REPARACIÓN DE VEHÍCULOS AUTOMOTORES Y MOTOCICLETAS | N50: 0 | O50: 0 | P50: 0 | Q50: 0 | R50: 0 | S50: 0 | X50: 0 | Y50: 5001 | Z50: MEDELLÍN | AA50: 1 | AB50: 1 | AC50: Natural | AD50: 5 | AE50: ANTIOQUIA | AF50: Aprobado con subsidio | AG50: 2 | AH50: MICRO | AI50: 6495 | AJ50: ACTIVIDADES FINANCIERAS Y DE SEGUROS | AK50: 1 | AL50: 0 | AM50: 0 | AN50: 1 | AO50: 0 | AP50: 0 | AT50: =CONCATENATE(AU50,COUNTIF($AU$2:AU50,AU50)) -> 39 | AU50: 3 | AV50: 0.0006385696041 | AW50: 20 | AX50: 0.0001310409896 | AY50: =+(SUMIFS(Montos!$Y$2:$Y$396864,Montos!$R$2:$R$396864,Base!AZ50)/1000000) -> 13.488 | AZ50: SONSON
B51: 50001 | C51: VILLAVICENCIO | D51: 6 | E51: 12 | F51: Natural | G51: 50 | H51: META | I51: Aprobado con subsidio | J51: 18 | K51: MICRO | L51: 4729 | M51: COMERCIO AL POR MAYOR Y AL POR MENOR; REPARACIÓN DE VEHÍCULOS AUTOMOTORES Y MOTOCICLETAS | N51: 0 | O51: 6 | P51: 0 | Q51: 6 | R51: 0 | S51: 0 | X51: 0 | Y51: 5266 | Z51: ENVIGADO | AA51: 3 | AB51: 1 | AC51: Natural | AD51: 5 | AE51: ANTIOQUIA | AF51: Aprobado con subsidio | AG51: 4 | AH51: MICRO | AI51: 4620 | AJ51: COMERCIO AL POR MAYOR Y AL POR MENOR; REPARACIÓN DE VEHÍCULOS AUTOMOTORES Y MOTOCICLETAS | AK51: 1 | AL51: 2 | AM51: 0 | AN51: 0 | AO51: 1 | AP51: 2 | AT51: =CONCATENATE(AU51,COUNTIF($AU$2:AU51,AU51)) -> 54 | AU51: 5 | AV51: 0.001064282673 | AW51: 14 | AX51: 9.172869274e-05 | AY51: =+(SUMIFS(Montos!$Y$2:$Y$396864,Montos!$R$2:$R$396864,Base!AZ51)/1000000) -> 7.523638 | AZ51: ABEJORRAL
B52: 11001 | C52: BOGOTÁ, D.C. | D52: 0 | E52: 0 | F52: Natural | G52: 11 | H52: BOGOTÁ, D.C. | I52: 0 | J52: 0 | K52: MICRO | L52: 6810 | M52: ACTIVIDADES INMOBILIARIAS | N52: 0 | O52: 0 | P52: 0 | Q52: 0 | R52: 0 | S52: 0 | X52: 0 | Y52: 5001 | Z52: MEDELLÍN | AA52: 0 | AB52: 9 | AC52: Natural | AD52: 5 | AE52: ANTIOQUIA | AF52: Aprobado con subsidio | AG52: 9 | AH52: MICRO | AI52: 5611 | AJ52: ALOJAMIENTO Y SERVICIOS DE COMIDA | AK52: 0 | AL52: 0 | AM52: 0 | AN52: 0 | AO52: 0 | AP52: 0 | AT52: =CONCATENATE(AU52,COUNTIF($AU$2:AU52,AU52)) -> 21 | AU52: 2 | AV52: 0.0004257130694 | AW52: 5 | AX52: 3.276024741e-05 | AY52: =+(SUMIFS(Montos!$Y$2:$Y$396864,Montos!$R$2:$R$396864,Base!AZ52)/1000000) -> 1.204262 | AZ52: FRONTINO
B53: 25875 | C53: VILLETA | D53: 1 | E53: 0 | F53: Natural | G53: 25 | H53: CUNDINAMARCA | I53: Aprobado con subsidio | J53: 1 | K53: PEQUEÑA | L53: 1081 | M53: INDUSTRIAS MANUFACTURERAS | N53: 1 | O53: 0 | P53: 0 | Q53: 1 | R53: 0 | S53: 0 | X53: 0 | Y53: 5631 | Z53: SABANETA | AA53: 5 | AB53: 16 | AC53: Natural | AD53: 5 | AE53: ANTIOQUIA | AF53: Aprobado con subsidio | AG53: 21 | AH53: PEQUEÑA | AI53: 3110 | AJ53: INDUSTRIAS MANUFACTURERAS | AK53: 3 | AL53: 2 | AM53: 0 | AN53: 1 | AO53: 3 | AP53: 1 | AT53: =CONCATENATE(AU53,COUNTIF($AU$2:AU53,AU53)) -> 16 | AU53: 1 | AV53: 0.0002128565347 | AW53: 4 | AX53: 2.620819792e-05 | AY53: =+(SUMIFS(Montos!$Y$2:$Y$396864,Montos!$R$2:$R$396864,Base!AZ53)/1000000) -> 1.45 | AZ53: VALDIVIA
B54: 25269 | C54: FACATATIVÁ | D54: 6 | E54: 2 | F54: Natural | G54: 25 | H54: CUNDINAMARCA | I54: Aprobado con subsidio | J54: 8 | K54: MICRO | L54: 8560 | M54: EDUCACIÓN | N54: 3 | O54: 3 | P54: 0 | Q54: 2 | R54: 1 | S54: 3 | X54: 0 | Y54: 5001 | Z54: MEDELLÍN | AA54: 1 | AB54: 2 | AC54: Natural | AD54: 5 | AE54: ANTIOQUIA | AF54: Aprobado con subsidio | AG54: 3 | AH54: MICRO | AI54: 4530 | AJ54: COMERCIO AL POR MAYOR Y AL POR MENOR; REPARACIÓN DE VEHÍCULOS AUTOMOTORES Y MOTOCICLETAS | AK54: 0 | AL54: 1 | AM54: 0 | AN54: 1 | AO54: 0 | AP54: 0 | AT54: =CONCATENATE(AU54,COUNTIF($AU$2:AU54,AU54)) -> 251 | AU54: 25 | AV54: 0.005321413367 | AW54: 714 | AX54: 0.004678163329 | AY54: =+(SUMIFS(Montos!$Y$2:$Y$396864,Montos!$R$2:$R$396864,Base!AZ54)/1000000) -> 681.176811 | AZ54: GIRARDOTA
B55: 85001 | C55: YOPAL | D55: 3 | E55: 0 | F55: Natural | G55: 85 | H55: CASANARE | I55: Aprobado con subsidio | J55: 3 | K55: MICRO | L55: 4769 | M55: COMERCIO AL POR MAYOR Y AL POR MENOR; REPARACIÓN DE VEHÍCULOS AUTOMOTORES Y MOTOCICLETAS | N55: 2 | O55: 1 | P55: 0 | Q55: 2 | R55: 1 | S55: 0 | X55: 0 | Y55: 5001 | Z55: MEDELLÍN | AA55: 1 | AB55: 14 | AC55: Natural | AD55: 5 | AE55: ANTIOQUIA | AF55: Aprobado con subsidio | AG55: 15 | AH55: PEQUEÑA | AI55: 4711 | AJ55: COMERCIO AL POR MAYOR Y AL POR MENOR; REPARACIÓN DE VEHÍCULOS AUTOMOTORES Y MOTOCICLETAS | AK55: 1 | AL55: 0 | AM55: 0 | AN55: 1 | AO55: 0 | AP55: 0 | AT55: =CONCATENATE(AU55,COUNTIF($AU$2:AU55,AU55)) -> 17 | AU55: 1 | AV55: 0.0002128565347 | AW55: 4 | AX55: 2.620819792e-05 | AY55: =+(SUMIFS(Montos!$Y$2:$Y$396864,Montos!$R$2:$R$396864,Base!AZ55)/1000000) -> 2.435966 | AZ55: LIBORINA
B56: 50001 | C56: VILLAVICENCIO | D56: 0 | E56: 0 | F56: Natural | G56: 50 | H56: META | I56: 0 | J56: 0 | K56: MICRO | L56: 6810 | M56: ACTIVIDADES INMOBILIARIAS | N56: 0 | O56: 0 | P56: 0 | Q56: 0 | R56: 0 | S56: 0 | X56: 0 | Y56: 5368 | Z56: JERICÓ | AA56: 14 | AB56: 8 | AC56: Natural | AD56: 5 | AE56: ANTIOQUIA | AF56: Aprobado con subsidio | AG56: 22 | AH56: PEQUEÑA | AI56: 1084 | AJ56: INDUSTRIAS MANUFACTURERAS | AK56: 10 | AL56: 4 | AM56: 0 | AN56: 7 | AO56: 6 | AP56: 1 | AT56: =CONCATENATE(AU56,COUNTIF($AU$2:AU56,AU56)) -> 81 | AU56: 8 | AV56: 0.001702852278 | AW56: 117 | AX56: 0.0007665897893 | AY56: =+(SUMIFS(Montos!$Y$2:$Y$396864,Montos!$R$2:$R$396864,Base!AZ56)/1000000) -> 107.408237 | AZ56: LA UNIÓN
B57: 5360 | C57: ITAGUI | D57: 0 | E57: 0 | F57: Natural | G57: 5 | H57: ANTIOQUIA | I57: 0 | J57: 0 | K57: MICRO | L57: 1921 | M57: INDUSTRIAS MANUFACTURERAS | N57: 0 | O57: 0 | P57: 0 | Q57: 0 | R57: 0 | S57: 0 | X57: 0 | Y57: 5631 | Z57: SABANETA | AA57: 3 | AB57: 3 | AC57: Natural | AD57: 5 | AE57: ANTIOQUIA | AF57: Aprobado con subsidio | AG57: 6 | AH57: MICRO | AI57: 4541 | AJ57: COMERCIO AL POR MAYOR Y AL POR MENOR; REPARACIÓN DE VEHÍCULOS AUTOMOTORES Y MOTOCICLETAS | AK57: 0 | AL57: 3 | AM57: 0 | AN57: 2 | AO57: 0 | AP57: 1 | AT57: =CONCATENATE(AU57,COUNTIF($AU$2:AU57,AU57)) -> 22 | AU57: 2 | AV57: 0.0004257130694 | AW57: 10 | AX57: 6.552049481e-05 | AY57: =+(SUMIFS(Montos!$Y$2:$Y$396864,Montos!$R$2:$R$396864,Base!AZ57)/1000000) -> 3.708 | AZ57: ZARAGOZA
B58: 5001 | C58: MEDELLÍN | D58: 1 | E58: 1 | F58: Natural | G58: 5 | H58: ANTIOQUIA | I58: Aprobado con subsidio | J58: 2 | K58: MICRO | L58: 90 | M58: OTRAS | N58: 0 | O58: 1 | P58: 0 | Q58: 0 | R58: 0 | S58: 1 | X58: 0 | Y58: 5001 | Z58: MEDELLÍN | AA58: 1 | AB58: 1 | AC58: Natural | AD58: 5 | AE58: ANTIOQUIA | AF58: Aprobado con subsidio | AG58: 2 | AH58: MICRO | AI58: 4723 | AJ58: COMERCIO AL POR MAYOR Y AL POR MENOR; REPARACIÓN DE VEHÍCULOS AUTOMOTORES Y MOTOCICLETAS | AK58: 0 | AL58: 1 | AM58: 0 | AN58: 0 | AO58: 0 | AP58: 1 | AT58: =CONCATENATE(AU58,COUNTIF($AU$2:AU58,AU58)) -> 45 | AU58: 4 | AV58: 0.0008514261388 | AW58: 23 | AX58: 0.0001506971381 | AY58: =+(SUMIFS(Montos!$Y$2:$Y$396864,Montos!$R$2:$R$396864,Base!AZ58)/1000000) -> 13.781598 | AZ58: SANTAFÉ DE ANTIOQUIA
B59: 15759 | C59: SOGAMOSO | D59: 2 | E59: 2 | F59: Natural | G59: 15 | H59: BOYACÁ | I59: Aprobado con subsidio | J59: 4 | K59: MICRO | L59: 4799 | M59: COMERCIO AL POR MAYOR Y AL POR MENOR; REPARACIÓN DE VEHÍCULOS AUTOMOTORES Y MOTOCICLETAS | N59: 1 | O59: 1 | P59: 0 | Q59: 1 | R59: 0 | S59: 1 | X59: 0 | Y59: 5604 | Z59: REMEDIOS | AA59: 0 | AB59: 0 | AC59: Natural | AD59: 5 | AE59: ANTIOQUIA | AF59: 0 | AG59: 0 | AH59: PEQUEÑA | AI59: 4711 | AJ59: COMERCIO AL POR MAYOR Y AL POR MENOR; REPARACIÓN DE VEHÍCULOS AUTOMOTORES Y MOTOCICLETAS | AK59: 0 | AL59: 0 | AM59: 0 | AN59: 0 | AO59: 0 | AP59: 0 | AT59: =CONCATENATE(AU59,COUNTIF($AU$2:AU59,AU59)) -> 131 | AU59: 13 | AV59: 0.002767134951 | AW59: 127 | AX59: 0.0008321102841 | AY59: =+(SUMIFS(Montos!$Y$2:$Y$396864,Montos!$R$2:$R$396864,Base!AZ59)/1000000) -> 130.011893 | AZ59: RETIRO
B60: 5001 | C60: MEDELLÍN | D60: 0 | E60: 0 | F60: Natural | G60: 5 | H60: ANTIOQUIA | I60: 0 | J60: 0 | K60: MICRO | L60: 141 | M60: AGRICULTURA, GANADERÍA, CAZA, SILVICULTURA Y PESCA | N60: 0 | O60: 0 | P60: 0 | Q60: 0 | R60: 0 | S60: 0 | X60: 0 | Y60: 5736 | Z60: SEGOVIA | AA60: 6 | AB60: 1 | AC60: Natural | AD60: 5 | AE60: ANTIOQUIA | AF60: Aprobado con subsidio | AG60: 7 | AH60: MICRO | AI60: 4723 | AJ60: COMERCIO AL POR MAYOR Y AL POR MENOR; REPARACIÓN DE VEHÍCULOS AUTOMOTORES Y MOTOCICLETAS | AK60: 3 | AL60: 3 | AM60: 0 | AN60: 3 | AO60: 2 | AP60: 1 | AT60: =CONCATENATE(AU60,COUNTIF($AU$2:AU60,AU60)) -> 03 | AU60: 0 | AV60: 0 | AW60: 0 | AX60: 0 | AY60: =+(SUMIFS(Montos!$Y$2:$Y$396864,Montos!$R$2:$R$396864,Base!AZ60)/1000000) -> 0 | AZ60: AMALFI
B61: 5001 | C61: MEDELLÍN | D61: 1 | E61: 2 | F61: Natural | G61: 5 | H61: ANTIOQUIA | I61: Aprobado con subsidio | J61: 3 | K61: MICRO | L61: 5611 | M61: ALOJAMIENTO Y SERVICIOS DE COMIDA | N61: 0 | O61: 1 | P61: 0 | Q61: 0 | R61: 0 | S61: 1 | X61: 0 | Y61: 5837 | Z61: TURBO | AA61: 8 | AB61: 6 | AC61: Natural | AD61: 5 | AE61: ANTIOQUIA | AF61: Aprobado con subsidio | AG61: 14 | AH61: PEQUEÑA | AI61: 4761 | AJ61: COMERCIO AL POR MAYOR Y AL POR MENOR; REPARACIÓN DE VEHÍCULOS AUTOMOTORES Y MOTOCICLETAS | AK61: 6 | AL61: 2 | AM61: 0 | AN61: 5 | AO61: 2 | AP61: 1 | AT61: =CONCATENATE(AU61,COUNTIF($AU$2:AU61,AU61)) -> 310 | AU61: 3 | AV61: 0.0006385696041 | AW61: 18 | AX61: 0.0001179368907 | AY61: =+(SUMIFS(Montos!$Y$2:$Y$396864,Montos!$R$2:$R$396864,Base!AZ61)/1000000) -> 14.726195 | AZ61: COCORNÁ
B62: 5001 | C62: MEDELLÍN | D62: 4 | E62: 0 | F62: Natural | G62: 5 | H62: ANTIOQUIA | I62: Aprobado con subsidio | J62: 4 | K62: MICRO | L62: 4722 | M62: COMERCIO AL POR MAYOR Y AL POR MENOR; REPARACIÓN DE VEHÍCULOS AUTOMOTORES Y MOTOCICLETAS | N62: 1 | O62: 3 | P62: 0 | Q62: 2 | R62: 1 | S62: 1 | X62: 0 | Y62: 5376 | Z62: LA CEJA | AA62: 0 | AB62: 0 | AC62: Natural | AD62: 5 | AE62: ANTIOQUIA | AF62: 0 | AG62: 0 | AH62: PEQUEÑA | AI62: 125 | AJ62: AGRICULTURA, GANADERÍA, CAZA, SILVICULTURA Y PESCA | AK62: 0 | AL62: 0 | AM62: 0 | AN62: 0 | AO62: 0 | AP62: 0 | AT62: =CONCATENATE(AU62,COUNTIF($AU$2:AU62,AU62)) -> 18 | AU62: 1 | AV62: 0.0002128565347 | AW62: 25 | AX62: 0.000163801237 | AY62: =+(SUMIFS(Montos!$Y$2:$Y$396864,Montos!$R$2:$R$396864,Base!AZ62)/1000000) -> 20.47131 | AZ62: GÓMEZ PLATA
B63: 5001 | C63: MEDELLÍN | D63: 2 | E63: 0 | F63: Natural | G63: 5 | H63: ANTIOQUIA | I63: Aprobado con subsidio | J63: 2 | K63: MICRO | L63: 3240 | M63: INDUSTRIAS MANUFACTURERAS | N63: 1 | O63: 1 | P63: 0 | Q63: 1 | R63: 0 | S63: 1 | X63: 0 | Y63: 5001 | Z63: MEDELLÍN | AA63: 2 | AB63: 0 | AC63: Natural | AD63: 5 | AE63: ANTIOQUIA | AF63: Aprobado con subsidio | AG63: 2 | AH63: MICRO | AI63: 6920 | AJ63: ACTIVIDADES PROFESIONALES, CIENTÍFICAS Y TÉCNICAS | AK63: 1 | AL63: 1 | AM63: 0 | AN63: 1 | AO63: 1 | AP63: 0 | AT63: =CONCATENATE(AU63,COUNTIF($AU$2:AU63,AU63)) -> 23 | AU63: 2 | AV63: 0.0004257130694 | AW63: 41 | AX63: 0.0002686340287 | AY63: =+(SUMIFS(Montos!$Y$2:$Y$396864,Montos!$R$2:$R$396864,Base!AZ63)/1000000) -> 34.656965 | AZ63: SAN LUIS
B64: 5001 | C64: MEDELLÍN | D64: 1 | E64: 0 | F64: Natural | G64: 5 | H64: ANTIOQUIA | I64: Aprobado con subsidio | J64: 1 | K64: MICRO | L64: 4771 | M64: COMERCIO AL POR MAYOR Y AL POR MENOR; REPARACIÓN DE VEHÍCULOS AUTOMOTORES Y MOTOCICLETAS | N64: 1 | O64: 0 | P64: 0 | Q64: 1 | R64: 0 | S64: 0 | X64: 0 | Y64: 5001 | Z64: MEDELLÍN | AA64: 0 | AB64: 0 | AC64: Natural | AD64: 5 | AE64: ANTIOQUIA | AF64: 0 | AG64: 0 | AH64: MICRO | AI64: 6920 | AJ64: ACTIVIDADES PROFESIONALES, CIENTÍFICAS Y TÉCNICAS | AK64: 0 | AL64: 0 | AM64: 0 | AN64: 0 | AO64: 0 | AP64: 0 | AT64: =CONCATENATE(AU64,COUNTIF($AU$2:AU64,AU64)) -> 24 | AU64: 2 | AV64: 0.0004257130694 | AW64: 95 | AX64: 0.0006224447007 | AY64: =+(SUMIFS(Montos!$Y$2:$Y$396864,Montos!$R$2:$R$396864,Base!AZ64)/1000000) -> 114.747639 | AZ64: CAÑASGORDAS
B65: 41001 | C65: NEIVA | D65: 0 | E65: 0 | F65: Natural | G65: 41 | H65: HUILA | I65: 0 | J65: 0 | K65: MICRO | L65: 4755 | M65: COMERCIO AL POR MAYOR Y AL POR MENOR; REPARACIÓN DE VEHÍCULOS AUTOMOTORES Y MOTOCICLETAS | N65: 0 | O65: 0 | P65: 0 | Q65: 0 | R65: 0 | S65: 0 | X65: 0 | Y65: 5001 | Z65: MEDELLÍN | AA65: 1 | AB65: 0 | AC65: Natural | AD65: 5 | AE65: ANTIOQUIA | AF65: Aprobado con subsidio | AG65: 1 | AH65: MICRO | AI65: 4645 | AJ65: COMERCIO AL POR MAYOR Y AL POR MENOR; REPARACIÓN DE VEHÍCULOS AUTOMOTORES Y MOTOCICLETAS | AK65: 1 | AL65: 0 | AM65: 0 | AN65: 0 | AO65: 1 | AP65: 0 | AT65: =CONCATENATE(AU65,COUNTIF($AU$2:AU65,AU65)) -> 04 | AU65: 0 | AV65: 0 | AW65: 0 | AX65: 0 | AY65: =+(SUMIFS(Montos!$Y$2:$Y$396864,Montos!$R$2:$R$396864,Base!AZ65)/1000000) -> 0 | AZ65: TARSO
B66: 5591 | C66: PUERTO TRIUNFO | D66: 0 | E66: 0 | F66: Natural | G66: 5 | H66: ANTIOQUIA | I66: 0 | J66: 0 | K66: MICRO | L66: 4711 | M66: COMERCIO AL POR MAYOR Y AL POR MENOR; REPARACIÓN DE VEHÍCULOS AUTOMOTORES Y MOTOCICLETAS | N66: 0 | O66: 0 | P66: 0 | Q66: 0 | R66: 0 | S66: 0 | X66: 0 | Y66: 5034 | Z66: ANDES | AA66: 5 | AB66: 1 | AC66: Natural | AD66: 5 | AE66: ANTIOQUIA | AF66: Aprobado con subsidio | AG66: 6 | AH66: MICRO | AI66: 4632 | AJ66: COMERCIO AL POR MAYOR Y AL POR MENOR; REPARACIÓN DE VEHÍCULOS AUTOMOTORES Y MOTOCICLETAS | AK66: 2 | AL66: 3 | AM66: 0 | AN66: 2 | AO66: 2 | AP66: 1 | AT66: =CONCATENATE(AU66,COUNTIF($AU$2:AU66,AU66)) -> 19 | AU66: =+COUNTIFS($Z$2:$Z$399999,AZ66,$AF$2:$AF$399999,"Aprobado con subsidio")*1 -> 1 | AV66: =+AU66/SUM($AU$2:$AU$129) -> 0.0002128565347 | AW66: =+SUMIFS($AA$2:$AA$399999,$Z$2:$Z$399999,AZ66,$AF$2:$AF$399999,"Aprobado con subsidio") -> 5 | AX66: 3.276024741e-05 | AY66: =+(SUMIFS(Montos!$Y$2:$Y$396864,Montos!$R$2:$R$396864,Base!AZ66)/1000000) -> 2.496 | AZ66: HELICONIA
B67: 5001 | C67: MEDELLÍN | D67: 0 | E67: 0 | F67: Natural | G67: 5 | H67: ANTIOQUIA | I67: 0 | J67: 0 | K67: PEQUEÑA | L67: 121 | M67: AGRICULTURA, GANADERÍA, CAZA, SILVICULTURA Y PESCA | N67: 0 | O67: 0 | P67: 0 | Q67: 0 | R67: 0 | S67: 0 | X67: 0 | Y67: 5088 | Z67: BELLO | AA67: 0 | AB67: 0 | AC67: Natural | AD67: 5 | AE67: ANTIOQUIA | AF67: 0 | AG67: 0 | AH67: MICRO | AI67: 1081 | AJ67: INDUSTRIAS MANUFACTURERAS | AK67: 0 | AL67: 0 | AM67: 0 | AN67: 0 | AO67: 0 | AP67: 0 | AT67: =CONCATENATE(AU67,COUNTIF($AU$2:AU67,AU67)) -> 110 | AU67: 1 | AV67: 0.0002128565347 | AW67: 1 | AX67: =+AW67/SUM($AW$2:$AW$129) -> 6.552049481e-06 | AY67: =+(SUMIFS(Montos!$Y$2:$Y$396864,Montos!$R$2:$R$396864,Base!AZ67)/1000000) -> 0.15 | AZ67: TÁMESIS
B68: 5264 | C68: ENTRERRIOS | D68: 0 | E68: 0 | F68: Natural | G68: 5 | H68: ANTIOQUIA | I68: 0 | J68: 0 | K68: MEDIANA | L68: 121 | M68: AGRICULTURA, GANADERÍA, CAZA, SILVICULTURA Y PESCA | N68: 0 | O68: 0 | P68: 0 | Q68: 0 | R68: 0 | S68: 0 | X68: 0 | Y68: 5045 | Z68: APARTADÓ | AA68: 0 | AB68: 0 | AC68: Natural | AD68: 5 | AE68: ANTIOQUIA | AF68: 0 | AG68: 0 | AH68: MICRO | AI68: 4530 | AJ68: COMERCIO AL POR MAYOR Y AL POR MENOR; REPARACIÓN DE VEHÍCULOS AUTOMOTORES Y MOTOCICLETAS | AK68: 0 | AL68: 0 | AM68: 0 | AN68: 0 | AO68: 0 | AP68: 0 | AT68: =CONCATENATE(AU68,COUNTIF($AU$2:AU68,AU68)) -> 111 | AU68: 1 | AV68: 0.0002128565347 | AW68: 8 | AX68: 5.241639585e-05 | AY68: =+(SUMIFS(Montos!$Y$2:$Y$396864,Montos!$R$2:$R$396864,Base!AZ68)/1000000) -> 8.186 | AZ68: YONDÓ
B69: 5264 | C69: ENTRERRIOS | D69: 0 | E69: 0 | F69: Natural | G69: 5 | H69: ANTIOQUIA | I69: 0 | J69: 0 | K69: MICRO | L69: 4724 | M69: COMERCIO AL POR MAYOR Y AL POR MENOR; REPARACIÓN DE VEHÍCULOS AUTOMOTORES Y MOTOCICLETAS | N69: 0 | O69: 0 | P69: 0 | Q69: 0 | R69: 0 | S69: 0 | X69: 0 | Y69: 5001 | Z69: MEDELLÍN | AA69: 3 | AB69: 4 | AC69: Natural | AD69: 5 | AE69: ANTIOQUIA | AF69: Aprobado con subsidio | AG69: 7 | AH69: MICRO | AI69: 6920 | AJ69: ACTIVIDADES PROFESIONALES, CIENTÍFICAS Y TÉCNICAS | AK69: 2 | AL69: 1 | AM69: 0 | AN69: 2 | AO69: 1 | AP69: 0 | AT69: =CONCATENATE(AU69,COUNTIF($AU$2:AU69,AU69)) -> 25 | AU69: 2 | AV69: 0.0004257130694 | AW69: 23 | AX69: 0.0001506971381 | AY69: =+(SUMIFS(Montos!$Y$2:$Y$396864,Montos!$R$2:$R$396864,Base!AZ69)/1000000) -> 15.479375 | AZ69: YALÍ
B70: 5264 | C70: ENTRERRIOS | D70: 0 | E70: 0 | F70: Natural | G70: 5 | H70: ANTIOQUIA | I70: 0 | J70: 0 | K70: MICRO | L70: 121 | M70: AGRICULTURA, GANADERÍA, CAZA, SILVICULTURA Y PESCA | N70: 0 | O70: 0 | P70: 0 | Q70: 0 | R70: 0 | S70: 0 | X70: 0 | Y70: 5001 | Z70: MEDELLÍN | AA70: 1 | AB70: 0 | AC70: Natural | AD70: 5 | AE70: ANTIOQUIA | AF70: Aprobado con subsidio | AG70: 1 | AH70: MICRO | AI70: 4520 | AJ70: COMERCIO AL POR MAYOR Y AL POR MENOR; REPARACIÓN DE VEHÍCULOS AUTOMOTORES Y MOTOCICLETAS | AK70: 1 | AL70: 0 | AM70: 0 | AN70: 1 | AO70: 0 | AP70: 0 | AT70: =CONCATENATE(AU70,COUNTIF($AU$2:AU70,AU70)) -> 311 | AU70: 3 | AV70: 0.0006385696041 | AW70: 194 | AX70: 0.001271097599 | AY70: =+(SUMIFS(Montos!$Y$2:$Y$396864,Montos!$R$2:$R$396864,Base!AZ70)/1000000) -> 147.756706 | AZ70: YOLOMBÓ
B71: 23001 | C71: MONTERÍA | D71: 0 | E71: 0 | F71: Natural | G71: 23 | H71: CÓRDOBA | I71: 0 | J71: 0 | K71: MEDIANA | L71: 4711 | M71: COMERCIO AL POR MAYOR Y AL POR MENOR; REPARACIÓN DE VEHÍCULOS AUTOMOTORES Y MOTOCICLETAS | N71: 0 | O71: 0 | P71: 0 | Q71: 0 | R71: 0 | S71: 0 | X71: 0 | Y71: 5697 | Z71: EL SANTUARIO | AA71: 0 | AB71: 0 | AC71: Natural | AD71: 5 | AE71: ANTIOQUIA | AF71: 0 | AG71: 0 | AH71: PEQUEÑA | AI71: 1392 | AJ71: INDUSTRIAS MANUFACTURERAS | AK71: 0 | AL71: 0 | AM71: 0 | AN71: 0 | AO71: 0 | AP71: 0 | AT71: =CONCATENATE(AU71,COUNTIF($AU$2:AU71,AU71)) -> 104 | AU71: 10 | AV71: 0.002128565347 | AW71: 108 | AX71: 0.000707621344 | AY71: =+(SUMIFS(Montos!$Y$2:$Y$396864,Montos!$R$2:$R$396864,Base!AZ71)/1000000) -> 51.920538 | AZ71: SAN ROQUE
B72: 5001 | C72: MEDELLÍN | D72: 0 | E72: 0 | F72: Natural | G72: 5 | H72: ANTIOQUIA | I72: 0 | J72: 0 | K72: PEQUEÑA | L72: 4711 | M72: COMERCIO AL POR MAYOR Y AL POR MENOR; REPARACIÓN DE VEHÍCULOS AUTOMOTORES Y MOTOCICLETAS | N72: 0 | O72: 0 | P72: 0 | Q72: 0 | R72: 0 | S72: 0 | X72: 0 | Y72: 5686 | Z72: SANTA ROSA DE OSOS | AA72: 4 | AB72: 0 | AC72: Natural | AD72: 5 | AE72: ANTIOQUIA | AF72: Aprobado con subsidio | AG72: 4 | AH72: MICRO | AI72: 4771 | AJ72: COMERCIO AL POR MAYOR Y AL POR MENOR; REPARACIÓN DE VEHÍCULOS AUTOMOTORES Y MOTOCICLETAS | AK72: 4 | AL72: 0 | AM72: 0 | AN72: 2 | AO72: 2 | AP72: 0 | AT72: =CONCATENATE(AU72,COUNTIF($AU$2:AU72,AU72)) -> 26 | AU72: 2 | AV72: 0.0004257130694 | AW72: 82 | AX72: 0.0005372680574 | AY72: =+(SUMIFS(Montos!$Y$2:$Y$396864,Montos!$R$2:$R$396864,Base!AZ72)/1000000) -> 53.867983 | AZ72: VALPARAÍSO
B73: 11001 | C73: BOGOTÁ, D.C. | D73: 0 | E73: 0 | F73: Natural | G73: 11 | H73: BOGOTÁ, D.C. | I73: 0 | J73: 0 | K73: MICRO | L73: 1410 | M73: INDUSTRIAS MANUFACTURERAS | N73: 0 | O73: 0 | P73: 0 | Q73: 0 | R73: 0 | S73: 0 | X73: 0 | Y73: 5631 | Z73: SABANETA | AA73: 8 | AB73: 1 | AC73: Natural | AD73: 5 | AE73: ANTIOQUIA | AF73: Aprobado con subsidio | AG73: 9 | AH73: MICRO | AI73: 7990 | AJ73: ACTIVIDADES DE SERVICIOS ADMINISTRATIVOS Y DE APOYO | AK73: 5 | AL73: 3 | AM73: 0 | AN73: 0 | AO73: 5 | AP73: 3 | AT73: =CONCATENATE(AU73,COUNTIF($AU$2:AU73,AU73)) -> 112 | AU73: 1 | AV73: 0.0002128565347 | AW73: 7 | AX73: 4.586434637e-05 | AY73: =+(SUMIFS(Montos!$Y$2:$Y$396864,Montos!$R$2:$R$396864,Base!AZ73)/1000000) -> 2 | AZ73: CARACOLÍ
B74: 11001 | C74: BOGOTÁ, D.C. | D74: 1 | E74: 7 | F74: Natural | G74: 11 | H74: BOGOTÁ, D.C. | I74: Aprobado con subsidio | J74: 8 | K74: PEQUEÑA | L74: 4771 | M74: COMERCIO AL POR MAYOR Y AL POR MENOR; REPARACIÓN DE VEHÍCULOS AUTOMOTORES Y MOTOCICLETAS | N74: 1 | O74: 0 | P74: 0 | Q74: 1 | R74: 0 | S74: 0 | X74: 0 | Y74: 5615 | Z74: RIONEGRO | AA74: 7 | AB74: 1 | AC74: Natural | AD74: 5 | AE74: ANTIOQUIA | AF74: Aprobado con subsidio | AG74: 8 | AH74: MICRO | AI74: 4390 | AJ74: CONSTRUCCIÓN | AK74: 0 | AL74: 7 | AM74: 0 | AN74: 1 | AO74: 0 | AP74: 6 | AT74: =CONCATENATE(AU74,COUNTIF($AU$2:AU74,AU74)) -> 05 | AU74: 0 | AV74: 0 | AW74: 0 | AX74: 0 | AY74: =+(SUMIFS(Montos!$Y$2:$Y$396864,Montos!$R$2:$R$396864,Base!AZ74)/1000000) -> 0 | AZ74: ALEJANDRÍA
B75: 5001 | C75: MEDELLÍN | D75: 0 | E75: 0 | F75: Natural | G75: 5 | H75: ANTIOQUIA | I75: 0 | J75: 0 | K75: MICRO | L75: 4520 | M75: COMERCIO AL POR MAYOR Y AL POR MENOR; REPARACIÓN DE VEHÍCULOS AUTOMOTORES Y MOTOCICLETAS | N75: 0 | O75: 0 | P75: 0 | Q75: 0 | R75: 0 | S75: 0 | X75: 0 | Y75: 5001 | Z75: MEDELLÍN | AA75: 17 | AB75: 56 | AC75: Natural | AD75: 5 | AE75: ANTIOQUIA | AF75: Aprobado con subsidio | AG75: 73 | AH75: MICRO | AI75: 1410 | AJ75: INDUSTRIAS MANUFACTURERAS | AK75: 8 | AL75: 9 | AM75: 0 | AN75: 1 | AO75: 8 | AP75: 8 | AT75: =CONCATENATE(AU75,COUNTIF($AU$2:AU75,AU75)) -> 113 | AU75: 1 | AV75: 0.0002128565347 | AW75: 53 | AX75: 0.0003472586225 | AY75: =+(SUMIFS(Montos!$Y$2:$Y$396864,Montos!$R$2:$R$396864,Base!AZ75)/1000000) -> 25.484065 | AZ75: ARBOLETES
B76: 5209 | C76: CONCORDIA | D76: 0 | E76: 0 | F76: Natural | G76: 5 | H76: ANTIOQUIA | I76: 0 | J76: 0 | K76: MICRO | L76: 123 | M76: AGRICULTURA, GANADERÍA, CAZA, SILVICULTURA Y PESCA | N76: 0 | O76: 0 | P76: 0 | Q76: 0 | R76: 0 | S76: 0 | X76: 0 | Y76: 5129 | Z76: CALDAS | AA76: 0 | AB76: 0 | AC76: Natural | AD76: 5 | AE76: ANTIOQUIA | AF76: 0 | AG76: 0 | AH76: MICRO | AI76: 4620 | AJ76: COMERCIO AL POR MAYOR Y AL POR MENOR; REPARACIÓN DE VEHÍCULOS AUTOMOTORES Y MOTOCICLETAS | AK76: 0 | AL76: 0 | AM76: 0 | AN76: 0 | AO76: 0 | AP76: 0 | AT76: =CONCATENATE(AU76,COUNTIF($AU$2:AU76,AU76)) -> 06 | AU76: 0 | AV76: 0 | AW76: 0 | AX76: 0 | AY76: =+(SUMIFS(Montos!$Y$2:$Y$396864,Montos!$R$2:$R$396864,Base!AZ76)/1000000) -> 0 | AZ76: SAN JUAN DE URABÁ
B77: 5697 | C77: EL SANTUARIO | D77: 1 | E77: 1 | F77: Natural | G77: 5 | H77: ANTIOQUIA | I77: Aprobado con subsidio | J77: 2 | K77: MICRO | L77: 4773 | M77: COMERCIO AL POR MAYOR Y AL POR MENOR; REPARACIÓN DE VEHÍCULOS AUTOMOTORES Y MOTOCICLETAS | N77: 1 | O77: 0 | P77: 0 | Q77: 1 | R77: 0 | S77: 0 | X77: 0 | Y77: 5631 | Z77: SABANETA | AA77: 0 | AB77: 0 | AC77: Natural | AD77: 5 | AE77: ANTIOQUIA | AF77: 0 | AG77: 0 | AH77: MICRO | AI77: 4923 | AJ77: TRANSPORTE Y ALMACENAMIENTO | AK77: 0 | AL77: 0 | AM77: 0 | AN77: 0 | AO77: 0 | AP77: 0 | AT77: =CONCATENATE(AU77,COUNTIF($AU$2:AU77,AU77)) -> 114 | AU77: 1 | AV77: 0.0002128565347 | AW77: 13 | AX77: 8.517664325e-05 | AY77: =+(SUMIFS(Montos!$Y$2:$Y$396864,Montos!$R$2:$R$396864,Base!AZ77)/1000000) -> 11.846 | AZ77: PEQUE
B78: 5001 | C78: MEDELLÍN | D78: 0 | E78: 0 | F78: Natural | G78: 5 | H78: ANTIOQUIA | I78: 0 | J78: 0 | K78: PEQUEÑA | L78: 141 | M78: AGRICULTURA, GANADERÍA, CAZA, SILVICULTURA Y PESCA | N78: 0 | O78: 0 | P78: 0 | Q78: 0 | R78: 0 | S78: 0 | X78: 0 | Y78: 5380 | Z78: LA ESTRELLA | AA78: 3 | AB78: 1 | AC78: Natural | AD78: 5 | AE78: ANTIOQUIA | AF78: Aprobado con subsidio | AG78: 4 | AH78: MICRO | AI78: 4752 | AJ78: COMERCIO AL POR MAYOR Y AL POR MENOR; REPARACIÓN DE VEHÍCULOS AUTOMOTORES Y MOTOCICLETAS | AK78: 2 | AL78: 1 | AM78: 0 | AN78: 0 | AO78: 2 | AP78: 1 | AT78: =CONCATENATE(AU78,COUNTIF($AU$2:AU78,AU78)) -> 07 | AU78: 0 | AV78: 0 | AW78: 0 | AX78: 0 | AY78: =+(SUMIFS(Montos!$Y$2:$Y$396864,Montos!$R$2:$R$396864,Base!AZ78)/1000000) -> 0 | AZ78: MACEO
B79: 11001 | C79: BOGOTÁ, D.C. | D79: 1 | E79: 1 | F79: Natural | G79: 11 | H79: BOGOTÁ, D.C. | I79: Aprobado con subsidio | J79: 2 | K79: MICRO | L79: 4652 | M79: COMERCIO AL POR MAYOR Y AL POR MENOR; REPARACIÓN DE VEHÍCULOS AUTOMOTORES Y MOTOCICLETAS | N79: 0 | O79: 1 | P79: 0 | Q79: 1 | R79: 0 | S79: 0 | X79: 0 | Y79: 5240 | Z79: EBÉJICO | AA79: 2 | AB79: 2 | AC79: Natural | AD79: 5 | AE79: ANTIOQUIA | AF79: Aprobado con subsidio | AG79: 4 | AH79: MICRO | AI79: 4752 | AJ79: COMERCIO AL POR MAYOR Y AL POR MENOR; REPARACIÓN DE VEHÍCULOS AUTOMOTORES Y MOTOCICLETAS | AK79: 0 | AL79: 2 | AM79: 0 | AN79: 1 | AO79: 0 | AP79: 1 | AT79: =CONCATENATE(AU79,COUNTIF($AU$2:AU79,AU79)) -> 312 | AU79: 3 | AV79: 0.0006385696041 | AW79: 11 | AX79: 7.207254429e-05 | AY79: =+(SUMIFS(Montos!$Y$2:$Y$396864,Montos!$R$2:$R$396864,Base!AZ79)/1000000) -> 11.653325 | AZ79: SAN RAFAEL
B80: 54001 | C80: CÚCUTA | D80: 2 | E80: 0 | F80: Natural | G80: 54 | H80: NORTE DE SANTANDER | I80: Aprobado con subsidio | J80: 2 | K80: PEQUEÑA | L80: 4631 | M80: COMERCIO AL POR MAYOR Y AL POR MENOR; REPARACIÓN DE VEHÍCULOS AUTOMOTORES Y MOTOCICLETAS | N80: 0 | O80: 2 | P80: 0 | Q80: 2 | R80: 0 | S80: 0 | X80: 0 | Y80: 5887 | Z80: YARUMAL | AA80: 15 | AB80: 19 | AC80: Natural | AD80: 5 | AE80: ANTIOQUIA | AF80: Aprobado con subsidio | AG80: 34 | AH80: PEQUEÑA | AI80: 4631 | AJ80: COMERCIO AL POR MAYOR Y AL POR MENOR; REPARACIÓN DE VEHÍCULOS AUTOMOTORES Y MOTOCICLETAS | AK80: 3 | AL80: 12 | AM80: 0 | AN80: 15 | AO80: 0 | AP80: 0 | AT80: =CONCATENATE(AU80,COUNTIF($AU$2:AU80,AU80)) -> 08 | AU80: 0 | AV80: 0 | AW80: 0 | AX80: 0 | AY80: =+(SUMIFS(Montos!$Y$2:$Y$396864,Montos!$R$2:$R$396864,Base!AZ80)/1000000) -> 0 | AZ80: MURINDÓ
B81: 11001 | C81: BOGOTÁ, D.C. | D81: 0 | E81: 0 | F81: Natural | G81: 11 | H81: BOGOTÁ, D.C. | I81: 0 | J81: 0 | K81: MICRO | L81: 4530 | M81: COMERCIO AL POR MAYOR Y AL POR MENOR; REPARACIÓN DE VEHÍCULOS AUTOMOTORES Y MOTOCICLETAS | N81: 0 | O81: 0 | P81: 0 | Q81: 0 | R81: 0 | S81: 0 | X81: 0 | Y81: 5001 | Z81: MEDELLÍN | AA81: 4 | AB81: 7 | AC81: Natural | AD81: 5 | AE81: ANTIOQUIA | AF81: Aprobado con subsidio | AG81: 11 | AH81: PEQUEÑA | AI81: 4210 | AJ81: CONSTRUCCIÓN | AK81: 0 | AL81: 4 | AM81: 0 | AN81: 1 | AO81: 0 | AP81: 3 | AT81: =CONCATENATE(AU81,COUNTIF($AU$2:AU81,AU81)) -> 27 | AU81: 2 | AV81: 0.0004257130694 | AW81: 55 | AX81: 0.0003603627215 | AY81: =+(SUMIFS(Montos!$Y$2:$Y$396864,Montos!$R$2:$R$396864,Base!AZ81)/1000000) -> 50.150179 | AZ81: ANGELÓPOLIS
B82: 5001 | C82: MEDELLÍN | D82: 1 | E82: 2 | F82: Natural | G82: 5 | H82: ANTIOQUIA | I82: Aprobado con subsidio | J82: 3 | K82: MICRO | L82: 6810 | M82: ACTIVIDADES INMOBILIARIAS | N82: 0 | O82: 1 | P82: 0 | Q82: 0 | R82: 0 | S82: 1 | X82: 0 | Y82: 5001 | Z82: MEDELLÍN | AA82: 0 | AB82: 0 | AC82: Natural | AD82: 5 | AE82: ANTIOQUIA | AF82: 0 | AG82: 0 | AH82: PEQUEÑA | AI82: 1709 | AJ82: INDUSTRIAS MANUFACTURERAS | AK82: 0 | AL82: 0 | AM82: 0 | AN82: 0 | AO82: 0 | AP82: 0 | AT82: =CONCATENATE(AU82,COUNTIF($AU$2:AU82,AU82)) -> 55 | AU82: 5 | AV82: 0.001064282673 | AW82: 27 | AX82: 0.000176905336 | AY82: =+(SUMIFS(Montos!$Y$2:$Y$396864,Montos!$R$2:$R$396864,Base!AZ82)/1000000) -> 19.469906 | AZ82: SAN VICENTE
B83: 15667 | C83: SAN LUIS DE GACENO | D83: 0 | E83: 0 | F83: Natural | G83: 15 | H83: BOYACÁ | I83: 0 | J83: 0 | K83: MICRO | L83: 4711 | M83: COMERCIO AL POR MAYOR Y AL POR MENOR; REPARACIÓN DE VEHÍCULOS AUTOMOTORES Y MOTOCICLETAS | N83: 0 | O83: 0 | P83: 0 | Q83: 0 | R83: 0 | S83: 0 | X83: 0 | Y83: 5360 | Z83: ITAGUI | AA83: 7 | AB83: 26 | AC83: Natural | AD83: 5 | AE83: ANTIOQUIA | AF83: Aprobado con subsidio | AG83: 33 | AH83: MEDIANA | AI83: 1011 | AJ83: INDUSTRIAS MANUFACTURERAS | AK83: 3 | AL83: 4 | AM83: 0 | AN83: 7 | AO83: 0 | AP83: 0 | AT83: =CONCATENATE(AU83,COUNTIF($AU$2:AU83,AU83)) -> 09 | AU83: 0 | AV83: 0 | AW83: 0 | AX83: 0 | AY83: =+(SUMIFS(Montos!$Y$2:$Y$396864,Montos!$R$2:$R$396864,Base!AZ83)/1000000) -> 0 | AZ83: SAN CARLOS
B84: 15759 | C84: SOGAMOSO | D84: 6 | E84: 2 | F84: Natural | G84: 15 | H84: BOYACÁ | I84: Aprobado con subsidio | J84: 8 | K84: MICRO | L84: 8512 | M84: EDUCACIÓN | N84: 6 | O84: 0 | P84: 0 | Q84: 1 | R84: 5 | S84: 0 | X84: 0 | Y84: 5887 | Z84: YARUMAL | AA84: 0 | AB84: 0 | AC84: Natural | AD84: 5 | AE84: ANTIOQUIA | AF84: 0 | AG84: 0 | AH84: MICRO | AI84: 4799 | AJ84: COMERCIO AL POR MAYOR Y AL POR MENOR; REPARACIÓN DE VEHÍCULOS AUTOMOTORES Y MOTOCICLETAS | AK84: 0 | AL84: 0 | AM84: 0 | AN84: 0 | AO84: 0 | AP84: 0 | AT84: =CONCATENATE(AU84,COUNTIF($AU$2:AU84,AU84)) -> 115 | AU84: 1 | AV84: 0.0002128565347 | AW84: 1 | AX84: 6.552049481e-06 | AY84: =+(SUMIFS(Montos!$Y$2:$Y$396864,Montos!$R$2:$R$396864,Base!AZ84)/1000000) -> 0.25 | AZ84: ANORÍ
B85: 15176 | C85: CHIQUINQUIRÁ | D85: 7 | E85: 8 | F85: Natural | G85: 15 | H85: BOYACÁ | I85: Aprobado con subsidio | J85: 15 | K85: MICRO | L85: 1081 | M85: INDUSTRIAS MANUFACTURERAS | N85: 4 | O85: 3 | P85: 0 | Q85: 6 | R85: 1 | S85: 0 | X85: 0 | Y85: 5887 | Z85: YARUMAL | AA85: 3 | AB85: 2 | AC85: Natural | AD85: 5 | AE85: ANTIOQUIA | AF85: Aprobado con subsidio | AG85: 5 | AH85: PEQUEÑA | AI85: 4711 | AJ85: COMERCIO AL POR MAYOR Y AL POR MENOR; REPARACIÓN DE VEHÍCULOS AUTOMOTORES Y MOTOCICLETAS | AK85: 3 | AL85: 0 | AM85: 0 | AN85: 3 | AO85: 0 | AP85: 0 | AT85: =CONCATENATE(AU85,COUNTIF($AU$2:AU85,AU85)) -> 313 | AU85: 3 | AV85: 0.0006385696041 | AW85: 32 | AX85: 0.0002096655834 | AY85: =+(SUMIFS(Montos!$Y$2:$Y$396864,Montos!$R$2:$R$396864,Base!AZ85)/1000000) -> 36.795027 | AZ85: GUATAPE
B86: 11001 | C86: BOGOTÁ, D.C. | D86: 2 | E86: 0 | F86: Natural | G86: 11 | H86: BOGOTÁ, D.C. | I86: Aprobado con subsidio | J86: 2 | K86: MICRO | L86: 2920 | M86: INDUSTRIAS MANUFACTURERAS | N86: 2 | O86: 0 | P86: 0 | Q86: 0 | R86: 2 | S86: 0 | X86: 0 | Y86: 5887 | Z86: YARUMAL | AA86: 19 | AB86: 44 | AC86: Natural | AD86: 5 | AE86: ANTIOQUIA | AF86: Aprobado con subsidio | AG86: 63 | AH86: PEQUEÑA | AI86: 4690 | AJ86: COMERCIO AL POR MAYOR Y AL POR MENOR; REPARACIÓN DE VEHÍCULOS AUTOMOTORES Y MOTOCICLETAS | AK86: 10 | AL86: 9 | AM86: 0 | AN86: 19 | AO86: 0 | AP86: 0 | AT86: =CONCATENATE(AU86,COUNTIF($AU$2:AU86,AU86)) -> 28 | AU86: 2 | AV86: 0.0004257130694 | AW86: 75 | AX86: 0.0004914037111 | AY86: =+(SUMIFS(Montos!$Y$2:$Y$396864,Montos!$R$2:$R$396864,Base!AZ86)/1000000) -> 48.15 | AZ86: EL BAGRE
B87: 11001 | C87: BOGOTÁ, D.C. | D87: 0 | E87: 0 | F87: Natural | G87: 11 | H87: BOGOTÁ, D.C. | I87: 0 | J87: 0 | K87: MICRO | L87: 1392 | M87: INDUSTRIAS MANUFACTURERAS | N87: 0 | O87: 0 | P87: 0 | Q87: 0 | R87: 0 | S87: 0 | X87: 0 | Y87: 5679 | Z87: SANTA BÁRBARA | AA87: 5 | AB87: 10 | AC87: Natural | AD87: 5 | AE87: ANTIOQUIA | AF87: Aprobado con subsidio | AG87: 15 | AH87: MICRO | AI87: 4663 | AJ87: COMERCIO AL POR MAYOR Y AL POR MENOR; REPARACIÓN DE VEHÍCULOS AUTOMOTORES Y MOTOCICLETAS | AK87: 1 | AL87: 4 | AM87: 0 | AN87: 3 | AO87: 1 | AP87: 1 | AT87: =CONCATENATE(AU87,COUNTIF($AU$2:AU87,AU87)) -> 116 | AU87: 1 | AV87: 0.0002128565347 | AW87: 4 | AX87: 2.620819792e-05 | AY87: =+(SUMIFS(Montos!$Y$2:$Y$396864,Montos!$R$2:$R$396864,Base!AZ87)/1000000) -> 3.63 | AZ87: ITUANGO
B88: 15238 | C88: DUITAMA | D88: 1 | E88: 1 | F88: Natural | G88: 15 | H88: BOYACÁ | I88: Aprobado con subsidio | J88: 2 | K88: MICRO | L88: 4923 | M88: TRANSPORTE Y ALMACENAMIENTO | N88: 0 | O88: 1 | P88: 0 | Q88: 1 | R88: 0 | S88: 0 | X88: 0 | Y88: 5088 | Z88: BELLO | AA88: 0 | AB88: 0 | AC88: Natural | AD88: 5 | AE88: ANTIOQUIA | AF88: 0 | AG88: 0 | AH88: MICRO | AI88: 4923 | AJ88: TRANSPORTE Y ALMACENAMIENTO | AK88: 0 | AL88: 0 | AM88: 0 | AN88: 0 | AO88: 0 | AP88: 0 | AT88: =CONCATENATE(AU88,COUNTIF($AU$2:AU88,AU88)) -> 010 | AU88: 0 | AV88: 0 | AW88: 0 | AX88: 0 | AY88: =+(SUMIFS(Montos!$Y$2:$Y$396864,Montos!$R$2:$R$396864,Base!AZ88)/1000000) -> 0 | AZ88: BETULIA
B89: 85001 | C89: YOPAL | D89: 2 | E89: 1 | F89: Natural | G89: 85 | H89: CASANARE | I89: Aprobado con subsidio | J89: 3 | K89: MICRO | L89: 4542 | M89: COMERCIO AL POR MAYOR Y AL POR MENOR; REPARACIÓN DE VEHÍCULOS AUTOMOTORES Y MOTOCICLETAS | N89: 1 | O89: 1 | P89: 0 | Q89: 2 | R89: 0 | S89: 0 | X89: 0 | Y89: 5631 | Z89: SABANETA | AA89: 0 | AB89: 0 | AC89: Natural | AD89: 5 | AE89: ANTIOQUIA | AF89: Aprobado con subsidio | AG89: 0 | AH89: MICRO | AI89: 5630 | AJ89: ALOJAMIENTO Y SERVICIOS DE COMIDA | AK89: 0 | AL89: 0 | AM89: 0 | AN89: 0 | AO89: 0 | AP89: 0 | AT89: =CONCATENATE(AU89,COUNTIF($AU$2:AU89,AU89)) -> 011 | AU89: 0 | AV89: 0 | AW89: 0 | AX89: 0 | AY89: =+(SUMIFS(Montos!$Y$2:$Y$396864,Montos!$R$2:$R$396864,Base!AZ89)/1000000) -> 0 | AZ89: URRAO
B90: 15759 | C90: SOGAMOSO | D90: 1 | E90: 2 | F90: Natural | G90: 15 | H90: BOYACÁ | I90: Aprobado con subsidio | J90: 3 | K90: PEQUEÑA | L90: 2395 | M90: INDUSTRIAS MANUFACTURERAS | N90: 0 | O90: 1 | P90: 0 | Q90: 0 | R90: 0 | S90: 1 | X90: 0 | Y90: 5001 | Z90: MEDELLÍN | AA90: 2 | AB90: 6 | AC90: Natural | AD90: 5 | AE90: ANTIOQUIA | AF90: Aprobado con subsidio | AG90: 8 | AH90: PEQUEÑA | AI90: 4751 | AJ90: COMERCIO AL POR MAYOR Y AL POR MENOR; REPARACIÓN DE VEHÍCULOS AUTOMOTORES Y MOTOCICLETAS | AK90: 2 | AL90: 0 | AM90: 0 | AN90: 2 | AO90: 0 | AP90: 0 | AT90: =CONCATENATE(AU90,COUNTIF($AU$2:AU90,AU90)) -> 012 | AU90: 0 | AV90: 0 | AW90: 0 | AX90: 0 | AY90: =+(SUMIFS(Montos!$Y$2:$Y$396864,Montos!$R$2:$R$396864,Base!AZ90)/1000000) -> 0 | AZ90: TARAZÁ
B91: 11001 | C91: BOGOTÁ, D.C. | D91: 0 | E91: 0 | F91: Natural | G91: 11 | H91: BOGOTÁ, D.C. | I91: 0 | J91: 0 | K91: MICRO | L91: 4752 | M91: COMERCIO AL POR MAYOR Y AL POR MENOR; REPARACIÓN DE VEHÍCULOS AUTOMOTORES Y MOTOCICLETAS | N91: 0 | O91: 0 | P91: 0 | Q91: 0 | R91: 0 | S91: 0 | X91: 0 | Y91: 5001 | Z91: MEDELLÍN | AA91: 1 | AB91: 0 | AC91: Natural | AD91: 5 | AE91: ANTIOQUIA | AF91: Aprobado con subsidio | AG91: 1 | AH91: MICRO | AI91: 5511 | AJ91: ALOJAMIENTO Y SERVICIOS DE COMIDA | AK91: 1 | AL91: 0 | AM91: 0 | AN91: 0 | AO91: 1 | AP91: 0 | AT91: =CONCATENATE(AU91,COUNTIF($AU$2:AU91,AU91)) -> 29 | AU91: 2 | AV91: 0.0004257130694 | AW91: 11 | AX91: 7.207254429e-05 | AY91: =+(SUMIFS(Montos!$Y$2:$Y$396864,Montos!$R$2:$R$396864,Base!AZ91)/1000000) -> 10.04 | AZ91: TITIRIBÍ
B92: 11001 | C92: BOGOTÁ, D.C. | D92: 1 | E92: 1 | F92: Natural | G92: 11 | H92: BOGOTÁ, D.C. | I92: Aprobado con subsidio | J92: 2 | K92: MICRO | L92: 4663 | M92: COMERCIO AL POR MAYOR Y AL POR MENOR; REPARACIÓN DE VEHÍCULOS AUTOMOTORES Y MOTOCICLETAS | N92: 0 | O92: 1 | P92: 0 | Q92: 1 | R92: 0 | S92: 0 | X92: 0 | Y92: 5266 | Z92: ENVIGADO | AA92: 0 | AB92: 0 | AC92: Natural | AD92: 5 | AE92: ANTIOQUIA | AF92: 0 | AG92: 0 | AH92: MICRO | AI92: 141 | AJ92: AGRICULTURA, GANADERÍA, CAZA, SILVICULTURA Y PESCA | AK92: 0 | AL92: 0 | AM92: 0 | AN92: 0 | AO92: 0 | AP92: 0 | AT92: =CONCATENATE(AU92,COUNTIF($AU$2:AU92,AU92)) -> 117 | AU92: 1 | AV92: 0.0002128565347 | AW92: 5 | AX92: 3.276024741e-05 | AY92: =+(SUMIFS(Montos!$Y$2:$Y$396864,Montos!$R$2:$R$396864,Base!AZ92)/1000000) -> 1.83 | AZ92: VENECIA
B93: 11001 | C93: BOGOTÁ, D.C. | D93: 0 | E93: 0 | F93: Natural | G93: 11 | H93: BOGOTÁ, D.C. | I93: 0 | J93: 0 | K93: PEQUEÑA | L93: 4771 | M93: COMERCIO AL POR MAYOR Y AL POR MENOR; REPARACIÓN DE VEHÍCULOS AUTOMOTORES Y MOTOCICLETAS | N93: 0 | O93: 0 | P93: 0 | Q93: 0 | R93: 0 | S93: 0 | X93: 0 | Y93: 5615 | Z93: RIONEGRO | AA93: 46 | AB93: 34 | AC93: Natural | AD93: 5 | AE93: ANTIOQUIA | AF93: Aprobado con subsidio | AG93: 80 | AH93: PEQUEÑA | AI93: 5611 | AJ93: ALOJAMIENTO Y SERVICIOS DE COMIDA | AK93: 26 | AL93: 20 | AM93: 0 | AN93: 12 | AO93: 24 | AP93: 10 | AT93: =CONCATENATE(AU93,COUNTIF($AU$2:AU93,AU93)) -> 210 | AU93: 2 | AV93: 0.0004257130694 | AW93: 71 | AX93: 0.0004651955132 | AY93: =+(SUMIFS(Montos!$Y$2:$Y$396864,Montos!$R$2:$R$396864,Base!AZ93)/1000000) -> 86.618 | AZ93: GRANADA
B94: 15753 | C94: SOATÁ | D94: 2 | E94: 1 | F94: Natural | G94: 15 | H94: BOYACÁ | I94: Aprobado con subsidio | J94: 3 | K94: MICRO | L94: 4631 | M94: COMERCIO AL POR MAYOR Y AL POR MENOR; REPARACIÓN DE VEHÍCULOS AUTOMOTORES Y MOTOCICLETAS | N94: 0 | O94: 2 | P94: 0 | Q94: 0 | R94: 0 | S94: 2 | X94: 0 | Y94: 5376 | Z94: LA CEJA | AA94: 5 | AB94: 0 | AC94: Natural | AD94: 5 | AE94: ANTIOQUIA | AF94: Aprobado con subsidio | AG94: 5 | AH94: MICRO | AI94: 9522 | AJ94: OTRAS ACTIVIDADES DE SERVICIOS | AK94: 3 | AL94: 2 | AM94: 0 | AN94: 1 | AO94: 3 | AP94: 1 | AT94: =CONCATENATE(AU94,COUNTIF($AU$2:AU94,AU94)) -> 118 | AU94: 1 | AV94: 0.0002128565347 | AW94: 39 | AX94: 0.0002555299298 | AY94: =+(SUMIFS(Montos!$Y$2:$Y$396864,Montos!$R$2:$R$396864,Base!AZ94)/1000000) -> 34.134 | AZ94: CISNEROS
B95: 54874 | C95: VILLA DEL ROSARIO | D95: 0 | E95: 0 | F95: Natural | G95: 54 | H95: NORTE DE SANTANDER | I95: 0 | J95: 0 | K95: MICRO | L95: 5630 | M95: ALOJAMIENTO Y SERVICIOS DE COMIDA | N95: 0 | O95: 0 | P95: 0 | Q95: 0 | R95: 0 | S95: 0 | X95: 0 | Y95: 5148 | Z95: EL CARMEN DE VIBORAL | AA95: 7 | AB95: 11 | AC95: Natural | AD95: 5 | AE95: ANTIOQUIA | AF95: Aprobado con subsidio | AG95: 18 | AH95: MICRO | AI95: 8130 | AJ95: ACTIVIDADES DE SERVICIOS ADMINISTRATIVOS Y DE APOYO | AK95: 0 | AL95: 7 | AM95: 0 | AN95: 2 | AO95: 0 | AP95: 5 | AT95: =CONCATENATE(AU95,COUNTIF($AU$2:AU95,AU95)) -> 119 | AU95: 1 | AV95: 0.0002128565347 | AW95: 4 | AX95: 2.620819792e-05 | AY95: =+(SUMIFS(Montos!$Y$2:$Y$396864,Montos!$R$2:$R$396864,Base!AZ95)/1000000) -> 2.512 | AZ95: SAN ANDRÉS DE CUERQUÍA
B96: 11001 | C96: BOGOTÁ, D.C. | D96: 6 | E96: 12 | F96: Natural | G96: 11 | H96: BOGOTÁ, D.C. | I96: Aprobado con subsidio | J96: 18 | K96: MICRO | L96: 1081 | M96: INDUSTRIAS MANUFACTURERAS | N96: 3 | O96: 3 | P96: 0 | Q96: 6 | R96: 0 | S96: 0 | X96: 0 | Y96: 5761 | Z96: SOPETRÁN | AA96: 0 | AB96: 0 | AC96: Natural | AD96: 5 | AE96: ANTIOQUIA | AF96: 0 | AG96: 0 | AH96: MICRO | AI96: 1081 | AJ96: INDUSTRIAS MANUFACTURERAS | AK96: 0 | AL96: 0 | AM96: 0 | AN96: 0 | AO96: 0 | AP96: 0 | AT96: =CONCATENATE(AU96,COUNTIF($AU$2:AU96,AU96)) -> 120 | AU96: 1 | AV96: 0.0002128565347 | AW96: 15 | AX96: 9.828074222e-05 | AY96: =+(SUMIFS(Montos!$Y$2:$Y$396864,Montos!$R$2:$R$396864,Base!AZ96)/1000000) -> 8.95 | AZ96: CÁCERES
B97: 15759 | C97: SOGAMOSO | D97: 3 | E97: 2 | F97: Natural | G97: 15 | H97: BOYACÁ | I97: Aprobado con subsidio | J97: 5 | K97: MICRO | L97: 4923 | M97: TRANSPORTE Y ALMACENAMIENTO | N97: 0 | O97: 3 | P97: 0 | Q97: 2 | R97: 0 | S97: 1 | X97: 0 | Y97: 5615 | Z97: RIONEGRO | AA97: 3 | AB97: 1 | AC97: Natural | AD97: 5 | AE97: ANTIOQUIA | AF97: Aprobado con subsidio | AG97: 4 | AH97: MICRO | AI97: 4732 | AJ97: COMERCIO AL POR MAYOR Y AL POR MENOR; REPARACIÓN DE VEHÍCULOS AUTOMOTORES Y MOTOCICLETAS | AK97: 1 | AL97: 2 | AM97: 0 | AN97: 3 | AO97: 0 | AP97: 0 | AT97: =CONCATENATE(AU97,COUNTIF($AU$2:AU97,AU97)) -> 013 | AU97: 0 | AV97: 0 | AW97: 0 | AX97: 0 | AY97: =+(SUMIFS(Montos!$Y$2:$Y$396864,Montos!$R$2:$R$396864,Base!AZ97)/1000000) -> 0 | AZ97: 0
B98: 11001 | C98: BOGOTÁ, D.C. | D98: 5 | E98: 2 | F98: Natural | G98: 11 | H98: BOGOTÁ, D.C. | I98: Aprobado con subsidio | J98: 7 | K98: MICRO | L98: 4923 | M98: TRANSPORTE Y ALMACENAMIENTO | N98: 1 | O98: 4 | P98: 0 | Q98: 2 | R98: 1 | S98: 2 | X98: 0 | Y98: 5615 | Z98: RIONEGRO | AA98: 1 | AB98: 1 | AC98: Natural | AD98: 5 | AE98: ANTIOQUIA | AF98: Aprobado con subsidio | AG98: 2 | AH98: MICRO | AI98: 4631 | AJ98: COMERCIO AL POR MAYOR Y AL POR MENOR; REPARACIÓN DE VEHÍCULOS AUTOMOTORES Y MOTOCICLETAS | AK98: 1 | AL98: 0 | AM98: 0 | AN98: 1 | AO98: 0 | AP98: 0 | AT98: =CONCATENATE(AU98,COUNTIF($AU$2:AU98,AU98)) -> 014 | AU98: =+COUNTIFS($Z$2:$Z$399999,AZ98,$AF$2:$AF$399999,"Aprobado con subsidio")*1 -> 0 | AV98: =+AU98/SUM($AU$2:$AU$129) -> 0 | AW98: =+SUMIFS($AA$2:$AA$399999,$Z$2:$Z$399999,AZ98,$AF$2:$AF$399999,"Aprobado con subsidio") -> 0 | AX98: 0 | AY98: =+(SUMIFS(Montos!$Y$2:$Y$396864,Montos!$R$2:$R$396864,Base!AZ98)/1000000) -> 0
B99: 85001 | C99: YOPAL | D99: 0 | E99: 0 | F99: Natural | G99: 85 | H99: CASANARE | I99: 0 | J99: 0 | K99: MICRO | L99: 811 | M99: EXPLOTACIÓN DE MINAS Y CANTERAS | N99: 0 | O99: 0 | P99: 0 | Q99: 0 | R99: 0 | S99: 0 | X99: 0 | Y99: 5001 | Z99: MEDELLÍN | AA99: 4 | AB99: 1 | AC99: Natural | AD99: 5 | AE99: ANTIOQUIA | AF99: Aprobado con subsidio | AG99: 5 | AH99: MICRO | AI99: 4711 | AJ99: COMERCIO AL POR MAYOR Y AL POR MENOR; REPARACIÓN DE VEHÍCULOS AUTOMOTORES Y MOTOCICLETAS | AK99: 2 | AL99: 2 | AM99: 0 | AN99: 3 | AO99: 0 | AP99: 1 | AT99: =CONCATENATE(AU99,COUNTIF($AU$2:AU99,AU99)) -> 015 | AU99: 0 | AV99: 0 | AW99: 0 | AX99: 0 | AY99: =+(SUMIFS(Montos!$Y$2:$Y$396864,Montos!$R$2:$R$396864,Base!AZ99)/1000000) -> 0
B100: 15808 | C100: TINJACÁ | D100: 0 | E100: 0 | F100: Natural | G100: 15 | H100: BOYACÁ | I100: 0 | J100: 0 | K100: MICRO | L100: 4752 | M100: COMERCIO AL POR MAYOR Y AL POR MENOR; REPARACIÓN DE VEHÍCULOS AUTOMOTORES Y MOTOCICLETAS | N100: 0 | O100: 0 | P100: 0 | Q100: 0 | R100: 0 | S100: 0 | X100: 0 | Y100: 5376 | Z100: LA CEJA | AA100: 3 | AB100: 7 | AC100: Natural | AD100: 5 | AE100: ANTIOQUIA | AF100: Aprobado con subsidio | AG100: 10 | AH100: PEQUEÑA | AI100: 4771 | AJ100: COMERCIO AL POR MAYOR Y AL POR MENOR; REPARACIÓN DE VEHÍCULOS AUTOMOTORES Y MOTOCICLETAS | AK100: 3 | AL100: 0 | AM100: 0 | AN100: 3 | AO100: 0 | AP100: 0 | AT100: =CONCATENATE(AU100,COUNTIF($AU$2:AU100,AU100)) -> 016 | AU100: 0 | AV100: 0 | AW100: 0 | AX100: 0 | AY100: =+(SUMIFS(Montos!$Y$2:$Y$396864,Montos!$R$2:$R$396864,Base!AZ100)/1000000) -> 0
B101: 11001 | C101: BOGOTÁ, D.C. | D101: 0 | E101: 0 | F101: Natural | G101: 11 | H101: BOGOTÁ, D.C. | I101: 0 | J101: 0 | K101: MICRO | L101: 2592 | M101: INDUSTRIAS MANUFACTURERAS | N101: 0 | O101: 0 | P101: 0 | Q101: 0 | R101: 0 | S101: 0 | X101: 0 | Y101: 5615 | Z101: RIONEGRO | AA101: 0 | AB101: 0 | AC101: Natural | AD101: 5 | AE101: ANTIOQUIA | AF101: 0 | AG101: 0 | AH101: MICRO | AI101: 6920 | AJ101: ACTIVIDADES PROFESIONALES, CIENTÍFICAS Y TÉCNICAS | AK101: 0 | AL101: 0 | AM101: 0 | AN101: 0 | AO101: 0 | AP101: 0 | AT101: =CONCATENATE(AU101,COUNTIF($AU$2:AU101,AU101)) -> 017 | AU101: 0 | AV101: 0 | AW101: 0 | AX101: 0 | AY101: =+(SUMIFS(Montos!$Y$2:$Y$396864,Montos!$R$2:$R$396864,Base!AZ101)/1000000) -> 0
B102: 11001 | C102: BOGOTÁ, D.C. | D102: 5 | E102: 0 | F102: Natural | G102: 11 | H102: BOGOTÁ, D.C. | I102: Aprobado con subsidio | J102: 5 | K102: MICRO | L102: 5611 | M102: ALOJAMIENTO Y SERVICIOS DE COMIDA | N102: 2 | O102: 3 | P102: 0 | Q102: 0 | R102: 2 | S102: 3 | X102: 0 | Y102: 5440 | Z102: MARINILLA | AA102: 0 | AB102: 2 | AC102: Natural | AD102: 5 | AE102: ANTIOQUIA | AF102: Aprobado con subsidio | AG102: 2 | AH102: MICRO | AI102: 6920 | AJ102: ACTIVIDADES PROFESIONALES, CIENTÍFICAS Y TÉCNICAS | AK102: 0 | AL102: 0 | AM102: 0 | AN102: 0 | AO102: 0 | AP102: 0 | AT102: =CONCATENATE(AU102,COUNTIF($AU$2:AU102,AU102)) -> 018 | AU102: 0 | AV102: 0 | AW102: 0 | AX102: 0 | AY102: =+(SUMIFS(Montos!$Y$2:$Y$396864,Montos!$R$2:$R$396864,Base!AZ102)/1000000) -> 0
B103: 18001 | C103: FLORENCIA | D103: 0 | E103: 0 | F103: Natural | G103: 18 | H103: CAQUETÁ | I103: 0 | J103: 0 | K103: MICRO | L103: 4651 | M103: COMERCIO AL POR MAYOR Y AL POR MENOR; REPARACIÓN DE VEHÍCULOS AUTOMOTORES Y MOTOCICLETAS | N103: 0 | O103: 0 | P103: 0 | Q103: 0 | R103: 0 | S103: 0 | X103: 0 | Y103: 5148 | Z103: EL CARMEN DE VIBORAL | AA103: 0 | AB103: 0 | AC103: Natural | AD103: 5 | AE103: ANTIOQUIA | AF103: 0 | AG103: 0 | AH103: MICRO | AI103: 1630 | AJ103: INDUSTRIAS MANUFACTURERAS | AK103: 0 | AL103: 0 | AM103: 0 | AN103: 0 | AO103: 0 | AP103: 0 | AT103: =CONCATENATE(AU103,COUNTIF($AU$2:AU103,AU103)) -> 019 | AU103: 0 | AV103: 0 | AW103: 0 | AX103: 0 | AY103: =+(SUMIFS(Montos!$Y$2:$Y$396864,Montos!$R$2:$R$396864,Base!AZ103)/1000000) -> 0
B104: 5266 | C104: ENVIGADO | D104: 0 | E104: 0 | F104: Natural | G104: 5 | H104: ANTIOQUIA | I104: Aprobado con subsidio | J104: 0 | K104: MICRO | L104: 4541 | M104: COMERCIO AL POR MAYOR Y AL POR MENOR; REPARACIÓN DE VEHÍCULOS AUTOMOTORES Y MOTOCICLETAS | N104: 0 | O104: 0 | P104: 0 | Q104: 0 | R104: 0 | S104: 0 | X104: 0 | Y104: 5376 | Z104: LA CEJA | AA104: 1 | AB104: 1 | AC104: Natural | AD104: 5 | AE104: ANTIOQUIA | AF104: Aprobado con subsidio | AG104: 2 | AH104: MICRO | AI104: 1610 | AJ104: INDUSTRIAS MANUFACTURERAS | AK104: 0 | AL104: 1 | AM104: 0 | AN104: 1 | AO104: 0 | AP104: 0 | AT104: =CONCATENATE(AU104,COUNTIF($AU$2:AU104,AU104)) -> 020 | AU104: 0 | AV104: 0 | AW104: 0 | AX104: 0 | AY104: =+(SUMIFS(Montos!$Y$2:$Y$396864,Montos!$R$2:$R$396864,Base!AZ104)/1000000) -> 0
B105: 76001 | C105: CALI | D105: 0 | E105: 0 | F105: Natural | G105: 76 | H105: VALLE DEL CAUCA | I105: 0 | J105: 0 | K105: MICRO | L105: 4530 | M105: COMERCIO AL POR MAYOR Y AL POR MENOR; REPARACIÓN DE VEHÍCULOS AUTOMOTORES Y MOTOCICLETAS | N105: 0 | O105: 0 | P105: 0 | Q105: 0 | R105: 0 | S105: 0 | X105: 0 | Y105: 5615 | Z105: RIONEGRO | AA105: 3 | AB105: 13 | AC105: Natural | AD105: 5 | AE105: ANTIOQUIA | AF105: Aprobado con subsidio | AG105: 16 | AH105: MICRO | AI105: 7111 | AJ105: ACTIVIDADES PROFESIONALES, CIENTÍFICAS Y TÉCNICAS | AK105: 0 | AL105: 3 | AM105: 0 | AN105: 3 | AO105: 0 | AP105: 0 | AT105: =CONCATENATE(AU105,COUNTIF($AU$2:AU105,AU105)) -> 021 | AU105: 0 | AV105: 0 | AW105: 0 | AX105: 0 | AY105: =+(SUMIFS(Montos!$Y$2:$Y$396864,Montos!$R$2:$R$396864,Base!AZ105)/1000000) -> 0
B106: 17442 | C106: MARMATO | D106: 24 | E106: 13 | F106: Natural | G106: 17 | H106: CALDAS | I106: Aprobado con subsidio | J106: 37 | K106: PEQUEÑA | L106: 722 | M106: EXPLOTACIÓN DE MINAS Y CANTERAS | N106: 0 | O106: 24 | P106: 0 | Q106: 10 | R106: 0 | S106: 14 | X106: 0 | Y106: 5615 | Z106: RIONEGRO | AA106: 1 | AB106: 1 | AC106: Natural | AD106: 5 | AE106: ANTIOQUIA | AF106: Aprobado con subsidio | AG106: 2 | AH106: MICRO | AI106: 9700 | AJ106: ACTIVIDADES DE LOS HOGARES INDIVIDUALES EN CALIDAD DE EMPLEADORES; ACTIVIDADES NO DIFERENCIADAS DE LOS HOGARES INDIVIDUALES COMO PRODUCTORES DE BIENES Y SERVICIOS PARA USO PROPIO | AK106: 1 | AL106: 0 | AM106: 0 | AN106: 1 | AO106: 0 | AP106: 0 | AT106: =CONCATENATE(AU106,COUNTIF($AU$2:AU106,AU106)) -> 022 | AU106: 0 | AV106: 0 | AW106: 0 | AX106: 0 | AY106: =+(SUMIFS(Montos!$Y$2:$Y$396864,Montos!$R$2:$R$396864,Base!AZ106)/1000000) -> 0
B107: 17442 | C107: MARMATO | D107: 28 | E107: 18 | F107: Natural | G107: 17 | H107: CALDAS | I107: Aprobado con subsidio | J107: 46 | K107: PEQUEÑA | L107: 722 | M107: EXPLOTACIÓN DE MINAS Y CANTERAS | N107: 0 | O107: 28 | P107: 0 | Q107: 14 | R107: 0 | S107: 14 | X107: 0 | Y107: 5615 | Z107: RIONEGRO | AA107: 2 | AB107: 5 | AC107: Natural | AD107: 5 | AE107: ANTIOQUIA | AF107: Aprobado con subsidio | AG107: 7 | AH107: MICRO | AI107: 4111 | AJ107: CONSTRUCCIÓN | AK107: 0 | AL107: 2 | AM107: 0 | AN107: 1 | AO107: 0 | AP107: 1 | AT107: =CONCATENATE(AU107,COUNTIF($AU$2:AU107,AU107)) -> 023 | AU107: 0 | AV107: 0 | AW107: 0 | AX107: 0 | AY107: =+(SUMIFS(Montos!$Y$2:$Y$396864,Montos!$R$2:$R$396864,Base!AZ107)/1000000) -> 0
B108: 50001 | C108: VILLAVICENCIO | D108: 4 | E108: 2 | F108: Natural | G108: 50 | H108: META | I108: Aprobado con subsidio | J108: 6 | K108: MICRO | L108: 4321 | M108: CONSTRUCCIÓN | N108: 2 | O108: 2 | P108: 0 | Q108: 2 | R108: 1 | S108: 1 | X108: 0 | Y108: 5615 | Z108: RIONEGRO | AA108: 1 | AB108: 0 | AC108: Natural | AD108: 5 | AE108: ANTIOQUIA | AF108: Aprobado con subsidio | AG108: 1 | AH108: MICRO | AI108: 4762 | AJ108: COMERCIO AL POR MAYOR Y AL POR MENOR; REPARACIÓN DE VEHÍCULOS AUTOMOTORES Y MOTOCICLETAS | AK108: 0 | AL108: 1 | AM108: 0 | AN108: 1 | AO108: 0 | AP108: 0 | AT108: =CONCATENATE(AU108,COUNTIF($AU$2:AU108,AU108)) -> 024 | AU108: 0 | AV108: 0 | AW108: 0 | AX108: 0 | AY108: =+(SUMIFS(Montos!$Y$2:$Y$396864,Montos!$R$2:$R$396864,Base!AZ108)/1000000) -> 0
B109: 66001 | C109: PEREIRA | D109: 9 | E109: 0 | F109: Natural | G109: 66 | H109: RISARALDA | I109: Aprobado con subsidio | J109: 9 | K109: MICRO | L109: 9609 | M109: OTRAS ACTIVIDADES DE SERVICIOS | N109: 1 | O109: 8 | P109: 0 | Q109: 3 | R109: 1 | S109: 5 | X109: 0 | Y109: 5615 | Z109: RIONEGRO | AA109: 1 | AB109: 0 | AC109: Natural | AD109: 5 | AE109: ANTIOQUIA | AF109: Aprobado con subsidio | AG109: 1 | AH109: MICRO | AI109: 4530 | AJ109: COMERCIO AL POR MAYOR Y AL POR MENOR; REPARACIÓN DE VEHÍCULOS AUTOMOTORES Y MOTOCICLETAS | AK109: 0 | AL109: 1 | AM109: 0 | AN109: 1 | AO109: 0 | AP109: 0 | AT109: =CONCATENATE(AU109,COUNTIF($AU$2:AU109,AU109)) -> 025 | AU109: 0 | AV109: 0 | AW109: 0 | AX109: 0 | AY109: =+(SUMIFS(Montos!$Y$2:$Y$396864,Montos!$R$2:$R$396864,Base!AZ109)/1000000) -> 0
B110: 66001 | C110: PEREIRA | D110: 0 | E110: 0 | F110: Natural | G110: 66 | H110: RISARALDA | I110: 0 | J110: 0 | K110: MICRO | L110: 4711 | M110: COMERCIO AL POR MAYOR Y AL POR MENOR; REPARACIÓN DE VEHÍCULOS AUTOMOTORES Y MOTOCICLETAS | N110: 0 | O110: 0 | P110: 0 | Q110: 0 | R110: 0 | S110: 0 | X110: 0 | Y110: 5615 | Z110: RIONEGRO | AA110: 3 | AB110: 0 | AC110: Natural | AD110: 5 | AE110: ANTIOQUIA | AF110: Aprobado con subsidio | AG110: 3 | AH110: MICRO | AI110: 6201 | AJ110: INFORMACIÓN Y COMUNICACIONES | AK110: 3 | AL110: 0 | AM110: 0 | AN110: 2 | AO110: 1 | AP110: 0 | AT110: =CONCATENATE(AU110,COUNTIF($AU$2:AU110,AU110)) -> 026 | AU110: 0 | AV110: 0 | AW110: 0 | AX110: 0 | AY110: =+(SUMIFS(Montos!$Y$2:$Y$396864,Montos!$R$2:$R$396864,Base!AZ110)/1000000) -> 0
B111: 66594 | C111: QUINCHÍA | D111: 5 | E111: 2 | F111: Natural | G111: 66 | H111: RISARALDA | I111: Aprobado con subsidio | J111: 7 | K111: MICRO | L111: 4711 | M111: COMERCIO AL POR MAYOR Y AL POR MENOR; REPARACIÓN DE VEHÍCULOS AUTOMOTORES Y MOTOCICLETAS | N111: 0 | O111: 5 | P111: 0 | Q111: 5 | R111: 0 | S111: 0 | X111: 0 | Y111: 5615 | Z111: RIONEGRO | AA111: 4 | AB111: 9 | AC111: Natural | AD111: 5 | AE111: ANTIOQUIA | AF111: Aprobado con subsidio | AG111: 13 | AH111: MICRO | AI111: 4923 | AJ111: TRANSPORTE Y ALMACENAMIENTO | AK111: 0 | AL111: 4 | AM111: 0 | AN111: 4 | AO111: 0 | AP111: 0 | AT111: =CONCATENATE(AU111,COUNTIF($AU$2:AU111,AU111)) -> 027 | AU111: 0 | AV111: 0 | AW111: 0 | AX111: 0 | AY111: =+(SUMIFS(Montos!$Y$2:$Y$396864,Montos!$R$2:$R$396864,Base!AZ111)/1000000) -> 0
B112: 63001 | C112: ARMENIA | D112: 0 | E112: 0 | F112: Natural | G112: 63 | H112: QUINDÍO | I112: 0 | J112: 0 | K112: MICRO | L112: 5611 | M112: ALOJAMIENTO Y SERVICIOS DE COMIDA | N112: 0 | O112: 0 | P112: 0 | Q112: 0 | R112: 0 | S112: 0 | X112: 0 | Y112: 5001 | Z112: MEDELLÍN | AA112: 0 | AB112: 0 | AC112: Natural | AD112: 5 | AE112: ANTIOQUIA | AF112: 0 | AG112: 0 | AH112: PEQUEÑA | AI112: 4752 | AJ112: COMERCIO AL POR MAYOR Y AL POR MENOR; REPARACIÓN DE VEHÍCULOS AUTOMOTORES Y MOTOCICLETAS | AK112: 0 | AL112: 0 | AM112: 0 | AN112: 0 | AO112: 0 | AP112: 0 | AT112: =CONCATENATE(AU112,COUNTIF($AU$2:AU112,AU112)) -> 028 | AU112: 0 | AV112: 0 | AW112: 0 | AX112: 0 | AY112: =+(SUMIFS(Montos!$Y$2:$Y$396864,Montos!$R$2:$R$396864,Base!AZ112)/1000000) -> 0
B113: 63001 | C113: ARMENIA | D113: 0 | E113: 0 | F113: Natural | G113: 63 | H113: QUINDÍO | I113: 0 | J113: 0 | K113: MICRO | L113: 8530 | M113: EDUCACIÓN | N113: 0 | O113: 0 | P113: 0 | Q113: 0 | R113: 0 | S113: 0 | X113: 0 | Y113: 5001 | Z113: MEDELLÍN | AA113: 0 | AB113: 0 | AC113: Natural | AD113: 5 | AE113: ANTIOQUIA | AF113: 0 | AG113: 0 | AH113: MICRO | AI113: 8130 | AJ113: ACTIVIDADES DE SERVICIOS ADMINISTRATIVOS Y DE APOYO | AK113: 0 | AL113: 0 | AM113: 0 | AN113: 0 | AO113: 0 | AP113: 0 | AT113: =CONCATENATE(AU113,COUNTIF($AU$2:AU113,AU113)) -> 029 | AU113: 0 | AV113: 0 | AW113: 0 | AX113: 0 | AY113: =+(SUMIFS(Montos!$Y$2:$Y$396864,Montos!$R$2:$R$396864,Base!AZ113)/1000000) -> 0
B114: 66170 | C114: DOSQUEBRADAS | D114: 1 | E114: 0 | F114: Natural | G114: 66 | H114: RISARALDA | I114: Aprobado con subsidio | J114: 1 | K114: MICRO | L114: 4775 | M114: COMERCIO AL POR MAYOR Y AL POR MENOR; REPARACIÓN DE VEHÍCULOS AUTOMOTORES Y MOTOCICLETAS | N114: 0 | O114: 1 | P114: 0 | Q114: 1 | R114: 0 | S114: 0 | X114: 0 | Y114: 5129 | Z114: CALDAS | AA114: 0 | AB114: 0 | AC114: Natural | AD114: 5 | AE114: ANTIOQUIA | AF114: 0 | AG114: 0 | AH114: MICRO | AI114: 5611 | AJ114: ALOJAMIENTO Y SERVICIOS DE COMIDA | AK114: 0 | AL114: 0 | AM114: 0 | AN114: 0 | AO114: 0 | AP114: 0 | AT114: =CONCATENATE(AU114,COUNTIF($AU$2:AU114,AU114)) -> 030 | AU114: 0 | AV114: 0 | AW114: 0 | AX114: 0 | AY114: =+(SUMIFS(Montos!$Y$2:$Y$396864,Montos!$R$2:$R$396864,Base!AZ114)/1000000) -> 0
B115: 66170 | C115: DOSQUEBRADAS | D115: 7 | E115: 8 | F115: Natural | G115: 66 | H115: RISARALDA | I115: Aprobado con subsidio | J115: 15 | K115: PEQUEÑA | L115: 6910 | M115: ACTIVIDADES PROFESIONALES, CIENTÍFICAS Y TÉCNICAS | N115: 6 | O115: 1 | P115: 0 | Q115: 4 | R115: 3 | S115: 0 | X115: 0 | Y115: 5001 | Z115: MEDELLÍN | AA115: 4 | AB115: 4 | AC115: Natural | AD115: 5 | AE115: ANTIOQUIA | AF115: Aprobado con subsidio | AG115: 8 | AH115: MICRO | AI115: 5613 | AJ115: ALOJAMIENTO Y SERVICIOS DE COMIDA | AK115: 3 | AL115: 1 | AM115: 0 | AN115: 2 | AO115: 2 | AP115: 0 | AT115: =CONCATENATE(AU115,COUNTIF($AU$2:AU115,AU115)) -> 031 | AU115: 0 | AV115: 0 | AW115: 0 | AX115: 0 | AY115: =+(SUMIFS(Montos!$Y$2:$Y$396864,Montos!$R$2:$R$396864,Base!AZ115)/1000000) -> 0
B116: 66001 | C116: PEREIRA | D116: 8 | E116: 15 | F116: Natural | G116: 66 | H116: RISARALDA | I116: Aprobado con subsidio | J116: 23 | K116: PEQUEÑA | L116: 4754 | M116: COMERCIO AL POR MAYOR Y AL POR MENOR; REPARACIÓN DE VEHÍCULOS AUTOMOTORES Y MOTOCICLETAS | N116: 1 | O116: 7 | P116: 0 | Q116: 8 | R116: 0 | S116: 0 | X116: 0 | Y116: 5001 | Z116: MEDELLÍN | AA116: 0 | AB116: 0 | AC116: Natural | AD116: 5 | AE116: ANTIOQUIA | AF116: 0 | AG116: 0 | AH116: MICRO | AI116: 3110 | AJ116: INDUSTRIAS MANUFACTURERAS | AK116: 0 | AL116: 0 | AM116: 0 | AN116: 0 | AO116: 0 | AP116: 0 | AT116: =CONCATENATE(AU116,COUNTIF($AU$2:AU116,AU116)) -> 032 | AU116: 0 | AV116: 0 | AW116: 0 | AX116: 0 | AY116: =+(SUMIFS(Montos!$Y$2:$Y$396864,Montos!$R$2:$R$396864,Base!AZ116)/1000000) -> 0
B117: 17777 | C117: SUPÍA | D117: 0 | E117: 0 | F117: Natural | G117: 17 | H117: CALDAS | I117: 0 | J117: 0 | K117: PEQUEÑA | L117: 4759 | M117: COMERCIO AL POR MAYOR Y AL POR MENOR; REPARACIÓN DE VEHÍCULOS AUTOMOTORES Y MOTOCICLETAS | N117: 0 | O117: 0 | P117: 0 | Q117: 0 | R117: 0 | S117: 0 | X117: 0 | Y117: 5045 | Z117: APARTADÓ | AA117: 2 | AB117: 2 | AC117: Natural | AD117: 5 | AE117: ANTIOQUIA | AF117: Aprobado con subsidio | AG117: 4 | AH117: MICRO | AI117: 4769 | AJ117: COMERCIO AL POR MAYOR Y AL POR MENOR; REPARACIÓN DE VEHÍCULOS AUTOMOTORES Y MOTOCICLETAS | AK117: 2 | AL117: 0 | AM117: 0 | AN117: 1 | AO117: 1 | AP117: 0 | AT117: =CONCATENATE(AU117,COUNTIF($AU$2:AU117,AU117)) -> 033 | AU117: 0 | AV117: 0 | AW117: 0 | AX117: 0 | AY117: =+(SUMIFS(Montos!$Y$2:$Y$396864,Montos!$R$2:$R$396864,Base!AZ117)/1000000) -> 0
B118: 18205 | C118: CURILLO | D118: 19 | E118: 15 | F118: Natural | G118: 18 | H118: CAQUETÁ | I118: Aprobado con subsidio | J118: 34 | K118: PEQUEÑA | L118: 1040 | M118: INDUSTRIAS MANUFACTURERAS | N118: 6 | O118: 13 | P118: 0 | Q118: 11 | R118: 3 | S118: 5 | X118: 0 | Y118: 5212 | Z118: COPACABANA | AA118: 0 | AB118: 0 | AC118: Natural | AD118: 5 | AE118: ANTIOQUIA | AF118: 0 | AG118: 0 | AH118: MICRO | AI118: 4541 | AJ118: COMERCIO AL POR MAYOR Y AL POR MENOR; REPARACIÓN DE VEHÍCULOS AUTOMOTORES Y MOTOCICLETAS | AK118: 0 | AL118: 0 | AM118: 0 | AN118: 0 | AO118: 0 | AP118: 0 | AT118: =CONCATENATE(AU118,COUNTIF($AU$2:AU118,AU118)) -> 034 | AU118: 0 | AV118: 0 | AW118: 0 | AX118: 0 | AY118: =+(SUMIFS(Montos!$Y$2:$Y$396864,Montos!$R$2:$R$396864,Base!AZ118)/1000000) -> 0
B119: 19001 | C119: POPAYÁN | D119: 3 | E119: 0 | F119: Natural | G119: 19 | H119: CAUCA | I119: Aprobado con subsidio | J119: 3 | K119: MICRO | L119: 8559 | M119: EDUCACIÓN | N119: 1 | O119: 2 | P119: 0 | Q119: 0 | R119: 1 | S119: 2 | X119: 0 | Y119: 5631 | Z119: SABANETA | AA119: 0 | AB119: 0 | AC119: Natural | AD119: 5 | AE119: ANTIOQUIA | AF119: 0 | AG119: 0 | AH119: MICRO | AI119: 4752 | AJ119: COMERCIO AL POR MAYOR Y AL POR MENOR; REPARACIÓN DE VEHÍCULOS AUTOMOTORES Y MOTOCICLETAS | AK119: 0 | AL119: 0 | AM119: 0 | AN119: 0 | AO119: 0 | AP119: 0 | AT119: =CONCATENATE(AU119,COUNTIF($AU$2:AU119,AU119)) -> 035 | AU119: 0 | AV119: 0 | AW119: 0 | AX119: 0 | AY119: =+(SUMIFS(Montos!$Y$2:$Y$396864,Montos!$R$2:$R$396864,Base!AZ119)/1000000) -> 0
B120: 19698 | C120: SANTANDER DE QUILICHAO | D120: 0 | E120: 0 | F120: Natural | G120: 19 | H120: CAUCA | I120: 0 | J120: 0 | K120: MICRO | L120: 4719 | M120: COMERCIO AL POR MAYOR Y AL POR MENOR; REPARACIÓN DE VEHÍCULOS AUTOMOTORES Y MOTOCICLETAS | N120: 0 | O120: 0 | P120: 0 | Q120: 0 | R120: 0 | S120: 0 | X120: 0 | Y120: 5001 | Z120: MEDELLÍN | AA120: 2 | AB120: 4 | AC120: Natural | AD120: 5 | AE120: ANTIOQUIA | AF120: Aprobado con subsidio | AG120: 6 | AH120: MICRO | AI120: 8110 | AJ120: ACTIVIDADES DE SERVICIOS ADMINISTRATIVOS Y DE APOYO | AK120: 0 | AL120: 2 | AM120: 0 | AN120: 0 | AO120: 0 | AP120: 2 | AT120: =CONCATENATE(AU120,COUNTIF($AU$2:AU120,AU120)) -> 036 | AU120: 0 | AV120: 0 | AW120: 0 | AX120: 0 | AY120: =+(SUMIFS(Montos!$Y$2:$Y$396864,Montos!$R$2:$R$396864,Base!AZ120)/1000000) -> 0
B121: 76001 | C121: CALI | D121: 5 | E121: 0 | F121: Natural | G121: 76 | H121: VALLE DEL CAUCA | I121: Aprobado con subsidio | J121: 5 | K121: MICRO | L121: 4752 | M121: COMERCIO AL POR MAYOR Y AL POR MENOR; REPARACIÓN DE VEHÍCULOS AUTOMOTORES Y MOTOCICLETAS | N121: 5 | O121: 0 | P121: 0 | Q121: 5 | R121: 0 | S121: 0 | X121: 0 | Y121: 5154 | Z121: CAUCASIA | AA121: 3 | AB121: 1 | AC121: Natural | AD121: 5 | AE121: ANTIOQUIA | AF121: Aprobado con subsidio | AG121: 4 | AH121: MICRO | AI121: 141 | AJ121: AGRICULTURA, GANADERÍA, CAZA, SILVICULTURA Y PESCA | AK121: 0 | AL121: 3 | AM121: 0 | AN121: 1 | AO121: 0 | AP121: 2 | AT121: =CONCATENATE(AU121,COUNTIF($AU$2:AU121,AU121)) -> 037 | AU121: 0 | AV121: 0 | AW121: 0 | AX121: 0 | AY121: =+(SUMIFS(Montos!$Y$2:$Y$396864,Montos!$R$2:$R$396864,Base!AZ121)/1000000) -> 0
B122: 76001 | C122: CALI | D122: 0 | E122: 0 | F122: Natural | G122: 76 | H122: VALLE DEL CAUCA | I122: 0 | J122: 0 | K122: MICRO | L122: 7730 | M122: ACTIVIDADES DE SERVICIOS ADMINISTRATIVOS Y DE APOYO | N122: 0 | O122: 0 | P122: 0 | Q122: 0 | R122: 0 | S122: 0 | X122: 0 | Y122: 5318 | Z122: GUARNE | AA122: 1 | AB122: 3 | AC122: Natural | AD122: 5 | AE122: ANTIOQUIA | AF122: Aprobado con subsidio | AG122: 4 | AH122: MICRO | AI122: 4620 | AJ122: COMERCIO AL POR MAYOR Y AL POR MENOR; REPARACIÓN DE VEHÍCULOS AUTOMOTORES Y MOTOCICLETAS | AK122: 1 | AL122: 0 | AM122: 0 | AN122: 1 | AO122: 0 | AP122: 0 | AT122: =CONCATENATE(AU122,COUNTIF($AU$2:AU122,AU122)) -> 038 | AU122: 0 | AV122: 0 | AW122: 0 | AX122: 0 | AY122: =+(SUMIFS(Montos!$Y$2:$Y$396864,Montos!$R$2:$R$396864,Base!AZ122)/1000000) -> 0
B123: 41807 | C123: TIMANÁ | D123: 0 | E123: 0 | F123: Natural | G123: 41 | H123: HUILA | I123: 0 | J123: 0 | K123: PEQUEÑA | L123: 4711 | M123: COMERCIO AL POR MAYOR Y AL POR MENOR; REPARACIÓN DE VEHÍCULOS AUTOMOTORES Y MOTOCICLETAS | N123: 0 | O123: 0 | P123: 0 | Q123: 0 | R123: 0 | S123: 0 | X123: 0 | Y123: 5001 | Z123: MEDELLÍN | AA123: 0 | AB123: 0 | AC123: Natural | AD123: 5 | AE123: ANTIOQUIA | AF123: 0 | AG123: 0 | AH123: MICRO | AI123: 4530 | AJ123: COMERCIO AL POR MAYOR Y AL POR MENOR; REPARACIÓN DE VEHÍCULOS AUTOMOTORES Y MOTOCICLETAS | AK123: 0 | AL123: 0 | AM123: 0 | AN123: 0 | AO123: 0 | AP123: 0 | AT123: =CONCATENATE(AU123,COUNTIF($AU$2:AU123,AU123)) -> 039 | AU123: 0 | AV123: 0 | AW123: 0 | AX123: 0 | AY123: =+(SUMIFS(Montos!$Y$2:$Y$396864,Montos!$R$2:$R$396864,Base!AZ123)/1000000) -> 0
B124: 41001 | C124: NEIVA | D124: 46 | E124: 105 | F124: Natural | G124: 41 | H124: HUILA | I124: Aprobado con subsidio | J124: 151 | K124: PEQUEÑA | L124: 4752 | M124: COMERCIO AL POR MAYOR Y AL POR MENOR; REPARACIÓN DE VEHÍCULOS AUTOMOTORES Y MOTOCICLETAS | N124: 1 | O124: 45 | P124: 0 | Q124: 18 | R124: 1 | S124: 27 | X124: 0 | Y124: 5001 | Z124: MEDELLÍN | AA124: 1 | AB124: 3 | AC124: Natural | AD124: 5 | AE124: ANTIOQUIA | AF124: Aprobado con subsidio | AG124: 4 | AH124: PEQUEÑA | AI124: 4774 | AJ124: COMERCIO AL POR MAYOR Y AL POR MENOR; REPARACIÓN DE VEHÍCULOS AUTOMOTORES Y MOTOCICLETAS | AK124: 1 | AL124: 0 | AM124: 0 | AN124: 1 | AO124: 0 | AP124: 0 | AT124: =CONCATENATE(AU124,COUNTIF($AU$2:AU124,AU124)) -> 040 | AU124: 0 | AV124: 0 | AW124: 0 | AX124: 0 | AY124: =+(SUMIFS(Montos!$Y$2:$Y$396864,Montos!$R$2:$R$396864,Base!AZ124)/1000000) -> 0
B125: 41001 | C125: NEIVA | D125: 1 | E125: 8 | F125: Natural | G125: 41 | H125: HUILA | I125: Aprobado con subsidio | J125: 9 | K125: PEQUEÑA | L125: 4711 | M125: COMERCIO AL POR MAYOR Y AL POR MENOR; REPARACIÓN DE VEHÍCULOS AUTOMOTORES Y MOTOCICLETAS | N125: 1 | O125: 0 | P125: 0 | Q125: 1 | R125: 0 | S125: 0 | X125: 0 | Y125: 5001 | Z125: MEDELLÍN | AA125: 0 | AB125: 0 | AC125: Natural | AD125: 5 | AE125: ANTIOQUIA | AF125: 0 | AG125: 0 | AH125: MICRO | AI125: 1313 | AJ125: INDUSTRIAS MANUFACTURERAS | AK125: 0 | AL125: 0 | AM125: 0 | AN125: 0 | AO125: 0 | AP125: 0 | AT125: =CONCATENATE(AU125,COUNTIF($AU$2:AU125,AU125)) -> 041 | AU125: 0 | AV125: 0 | AW125: 0 | AX125: 0 | AY125: =+(SUMIFS(Montos!$Y$2:$Y$396864,Montos!$R$2:$R$396864,Base!AZ125)/1000000) -> 0
B126: 41551 | C126: PITALITO | D126: 2 | E126: 3 | F126: Natural | G126: 41 | H126: HUILA | I126: Aprobado con subsidio | J126: 5 | K126: MICRO | L126: 4754 | M126: COMERCIO AL POR MAYOR Y AL POR MENOR; REPARACIÓN DE VEHÍCULOS AUTOMOTORES Y MOTOCICLETAS | N126: 1 | O126: 1 | P126: 0 | Q126: 1 | R126: 1 | S126: 0 | X126: 0 | Y126: 5001 | Z126: MEDELLÍN | AA126: 3 | AB126: 1 | AC126: Natural | AD126: 5 | AE126: ANTIOQUIA | AF126: Aprobado con subsidio | AG126: 4 | AH126: MICRO | AI126: 1081 | AJ126: INDUSTRIAS MANUFACTURERAS | AK126: 0 | AL126: 3 | AM126: 0 | AN126: 2 | AO126: 0 | AP126: 1 | AT126: =CONCATENATE(AU126,COUNTIF($AU$2:AU126,AU126)) -> 042 | AU126: 0 | AV126: 0 | AW126: 0 | AX126: 0 | AY126: =+(SUMIFS(Montos!$Y$2:$Y$396864,Montos!$R$2:$R$396864,Base!AZ126)/1000000) -> 0
B127: 41551 | C127: PITALITO | D127: 2 | E127: 0 | F127: Natural | G127: 41 | H127: HUILA | I127: Aprobado con subsidio | J127: 2 | K127: MICRO | L127: 4620 | M127: COMERCIO AL POR MAYOR Y AL POR MENOR; REPARACIÓN DE VEHÍCULOS AUTOMOTORES Y MOTOCICLETAS | N127: 1 | O127: 1 | P127: 0 | Q127: 2 | R127: 0 | S127: 0 | X127: 0 | Y127: 5001 | Z127: MEDELLÍN | AA127: 0 | AB127: 0 | AC127: Natural | AD127: 5 | AE127: ANTIOQUIA | AF127: 0 | AG127: 0 | AH127: MICRO | AI127: 1051 | AJ127: INDUSTRIAS MANUFACTURERAS | AK127: 0 | AL127: 0 | AM127: 0 | AN127: 0 | AO127: 0 | AP127: 0 | AT127: =CONCATENATE(AU127,COUNTIF($AU$2:AU127,AU127)) -> 043 | AU127: 0 | AV127: 0 | AW127: 0 | AX127: 0 | AY127: =+(SUMIFS(Montos!$Y$2:$Y$396864,Montos!$R$2:$R$396864,Base!AZ127)/1000000) -> 0
B128: 54498 | C128: OCAÑA | D128: 2 | E128: 6 | F128: Natural | G128: 54 | H128: NORTE DE SANTANDER | I128: Aprobado con subsidio | J128: 8 | K128: MICRO | L128: 4541 | M128: COMERCIO AL POR MAYOR Y AL POR MENOR; REPARACIÓN DE VEHÍCULOS AUTOMOTORES Y MOTOCICLETAS | N128: 1 | O128: 1 | P128: 0 | Q128: 2 | R128: 0 | S128: 0 | X128: 0 | Y128: 5059 | Z128: ARMENIA | AA128: 0 | AB128: 0 | AC128: Natural | AD128: 5 | AE128: ANTIOQUIA | AF128: 0 | AG128: 0 | AH128: MICRO | AI128: 4721 | AJ128: COMERCIO AL POR MAYOR Y AL POR MENOR; REPARACIÓN DE VEHÍCULOS AUTOMOTORES Y MOTOCICLETAS | AK128: 0 | AL128: 0 | AM128: 0 | AN128: 0 | AO128: 0 | AP128: 0 | AT128: =CONCATENATE(AU128,COUNTIF($AU$2:AU128,AU128)) -> 044 | AU128: 0 | AV128: 0 | AW128: 0 | AX128: 0 | AY128: =+(SUMIFS(Montos!$Y$2:$Y$396864,Montos!$R$2:$R$396864,Base!AZ128)/1000000) -> 0
B129: 20011 | C129: AGUACHICA | D129: 0 | E129: 0 | F129: Natural | G129: 20 | H129: CESAR | I129: 0 | J129: 0 | K129: MICRO | L129: 4759 | M129: COMERCIO AL POR MAYOR Y AL POR MENOR; REPARACIÓN DE VEHÍCULOS AUTOMOTORES Y MOTOCICLETAS | N129: 0 | O129: 0 | P129: 0 | Q129: 0 | R129: 0 | S129: 0 | X129: 0 | Y129: 5045 | Z129: APARTADÓ | AA129: 32 | AB129: 43 | AC129: Natural | AD129: 5 | AE129: ANTIOQUIA | AF129: Aprobado con subsidio | AG129: 75 | AH129: PEQUEÑA | AI129: 1089 | AJ129: INDUSTRIAS MANUFACTURERAS | AK129: 28 | AL129: 4 | AM129: 0 | AN129: 32 | AO129: 0 | AP129: 0 | AT129: =CONCATENATE(AU129,COUNTIF($AU$2:AU129,AU129)) -> 045 | AU129: 0 | AV129: 0 | AW129: =+SUMIFS($AA$2:$AA$399999,$Z$2:$Z$399999,AZ129,$AF$2:$AF$399999,"Aprobado con subsidio") -> 0 | AX129: 0 | AY129: =+(SUMIFS(Montos!$Y$2:$Y$396864,Montos!$R$2:$R$396864,Base!AZ129)/1000000) -> 0
B130: 52001 | C130: PASTO | D130: 0 | E130: 0 | F130: Natural | G130: 52 | H130: NARIÑO | I130: 0 | J130: 0 | K130: MICRO | L130: 4530 | M130: COMERCIO AL POR MAYOR Y AL POR MENOR; REPARACIÓN DE VEHÍCULOS AUTOMOTORES Y MOTOCICLETAS | N130: 0 | O130: 0 | P130: 0 | Q130: 0 | R130: 0 | S130: 0 | X130: 0 | Y130: 5001 | Z130: MEDELLÍN | AA130: 0 | AB130: 0 | AC130: Natural | AD130: 5 | AE130: ANTIOQUIA | AF130: Aprobado con subsidio | AG130: 0 | AH130: MICRO | AI130: 1081 | AJ130: INDUSTRIAS MANUFACTURERAS | AK130: 0 | AL130: 0 | AM130: 0 | AN130: 0 | AO130: 0 | AP130: 0 | AT130: =CONCATENATE(AU130,COUNTIF($AU$2:AU130,AU130)) -> 046 | AU130: 0 | AV130: 0 | AW130: =+SUMIFS($AA$2:$AA$399999,$Z$2:$Z$399999,AZ130,$AF$2:$AF$399999,"Aprobado con subsidio") -> 0 | AX130: 0 | AY130: =+(SUMIFS(Montos!$Y$2:$Y$396864,Montos!$R$2:$R$396864,Base!AZ130)/1000000) -> 0
B131: 52001 | C131: PASTO | D131: 0 | E131: 0 | F131: Natural | G131: 52 | H131: NARIÑO | I131: 0 | J131: 0 | K131: MICRO | L131: 4752 | M131: COMERCIO AL POR MAYOR Y AL POR MENOR; REPARACIÓN DE VEHÍCULOS AUTOMOTORES Y MOTOCICLETAS | N131: 0 | O131: 0 | P131: 0 | Q131: 0 | R131: 0 | S131: 0 | X131: 0 | Y131: 5001 | Z131: MEDELLÍN | AA131: 1 | AB131: 4 | AC131: Natural | AD131: 5 | AE131: ANTIOQUIA | AF131: Aprobado con subsidio | AG131: 5 | AH131: MICRO | AI131: 5611 | AJ131: ALOJAMIENTO Y SERVICIOS DE COMIDA | AK131: 1 | AL131: 0 | AM131: 0 | AN131: 1 | AO131: 0 | AP131: 0
B132: 52001 | C132: PASTO | D132: 0 | E132: 0 | F132: Natural | G132: 52 | H132: NARIÑO | I132: 0 | J132: 0 | K132: MICRO | L132: 5512 | M132: ALOJAMIENTO Y SERVICIOS DE COMIDA | N132: 0 | O132: 0 | P132: 0 | Q132: 0 | R132: 0 | S132: 0 | X132: 0 | Y132: 5030 | Z132: AMAGÁ | AA132: 0 | AB132: 0 | AC132: Natural | AD132: 5 | AE132: ANTIOQUIA | AF132: 0 | AG132: 0 | AH132: PEQUEÑA | AI132: 4661 | AJ132: COMERCIO AL POR MAYOR Y AL POR MENOR; REPARACIÓN DE VEHÍCULOS AUTOMOTORES Y MOTOCICLETAS | AK132: 0 | AL132: 0 | AM132: 0 | AN132: 0 | AO132: 0 | AP132: 0
B133: 52317 | C133: GUACHUCAL | D133: 2 | E133: 0 | F133: Natural | G133: 52 | H133: NARIÑO | I133: Aprobado con subsidio | J133: 2 | K133: PEQUEÑA | L133: 4731 | M133: COMERCIO AL POR MAYOR Y AL POR MENOR; REPARACIÓN DE VEHÍCULOS AUTOMOTORES Y MOTOCICLETAS | N133: 0 | O133: 2 | P133: 0 | Q133: 2 | R133: 0 | S133: 0 | X133: 0 | Y133: 5001 | Z133: MEDELLÍN | AA133: 0 | AB133: 0 | AC133: Natural | AD133: 5 | AE133: ANTIOQUIA | AF133: 0 | AG133: 0 | AH133: PEQUEÑA | AI133: 5611 | AJ133: ALOJAMIENTO Y SERVICIOS DE COMIDA | AK133: 0 | AL133: 0 | AM133: 0 | AN133: 0 | AO133: 0 | AP133: 0
B134: 52001 | C134: PASTO | D134: 0 | E134: 0 | F134: Natural | G134: 52 | H134: NARIÑO | I134: 0 | J134: 0 | K134: MICRO | L134: 4731 | M134: COMERCIO AL POR MAYOR Y AL POR MENOR; REPARACIÓN DE VEHÍCULOS AUTOMOTORES Y MOTOCICLETAS | N134: 0 | O134: 0 | P134: 0 | Q134: 0 | R134: 0 | S134: 0 | X134: 0 | Y134: 5001 | Z134: MEDELLÍN | AA134: 0 | AB134: 0 | AC134: Natural | AD134: 5 | AE134: ANTIOQUIA | AF134: 0 | AG134: 0 | AH134: PEQUEÑA | AI134: 4290 | AJ134: CONSTRUCCIÓN | AK134: 0 | AL134: 0 | AM134: 0 | AN134: 0 | AO134: 0 | AP134: 0
B135: 52560 | C135: POTOSÍ | D135: 7 | E135: 4 | F135: Natural | G135: 52 | H135: NARIÑO | I135: Aprobado con subsidio | J135: 11 | K135: MICRO | L135: 1040 | M135: INDUSTRIAS MANUFACTURERAS | N135: 2 | O135: 5 | P135: 0 | Q135: 6 | R135: 1 | S135: 0 | X135: 0 | Y135: 5001 | Z135: MEDELLÍN | AA135: 17 | AB135: 2 | AC135: Natural | AD135: 5 | AE135: ANTIOQUIA | AF135: Aprobado con subsidio | AG135: 19 | AH135: MICRO | AI135: 1410 | AJ135: INDUSTRIAS MANUFACTURERAS | AK135: 15 | AL135: 2 | AM135: 0 | AN135: 4 | AO135: 13 | AP135: 0
B136: 52683 | C136: SANDONÁ | D136: 2 | E136: 2 | F136: Natural | G136: 52 | H136: NARIÑO | I136: Aprobado con subsidio | J136: 4 | K136: MICRO | L136: 4711 | M136: COMERCIO AL POR MAYOR Y AL POR MENOR; REPARACIÓN DE VEHÍCULOS AUTOMOTORES Y MOTOCICLETAS | N136: 1 | O136: 1 | P136: 0 | Q136: 0 | R136: 1 | S136: 1 | X136: 0 | Y136: 5264 | Z136: ENTRERRIOS | AA136: 1 | AB136: 3 | AC136: Natural | AD136: 5 | AE136: ANTIOQUIA | AF136: Aprobado con subsidio | AG136: 4 | AH136: MICRO | AI136: 6920 | AJ136: ACTIVIDADES PROFESIONALES, CIENTÍFICAS Y TÉCNICAS | AK136: 1 | AL136: 0 | AM136: 0 | AN136: 1 | AO136: 0 | AP136: 0
B137: 54001 | C137: CÚCUTA | D137: 1 | E137: 8 | F137: Natural | G137: 54 | H137: NORTE DE SANTANDER | I137: Aprobado con subsidio | J137: 9 | K137: MICRO | L137: 2599 | M137: INDUSTRIAS MANUFACTURERAS | N137: 0 | O137: 1 | P137: 0 | Q137: 1 | R137: 0 | S137: 0 | X137: 0 | Y137: 5001 | Z137: MEDELLÍN | AA137: 9 | AB137: 7 | AC137: Natural | AD137: 5 | AE137: ANTIOQUIA | AF137: Aprobado con subsidio | AG137: 16 | AH137: MICRO | AI137: 5612 | AJ137: ALOJAMIENTO Y SERVICIOS DE COMIDA | AK137: 9 | AL137: 0 | AM137: 0 | AN137: 4 | AO137: 5 | AP137: 0
B138: 54001 | C138: CÚCUTA | D138: 1 | E138: 5 | F138: Natural | G138: 54 | H138: NORTE DE SANTANDER | I138: Aprobado con subsidio | J138: 6 | K138: MICRO | L138: 4923 | M138: TRANSPORTE Y ALMACENAMIENTO | N138: 0 | O138: 1 | P138: 0 | Q138: 1 | R138: 0 | S138: 0 | X138: 0 | Y138: 5266 | Z138: ENVIGADO | AA138: 0 | AB138: 0 | AC138: Natural | AD138: 5 | AE138: ANTIOQUIA | AF138: 0 | AG138: 0 | AH138: MICRO | AI138: 1081 | AJ138: INDUSTRIAS MANUFACTURERAS | AK138: 0 | AL138: 0 | AM138: 0 | AN138: 0 | AO138: 0 | AP138: 0
B139: 54498 | C139: OCAÑA | D139: 0 | E139: 0 | F139: Natural | G139: 54 | H139: NORTE DE SANTANDER | I139: 0 | J139: 0 | K139: MICRO | L139: 4923 | M139: TRANSPORTE Y ALMACENAMIENTO | N139: 0 | O139: 0 | P139: 0 | Q139: 0 | R139: 0 | S139: 0 | X139: 0 | Y139: 5360 | Z139: ITAGUI | AA139: 6 | AB139: 6 | AC139: Natural | AD139: 5 | AE139: ANTIOQUIA | AF139: Aprobado con subsidio | AG139: 12 | AH139: PEQUEÑA | AI139: 8121 | AJ139: ACTIVIDADES DE SERVICIOS ADMINISTRATIVOS Y DE APOYO | AK139: 5 | AL139: 1 | AM139: 0 | AN139: 1 | AO139: 5 | AP139: 0
B140: 54518 | C140: PAMPLONA | D140: 15 | E140: 16 | F140: Natural | G140: 54 | H140: NORTE DE SANTANDER | I140: Aprobado con subsidio | J140: 31 | K140: PEQUEÑA | L140: 5611 | M140: ALOJAMIENTO Y SERVICIOS DE COMIDA | N140: 9 | O140: 6 | P140: 0 | Q140: 15 | R140: 0 | S140: 0 | X140: 0 | Y140: 5615 | Z140: RIONEGRO | AA140: 5 | AB140: 3 | AC140: Natural | AD140: 5 | AE140: ANTIOQUIA | AF140: Aprobado con subsidio | AG140: 8 | AH140: MICRO | AI140: 5511 | AJ140: ALOJAMIENTO Y SERVICIOS DE COMIDA | AK140: 3 | AL140: 2 | AM140: 0 | AN140: 1 | AO140: 3 | AP140: 1
B141: 54001 | C141: CÚCUTA | D141: 1 | E141: 1 | F141: Natural | G141: 54 | H141: NORTE DE SANTANDER | I141: Aprobado con subsidio | J141: 2 | K141: MICRO | L141: 4752 | M141: COMERCIO AL POR MAYOR Y AL POR MENOR; REPARACIÓN DE VEHÍCULOS AUTOMOTORES Y MOTOCICLETAS | N141: 0 | O141: 1 | P141: 0 | Q141: 0 | R141: 0 | S141: 1 | X141: 0 | Y141: 5264 | Z141: ENTRERRIOS | AA141: 3 | AB141: 5 | AC141: Natural | AD141: 5 | AE141: ANTIOQUIA | AF141: Aprobado con subsidio | AG141: 8 | AH141: MICRO | AI141: 141 | AJ141: AGRICULTURA, GANADERÍA, CAZA, SILVICULTURA Y PESCA | AK141: 1 | AL141: 2 | AM141: 0 | AN141: 3 | AO141: 0 | AP141: 0
B142: 68001 | C142: BUCARAMANGA | D142: 1 | E142: 1 | F142: Natural | G142: 68 | H142: SANTANDER | I142: Aprobado con subsidio | J142: 2 | K142: PEQUEÑA | L142: 1610 | M142: INDUSTRIAS MANUFACTURERAS | N142: 0 | O142: 1 | P142: 0 | Q142: 1 | R142: 0 | S142: 0 | X142: 0 | Y142: 5001 | Z142: MEDELLÍN | AA142: 5 | AB142: 0 | AC142: Natural | AD142: 5 | AE142: ANTIOQUIA | AF142: Aprobado con subsidio | AG142: 5 | AH142: MICRO | AI142: 4541 | AJ142: COMERCIO AL POR MAYOR Y AL POR MENOR; REPARACIÓN DE VEHÍCULOS AUTOMOTORES Y MOTOCICLETAS | AK142: 1 | AL142: 4 | AM142: 0 | AN142: 2 | AO142: 1 | AP142: 2
B143: 11001 | C143: BOGOTÁ, D.C. | D143: 0 | E143: 0 | F143: Natural | G143: 11 | H143: BOGOTÁ, D.C. | I143: 0 | J143: 0 | K143: MICRO | L143: 1410 | M143: INDUSTRIAS MANUFACTURERAS | N143: 0 | O143: 0 | P143: 0 | Q143: 0 | R143: 0 | S143: 0 | X143: 0 | Y143: 5001 | Z143: MEDELLÍN | AA143: 0 | AB143: 0 | AC143: Natural | AD143: 5 | AE143: ANTIOQUIA | AF143: 0 | AG143: 0 | AH143: MICRO | AI143: 4771 | AJ143: COMERCIO AL POR MAYOR Y AL POR MENOR; REPARACIÓN DE VEHÍCULOS AUTOMOTORES Y MOTOCICLETAS | AK143: 0 | AL143: 0 | AM143: 0 | AN143: 0 | AO143: 0 | AP143: 0
B144: 11001 | C144: BOGOTÁ, D.C. | D144: 0 | E144: 0 | F144: Natural | G144: 11 | H144: BOGOTÁ, D.C. | I144: 0 | J144: 0 | K144: MICRO | L144: 4773 | M144: COMERCIO AL POR MAYOR Y AL POR MENOR; REPARACIÓN DE VEHÍCULOS AUTOMOTORES Y MOTOCICLETAS | N144: 0 | O144: 0 | P144: 0 | Q144: 0 | R144: 0 | S144: 0 | X144: 0 | Y144: 5001 | Z144: MEDELLÍN | AA144: 1 | AB144: 0 | AC144: Natural | AD144: 5 | AE144: ANTIOQUIA | AF144: Aprobado con subsidio | AG144: 1 | AH144: MICRO | AI144: 4752 | AJ144: COMERCIO AL POR MAYOR Y AL POR MENOR; REPARACIÓN DE VEHÍCULOS AUTOMOTORES Y MOTOCICLETAS | AK144: 0 | AL144: 1 | AM144: 0 | AN144: 0 | AO144: 0 | AP144: 1
B145: 68001 | C145: BUCARAMANGA | D145: 3 | E145: 2 | F145: Natural | G145: 68 | H145: SANTANDER | I145: Aprobado con subsidio | J145: 5 | K145: MICRO | L145: 4774 | M145: COMERCIO AL POR MAYOR Y AL POR MENOR; REPARACIÓN DE VEHÍCULOS AUTOMOTORES Y MOTOCICLETAS | N145: 3 | O145: 0 | P145: 0 | Q145: 3 | R145: 0 | S145: 0 | X145: 0 | Y145: 5376 | Z145: LA CEJA | AA145: 4 | AB145: 2 | AC145: Natural | AD145: 5 | AE145: ANTIOQUIA | AF145: Aprobado con subsidio | AG145: 6 | AH145: PEQUEÑA | AI145: 5611 | AJ145: ALOJAMIENTO Y SERVICIOS DE COMIDA | AK145: 2 | AL145: 2 | AM145: 0 | AN145: 3 | AO145: 1 | AP145: 0
B146: 68001 | C146: BUCARAMANGA | D146: 0 | E146: 0 | F146: Natural | G146: 68 | H146: SANTANDER | I146: 0 | J146: 0 | K146: MICRO | L146: 4729 | M146: COMERCIO AL POR MAYOR Y AL POR MENOR; REPARACIÓN DE VEHÍCULOS AUTOMOTORES Y MOTOCICLETAS | N146: 0 | O146: 0 | P146: 0 | Q146: 0 | R146: 0 | S146: 0 | X146: 0 | Y146: 5656 | Z146: SAN JERÓNIMO | AA146: 2 | AB146: 0 | AC146: Natural | AD146: 5 | AE146: ANTIOQUIA | AF146: Aprobado con subsidio | AG146: 2 | AH146: MICRO | AI146: 4759 | AJ146: COMERCIO AL POR MAYOR Y AL POR MENOR; REPARACIÓN DE VEHÍCULOS AUTOMOTORES Y MOTOCICLETAS | AK146: 1 | AL146: 1 | AM146: 0 | AN146: 1 | AO146: 1 | AP146: 0
B147: 68307 | C147: GIRÓN | D147: 0 | E147: 0 | F147: Natural | G147: 68 | H147: SANTANDER | I147: 0 | J147: 0 | K147: PEQUEÑA | L147: 8513 | M147: EDUCACIÓN | N147: 0 | O147: 0 | P147: 0 | Q147: 0 | R147: 0 | S147: 0 | X147: 0 | Y147: 5628 | Z147: SABANALARGA | AA147: 4 | AB147: 0 | AC147: Natural | AD147: 5 | AE147: ANTIOQUIA | AF147: Aprobado con subsidio | AG147: 4 | AH147: MICRO | AI147: 4719 | AJ147: COMERCIO AL POR MAYOR Y AL POR MENOR; REPARACIÓN DE VEHÍCULOS AUTOMOTORES Y MOTOCICLETAS | AK147: 4 | AL147: 0 | AM147: 0 | AN147: 1 | AO147: 3 | AP147: 0
B148: 11001 | C148: BOGOTÁ, D.C. | D148: 16 | E148: 18 | F148: Natural | G148: 11 | H148: BOGOTÁ, D.C. | I148: Aprobado con subsidio | J148: 34 | K148: MICRO | L148: 4732 | M148: COMERCIO AL POR MAYOR Y AL POR MENOR; REPARACIÓN DE VEHÍCULOS AUTOMOTORES Y MOTOCICLETAS | N148: 8 | O148: 8 | P148: 0 | Q148: 5 | R148: 5 | S148: 6 | X148: 0 | Y148: 5088 | Z148: BELLO | AA148: 0 | AB148: 0 | AC148: Natural | AD148: 5 | AE148: ANTIOQUIA | AF148: 0 | AG148: 0 | AH148: PEQUEÑA | AI148: 8530 | AJ148: EDUCACIÓN | AK148: 0 | AL148: 0 | AM148: 0 | AN148: 0 | AO148: 0 | AP148: 0
B149: 54001 | C149: CÚCUTA | D149: 2 | E149: 2 | F149: Natural | G149: 54 | H149: NORTE DE SANTANDER | I149: Aprobado con subsidio | J149: 4 | K149: MICRO | L149: 1410 | M149: INDUSTRIAS MANUFACTURERAS | N149: 1 | O149: 1 | P149: 0 | Q149: 2 | R149: 0 | S149: 0 | X149: 0 | Y149: 5360 | Z149: ITAGUI | AA149: 2 | AB149: 3 | AC149: Natural | AD149: 5 | AE149: ANTIOQUIA | AF149: Aprobado con subsidio | AG149: 5 | AH149: PEQUEÑA | AI149: 4771 | AJ149: COMERCIO AL POR MAYOR Y AL POR MENOR; REPARACIÓN DE VEHÍCULOS AUTOMOTORES Y MOTOCICLETAS | AK149: 2 | AL149: 0 | AM149: 0 | AN149: 2 | AO149: 0 | AP149: 0
B150: 68001 | C150: BUCARAMANGA | D150: 2 | E150: 0 | F150: Natural | G150: 68 | H150: SANTANDER | I150: Aprobado con subsidio | J150: 2 | K150: MICRO | L150: 7420 | M150: ACTIVIDADES PROFESIONALES, CIENTÍFICAS Y TÉCNICAS | N150: 0 | O150: 2 | P150: 0 | Q150: 1 | R150: 0 | S150: 1 | X150: 0 | Y150: 5360 | Z150: ITAGUI | AA150: 0 | AB150: 0 | AC150: Natural | AD150: 5 | AE150: ANTIOQUIA | AF150: 0 | AG150: 0 | AH150: PEQUEÑA | AI150: 1020 | AJ150: INDUSTRIAS MANUFACTURERAS | AK150: 0 | AL150: 0 | AM150: 0 | AN150: 0 | AO150: 0 | AP150: 0
B151: 68547 | C151: PIEDECUESTA | D151: 0 | E151: 0 | F151: Natural | G151: 68 | H151: SANTANDER | I151: 0 | J151: 0 | K151: MICRO | L151: 1410 | M151: INDUSTRIAS MANUFACTURERAS | N151: 0 | O151: 0 | P151: 0 | Q151: 0 | R151: 0 | S151: 0 | X151: 0 | Y151: 5480 | Z151: MUTATÁ | AA151: 0 | AB151: 0 | AC151: Natural | AD151: 5 | AE151: ANTIOQUIA | AF151: 0 | AG151: 0 | AH151: MICRO | AI151: 4752 | AJ151: COMERCIO AL POR MAYOR Y AL POR MENOR; REPARACIÓN DE VEHÍCULOS AUTOMOTORES Y MOTOCICLETAS | AK151: 0 | AL151: 0 | AM151: 0 | AN151: 0 | AO151: 0 | AP151: 0
B152: 68081 | C152: BARRANCABERMEJA | D152: 0 | E152: 0 | F152: Natural | G152: 68 | H152: SANTANDER | I152: 0 | J152: 0 | K152: MICRO | L152: 4731 | M152: COMERCIO AL POR MAYOR Y AL POR MENOR; REPARACIÓN DE VEHÍCULOS AUTOMOTORES Y MOTOCICLETAS | N152: 0 | O152: 0 | P152: 0 | Q152: 0 | R152: 0 | S152: 0 | X152: 0 | Y152: 5001 | Z152: MEDELLÍN | AA152: 0 | AB152: 0 | AC152: Natural | AD152: 5 | AE152: ANTIOQUIA | AF152: 0 | AG152: 0 | AH152: MICRO | AI152: 4754 | AJ152: COMERCIO AL POR MAYOR Y AL POR MENOR; REPARACIÓN DE VEHÍCULOS AUTOMOTORES Y MOTOCICLETAS | AK152: 0 | AL152: 0 | AM152: 0 | AN152: 0 | AO152: 0 | AP152: 0
B153: 68679 | C153: SAN GIL | D153: 17 | E153: 12 | F153: Natural | G153: 68 | H153: SANTANDER | I153: Aprobado con subsidio | J153: 29 | K153: PEQUEÑA | L153: 4711 | M153: COMERCIO AL POR MAYOR Y AL POR MENOR; REPARACIÓN DE VEHÍCULOS AUTOMOTORES Y MOTOCICLETAS | N153: 7 | O153: 10 | P153: 0 | Q153: 15 | R153: 1 | S153: 1 | X153: 0 | Y153: 5001 | Z153: MEDELLÍN | AA153: 4 | AB153: 0 | AC153: Natural | AD153: 5 | AE153: ANTIOQUIA | AF153: Aprobado con subsidio | AG153: 4 | AH153: MICRO | AI153: 4761 | AJ153: COMERCIO AL POR MAYOR Y AL POR MENOR; REPARACIÓN DE VEHÍCULOS AUTOMOTORES Y MOTOCICLETAS | AK153: 3 | AL153: 1 | AM153: 0 | AN153: 0 | AO153: 3 | AP153: 1
B154: 11001 | C154: BOGOTÁ, D.C. | D154: 0 | E154: 0 | F154: Natural | G154: 11 | H154: BOGOTÁ, D.C. | I154: 0 | J154: 0 | K154: MICRO | L154: 4723 | M154: COMERCIO AL POR MAYOR Y AL POR MENOR; REPARACIÓN DE VEHÍCULOS AUTOMOTORES Y MOTOCICLETAS | N154: 0 | O154: 0 | P154: 0 | Q154: 0 | R154: 0 | S154: 0 | X154: 0 | Y154: 5001 | Z154: MEDELLÍN | AA154: 1 | AB154: 5 | AC154: Natural | AD154: 5 | AE154: ANTIOQUIA | AF154: Aprobado con subsidio | AG154: 6 | AH154: MICRO | AI154: 5613 | AJ154: ALOJAMIENTO Y SERVICIOS DE COMIDA | AK154: 1 | AL154: 0 | AM154: 0 | AN154: 1 | AO154: 0 | AP154: 0
B155: 5001 | C155: MEDELLÍN | D155: 0 | E155: 0 | F155: Natural | G155: 5 | H155: ANTIOQUIA | I155: 0 | J155: 0 | K155: PEQUEÑA | L155: 4390 | M155: CONSTRUCCIÓN | N155: 0 | O155: 0 | P155: 0 | Q155: 0 | R155: 0 | S155: 0 | X155: 0 | Y155: 5059 | Z155: ARMENIA | AA155: 0 | AB155: 0 | AC155: Natural | AD155: 5 | AE155: ANTIOQUIA | AF155: 0 | AG155: 0 | AH155: PEQUEÑA | AI155: 4520 | AJ155: COMERCIO AL POR MAYOR Y AL POR MENOR; REPARACIÓN DE VEHÍCULOS AUTOMOTORES Y MOTOCICLETAS | AK155: 0 | AL155: 0 | AM155: 0 | AN155: 0 | AO155: 0 | AP155: 0
B156: 68861 | C156: VÉLEZ | D156: 1 | E156: 0 | F156: Natural | G156: 68 | H156: SANTANDER | I156: Aprobado con subsidio | J156: 1 | K156: MICRO | L156: 1089 | M156: INDUSTRIAS MANUFACTURERAS | N156: 1 | O156: 0 | P156: 0 | Q156: 1 | R156: 0 | S156: 0 | X156: 0 | Y156: 5360 | Z156: ITAGUI | AA156: 20 | AB156: 10 | AC156: Natural | AD156: 5 | AE156: ANTIOQUIA | AF156: Aprobado con subsidio | AG156: 30 | AH156: PEQUEÑA | AI156: 8121 | AJ156: ACTIVIDADES DE SERVICIOS ADMINISTRATIVOS Y DE APOYO | AK156: 20 | AL156: 0 | AM156: 0 | AN156: 1 | AO156: 19 | AP156: 0
B157: 68001 | C157: BUCARAMANGA | D157: 0 | E157: 0 | F157: Natural | G157: 68 | H157: SANTANDER | I157: 0 | J157: 0 | K157: MICRO | L157: 6621 | M157: ACTIVIDADES FINANCIERAS Y DE SEGUROS | N157: 0 | O157: 0 | P157: 0 | Q157: 0 | R157: 0 | S157: 0 | X157: 0 | Y157: 5360 | Z157: ITAGUI | AA157: 1 | AB157: 4 | AC157: Natural | AD157: 5 | AE157: ANTIOQUIA | AF157: Aprobado con subsidio | AG157: 5 | AH157: MICRO | AI157: 3240 | AJ157: INDUSTRIAS MANUFACTURERAS | AK157: 0 | AL157: 1 | AM157: 0 | AN157: 1 | AO157: 0 | AP157: 0
B158: 68001 | C158: BUCARAMANGA | D158: 3 | E158: 119 | F158: Natural | G158: 68 | H158: SANTANDER | I158: Aprobado con subsidio | J158: 122 | K158: MEDIANA | L158: 4711 | M158: COMERCIO AL POR MAYOR Y AL POR MENOR; REPARACIÓN DE VEHÍCULOS AUTOMOTORES Y MOTOCICLETAS | N158: 3 | O158: 0 | P158: 0 | Q158: 3 | R158: 0 | S158: 0 | X158: 0 | Y158: 5001 | Z158: MEDELLÍN | AA158: 2 | AB158: 5 | AC158: Natural | AD158: 5 | AE158: ANTIOQUIA | AF158: Aprobado con subsidio | AG158: 7 | AH158: MICRO | AI158: 4762 | AJ158: COMERCIO AL POR MAYOR Y AL POR MENOR; REPARACIÓN DE VEHÍCULOS AUTOMOTORES Y MOTOCICLETAS | AK158: 1 | AL158: 1 | AM158: 0 | AN158: 2 | AO158: 0 | AP158: 0
B159: 68079 | C159: BARICHARA | D159: 0 | E159: 0 | F159: Natural | G159: 68 | H159: SANTANDER | I159: 0 | J159: 0 | K159: PEQUEÑA | L159: 5511 | M159: ALOJAMIENTO Y SERVICIOS DE COMIDA | N159: 0 | O159: 0 | P159: 0 | Q159: 0 | R159: 0 | S159: 0 | X159: 0 | Y159: 5001 | Z159: MEDELLÍN | AA159: 3 | AB159: 2 | AC159: Natural | AD159: 5 | AE159: ANTIOQUIA | AF159: Aprobado con subsidio | AG159: 5 | AH159: MICRO | AI159: 8622 | AJ159: ACTIVIDADES DE ATENCIÓN DE LA SALUD HUMANA Y DE ASISTENCIA SOCIAL | AK159: 3 | AL159: 0 | AM159: 0 | AN159: 3 | AO159: 0 | AP159: 0
B160: 11001 | C160: BOGOTÁ, D.C. | D160: 2 | E160: 0 | F160: Natural | G160: 11 | H160: BOGOTÁ, D.C. | I160: Aprobado con subsidio | J160: 2 | K160: MICRO | L160: 8121 | M160: ACTIVIDADES DE SERVICIOS ADMINISTRATIVOS Y DE APOYO | N160: 1 | O160: 1 | P160: 0 | Q160: 0 | R160: 1 | S160: 1 | X160: 0 | Y160: 5686 | Z160: SANTA ROSA DE OSOS | AA160: 1 | AB160: 1 | AC160: Natural | AD160: 5 | AE160: ANTIOQUIA | AF160: Aprobado con subsidio | AG160: 2 | AH160: MICRO | AI160: 4771 | AJ160: COMERCIO AL POR MAYOR Y AL POR MENOR; REPARACIÓN DE VEHÍCULOS AUTOMOTORES Y MOTOCICLETAS | AK160: 1 | AL160: 0 | AM160: 0 | AN160: 1 | AO160: 0 | AP160: 0
B161: 73001 | C161: IBAGUÉ | D161: 0 | E161: 0 | F161: Natural | G161: 73 | H161: TOLIMA | I161: 0 | J161: 0 | K161: MICRO | L161: 4751 | M161: COMERCIO AL POR MAYOR Y AL POR MENOR; REPARACIÓN DE VEHÍCULOS AUTOMOTORES Y MOTOCICLETAS | N161: 0 | O161: 0 | P161: 0 | Q161: 0 | R161: 0 | S161: 0 | X161: 0 | Y161: 5088 | Z161: BELLO | AA161: 1 | AB161: 0 | AC161: Natural | AD161: 5 | AE161: ANTIOQUIA | AF161: Aprobado con subsidio | AG161: 1 | AH161: MICRO | AI161: 4759 | AJ161: COMERCIO AL POR MAYOR Y AL POR MENOR; REPARACIÓN DE VEHÍCULOS AUTOMOTORES Y MOTOCICLETAS | AK161: 0 | AL161: 1 | AM161: 0 | AN161: 0 | AO161: 0 | AP161: 1
B162: 41001 | C162: NEIVA | D162: 3 | E162: 9 | F162: Natural | G162: 41 | H162: HUILA | I162: Aprobado con subsidio | J162: 12 | K162: MICRO | L162: 5511 | M162: ALOJAMIENTO Y SERVICIOS DE COMIDA | N162: 1 | O162: 2 | P162: 0 | Q162: 3 | R162: 0 | S162: 0 | X162: 0 | Y162: 5001 | Z162: MEDELLÍN | AA162: 1 | AB162: 25 | AC162: Natural | AD162: 5 | AE162: ANTIOQUIA | AF162: Aprobado con subsidio | AG162: 26 | AH162: MICRO | AI162: 5613 | AJ162: ALOJAMIENTO Y SERVICIOS DE COMIDA | AK162: 1 | AL162: 0 | AM162: 0 | AN162: 1 | AO162: 0 | AP162: 0
B163: 11001 | C163: BOGOTÁ, D.C. | D163: 0 | E163: 0 | F163: Natural | G163: 11 | H163: BOGOTÁ, D.C. | I163: 0 | J163: 0 | K163: MICRO | L163: 6910 | M163: ACTIVIDADES PROFESIONALES, CIENTÍFICAS Y TÉCNICAS | N163: 0 | O163: 0 | P163: 0 | Q163: 0 | R163: 0 | S163: 0 | X163: 0 | Y163: 5001 | Z163: MEDELLÍN | AA163: 0 | AB163: 0 | AC163: Natural | AD163: 5 | AE163: ANTIOQUIA | AF163: 0 | AG163: 0 | AH163: PEQUEÑA | AI163: 8430 | AJ163: ADMINISTRACIÓN PÚBLICA Y DEFENSA; PLANES DE SEGURIDAD SOCIAL DE AFILIACIÓN OBLIGATORIA | AK163: 0 | AL163: 0 | AM163: 0 | AN163: 0 | AO163: 0 | AP163: 0
B164: 73001 | C164: IBAGUÉ | D164: 4 | E164: 0 | F164: Natural | G164: 73 | H164: TOLIMA | I164: Aprobado con subsidio | J164: 4 | K164: MICRO | L164: 4773 | M164: COMERCIO AL POR MAYOR Y AL POR MENOR; REPARACIÓN DE VEHÍCULOS AUTOMOTORES Y MOTOCICLETAS | N164: 3 | O164: 1 | P164: 0 | Q164: 0 | R164: 3 | S164: 1 | X164: 0 | Y164: 5001 | Z164: MEDELLÍN | AA164: 1 | AB164: 0 | AC164: Natural | AD164: 5 | AE164: ANTIOQUIA | AF164: Aprobado con subsidio | AG164: 1 | AH164: MICRO | AI164: 6920 | AJ164: ACTIVIDADES PROFESIONALES, CIENTÍFICAS Y TÉCNICAS | AK164: 1 | AL164: 0 | AM164: 0 | AN164: 0 | AO164: 1 | AP164: 0
B165: 76001 | C165: CALI | D165: 2 | E165: 9 | F165: Natural | G165: 76 | H165: VALLE DEL CAUCA | I165: Aprobado con subsidio | J165: 11 | K165: MICRO | L165: 1811 | M165: INDUSTRIAS MANUFACTURERAS | N165: 2 | O165: 0 | P165: 0 | Q165: 2 | R165: 0 | S165: 0 | X165: 0 | Y165: 5664 | Z165: SAN PEDRO DE LOS MILAGROS | AA165: 0 | AB165: 0 | AC165: Natural | AD165: 5 | AE165: ANTIOQUIA | AF165: 0 | AG165: 0 | AH165: MICRO | AI165: 8291 | AJ165: ACTIVIDADES DE SERVICIOS ADMINISTRATIVOS Y DE APOYO | AK165: 0 | AL165: 0 | AM165: 0 | AN165: 0 | AO165: 0 | AP165: 0
B166: 73001 | C166: IBAGUÉ | D166: 1 | E166: 0 | F166: Natural | G166: 73 | H166: TOLIMA | I166: Aprobado con subsidio | J166: 1 | K166: MICRO | L166: 4752 | M166: COMERCIO AL POR MAYOR Y AL POR MENOR; REPARACIÓN DE VEHÍCULOS AUTOMOTORES Y MOTOCICLETAS | N166: 0 | O166: 1 | P166: 0 | Q166: 1 | R166: 0 | S166: 0 | X166: 0 | Y166: 5282 | Z166: FREDONIA | AA166: 0 | AB166: 0 | AC166: Natural | AD166: 5 | AE166: ANTIOQUIA | AF166: 0 | AG166: 0 | AH166: MICRO | AI166: 4711 | AJ166: COMERCIO AL POR MAYOR Y AL POR MENOR; REPARACIÓN DE VEHÍCULOS AUTOMOTORES Y MOTOCICLETAS | AK166: 0 | AL166: 0 | AM166: 0 | AN166: 0 | AO166: 0 | AP166: 0
B167: 73268 | C167: ESPINAL | D167: 0 | E167: 0 | F167: Natural | G167: 73 | H167: TOLIMA | I167: 0 | J167: 0 | K167: PEQUEÑA | L167: 4290 | M167: CONSTRUCCIÓN | N167: 0 | O167: 0 | P167: 0 | Q167: 0 | R167: 0 | S167: 0 | X167: 0 | Y167: 5001 | Z167: MEDELLÍN | AA167: 0 | AB167: 0 | AC167: Natural | AD167: 5 | AE167: ANTIOQUIA | AF167: 0 | AG167: 0 | AH167: MICRO | AI167: 4711 | AJ167: COMERCIO AL POR MAYOR Y AL POR MENOR; REPARACIÓN DE VEHÍCULOS AUTOMOTORES Y MOTOCICLETAS | AK167: 0 | AL167: 0 | AM167: 0 | AN167: 0 | AO167: 0 | AP167: 0
B168: 5001 | C168: MEDELLÍN | D168: 0 | E168: 0 | F168: Natural | G168: 5 | H168: ANTIOQUIA | I168: 0 | J168: 0 | K168: MICRO | L168: 4719 | M168: COMERCIO AL POR MAYOR Y AL POR MENOR; REPARACIÓN DE VEHÍCULOS AUTOMOTORES Y MOTOCICLETAS | N168: 0 | O168: 0 | P168: 0 | Q168: 0 | R168: 0 | S168: 0 | X168: 0 | Y168: 5001 | Z168: MEDELLÍN | AA168: 1 | AB168: 0 | AC168: Natural | AD168: 5 | AE168: ANTIOQUIA | AF168: Aprobado con subsidio | AG168: 1 | AH168: MICRO | AI168: 4724 | AJ168: COMERCIO AL POR MAYOR Y AL POR MENOR; REPARACIÓN DE VEHÍCULOS AUTOMOTORES Y MOTOCICLETAS | AK168: 1 | AL168: 0 | AM168: 0 | AN168: 0 | AO168: 1 | AP168: 0
B169: 66170 | C169: DOSQUEBRADAS | D169: 0 | E169: 0 | F169: Natural | G169: 66 | H169: RISARALDA | I169: 0 | J169: 0 | K169: MICRO | L169: 4923 | M169: TRANSPORTE Y ALMACENAMIENTO | N169: 0 | O169: 0 | P169: 0 | Q169: 0 | R169: 0 | S169: 0 | X169: 0 | Y169: 5697 | Z169: EL SANTUARIO | AA169: 0 | AB169: 0 | AC169: Natural | AD169: 5 | AE169: ANTIOQUIA | AF169: 0 | AG169: 0 | AH169: MICRO | AI169: 4774 | AJ169: COMERCIO AL POR MAYOR Y AL POR MENOR; REPARACIÓN DE VEHÍCULOS AUTOMOTORES Y MOTOCICLETAS | AK169: 0 | AL169: 0 | AM169: 0 | AN169: 0 | AO169: 0 | AP169: 0
B170: 50001 | C170: VILLAVICENCIO | D170: 10 | E170: 13 | F170: Natural | G170: 50 | H170: META | I170: Aprobado con subsidio | J170: 23 | K170: PEQUEÑA | L170: 5511 | M170: ALOJAMIENTO Y SERVICIOS DE COMIDA | N170: 4 | O170: 6 | P170: 0 | Q170: 7 | R170: 3 | S170: 0 | X170: 0 | Y170: 5001 | Z170: MEDELLÍN | AA170: 0 | AB170: 0 | AC170: Natural | AD170: 5 | AE170: ANTIOQUIA | AF170: 0 | AG170: 0 | AH170: MICRO | AI170: 9609 | AJ170: OTRAS ACTIVIDADES DE SERVICIOS | AK170: 0 | AL170: 0 | AM170: 0 | AN170: 0 | AO170: 0 | AP170: 0
B171: 76834 | C171: TULUÁ | D171: 4 | E171: 8 | F171: Natural | G171: 76 | H171: VALLE DEL CAUCA | I171: Aprobado con subsidio | J171: 12 | K171: PEQUEÑA | L171: 4751 | M171: COMERCIO AL POR MAYOR Y AL POR MENOR; REPARACIÓN DE VEHÍCULOS AUTOMOTORES Y MOTOCICLETAS | N171: 4 | O171: 0 | P171: 0 | Q171: 2 | R171: 2 | S171: 0 | X171: 0 | Y171: 5686 | Z171: SANTA ROSA DE OSOS | AA171: 0 | AB171: 0 | AC171: Natural | AD171: 5 | AE171: ANTIOQUIA | AF171: 0 | AG171: 0 | AH171: PEQUEÑA | AI171: 1410 | AJ171: INDUSTRIAS MANUFACTURERAS | AK171: 0 | AL171: 0 | AM171: 0 | AN171: 0 | AO171: 0 | AP171: 0
B172: 76020 | C172: ALCALÁ | D172: 6 | E172: 1 | F172: Natural | G172: 76 | H172: VALLE DEL CAUCA | I172: Aprobado con subsidio | J172: 7 | K172: MICRO | L172: 4752 | M172: COMERCIO AL POR MAYOR Y AL POR MENOR; REPARACIÓN DE VEHÍCULOS AUTOMOTORES Y MOTOCICLETAS | N172: 2 | O172: 4 | P172: 0 | Q172: 2 | R172: 2 | S172: 2 | X172: 0 | Y172: 5368 | Z172: JERICÓ | AA172: 13 | AB172: 0 | AC172: Natural | AD172: 5 | AE172: ANTIOQUIA | AF172: Aprobado con subsidio | AG172: 13 | AH172: MICRO | AI172: 5611 | AJ172: ALOJAMIENTO Y SERVICIOS DE COMIDA | AK172: 7 | AL172: 6 | AM172: 0 | AN172: 4 | AO172: 5 | AP172: 4
B173: 76001 | C173: CALI | D173: 0 | E173: 0 | F173: Natural | G173: 76 | H173: VALLE DEL CAUCA | I173: 0 | J173: 0 | K173: PEQUEÑA | L173: 4762 | M173: COMERCIO AL POR MAYOR Y AL POR MENOR; REPARACIÓN DE VEHÍCULOS AUTOMOTORES Y MOTOCICLETAS | N173: 0 | O173: 0 | P173: 0 | Q173: 0 | R173: 0 | S173: 0 | X173: 0 | Y173: 5001 | Z173: MEDELLÍN | AA173: 0 | AB173: 0 | AC173: Natural | AD173: 5 | AE173: ANTIOQUIA | AF173: 0 | AG173: 0 | AH173: MICRO | AI173: 4771 | AJ173: COMERCIO AL POR MAYOR Y AL POR MENOR; REPARACIÓN DE VEHÍCULOS AUTOMOTORES Y MOTOCICLETAS | AK173: 0 | AL173: 0 | AM173: 0 | AN173: 0 | AO173: 0 | AP173: 0
B174: 76001 | C174: CALI | D174: 0 | E174: 0 | F174: Natural | G174: 76 | H174: VALLE DEL CAUCA | I174: 0 | J174: 0 | K174: PEQUEÑA | L174: 150 | M174: AGRICULTURA, GANADERÍA, CAZA, SILVICULTURA Y PESCA | N174: 0 | O174: 0 | P174: 0 | Q174: 0 | R174: 0 | S174: 0 | X174: 0 | Y174: 5001 | Z174: MEDELLÍN | AA174: 6 | AB174: 13 | AC174: Natural | AD174: 5 | AE174: ANTIOQUIA | AF174: Aprobado con subsidio | AG174: 19 | AH174: PEQUEÑA | AI174: 1051 | AJ174: INDUSTRIAS MANUFACTURERAS | AK174: 2 | AL174: 4 | AM174: 0 | AN174: 6 | AO174: 0 | AP174: 0
B175: 11001 | C175: BOGOTÁ, D.C. | D175: 0 | E175: 0 | F175: Natural | G175: 11 | H175: BOGOTÁ, D.C. | I175: 0 | J175: 0 | K175: MICRO | L175: 2599 | M175: INDUSTRIAS MANUFACTURERAS | N175: 0 | O175: 0 | P175: 0 | Q175: 0 | R175: 0 | S175: 0 | X175: 0 | Y175: 5665 | Z175: SAN PEDRO DE URABA | AA175: 7 | AB175: 4 | AC175: Natural | AD175: 5 | AE175: ANTIOQUIA | AF175: Aprobado con subsidio | AG175: 11 | AH175: MICRO | AI175: 4773 | AJ175: COMERCIO AL POR MAYOR Y AL POR MENOR; REPARACIÓN DE VEHÍCULOS AUTOMOTORES Y MOTOCICLETAS | AK175: 0 | AL175: 7 | AM175: 0 | AN175: 2 | AO175: 0 | AP175: 5
B176: 76001 | C176: CALI | D176: 7 | E176: 3 | F176: Natural | G176: 76 | H176: VALLE DEL CAUCA | I176: Aprobado con subsidio | J176: 10 | K176: MICRO | L176: 5611 | M176: ALOJAMIENTO Y SERVICIOS DE COMIDA | N176: 4 | O176: 3 | P176: 0 | Q176: 2 | R176: 3 | S176: 2 | X176: 0 | Y176: 5390 | Z176: LA PINTADA | AA176: 0 | AB176: 0 | AC176: Natural | AD176: 5 | AE176: ANTIOQUIA | AF176: 0 | AG176: 0 | AH176: MICRO | AI176: 4723 | AJ176: COMERCIO AL POR MAYOR Y AL POR MENOR; REPARACIÓN DE VEHÍCULOS AUTOMOTORES Y MOTOCICLETAS | AK176: 0 | AL176: 0 | AM176: 0 | AN176: 0 | AO176: 0 | AP176: 0
B177: 5001 | C177: MEDELLÍN | D177: 0 | E177: 0 | F177: Natural | G177: 5 | H177: ANTIOQUIA | I177: 0 | J177: 0 | K177: PEQUEÑA | L177: 1410 | M177: INDUSTRIAS MANUFACTURERAS | N177: 0 | O177: 0 | P177: 0 | Q177: 0 | R177: 0 | S177: 0 | X177: 0 | Y177: 5147 | Z177: CAREPA | AA177: 0 | AB177: 0 | AC177: Natural | AD177: 5 | AE177: ANTIOQUIA | AF177: 0 | AG177: 0 | AH177: MICRO | AI177: 4773 | AJ177: COMERCIO AL POR MAYOR Y AL POR MENOR; REPARACIÓN DE VEHÍCULOS AUTOMOTORES Y MOTOCICLETAS | AK177: 0 | AL177: 0 | AM177: 0 | AN177: 0 | AO177: 0 | AP177: 0
B178: 76122 | C178: CAICEDONIA | D178: 1 | E178: 1 | F178: Natural | G178: 76 | H178: VALLE DEL CAUCA | I178: Aprobado con subsidio | J178: 2 | K178: MICRO | L178: 6920 | M178: ACTIVIDADES PROFESIONALES, CIENTÍFICAS Y TÉCNICAS | N178: 1 | O178: 0 | P178: 0 | Q178: 1 | R178: 0 | S178: 0 | X178: 0 | Y178: 5380 | Z178: LA ESTRELLA | AA178: 0 | AB178: 0 | AC178: Natural | AD178: 5 | AE178: ANTIOQUIA | AF178: 0 | AG178: 0 | AH178: MICRO | AI178: 5611 | AJ178: ALOJAMIENTO Y SERVICIOS DE COMIDA | AK178: 0 | AL178: 0 | AM178: 0 | AN178: 0 | AO178: 0 | AP178: 0
B179: 76248 | C179: EL CERRITO | D179: 0 | E179: 0 | F179: Natural | G179: 76 | H179: VALLE DEL CAUCA | I179: 0 | J179: 0 | K179: MICRO | L179: 3110 | M179: INDUSTRIAS MANUFACTURERAS | N179: 0 | O179: 0 | P179: 0 | Q179: 0 | R179: 0 | S179: 0 | X179: 0 | Y179: 5266 | Z179: ENVIGADO | AA179: 1 | AB179: 4 | AC179: Natural | AD179: 5 | AE179: ANTIOQUIA | AF179: Aprobado con subsidio | AG179: 5 | AH179: MICRO | AI179: 6820 | AJ179: ACTIVIDADES INMOBILIARIAS | AK179: 1 | AL179: 0 | AM179: 0 | AN179: 1 | AO179: 0 | AP179: 0
B180: 50001 | C180: VILLAVICENCIO | D180: 0 | E180: 0 | F180: Natural | G180: 50 | H180: META | I180: 0 | J180: 0 | K180: MICRO | L180: 4719 | M180: COMERCIO AL POR MAYOR Y AL POR MENOR; REPARACIÓN DE VEHÍCULOS AUTOMOTORES Y MOTOCICLETAS | N180: 0 | O180: 0 | P180: 0 | Q180: 0 | R180: 0 | S180: 0 | X180: 0 | Y180: 5266 | Z180: ENVIGADO | AA180: 0 | AB180: 0 | AC180: Natural | AD180: 5 | AE180: ANTIOQUIA | AF180: 0 | AG180: 0 | AH180: MICRO | AI180: 8511 | AJ180: EDUCACIÓN | AK180: 0 | AL180: 0 | AM180: 0 | AN180: 0 | AO180: 0 | AP180: 0
B181: 76892 | C181: YUMBO | D181: 0 | E181: 0 | F181: Natural | G181: 76 | H181: VALLE DEL CAUCA | I181: 0 | J181: 0 | K181: MICRO | L181: 1690 | M181: INDUSTRIAS MANUFACTURERAS | N181: 0 | O181: 0 | P181: 0 | Q181: 0 | R181: 0 | S181: 0 | X181: 0 | Y181: 5088 | Z181: BELLO | AA181: 20 | AB181: 1 | AC181: Natural | AD181: 5 | AE181: ANTIOQUIA | AF181: Aprobado con subsidio | AG181: 21 | AH181: PEQUEÑA | AI181: 5613 | AJ181: ALOJAMIENTO Y SERVICIOS DE COMIDA | AK181: 8 | AL181: 12 | AM181: 0 | AN181: 5 | AO181: 7 | AP181: 8
B182: 76400 | C182: LA UNIÓN | D182: 7 | E182: 12 | F182: Natural | G182: 76 | H182: VALLE DEL CAUCA | I182: Aprobado con subsidio | J182: 19 | K182: PEQUEÑA | L182: 130 | M182: AGRICULTURA, GANADERÍA, CAZA, SILVICULTURA Y PESCA | N182: 0 | O182: 7 | P182: 0 | Q182: 6 | R182: 0 | S182: 1 | X182: 0 | Y182: 5129 | Z182: CALDAS | AA182: 1 | AB182: 2 | AC182: Natural | AD182: 5 | AE182: ANTIOQUIA | AF182: Aprobado con subsidio | AG182: 3 | AH182: PEQUEÑA | AI182: 4752 | AJ182: COMERCIO AL POR MAYOR Y AL POR MENOR; REPARACIÓN DE VEHÍCULOS AUTOMOTORES Y MOTOCICLETAS | AK182: 1 | AL182: 0 | AM182: 0 | AN182: 1 | AO182: 0 | AP182: 0
B183: 76001 | C183: CALI | D183: 1 | E183: 0 | F183: Natural | G183: 76 | H183: VALLE DEL CAUCA | I183: Aprobado con subsidio | J183: 1 | K183: MICRO | L183: 4741 | M183: COMERCIO AL POR MAYOR Y AL POR MENOR; REPARACIÓN DE VEHÍCULOS AUTOMOTORES Y MOTOCICLETAS | N183: 0 | O183: 1 | P183: 0 | Q183: 0 | R183: 0 | S183: 1 | X183: 0 | Y183: 5266 | Z183: ENVIGADO | AA183: 0 | AB183: 0 | AC183: Natural | AD183: 5 | AE183: ANTIOQUIA | AF183: 0 | AG183: 0 | AH183: MICRO | AI183: 8230 | AJ183: ACTIVIDADES DE SERVICIOS ADMINISTRATIVOS Y DE APOYO | AK183: 0 | AL183: 0 | AM183: 0 | AN183: 0 | AO183: 0 | AP183: 0
B184: 76001 | C184: CALI | D184: 2 | E184: 1 | F184: Natural | G184: 76 | H184: VALLE DEL CAUCA | I184: Aprobado con subsidio | J184: 3 | K184: MICRO | L184: 1081 | M184: INDUSTRIAS MANUFACTURERAS | N184: 1 | O184: 1 | P184: 0 | Q184: 0 | R184: 1 | S184: 1 | X184: 0 | Y184: 5001 | Z184: MEDELLÍN | AA184: 0 | AB184: 0 | AC184: Natural | AD184: 5 | AE184: ANTIOQUIA | AF184: 0 | AG184: 0 | AH184: MICRO | AI184: 4741 | AJ184: COMERCIO AL POR MAYOR Y AL POR MENOR; REPARACIÓN DE VEHÍCULOS AUTOMOTORES Y MOTOCICLETAS | AK184: 0 | AL184: 0 | AM184: 0 | AN184: 0 | AO184: 0 | AP184: 0
B185: 17442 | C185: MARMATO | D185: 0 | E185: 0 | F185: Natural | G185: 17 | H185: CALDAS | I185: 0 | J185: 0 | K185: MICRO | L185: 722 | M185: EXPLOTACIÓN DE MINAS Y CANTERAS | N185: 0 | O185: 0 | P185: 0 | Q185: 0 | R185: 0 | S185: 0 | X185: 0 | Y185: 5360 | Z185: ITAGUI | AA185: 2 | AB185: 3 | AC185: Natural | AD185: 5 | AE185: ANTIOQUIA | AF185: Aprobado con subsidio | AG185: 5 | AH185: MICRO | AI185: 4724 | AJ185: COMERCIO AL POR MAYOR Y AL POR MENOR; REPARACIÓN DE VEHÍCULOS AUTOMOTORES Y MOTOCICLETAS | AK185: 0 | AL185: 2 | AM185: 0 | AN185: 2 | AO185: 0 | AP185: 0
B186: 76122 | C186: CAICEDONIA | D186: 0 | E186: 0 | F186: Natural | G186: 76 | H186: VALLE DEL CAUCA | I186: 0 | J186: 0 | K186: MEDIANA | L186: 4669 | M186: COMERCIO AL POR MAYOR Y AL POR MENOR; REPARACIÓN DE VEHÍCULOS AUTOMOTORES Y MOTOCICLETAS | N186: 0 | O186: 0 | P186: 0 | Q186: 0 | R186: 0 | S186: 0 | X186: 0 | Y186: 5001 | Z186: MEDELLÍN | AA186: 0 | AB186: 0 | AC186: Natural | AD186: 5 | AE186: ANTIOQUIA | AF186: 0 | AG186: 0 | AH186: MICRO | AI186: 4761 | AJ186: COMERCIO AL POR MAYOR Y AL POR MENOR; REPARACIÓN DE VEHÍCULOS AUTOMOTORES Y MOTOCICLETAS | AK186: 0 | AL186: 0 | AM186: 0 | AN186: 0 | AO186: 0 | AP186: 0
B187: 76001 | C187: CALI | D187: 1 | E187: 11 | F187: Natural | G187: 76 | H187: VALLE DEL CAUCA | I187: Aprobado con subsidio | J187: 12 | K187: PEQUEÑA | L187: 1410 | M187: INDUSTRIAS MANUFACTURERAS | N187: 1 | O187: 0 | P187: 0 | Q187: 1 | R187: 0 | S187: 0 | X187: 0 | Y187: 5001 | Z187: MEDELLÍN | AA187: 2 | AB187: 0 | AC187: Natural | AD187: 5 | AE187: ANTIOQUIA | AF187: Aprobado con subsidio | AG187: 2 | AH187: MICRO | AI187: 1410 | AJ187: INDUSTRIAS MANUFACTURERAS | AK187: 2 | AL187: 0 | AM187: 0 | AN187: 0 | AO187: 2 | AP187: 0
B188: 11001 | C188: BOGOTÁ, D.C. | D188: 0 | E188: 0 | F188: Natural | G188: 11 | H188: BOGOTÁ, D.C. | I188: 0 | J188: 0 | K188: PEQUEÑA | L188: 8530 | M188: EDUCACIÓN | N188: 0 | O188: 0 | P188: 0 | Q188: 0 | R188: 0 | S188: 0 | X188: 0 | Y188: 5001 | Z188: MEDELLÍN | AA188: 1 | AB188: 0 | AC188: Natural | AD188: 5 | AE188: ANTIOQUIA | AF188: Aprobado con subsidio | AG188: 1 | AH188: MICRO | AI188: 4773 | AJ188: COMERCIO AL POR MAYOR Y AL POR MENOR; REPARACIÓN DE VEHÍCULOS AUTOMOTORES Y MOTOCICLETAS | AK188: 0 | AL188: 1 | AM188: 0 | AN188: 1 | AO188: 0 | AP188: 0
B189: 76834 | C189: TULUÁ | D189: 6 | E189: 0 | F189: Natural | G189: 76 | H189: VALLE DEL CAUCA | I189: Aprobado con subsidio | J189: 6 | K189: MICRO | L189: 4774 | M189: COMERCIO AL POR MAYOR Y AL POR MENOR; REPARACIÓN DE VEHÍCULOS AUTOMOTORES Y MOTOCICLETAS | N189: 3 | O189: 3 | P189: 0 | Q189: 4 | R189: 2 | S189: 0 | X189: 0 | Y189: 5001 | Z189: MEDELLÍN | AA189: 0 | AB189: 0 | AC189: Natural | AD189: 5 | AE189: ANTIOQUIA | AF189: 0 | AG189: 0 | AH189: PEQUEÑA | AI189: 4775 | AJ189: COMERCIO AL POR MAYOR Y AL POR MENOR; REPARACIÓN DE VEHÍCULOS AUTOMOTORES Y MOTOCICLETAS | AK189: 0 | AL189: 0 | AM189: 0 | AN189: 0 | AO189: 0 | AP189: 0
B190: 76111 | C190: GUADALAJARA DE BUGA | D190: 1 | E190: 1 | F190: Natural | G190: 76 | H190: VALLE DEL CAUCA | I190: Aprobado con subsidio | J190: 2 | K190: MICRO | L190: 4923 | M190: TRANSPORTE Y ALMACENAMIENTO | N190: 0 | O190: 1 | P190: 0 | Q190: 0 | R190: 0 | S190: 1 | X190: 0 | Y190: 5001 | Z190: MEDELLÍN | AA190: 0 | AB190: 0 | AC190: Natural | AD190: 5 | AE190: ANTIOQUIA | AF190: 0 | AG190: 0 | AH190: MICRO | AI190: 9601 | AJ190: OTRAS ACTIVIDADES DE SERVICIOS | AK190: 0 | AL190: 0 | AM190: 0 | AN190: 0 | AO190: 0 | AP190: 0
B191: 76001 | C191: CALI | D191: 0 | E191: 0 | F191: Natural | G191: 76 | H191: VALLE DEL CAUCA | I191: 0 | J191: 0 | K191: PEQUEÑA | L191: 4773 | M191: COMERCIO AL POR MAYOR Y AL POR MENOR; REPARACIÓN DE VEHÍCULOS AUTOMOTORES Y MOTOCICLETAS | N191: 0 | O191: 0 | P191: 0 | Q191: 0 | R191: 0 | S191: 0 | X191: 0 | Y191: 5266 | Z191: ENVIGADO | AA191: 2 | AB191: 0 | AC191: Natural | AD191: 5 | AE191: ANTIOQUIA | AF191: Aprobado con subsidio | AG191: 2 | AH191: MICRO | AI191: 7490 | AJ191: ACTIVIDADES PROFESIONALES, CIENTÍFICAS Y TÉCNICAS | AK191: 1 | AL191: 1 | AM191: 0 | AN191: 2 | AO191: 0 | AP191: 0
B192: 5088 | C192: BELLO | D192: 2 | E192: 1 | F192: Natural | G192: 5 | H192: ANTIOQUIA | I192: Aprobado con subsidio | J192: 3 | K192: MICRO | L192: 4752 | M192: COMERCIO AL POR MAYOR Y AL POR MENOR; REPARACIÓN DE VEHÍCULOS AUTOMOTORES Y MOTOCICLETAS | N192: 0 | O192: 2 | P192: 0 | Q192: 2 | R192: 0 | S192: 0 | X192: 0 | Y192: 5615 | Z192: RIONEGRO | AA192: 2 | AB192: 1 | AC192: Natural | AD192: 5 | AE192: ANTIOQUIA | AF192: Aprobado con subsidio | AG192: 3 | AH192: MICRO | AI192: 1081 | AJ192: INDUSTRIAS MANUFACTURERAS | AK192: 1 | AL192: 1 | AM192: 0 | AN192: 2 | AO192: 0 | AP192: 0
B193: 41551 | C193: PITALITO | D193: 1 | E193: 32 | F193: Natural | G193: 41 | H193: HUILA | I193: Aprobado con subsidio | J193: 33 | K193: MEDIANA | L193: 4711 | M193: COMERCIO AL POR MAYOR Y AL POR MENOR; REPARACIÓN DE VEHÍCULOS AUTOMOTORES Y MOTOCICLETAS | N193: 1 | O193: 0 | P193: 0 | Q193: 1 | R193: 0 | S193: 0 | X193: 0 | Y193: 5615 | Z193: RIONEGRO | AA193: 1 | AB193: 0 | AC193: Natural | AD193: 5 | AE193: ANTIOQUIA | AF193: Aprobado con subsidio | AG193: 1 | AH193: MICRO | AI193: 4923 | AJ193: TRANSPORTE Y ALMACENAMIENTO | AK193: 0 | AL193: 1 | AM193: 0 | AN193: 0 | AO193: 0 | AP193: 1
B194: 15001 | C194: TUNJA | D194: 0 | E194: 0 | F194: Natural | G194: 15 | H194: BOYACÁ | I194: 0 | J194: 0 | K194: MICRO | L194: 7420 | M194: ACTIVIDADES PROFESIONALES, CIENTÍFICAS Y TÉCNICAS | N194: 0 | O194: 0 | P194: 0 | Q194: 0 | R194: 0 | S194: 0 | X194: 0 | Y194: 5129 | Z194: CALDAS | AA194: 2 | AB194: 0 | AC194: Natural | AD194: 5 | AE194: ANTIOQUIA | AF194: Aprobado con subsidio | AG194: 2 | AH194: MICRO | AI194: 8129 | AJ194: ACTIVIDADES DE SERVICIOS ADMINISTRATIVOS Y DE APOYO | AK194: 2 | AL194: 0 | AM194: 0 | AN194: 1 | AO194: 1 | AP194: 0
B195: 15001 | C195: TUNJA | D195: 0 | E195: 0 | F195: Natural | G195: 15 | H195: BOYACÁ | I195: 0 | J195: 0 | K195: MICRO | L195: 8512 | M195: EDUCACIÓN | N195: 0 | O195: 0 | P195: 0 | Q195: 0 | R195: 0 | S195: 0 | X195: 0 | Y195: 5001 | Z195: MEDELLÍN | AA195: 5 | AB195: 3 | AC195: Natural | AD195: 5 | AE195: ANTIOQUIA | AF195: Aprobado con subsidio | AG195: 8 | AH195: MICRO | AI195: 2221 | AJ195: INDUSTRIAS MANUFACTURERAS | AK195: 1 | AL195: 4 | AM195: 0 | AN195: 5 | AO195: 0 | AP195: 0
B196: 11001 | C196: BOGOTÁ, D.C. | D196: 2 | E196: 7 | F196: Natural | G196: 11 | H196: BOGOTÁ, D.C. | I196: Aprobado con subsidio | J196: 9 | K196: PEQUEÑA | L196: 8521 | M196: EDUCACIÓN | N196: 1 | O196: 1 | P196: 0 | Q196: 2 | R196: 0 | S196: 0 | X196: 0 | Y196: 5079 | Z196: BARBOSA | AA196: 2 | AB196: 0 | AC196: Natural | AD196: 5 | AE196: ANTIOQUIA | AF196: Aprobado con subsidio | AG196: 2 | AH196: MICRO | AI196: 8530 | AJ196: EDUCACIÓN | AK196: 2 | AL196: 0 | AM196: 0 | AN196: 0 | AO196: 2 | AP196: 0
B197: 11001 | C197: BOGOTÁ, D.C. | D197: 4 | E197: 6 | F197: Natural | G197: 11 | H197: BOGOTÁ, D.C. | I197: Aprobado con subsidio | J197: 10 | K197: MICRO | L197: 5611 | M197: ALOJAMIENTO Y SERVICIOS DE COMIDA | N197: 1 | O197: 3 | P197: 0 | Q197: 4 | R197: 0 | S197: 0 | X197: 0 | Y197: 5154 | Z197: CAUCASIA | AA197: 1 | AB197: 5 | AC197: Natural | AD197: 5 | AE197: ANTIOQUIA | AF197: Aprobado con subsidio | AG197: 6 | AH197: MICRO | AI197: 8899 | AJ197: ACTIVIDADES DE ATENCIÓN DE LA SALUD HUMANA Y DE ASISTENCIA SOCIAL | AK197: 1 | AL197: 0 | AM197: 0 | AN197: 0 | AO197: 1 | AP197: 0
B198: 11001 | C198: BOGOTÁ, D.C. | D198: 22 | E198: 45 | F198: Natural | G198: 11 | H198: BOGOTÁ, D.C. | I198: Aprobado con subsidio | J198: 67 | K198: PEQUEÑA | L198: 4210 | M198: CONSTRUCCIÓN | N198: 11 | O198: 11 | P198: 0 | Q198: 15 | R198: 4 | S198: 3 | X198: 0 | Y198: 5154 | Z198: CAUCASIA | AA198: 0 | AB198: 0 | AC198: Natural | AD198: 5 | AE198: ANTIOQUIA | AF198: 0 | AG198: 0 | AH198: MICRO | AI198: 7730 | AJ198: ACTIVIDADES DE SERVICIOS ADMINISTRATIVOS Y DE APOYO | AK198: 0 | AL198: 0 | AM198: 0 | AN198: 0 | AO198: 0 | AP198: 0
B199: 50001 | C199: VILLAVICENCIO | D199: 0 | E199: 0 | F199: Natural | G199: 50 | H199: META | I199: 0 | J199: 0 | K199: MICRO | L199: 4752 | M199: COMERCIO AL POR MAYOR Y AL POR MENOR; REPARACIÓN DE VEHÍCULOS AUTOMOTORES Y MOTOCICLETAS | N199: 0 | O199: 0 | P199: 0 | Q199: 0 | R199: 0 | S199: 0 | X199: 0 | Y199: 5837 | Z199: TURBO | AA199: 2 | AB199: 2 | AC199: Natural | AD199: 5 | AE199: ANTIOQUIA | AF199: Aprobado con subsidio | AG199: 4 | AH199: MICRO | AI199: 4759 | AJ199: COMERCIO AL POR MAYOR Y AL POR MENOR; REPARACIÓN DE VEHÍCULOS AUTOMOTORES Y MOTOCICLETAS | AK199: 1 | AL199: 1 | AM199: 0 | AN199: 1 | AO199: 1 | AP199: 0
B200: 15001 | C200: TUNJA | D200: 0 | E200: 0 | F200: Natural | G200: 15 | H200: BOYACÁ | I200: 0 | J200: 0 | K200: MICRO | L200: 8219 | M200: ACTIVIDADES DE SERVICIOS ADMINISTRATIVOS Y DE APOYO | N200: 0 | O200: 0 | P200: 0 | Q200: 0 | R200: 0 | S200: 0 | X200: 0 | Y200: 5001 | Z200: MEDELLÍN | AA200: 1 | AB200: 0 | AC200: Natural | AD200: 5 | AE200: ANTIOQUIA | AF200: Aprobado con subsidio | AG200: 1 | AH200: MICRO | AI200: 5611 | AJ200: ALOJAMIENTO Y SERVICIOS DE COMIDA | AK200: 0 | AL200: 1 | AM200: 0 | AN200: 0 | AO200: 0 | AP200: 1
... 2050 more rows

Sheet $Base (hidden)
A1: Ciclo de postulación - Nomina | B1: ID-secuencia | C1: Tipo de Persona | D1: Código Departamento - Divipola | E1: Departamento del empleador | F1: Código Ciudad Divipola | G1: Ciudad del empleador | H1: Código CIIU por rama | I1: Sector según ramas de actividad CIIU 4 A.C | J1: Sector según división CIIU 4 A.C. | K1: Estado empleador | L1: Causal de rechazo a nivel aportante | M1: Número de empleados con concepto de conformidad 40 % | N1: Número de empleados con concepto de conformidad 50 % | O1: Número de empleados beneficiados con concepto de no conformidad | P1: Recursos Asociados | Q1: Cantidad de empleados | R1: Tamaño empleador | V1: Ciclo de postulación - Nomina | W1: ID-secuencia | X1: Tipo de Persona | Y1: Código Departamento - Divipola | Z1: Departamento del empleador | AA1: Código Ciudad Divipola | AB1: Ciudad del empleador | AC1: Código CIIU por rama | AD1: Sector según ramas de actividad CIIU 4 A.C | AE1: Sector según división CIIU 4 A.C. | AF1: Estado empleador | AG1: Causal de rechazo a nivel aportante | AH1: Número de empleados con concepto de conformidad 40 % | AI1: Número de empleados con concepto de conformidad 50 % | AJ1: Número de empleados beneficiados con concepto de no conformidad | AK1: Recursos Asociados | AL1: Cantidad de empleados | AM1: Tamaño empleador | AQ1: Orden | AR1: Sector económico | AT1: RecursosDpto | AU1: RecursosMpio | AY1: RecursosDpto | AZ1: RecursosMpio
C2: Natural | D2: 17 | E2: CALDAS | F2: 17380 | G2: LA DORADA | H2: 141 | I2: AGRICULTURA, GANADERÍA, CAZA, SILVICULTURA Y PESCA | P2: 0 | V2: =+_xlfn._xlws.FILTER($A$2:$R$400000,$E$2:$E$400000=Visor!M7,"") -> 0 | W2: 0 | X2: Natural | Y2: 5 | Z2: ANTIOQUIA | AA2: 5001 | AB2: MEDELLÍN | AC2: 141 | AD2: AGRICULTURA, GANADERÍA, CAZA, SILVICULTURA Y PESCA | AE2: 0 | AF2: 0 | AG2: 0 | AH2: 0 | AI2: 0 | AJ2: 0 | AK2: 454262 | AL2: 0 | AM2: 0 | AQ2: =+_xlfn.RANK.EQ(AT2,$AT$2:$AT$23,1) -> 6 | AR2: =+_xlfn.UNIQUE(Montos!$U$2:$U$396864) -> 141 | AS2: =+VLOOKUP(AR2,$BB$2:$BC$23,2,FALSE) ->  | AT2: =+SUMIF(Montos!$U$2:$U$396864,'$Base'!AR2,Montos!$Y$2:$Y$396864)/1000000 -> 96.707516 | AU2: =+SUMIFS(Montos!$Y$2:$Y$396864,Montos!$U$2:$U$396864,'$Base'!AR2,Montos!$R$2:$R$396864,Visor!$M$8)/1000000 -> 30.382031 | AW2: 1 | AX2: =+IF(AY2<>0,IFERROR(VLOOKUP(AW2,$AQ$2:$AU$23,3,0),""),"") ->  | AY2: =+IFERROR(VLOOKUP(AW2,$AQ$2:$AU$23,4,0),"") -> 1.15 | AZ2: =+IFERROR(VLOOKUP(AW2,$AQ$2:$AU$23,5,0),"") -> 1.15 | BB2: ACTIVIDADES ARTÍSTICAS, DE ENTRETENIMIENTO Y RECREACIÓN | BC2: Act artísticas y de entretenimiento | BG2: NACIONAL | BH2: =Visor!$M$8 -> MEDELLÍN | BI2: =Visor!$M$7 -> ANTIOQUIA
C3: Natural | D3: 68 | E3: SANTANDER | F3: 68001 | G3: BUCARAMANGA | H3: 4771 | I3: COMERCIO AL POR MAYOR Y AL POR MENOR; REPARACIÓN DE VEHÍCULOS AUTOMOTORES Y MOTOCICLETAS | P3: 0 | V3: 0 | W3: 0 | X3: Natural | Y3: 5 | Z3: ANTIOQUIA | AA3: 5001 | AB3: MEDELLÍN | AC3: 3315 | AD3: INDUSTRIAS MANUFACTURERAS | AE3: 0 | AF3: 0 | AG3: 0 | AH3: 0 | AI3: 0 | AJ3: 0 | AK3: 0 | AL3: 0 | AM3: 0 | AQ3: =+_xlfn.RANK.EQ(AT3,$AT$2:$AT$23,1) -> 21 | AR3: 5611 | AT3: =+SUMIF(Montos!$U$2:$U$396864,'$Base'!AR3,Montos!$Y$2:$Y$396864)/1000000 -> 3101.423128 | AU3: =+SUMIFS(Montos!$Y$2:$Y$396864,Montos!$U$2:$U$396864,'$Base'!AR3,Montos!$R$2:$R$396864,Visor!$M$8)/1000000 -> 2686.433182 | AW3: 2 | AX3: =+IF(AY3<>0,IFERROR(VLOOKUP(AW3,$AQ$2:$AU$23,3,0),""),"") ->  | AY3: 8.496192 | AZ3: 5.916192 | BB3: ACTIVIDADES DE ORGANIZACIONES Y ENTIDADES EXTRATERRITORIALES | BC3: Act de organizaciones y entidades extraterritoriales | BH3: =Visor!$H$129/Visor!$H$128 -> 0.6778059461 | BI3: =Visor!$F$129/Visor!$F$128 -> 0.6760684991
C4: Natural | D4: 68 | E4: SANTANDER | F4: 68001 | G4: BUCARAMANGA | H4: 1089 | I4: INDUSTRIAS MANUFACTURERAS | P4: 0 | V4: 0 | W4: 0 | X4: Natural | Y4: 5 | Z4: ANTIOQUIA | AA4: 5001 | AB4: MEDELLÍN | AC4: 5611 | AD4: ALOJAMIENTO Y SERVICIOS DE COMIDA | AE4: 0 | AF4: 0 | AG4: 0 | AH4: 0 | AI4: 0 | AJ4: 0 | AK4: 0 | AL4: 0 | AM4: 0 | AQ4: 1 | AR4: 90 | AT4: =+SUMIF(Montos!$U$2:$U$396864,'$Base'!AR4,Montos!$Y$2:$Y$396864)/1000000 -> 1.15 | AU4: =+SUMIFS(Montos!$Y$2:$Y$396864,Montos!$U$2:$U$396864,'$Base'!AR4,Montos!$R$2:$R$396864,Visor!$M$8)/1000000 -> 1.15 | AW4: 3 | AY4: 15.444177 | AZ4: 0 | BB4: ACTIVIDADES DE ATENCIÓN DE LA SALUD HUMANA Y DE ASISTENCIA SOCIAL | BC4: Act. de atención de la salud humana | BH4: =Visor!$H$130/Visor!$H$128 -> 0.3221940539 | BI4: =Visor!$F$130/Visor!$F$128 -> 0.3239315009
C5: Natural | D5: 44 | E5: LA GUAJIRA | F5: 44430 | G5: MAICAO | H5: 4530 | I5: COMERCIO AL POR MAYOR Y AL POR MENOR; REPARACIÓN DE VEHÍCULOS AUTOMOTORES Y MOTOCICLETAS | P5: 0 | V5: 0 | W5: 0 | X5: Natural | Y5: 5 | Z5: ANTIOQUIA | AA5: 5001 | AB5: MEDELLÍN | AC5: 5611 | AD5: ALOJAMIENTO Y SERVICIOS DE COMIDA | AE5: 0 | AF5: 0 | AG5: 0 | AH5: 0 | AI5: 0 | AJ5: 0 | AK5: 3530000 | AL5: 0 | AM5: 0 | AQ5: 5 | AR5: 4722 | AT5: =+SUMIF(Montos!$U$2:$U$396864,'$Base'!AR5,Montos!$Y$2:$Y$396864)/1000000 -> 22.3585 | AU5: =+SUMIFS(Montos!$Y$2:$Y$396864,Montos!$U$2:$U$396864,'$Base'!AR5,Montos!$R$2:$R$396864,Visor!$M$8)/1000000 -> 21.7585 | AW5: 4 | AY5: 21.838524 | AZ5: 21.338524 | BB5: ACTIVIDADES PROFESIONALES, CIENTÍFICAS Y TÉCNICAS | BC5: Act. profecionales cientificas y tecnicas | BH5: =SUM(BH3:BH4) -> 1 | BI5: =SUM(BI3:BI4) -> 1
C6: Natural | D6: 5 | E6: ANTIOQUIA | F6: 5001 | G6: MEDELLÍN | H6: 141 | I6: AGRICULTURA, GANADERÍA, CAZA, SILVICULTURA Y PESCA | P6: 454262 | V6: 0 | W6: 0 | X6: Natural | Y6: 5 | Z6: ANTIOQUIA | AA6: 5615 | AB6: RIONEGRO | AC6: 2012 | AD6: INDUSTRIAS MANUFACTURERAS | AE6: 0 | AF6: 0 | AG6: 0 | AH6: 0 | AI6: 0 | AJ6: 0 | AK6: 0 | AL6: 0 | AM6: 0 | AQ6: 2 | AR6: 3240 | AT6: =+SUMIF(Montos!$U$2:$U$396864,'$Base'!AR6,Montos!$Y$2:$Y$396864)/1000000 -> 8.496192 | AU6: =+SUMIFS(Montos!$Y$2:$Y$396864,Montos!$U$2:$U$396864,'$Base'!AR6,Montos!$R$2:$R$396864,Visor!$M$8)/1000000 -> 5.916192 | AW6: 5 | AY6: 22.3585 | AZ6: 21.7585 | BB6: ACTIVIDADES DE LOS HOGARES INDIVIDUALES EN CALIDAD DE EMPLEADORES; ACTIVIDADES NO DIFERENCIADAS DE LOS HOGARES INDIVIDUALES COMO PRODUCTORES DE BIENES Y SERVICIOS PARA USO PROPIO | BC6: Actividades de los hogares individuales
C7: Natural | D7: 41 | E7: HUILA | F7: 41001 | G7: NEIVA | H7: 4773 | I7: COMERCIO AL POR MAYOR Y AL POR MENOR; REPARACIÓN DE VEHÍCULOS AUTOMOTORES Y MOTOCICLETAS | P7: 0 | V7: 0 | W7: 0 | X7: Natural | Y7: 5 | Z7: ANTIOQUIA | AA7: 5360 | AB7: ITAGUI | AC7: 1921 | AD7: INDUSTRIAS MANUFACTURERAS | AE7: 0 | AF7: 0 | AG7: 0 | AH7: 0 | AI7: 0 | AJ7: 0 | AK7: 0 | AL7: 0 | AM7: 0 | AQ7: 20 | AR7: 4771 | AT7: =+SUMIF(Montos!$U$2:$U$396864,'$Base'!AR7,Montos!$Y$2:$Y$396864)/1000000 -> 1573.840447 | AU7: =+SUMIFS(Montos!$Y$2:$Y$396864,Montos!$U$2:$U$396864,'$Base'!AR7,Montos!$R$2:$R$396864,Visor!$M$8)/1000000 -> 1401.051861 | AW7: 6 | AY7: 96.707516 | AZ7: 30.382031 | BB7: ACTIVIDADES DE SERVICIOS ADMINISTRATIVOS Y DE APOYO | BC7: Actividades de servicios administrativos
C8: Natural | D8: 25 | E8: CUNDINAMARCA | F8: 25307 | G8: GIRARDOT | H8: 4530 | I8: COMERCIO AL POR MAYOR Y AL POR MENOR; REPARACIÓN DE VEHÍCULOS AUTOMOTORES Y MOTOCICLETAS | P8: 250000 | V8: 0 | W8: 0 | X8: Natural | Y8: 5 | Z8: ANTIOQUIA | AA8: 5001 | AB8: MEDELLÍN | AC8: 90 | AD8: OTRAS | AE8: 0 | AF8: 0 | AG8: 0 | AH8: 0 | AI8: 0 | AJ8: 0 | AK8: 400000 | AL8: 0 | AM8: 0 | AQ8: 14 | AR8: 4773 | AT8: =+SUMIF(Montos!$U$2:$U$396864,'$Base'!AR8,Montos!$Y$2:$Y$396864)/1000000 -> 769.371581 | AU8: =+SUMIFS(Montos!$Y$2:$Y$396864,Montos!$U$2:$U$396864,'$Base'!AR8,Montos!$R$2:$R$396864,Visor!$M$8)/1000000 -> 640.852339 | AW8: 7 | AY8: 164.023341 | AZ8: 63.33724 | BB8: ACTIVIDADES FINANCIERAS Y DE SEGUROS | BC8: Actividades financieras y de seguros
C9: Natural | D9: 5 | E9: ANTIOQUIA | F9: 5001 | G9: MEDELLÍN | H9: 3315 | I9: INDUSTRIAS MANUFACTURERAS | P9: 0 | V9: 0 | W9: 0 | X9: Natural | Y9: 5 | Z9: ANTIOQUIA | AA9: 5001 | AB9: MEDELLÍN | AC9: 141 | AD9: AGRICULTURA, GANADERÍA, CAZA, SILVICULTURA Y PESCA | AE9: 0 | AF9: 0 | AG9: 0 | AH9: 0 | AI9: 0 | AJ9: 0 | AK9: 0 | AL9: 0 | AM9: 0 | AQ9: 11 | AR9: 6810 | AT9: =+SUMIF(Montos!$U$2:$U$396864,'$Base'!AR9,Montos!$Y$2:$Y$396864)/1000000 -> 314.166271 | AU9: =+SUMIFS(Montos!$Y$2:$Y$396864,Montos!$U$2:$U$396864,'$Base'!AR9,Montos!$R$2:$R$396864,Visor!$M$8)/1000000 -> 224.247534 | AW9: 8 | AY9: 229.583252 | AZ9: 114.913951 | BB9: ACTIVIDADES INMOBILIARIAS | BC9: Actividades inmobiliarias
C10: Natural | D10: 5 | E10: ANTIOQUIA | F10: 5001 | G10: MEDELLÍN | H10: 5611 | I10: ALOJAMIENTO Y SERVICIOS DE COMIDA | P10: 0 | V10: 0 | W10: 0 | X10: Natural | Y10: 5 | Z10: ANTIOQUIA | AA10: 5001 | AB10: MEDELLÍN | AC10: 5611 | AD10: ALOJAMIENTO Y SERVICIOS DE COMIDA | AE10: 0 | AF10: 0 | AG10: 0 | AH10: 0 | AI10: 0 | AJ10: 0 | AK10: 100000 | AL10: 0 | AM10: 0 | AQ10: 19 | AR10: 4541 | AT10: =+SUMIF(Montos!$U$2:$U$396864,'$Base'!AR10,Montos!$Y$2:$Y$396864)/1000000 -> 1504.559621 | AU10: =+SUMIFS(Montos!$Y$2:$Y$396864,Montos!$U$2:$U$396864,'$Base'!AR10,Montos!$R$2:$R$396864,Visor!$M$8)/1000000 -> 1467.490864 | AW10: 9 | AY10: 229.742231 | AZ10: 122.033032 | BB10: ADMINISTRACIÓN PÚBLICA Y DEFENSA; PLANES DE SEGURIDAD SOCIAL DE AFILIACIÓN OBLIGATORIA | BC10: Admin. pública y defensa; planes seg. social
C11: Natural | D11: 5 | E11: ANTIOQUIA | F11: 5001 | G11: MEDELLÍN | H11: 5611 | I11: ALOJAMIENTO Y SERVICIOS DE COMIDA | P11: 3530000 | V11: 0 | W11: 0 | X11: Natural | Y11: 5 | Z11: ANTIOQUIA | AA11: 5001 | AB11: MEDELLÍN | AC11: 4722 | AD11: COMERCIO AL POR MAYOR Y AL POR MENOR; REPARACIÓN DE VEHÍCULOS AUTOMOTORES Y MOTOCICLETAS | AE11: 0 | AF11: 0 | AG11: 0 | AH11: 0 | AI11: 0 | AJ11: 0 | AK11: 3740000 | AL11: 0 | AM11: 0 | AQ11: 15 | AR11: 4752 | AT11: =+SUMIF(Montos!$U$2:$U$396864,'$Base'!AR11,Montos!$Y$2:$Y$396864)/1000000 -> 848.311407 | AU11: =+SUMIFS(Montos!$Y$2:$Y$396864,Montos!$U$2:$U$396864,'$Base'!AR11,Montos!$R$2:$R$396864,Visor!$M$8)/1000000 -> 766.250707 | AW11: 10 | AY11: 238.442945 | AZ11: 188.733849 | BB11: AGRICULTURA, GANADERÍA, CAZA, SILVICULTURA Y PESCA | BC11: Agricultura, ganadería, caza
C12: Natural | D12: 11 | E12: BOGOTÁ, D.C. | F12: 11001 | G12: BOGOTÁ, D.C. | H12: 4663 | I12: COMERCIO AL POR MAYOR Y AL POR MENOR; REPARACIÓN DE VEHÍCULOS AUTOMOTORES Y MOTOCICLETAS | P12: 3977131 | V12: 0 | W12: 0 | X12: Natural | Y12: 5 | Z12: ANTIOQUIA | AA12: 5001 | AB12: MEDELLÍN | AC12: 3240 | AD12: INDUSTRIAS MANUFACTURERAS | AE12: 0 | AF12: 0 | AG12: 0 | AH12: 0 | AI12: 0 | AJ12: 0 | AK12: 1654262 | AL12: 0 | AM12: 0 | AQ12: 17 | AR12: 7111 | AT12: =+SUMIF(Montos!$U$2:$U$396864,'$Base'!AR12,Montos!$Y$2:$Y$396864)/1000000 -> 984.989652 | AU12: =+SUMIFS(Montos!$Y$2:$Y$396864,Montos!$U$2:$U$396864,'$Base'!AR12,Montos!$R$2:$R$396864,Visor!$M$8)/1000000 -> 886.4987 | AW12: 11 | AY12: 314.166271 | AZ12: 224.247534 | BB12: ALOJAMIENTO Y SERVICIOS DE COMIDA | BC12: Alojamiento y servicios de comida
C13: Natural | D13: 15 | E13: BOYACÁ | F13: 15176 | G13: CHIQUINQUIRÁ | H13: 4752 | I13: COMERCIO AL POR MAYOR Y AL POR MENOR; REPARACIÓN DE VEHÍCULOS AUTOMOTORES Y MOTOCICLETAS | P13: 2858524 | V13: 0 | W13: 0 | X13: Natural | Y13: 5 | Z13: ANTIOQUIA | AA13: 5001 | AB13: MEDELLÍN | AC13: 4771 | AD13: COMERCIO AL POR MAYOR Y AL POR MENOR; REPARACIÓN DE VEHÍCULOS AUTOMOTORES Y MOTOCICLETAS | AE13: 0 | AF13: 0 | AG13: 0 | AH13: 0 | AI13: 0 | AJ13: 0 | AK13: 908524 | AL13: 0 | AM13: 0 | AQ13: 9 | AR13: 2221 | AT13: =+SUMIF(Montos!$U$2:$U$396864,'$Base'!AR13,Montos!$Y$2:$Y$396864)/1000000 -> 229.742231 | AU13: =+SUMIFS(Montos!$Y$2:$Y$396864,Montos!$U$2:$U$396864,'$Base'!AR13,Montos!$R$2:$R$396864,Visor!$M$8)/1000000 -> 122.033032 | AW13: 12 | AY13: 400.54609 | AZ13: 62.186096 | BB13: COMERCIO AL POR MAYOR Y AL POR MENOR; REPARACIÓN DE VEHÍCULOS AUTOMOTORES Y MOTOCICLETAS | BC13: Comercio y reparacion de vehiculos
C14: Natural | D14: 76 | E14: VALLE DEL CAUCA | F14: 76001 | G14: CALI | H14: 4774 | I14: COMERCIO AL POR MAYOR Y AL POR MENOR; REPARACIÓN DE VEHÍCULOS AUTOMOTORES Y MOTOCICLETAS | P14: 454262 | V14: 0 | W14: 0 | X14: Natural | Y14: 5 | Z14: ANTIOQUIA | AA14: 5591 | AB14: PUERTO TRIUNFO | AC14: 4711 | AD14: COMERCIO AL POR MAYOR Y AL POR MENOR; REPARACIÓN DE VEHÍCULOS AUTOMOTORES Y MOTOCICLETAS | AE14: 0 | AF14: 0 | AG14: 0 | AH14: 0 | AI14: 0 | AJ14: 0 | AK14: 0 | AL14: 0 | AM14: 0 | AQ14: 18 | AR14: 8299 | AT14: =+SUMIF(Montos!$U$2:$U$396864,'$Base'!AR14,Montos!$Y$2:$Y$396864)/1000000 -> 1010.92885 | AU14: =+SUMIFS(Montos!$Y$2:$Y$396864,Montos!$U$2:$U$396864,'$Base'!AR14,Montos!$R$2:$R$396864,Visor!$M$8)/1000000 -> 314.626637 | AW14: 13 | AY14: 752.679506 | AZ14: 633.023033 | BB14: CONSTRUCCIÓN | BC14: Construcción
C15: Natural | D15: 76 | E15: VALLE DEL CAUCA | F15: 76001 | G15: CALI | H15: 5511 | I15: ALOJAMIENTO Y SERVICIOS DE COMIDA | P15: 454262 | V15: 0 | W15: 0 | X15: Natural | Y15: 5 | Z15: ANTIOQUIA | AA15: 5001 | AB15: MEDELLÍN | AC15: 121 | AD15: AGRICULTURA, GANADERÍA, CAZA, SILVICULTURA Y PESCA | AE15: 0 | AF15: 0 | AG15: 0 | AH15: 0 | AI15: 0 | AJ15: 0 | AK15: 0 | AL15: 0 | AM15: 0 | AQ15: 7 | AR15: 2511 | AT15: =+SUMIF(Montos!$U$2:$U$396864,'$Base'!AR15,Montos!$Y$2:$Y$396864)/1000000 -> 164.023341 | AU15: =+SUMIFS(Montos!$Y$2:$Y$396864,Montos!$U$2:$U$396864,'$Base'!AR15,Montos!$R$2:$R$396864,Visor!$M$8)/1000000 -> 63.33724 | AW15: 14 | AY15: 769.371581 | AZ15: 640.852339 | BB15: DISTRIBUCIÓN DE AGUA; EVACUACIÓN Y TRATAMIENTO DE AGUAS RESIDUALES, GESTIÓN DE DESECHOS Y ACTIVIDADES DE SANEAMIENTO AMBIENTAL | BC15: Distribución de agua; gestión de desechos
C16: Natural | D16: 41 | E16: HUILA | F16: 41001 | G16: NEIVA | H16: 4729 | I16: COMERCIO AL POR MAYOR Y AL POR MENOR; REPARACIÓN DE VEHÍCULOS AUTOMOTORES Y MOTOCICLETAS | P16: 1550000 | V16: 0 | W16: 0 | X16: Natural | Y16: 5 | Z16: ANTIOQUIA | AA16: 5264 | AB16: ENTRERRIOS | AC16: 121 | AD16: AGRICULTURA, GANADERÍA, CAZA, SILVICULTURA Y PESCA | AE16: 0 | AF16: 0 | AG16: 0 | AH16: 0 | AI16: 0 | AJ16: 0 | AK16: 0 | AL16: 0 | AM16: 0 | AQ16: 10 | AR16: 5630 | AT16: =+SUMIF(Montos!$U$2:$U$396864,'$Base'!AR16,Montos!$Y$2:$Y$396864)/1000000 -> 238.442945 | AU16: =+SUMIFS(Montos!$Y$2:$Y$396864,Montos!$U$2:$U$396864,'$Base'!AR16,Montos!$R$2:$R$396864,Visor!$M$8)/1000000 -> 188.733849 | AW16: 15 | AY16: 848.311407 | AZ16: 766.250707 | BB16: EDUCACIÓN | BC16: Educación
C17: Natural | D17: 52 | E17: NARIÑO | F17: 52356 | G17: IPIALES | H17: 4923 | I17: TRANSPORTE Y ALMACENAMIENTO | P17: 400000 | V17: 0 | W17: 0 | X17: Natural | Y17: 5 | Z17: ANTIOQUIA | AA17: 5264 | AB17: ENTRERRIOS | AC17: 4724 | AD17: COMERCIO AL POR MAYOR Y AL POR MENOR; REPARACIÓN DE VEHÍCULOS AUTOMOTORES Y MOTOCICLETAS | AE17: 0 | AF17: 0 | AG17: 0 | AH17: 0 | AI17: 0 | AJ17: 0 | AK17: 0 | AL17: 0 | AM17: 0 | AQ17: 12 | AR17: 1089 | AT17: =+SUMIF(Montos!$U$2:$U$396864,'$Base'!AR17,Montos!$Y$2:$Y$396864)/1000000 -> 400.54609 | AU17: =+SUMIFS(Montos!$Y$2:$Y$396864,Montos!$U$2:$U$396864,'$Base'!AR17,Montos!$R$2:$R$396864,Visor!$M$8)/1000000 -> 62.186096 | AW17: 16 | AY17: 881.017967 | AZ17: 669.137323 | BB17: EXPLOTACIÓN DE MINAS Y CANTERAS | BC17: Explotación de minas y canteras
C18: Natural | D18: 54 | E18: NORTE DE SANTANDER | F18: 54001 | G18: CÚCUTA | H18: 90 | I18: OTRAS | P18: 2700000 | V18: 0 | W18: 0 | X18: Natural | Y18: 5 | Z18: ANTIOQUIA | AA18: 5264 | AB18: ENTRERRIOS | AC18: 121 | AD18: AGRICULTURA, GANADERÍA, CAZA, SILVICULTURA Y PESCA | AE18: 0 | AF18: 0 | AG18: 0 | AH18: 0 | AI18: 0 | AJ18: 0 | AK18: 0 | AL18: 0 | AM18: 0 | AQ18: 4 | AR18: 7420 | AT18: =+SUMIF(Montos!$U$2:$U$396864,'$Base'!AR18,Montos!$Y$2:$Y$396864)/1000000 -> 21.838524 | AU18: =+SUMIFS(Montos!$Y$2:$Y$396864,Montos!$U$2:$U$396864,'$Base'!AR18,Montos!$R$2:$R$396864,Visor!$M$8)/1000000 -> 21.338524 | AW18: 17 | AY18: 984.989652 | AZ18: 886.4987 | BB18: INDUSTRIAS MANUFACTURERAS | BC18: Industrias manufactureras
C19: Natural | D19: 54 | E19: NORTE DE SANTANDER | F19: 54405 | G19: LOS PATIOS | H19: 4923 | I19: TRANSPORTE Y ALMACENAMIENTO | P19: 317983 | V19: 0 | W19: 0 | X19: Natural | Y19: 5 | Z19: ANTIOQUIA | AA19: 5001 | AB19: MEDELLÍN | AC19: 4711 | AD19: COMERCIO AL POR MAYOR Y AL POR MENOR; REPARACIÓN DE VEHÍCULOS AUTOMOTORES Y MOTOCICLETAS | AE19: 0 | AF19: 0 | AG19: 0 | AH19: 0 | AI19: 0 | AJ19: 0 | AK19: 0 | AL19: 0 | AM19: 0 | AQ19: 13 | AR19: 5612 | AT19: =+SUMIF(Montos!$U$2:$U$396864,'$Base'!AR19,Montos!$Y$2:$Y$396864)/1000000 -> 752.679506 | AU19: =+SUMIFS(Montos!$Y$2:$Y$396864,Montos!$U$2:$U$396864,'$Base'!AR19,Montos!$R$2:$R$396864,Visor!$M$8)/1000000 -> 633.023033 | AW19: 18 | AY19: 1010.92885 | AZ19: 314.626637 | BB19: INFORMACIÓN Y COMUNICACIONES | BC19: Información y comunicaciones
C20: Natural | D20: 76 | E20: VALLE DEL CAUCA | F20: 76400 | G20: LA UNIÓN | H20: 4620 | I20: COMERCIO AL POR MAYOR Y AL POR MENOR; REPARACIÓN DE VEHÍCULOS AUTOMOTORES Y MOTOCICLETAS | P20: 0 | V20: 0 | W20: 0 | X20: Natural | Y20: 5 | Z20: ANTIOQUIA | AA20: 5001 | AB20: MEDELLÍN | AC20: 4520 | AD20: COMERCIO AL POR MAYOR Y AL POR MENOR; REPARACIÓN DE VEHÍCULOS AUTOMOTORES Y MOTOCICLETAS | AE20: 0 | AF20: 0 | AG20: 0 | AH20: 0 | AI20: 0 | AJ20: 0 | AK20: 0 | AL20: 0 | AM20: 0 | AQ20: 3 | AR20: 1610 | AT20: =+SUMIF(Montos!$U$2:$U$396864,'$Base'!AR20,Montos!$Y$2:$Y$396864)/1000000 -> 15.444177 | AU20: =+SUMIFS(Montos!$Y$2:$Y$396864,Montos!$U$2:$U$396864,'$Base'!AR20,Montos!$R$2:$R$396864,Visor!$M$8)/1000000 -> 0 | AW20: 19 | AY20: 1504.559621 | AZ20: 1467.490864 | BB20: OTRAS | BC20: Otras
C21: Natural | D21: 63 | E21: QUINDÍO | F21: 63001 | G21: ARMENIA | H21: 4771 | I21: COMERCIO AL POR MAYOR Y AL POR MENOR; REPARACIÓN DE VEHÍCULOS AUTOMOTORES Y MOTOCICLETAS | P21: 0 | V21: 0 | W21: 0 | X21: Natural | Y21: 5 | Z21: ANTIOQUIA | AA21: 5209 | AB21: CONCORDIA | AC21: 123 | AD21: AGRICULTURA, GANADERÍA, CAZA, SILVICULTURA Y PESCA | AE21: 0 | AF21: 0 | AG21: 0 | AH21: 0 | AI21: 0 | AJ21: 0 | AK21: 0 | AL21: 0 | AM21: 0 | AQ21: 8 | AR21: 4741 | AT21: =+SUMIF(Montos!$U$2:$U$396864,'$Base'!AR21,Montos!$Y$2:$Y$396864)/1000000 -> 229.583252 | AU21: =+SUMIFS(Montos!$Y$2:$Y$396864,Montos!$U$2:$U$396864,'$Base'!AR21,Montos!$R$2:$R$396864,Visor!$M$8)/1000000 -> 114.913951 | AW21: 20 | AY21: 1573.840447 | AZ21: 1401.051861 | BB21: OTRAS ACTIVIDADES DE SERVICIOS | BC21: Otras actividades de servicios
C22: Natural | D22: 52 | E22: NARIÑO | F22: 52001 | G22: PASTO | H22: 5611 | I22: ALOJAMIENTO Y SERVICIOS DE COMIDA | P22: 0 | V22: 0 | W22: 0 | X22: Natural | Y22: 5 | Z22: ANTIOQUIA | AA22: 5697 | AB22: EL SANTUARIO | AC22: 4773 | AD22: COMERCIO AL POR MAYOR Y AL POR MENOR; REPARACIÓN DE VEHÍCULOS AUTOMOTORES Y MOTOCICLETAS | AE22: 0 | AF22: 0 | AG22: 0 | AH22: 0 | AI22: 0 | AJ22: 0 | AK22: 454262 | AL22: 0 | AM22: 0 | AQ22: 16 | AR22: 1081 | AT22: =+SUMIF(Montos!$U$2:$U$396864,'$Base'!AR22,Montos!$Y$2:$Y$396864)/1000000 -> 881.017967 | AU22: =+SUMIFS(Montos!$Y$2:$Y$396864,Montos!$U$2:$U$396864,'$Base'!AR22,Montos!$R$2:$R$396864,Visor!$M$8)/1000000 -> 669.137323 | AW22: 21 | AY22: 3101.423128 | AZ22: 2686.433182 | BB22: SUMINISTRO DE ELECTRICIDAD, GAS, VAPOR Y AIRE ACONDICIONADO | BC22: Suministro de electricidad, gas y vapor
C23: Natural | D23: 76 | E23: VALLE DEL CAUCA | F23: 76828 | G23: TRUJILLO | H23: 4752 | I23: COMERCIO AL POR MAYOR Y AL POR MENOR; REPARACIÓN DE VEHÍCULOS AUTOMOTORES Y MOTOCICLETAS | P23: 3631080 | V23: 0 | W23: 0 | X23: Natural | Y23: 5 | Z23: ANTIOQUIA | AA23: 5001 | AB23: MEDELLÍN | AC23: 141 | AD23: AGRICULTURA, GANADERÍA, CAZA, SILVICULTURA Y PESCA | AE23: 0 | AF23: 0 | AG23: 0 | AH23: 0 | AI23: 0 | AJ23: 0 | AK23: 0 | AL23: 0 | AM23: 0 | AQ23: 22 | AR23: 1410 | AT23: =+SUMIF(Montos!$U$2:$U$396864,'$Base'!AR23,Montos!$Y$2:$Y$396864)/1000000 -> 7315.328191 | AU23: =+SUMIFS(Montos!$Y$2:$Y$396864,Montos!$U$2:$U$396864,'$Base'!AR23,Montos!$R$2:$R$396864,Visor!$M$8)/1000000 -> 3914.58904 | AW23: 22 | AY23: 7315.328191 | AZ23: =+IFERROR(VLOOKUP(AW23,$AQ$2:$AU$23,5,0),"") -> 3914.58904 | BB23: TRANSPORTE Y ALMACENAMIENTO | BC23: Transporte y almacenamiento
C24: Natural | D24: 76 | E24: VALLE DEL CAUCA | F24: 76001 | G24: CALI | H24: 121 | I24: AGRICULTURA, GANADERÍA, CAZA, SILVICULTURA Y PESCA | P24: 0 | V24: 0 | W24: 0 | X24: Natural | Y24: 5 | Z24: ANTIOQUIA | AA24: 5001 | AB24: MEDELLÍN | AC24: 6810 | AD24: ACTIVIDADES INMOBILIARIAS | AE24: 0 | AF24: 0 | AG24: 0 | AH24: 0 | AI24: 0 | AJ24: 0 | AK24: 90852 | AL24: 0 | AM24: 0 | AR24: 6495
C25: Natural | D25: 5 | E25: ANTIOQUIA | F25: 5615 | G25: RIONEGRO | H25: 2012 | I25: INDUSTRIAS MANUFACTURERAS | P25: 0 | V25: 0 | W25: 0 | X25: Natural | Y25: 5 | Z25: ANTIOQUIA | AA25: 5266 | AB25: ENVIGADO | AC25: 4541 | AD25: COMERCIO AL POR MAYOR Y AL POR MENOR; REPARACIÓN DE VEHÍCULOS AUTOMOTORES Y MOTOCICLETAS | AE25: 0 | AF25: 0 | AG25: 0 | AH25: 0 | AI25: 0 | AJ25: 0 | AK25: 227131 | AL25: 0 | AM25: 0 | AR25: 4620
C26: Natural | D26: 11 | E26: BOGOTÁ, D.C. | F26: 11001 | G26: BOGOTÁ, D.C. | H26: 1313 | I26: INDUSTRIAS MANUFACTURERAS | P26: 726818 | V26: 0 | W26: 0 | X26: Natural | Y26: 5 | Z26: ANTIOQUIA | AA26: 5001 | AB26: MEDELLÍN | AC26: 4390 | AD26: CONSTRUCCIÓN | AE26: 0 | AF26: 0 | AG26: 0 | AH26: 0 | AI26: 0 | AJ26: 0 | AK26: 0 | AL26: 0 | AM26: 0 | AR26: 3110
C27: Natural | D27: 25 | E27: CUNDINAMARCA | F27: 25214 | G27: COTA | H27: 8530 | I27: EDUCACIÓN | P27: 0 | V27: 0 | W27: 0 | X27: Natural | Y27: 5 | Z27: ANTIOQUIA | AA27: 5001 | AB27: MEDELLÍN | AC27: 4719 | AD27: COMERCIO AL POR MAYOR Y AL POR MENOR; REPARACIÓN DE VEHÍCULOS AUTOMOTORES Y MOTOCICLETAS | AE27: 0 | AF27: 0 | AG27: 0 | AH27: 0 | AI27: 0 | AJ27: 0 | AK27: 0 | AL27: 0 | AM27: 0 | AR27: 4530
C28: Natural | D28: 25 | E28: CUNDINAMARCA | F28: 25386 | G28: LA MESA | H28: 4721 | I28: COMERCIO AL POR MAYOR Y AL POR MENOR; REPARACIÓN DE VEHÍCULOS AUTOMOTORES Y MOTOCICLETAS | P28: 0 | V28: 0 | W28: 0 | X28: Natural | Y28: 5 | Z28: ANTIOQUIA | AA28: 5001 | AB28: MEDELLÍN | AC28: 1410 | AD28: INDUSTRIAS MANUFACTURERAS | AE28: 0 | AF28: 0 | AG28: 0 | AH28: 0 | AI28: 0 | AJ28: 0 | AK28: 0 | AL28: 0 | AM28: 0 | AR28: 4711
C29: Natural | D29: 50 | E29: META | F29: 50001 | G29: VILLAVICENCIO | H29: 4530 | I29: COMERCIO AL POR MAYOR Y AL POR MENOR; REPARACIÓN DE VEHÍCULOS AUTOMOTORES Y MOTOCICLETAS | P29: 0 | V29: 0 | W29: 0 | X29: Natural | Y29: 5 | Z29: ANTIOQUIA | AA29: 5088 | AB29: BELLO | AC29: 4752 | AD29: COMERCIO AL POR MAYOR Y AL POR MENOR; REPARACIÓN DE VEHÍCULOS AUTOMOTORES Y MOTOCICLETAS | AE29: 0 | AF29: 0 | AG29: 0 | AH29: 0 | AI29: 0 | AJ29: 0 | AK29: 750000 | AL29: 0 | AM29: 0 | AR29: 1084
C30: Natural | D30: 11 | E30: BOGOTÁ, D.C. | F30: 11001 | G30: BOGOTÁ, D.C. | H30: 4754 | I30: COMERCIO AL POR MAYOR Y AL POR MENOR; REPARACIÓN DE VEHÍCULOS AUTOMOTORES Y MOTOCICLETAS | P30: 1000000 | V30: 0 | W30: 0 | X30: Natural | Y30: 5 | Z30: ANTIOQUIA | AA30: 5631 | AB30: SABANETA | AC30: 4771 | AD30: COMERCIO AL POR MAYOR Y AL POR MENOR; REPARACIÓN DE VEHÍCULOS AUTOMOTORES Y MOTOCICLETAS | AE30: 0 | AF30: 0 | AG30: 0 | AH30: 0 | AI30: 0 | AJ30: 0 | AK30: 3448524 | AL30: 0 | AM30: 0 | AR30: 4723
C31: Natural | D31: 11 | E31: BOGOTÁ, D.C. | F31: 11001 | G31: BOGOTÁ, D.C. | H31: 8512 | I31: EDUCACIÓN | P31: 750000 | V31: 0 | W31: 0 | X31: Natural | Y31: 5 | Z31: ANTIOQUIA | AA31: 5266 | AB31: ENVIGADO | AC31: 7111 | AD31: ACTIVIDADES PROFESIONALES, CIENTÍFICAS Y TÉCNICAS | AE31: 0 | AF31: 0 | AG31: 0 | AH31: 0 | AI31: 0 | AJ31: 0 | AK31: 2776195 | AL31: 0 | AM31: 0 | AR31: 4761
C32: Natural | D32: 25 | E32: CUNDINAMARCA | F32: 25181 | G32: CHOACHÍ | H32: 145 | I32: AGRICULTURA, GANADERÍA, CAZA, SILVICULTURA Y PESCA | P32: 1048000 | V32: 0 | W32: 0 | X32: Natural | Y32: 5 | Z32: ANTIOQUIA | AA32: 5318 | AB32: GUARNE | AC32: 2221 | AD32: INDUSTRIAS MANUFACTURERAS | AE32: 0 | AF32: 0 | AG32: 0 | AH32: 0 | AI32: 0 | AJ32: 0 | AK32: 1650000 | AL32: 0 | AM32: 0 | AR32: 6920
C33: Natural | D33: 25 | E33: CUNDINAMARCA | F33: 25181 | G33: CHOACHÍ | H33: 4663 | I33: COMERCIO AL POR MAYOR Y AL POR MENOR; REPARACIÓN DE VEHÍCULOS AUTOMOTORES Y MOTOCICLETAS | P33: 181704 | V33: 0 | W33: 0 | X33: Natural | Y33: 5 | Z33: ANTIOQUIA | AA33: 5001 | AB33: MEDELLÍN | AC33: 8299 | AD33: ACTIVIDADES DE SERVICIOS ADMINISTRATIVOS Y DE APOYO | AE33: 0 | AF33: 0 | AG33: 0 | AH33: 0 | AI33: 0 | AJ33: 0 | AK33: 8858000 | AL33: 0 | AM33: 0 | AR33: 4645
C34: Natural | D34: 11 | E34: BOGOTÁ, D.C. | F34: 11001 | G34: BOGOTÁ, D.C. | H34: 4520 | I34: COMERCIO AL POR MAYOR Y AL POR MENOR; REPARACIÓN DE VEHÍCULOS AUTOMOTORES Y MOTOCICLETAS | P34: 0 | V34: 0 | W34: 0 | X34: Natural | Y34: 5 | Z34: ANTIOQUIA | AA34: 5001 | AB34: MEDELLÍN | AC34: 2511 | AD34: INDUSTRIAS MANUFACTURERAS | AE34: 0 | AF34: 0 | AG34: 0 | AH34: 0 | AI34: 0 | AJ34: 0 | AK34: 1227131 | AL34: 0 | AM34: 0 | AR34: 4632
C35: Natural | D35: 25 | E35: CUNDINAMARCA | F35: 25279 | G35: FOMEQUE | H35: 145 | I35: AGRICULTURA, GANADERÍA, CAZA, SILVICULTURA Y PESCA | P35: 250000 | V35: 0 | W35: 0 | X35: Natural | Y35: 5 | Z35: ANTIOQUIA | AA35: 5360 | AB35: ITAGUI | AC35: 4759 | AD35: COMERCIO AL POR MAYOR Y AL POR MENOR; REPARACIÓN DE VEHÍCULOS AUTOMOTORES Y MOTOCICLETAS | AE35: 0 | AF35: 0 | AG35: 0 | AH35: 0 | AI35: 0 | AJ35: 0 | AK35: 0 | AL35: 0 | AM35: 0 | AR35: 4520
C36: Natural | D36: 25 | E36: CUNDINAMARCA | F36: 25214 | G36: COTA | H36: 4290 | I36: CONSTRUCCIÓN | P36: 90852 | V36: 0 | W36: 0 | X36: Natural | Y36: 5 | Z36: ANTIOQUIA | AA36: 5615 | AB36: RIONEGRO | AC36: 6920 | AD36: ACTIVIDADES PROFESIONALES, CIENTÍFICAS Y TÉCNICAS | AE36: 0 | AF36: 0 | AG36: 0 | AH36: 0 | AI36: 0 | AJ36: 0 | AK36: 0 | AL36: 0 | AM36: 0 | AR36: 7990
C37: Natural | D37: 25 | E37: CUNDINAMARCA | F37: 25758 | G37: SOPÓ | H37: 141 | I37: AGRICULTURA, GANADERÍA, CAZA, SILVICULTURA Y PESCA | P37: 2046000 | V37: 0 | W37: 0 | X37: Natural | Y37: 5 | Z37: ANTIOQUIA | AA37: 5631 | AB37: SABANETA | AC37: 5630 | AD37: ALOJAMIENTO Y SERVICIOS DE COMIDA | AE37: 0 | AF37: 0 | AG37: 0 | AH37: 0 | AI37: 0 | AJ37: 0 | AK37: 3613096 | AL37: 0 | AM37: 0 | AR37: 4390
C38: Natural | D38: 25 | E38: CUNDINAMARCA | F38: 25297 | G38: GACHETÁ | H38: 4663 | I38: COMERCIO AL POR MAYOR Y AL POR MENOR; REPARACIÓN DE VEHÍCULOS AUTOMOTORES Y MOTOCICLETAS | P38: 750000 | V38: 0 | W38: 0 | X38: Natural | Y38: 5 | Z38: ANTIOQUIA | AA38: 5001 | AB38: MEDELLÍN | AC38: 1089 | AD38: INDUSTRIAS MANUFACTURERAS | AE38: 0 | AF38: 0 | AG38: 0 | AH38: 0 | AI38: 0 | AJ38: 0 | AK38: 800000 | AL38: 0 | AM38: 0 | AR38: 4631
C39: Natural | D39: 11 | E39: BOGOTÁ, D.C. | F39: 11001 | G39: BOGOTÁ, D.C. | H39: 2711 | I39: INDUSTRIAS MANUFACTURERAS | P39: 0 | V39: 0 | W39: 0 | X39: Natural | Y39: 5 | Z39: ANTIOQUIA | AA39: 5001 | AB39: MEDELLÍN | AC39: 7420 | AD39: ACTIVIDADES PROFESIONALES, CIENTÍFICAS Y TÉCNICAS | AE39: 0 | AF39: 0 | AG39: 0 | AH39: 0 | AI39: 0 | AJ39: 0 | AK39: 750000 | AL39: 0 | AM39: 0 | AR39: 4210
C40: Natural | D40: 11 | E40: BOGOTÁ, D.C. | F40: 11001 | G40: BOGOTÁ, D.C. | H40: 8521 | I40: EDUCACIÓN | P40: 0 | V40: 0 | W40: 0 | X40: Natural | Y40: 5 | Z40: ANTIOQUIA | AA40: 5129 | AB40: CALDAS | AC40: 8622 | AD40: ACTIVIDADES DE ATENCIÓN DE LA SALUD HUMANA Y DE ASISTENCIA SOCIAL | AE40: 0 | AF40: 0 | AG40: 0 | AH40: 0 | AI40: 0 | AJ40: 0 | AK40: 0 | AL40: 0 | AM40: 0 | AR40: 1011
C41: Natural | D41: 11 | E41: BOGOTÁ, D.C. | F41: 11001 | G41: BOGOTÁ, D.C. | H41: 1513 | I41: INDUSTRIAS MANUFACTURERAS | P41: 0 | V41: 0 | W41: 0 | X41: Natural | Y41: 5 | Z41: ANTIOQUIA | AA41: 5001 | AB41: MEDELLÍN | AC41: 5612 | AD41: ALOJAMIENTO Y SERVICIOS DE COMIDA | AE41: 0 | AF41: 0 | AG41: 0 | AH41: 0 | AI41: 0 | AJ41: 0 | AK41: 5948000 | AL41: 0 | AM41: 0 | AR41: 4690
C42: Natural | D42: 11 | E42: BOGOTÁ, D.C. | F42: 11001 | G42: BOGOTÁ, D.C. | H42: 7310 | I42: ACTIVIDADES PROFESIONALES, CIENTÍFICAS Y TÉCNICAS | P42: 227131 | V42: 0 | W42: 0 | X42: Natural | Y42: 5 | Z42: ANTIOQUIA | AA42: 5001 | AB42: MEDELLÍN | AC42: 4711 | AD42: COMERCIO AL POR MAYOR Y AL POR MENOR; REPARACIÓN DE VEHÍCULOS AUTOMOTORES Y MOTOCICLETAS | AE42: 0 | AF42: 0 | AG42: 0 | AH42: 0 | AI42: 0 | AJ42: 0 | AK42: 0 | AL42: 0 | AM42: 0 | AR42: 4663
C43: Natural | D43: 15 | E43: BOYACÁ | F43: 15407 | G43: VILLA DE LEYVA | H43: 5511 | I43: ALOJAMIENTO Y SERVICIOS DE COMIDA | P43: 0 | V43: 0 | W43: 0 | X43: Natural | Y43: 5 | Z43: ANTIOQUIA | AA43: 5686 | AB43: SANTA ROSA DE OSOS | AC43: 141 | AD43: AGRICULTURA, GANADERÍA, CAZA, SILVICULTURA Y PESCA | AE43: 0 | AF43: 0 | AG43: 0 | AH43: 0 | AI43: 0 | AJ43: 0 | AK43: 100000 | AL43: 0 | AM43: 0 | AR43: 4751
C44: Natural | D44: 25 | E44: CUNDINAMARCA | F44: 25430 | G44: MADRID | H44: 145 | I44: AGRICULTURA, GANADERÍA, CAZA, SILVICULTURA Y PESCA | P44: 250000 | V44: 0 | W44: 0 | X44: Natural | Y44: 5 | Z44: ANTIOQUIA | AA44: 5686 | AB44: SANTA ROSA DE OSOS | AC44: 1610 | AD44: INDUSTRIAS MANUFACTURERAS | AE44: 0 | AF44: 0 | AG44: 0 | AH44: 0 | AI44: 0 | AJ44: 0 | AK44: 2250000 | AL44: 0 | AM44: 0 | AR44: 5511
C45: Natural | D45: 25 | E45: CUNDINAMARCA | F45: 25599 | G45: APULO | H45: 4322 | I45: CONSTRUCCIÓN | P45: 0 | V45: 0 | W45: 0 | X45: Natural | Y45: 5 | Z45: ANTIOQUIA | AA45: 5001 | AB45: MEDELLÍN | AC45: 4741 | AD45: COMERCIO AL POR MAYOR Y AL POR MENOR; REPARACIÓN DE VEHÍCULOS AUTOMOTORES Y MOTOCICLETAS | AE45: 0 | AF45: 0 | AG45: 0 | AH45: 0 | AI45: 0 | AJ45: 0 | AK45: 1907900 | AL45: 0 | AM45: 0 | AR45: 9522
C46: Natural | D46: 25 | E46: CUNDINAMARCA | F46: 25754 | G46: SOACHA | H46: 8219 | I46: ACTIVIDADES DE SERVICIOS ADMINISTRATIVOS Y DE APOYO | P46: 3160000 | V46: 0 | W46: 0 | X46: Natural | Y46: 5 | Z46: ANTIOQUIA | AA46: 5001 | AB46: MEDELLÍN | AC46: 9609 | AD46: OTRAS ACTIVIDADES DE SERVICIOS | AE46: 0 | AF46: 0 | AG46: 0 | AH46: 0 | AI46: 0 | AJ46: 0 | AK46: 0 | AL46: 0 | AM46: 0 | AR46: 8130
C47: Natural | D47: 11 | E47: BOGOTÁ, D.C. | F47: 11001 | G47: BOGOTÁ, D.C. | H47: 6910 | I47: ACTIVIDADES PROFESIONALES, CIENTÍFICAS Y TÉCNICAS | P47: 8630978 | V47: 0 | W47: 0 | X47: Natural | Y47: 5 | Z47: ANTIOQUIA | AA47: 5001 | AB47: MEDELLÍN | AC47: 1081 | AD47: INDUSTRIAS MANUFACTURERAS | AE47: 0 | AF47: 0 | AG47: 0 | AH47: 0 | AI47: 0 | AJ47: 0 | AK47: 227131 | AL47: 0 | AM47: 0 | AR47: 4732
C48: Natural | D48: 11 | E48: BOGOTÁ, D.C. | F48: 11001 | G48: BOGOTÁ, D.C. | H48: 4751 | I48: COMERCIO AL POR MAYOR Y AL POR MENOR; REPARACIÓN DE VEHÍCULOS AUTOMOTORES Y MOTOCICLETAS | P48: 681393 | V48: 0 | W48: 0 | X48: Natural | Y48: 5 | Z48: ANTIOQUIA | AA48: 5001 | AB48: MEDELLÍN | AC48: 5611 | AD48: ALOJAMIENTO Y SERVICIOS DE COMIDA | AE48: 0 | AF48: 0 | AG48: 0 | AH48: 0 | AI48: 0 | AJ48: 0 | AK48: 0 | AL48: 0 | AM48: 0 | AR48: 9700
C49: Natural | D49: 25 | E49: CUNDINAMARCA | F49: 25785 | G49: TABIO | H49: 9004 | I49: ACTIVIDADES ARTÍSTICAS, DE ENTRETENIMIENTO Y RECREACIÓN | P49: 250000 | V49: 0 | W49: 0 | X49: Natural | Y49: 5 | Z49: ANTIOQUIA | AA49: 5001 | AB49: MEDELLÍN | AC49: 1410 | AD49: INDUSTRIAS MANUFACTURERAS | AE49: 0 | AF49: 0 | AG49: 0 | AH49: 0 | AI49: 0 | AJ49: 0 | AK49: 250000 | AL49: 0 | AM49: 0 | AR49: 4111
C50: Natural | D50: 25 | E50: CUNDINAMARCA | F50: 25799 | G50: TENJO | H50: 4711 | I50: COMERCIO AL POR MAYOR Y AL POR MENOR; REPARACIÓN DE VEHÍCULOS AUTOMOTORES Y MOTOCICLETAS | P50: 0 | V50: 0 | W50: 0 | X50: Natural | Y50: 5 | Z50: ANTIOQUIA | AA50: 5001 | AB50: MEDELLÍN | AC50: 6495 | AD50: ACTIVIDADES FINANCIERAS Y DE SEGUROS | AE50: 0 | AF50: 0 | AG50: 0 | AH50: 0 | AI50: 0 | AJ50: 0 | AK50: 250000 | AL50: 0 | AM50: 0 | AR50: 4762
C51: Natural | D51: 50 | E51: META | F51: 50001 | G51: VILLAVICENCIO | H51: 4729 | I51: COMERCIO AL POR MAYOR Y AL POR MENOR; REPARACIÓN DE VEHÍCULOS AUTOMOTORES Y MOTOCICLETAS | P51: 5797131 | V51: 0 | W51: 0 | X51: Natural | Y51: 5 | Z51: ANTIOQUIA | AA51: 5266 | AB51: ENVIGADO | AC51: 4620 | AD51: COMERCIO AL POR MAYOR Y AL POR MENOR; REPARACIÓN DE VEHÍCULOS AUTOMOTORES Y MOTOCICLETAS | AE51: 0 | AF51: 0 | AG51: 0 | AH51: 0 | AI51: 0 | AJ51: 0 | AK51: 350000 | AL51: 0 | AM51: 0 | AR51: 6201
C52: Natural | D52: 11 | E52: BOGOTÁ, D.C. | F52: 11001 | G52: BOGOTÁ, D.C. | H52: 6810 | I52: ACTIVIDADES INMOBILIARIAS | P52: 0 | V52: 0 | W52: 0 | X52: Natural | Y52: 5 | Z52: ANTIOQUIA | AA52: 5001 | AB52: MEDELLÍN | AC52: 5611 | AD52: ALOJAMIENTO Y SERVICIOS DE COMIDA | AE52: 0 | AF52: 0 | AG52: 0 | AH52: 0 | AI52: 0 | AJ52: 0 | AK52: 250000 | AL52: 0 | AM52: 0 | AR52: 4923
C53: Natural | D53: 25 | E53: CUNDINAMARCA | F53: 25875 | G53: VILLETA | H53: 1081 | I53: INDUSTRIAS MANUFACTURERAS | P53: 454262 | V53: 0 | W53: 0 | X53: Natural | Y53: 5 | Z53: ANTIOQUIA | AA53: 5631 | AB53: SABANETA | AC53: 3110 | AD53: INDUSTRIAS MANUFACTURERAS | AE53: 0 | AF53: 0 | AG53: 0 | AH53: 0 | AI53: 0 | AJ53: 0 | AK53: 1200000 | AL53: 0 | AM53: 0 | AR53: 5613
C54: Natural | D54: 25 | E54: CUNDINAMARCA | F54: 25269 | G54: FACATATIVÁ | H54: 8560 | I54: EDUCACIÓN | P54: 2100000 | V54: 0 | W54: 0 | X54: Natural | Y54: 5 | Z54: ANTIOQUIA | AA54: 5001 | AB54: MEDELLÍN | AC54: 4530 | AD54: COMERCIO AL POR MAYOR Y AL POR MENOR; REPARACIÓN DE VEHÍCULOS AUTOMOTORES Y MOTOCICLETAS | AE54: 0 | AF54: 0 | AG54: 0 | AH54: 0 | AI54: 0 | AJ54: 0 | AK54: 227131 | AL54: 0 | AM54: 0 | AR54: 4769
C55: Natural | D55: 85 | E55: CASANARE | F55: 85001 | G55: YOPAL | H55: 4769 | I55: COMERCIO AL POR MAYOR Y AL POR MENOR; REPARACIÓN DE VEHÍCULOS AUTOMOTORES Y MOTOCICLETAS | P55: 2450000 | V55: 0 | W55: 0 | X55: Natural | Y55: 5 | Z55: ANTIOQUIA | AA55: 5001 | AB55: MEDELLÍN | AC55: 4711 | AD55: COMERCIO AL POR MAYOR Y AL POR MENOR; REPARACIÓN DE VEHÍCULOS AUTOMOTORES Y MOTOCICLETAS | AE55: 0 | AF55: 0 | AG55: 0 | AH55: 0 | AI55: 0 | AJ55: 0 | AK55: 750000 | AL55: 0 | AM55: 0 | AR55: 8110
C56: Natural | D56: 50 | E56: META | F56: 50001 | G56: VILLAVICENCIO | H56: 6810 | I56: ACTIVIDADES INMOBILIARIAS | P56: 0 | V56: 0 | W56: 0 | X56: Natural | Y56: 5 | Z56: ANTIOQUIA | AA56: 5368 | AB56: JERICÓ | AC56: 1084 | AD56: INDUSTRIAS MANUFACTURERAS | AE56: 0 | AF56: 0 | AG56: 0 | AH56: 0 | AI56: 0 | AJ56: 0 | AK56: 20148126 | AL56: 0 | AM56: 0 | AR56: 4774
C57: Natural | D57: 5 | E57: ANTIOQUIA | F57: 5360 | G57: ITAGUI | H57: 1921 | I57: INDUSTRIAS MANUFACTURERAS | P57: 0 | V57: 0 | W57: 0 | X57: Natural | Y57: 5 | Z57: ANTIOQUIA | AA57: 5631 | AB57: SABANETA | AC57: 4541 | AD57: COMERCIO AL POR MAYOR Y AL POR MENOR; REPARACIÓN DE VEHÍCULOS AUTOMOTORES Y MOTOCICLETAS | AE57: 0 | AF57: 0 | AG57: 0 | AH57: 0 | AI57: 0 | AJ57: 0 | AK57: 3808211 | AL57: 0 | AM57: 0 | AR57: 8121
C58: Natural | D58: 5 | E58: ANTIOQUIA | F58: 5001 | G58: MEDELLÍN | H58: 90 | I58: OTRAS | P58: 400000 | V58: 0 | W58: 0 | X58: Natural | Y58: 5 | Z58: ANTIOQUIA | AA58: 5001 | AB58: MEDELLÍN | AC58: 4723 | AD58: COMERCIO AL POR MAYOR Y AL POR MENOR; REPARACIÓN DE VEHÍCULOS AUTOMOTORES Y MOTOCICLETAS | AE58: 0 | AF58: 0 | AG58: 0 | AH58: 0 | AI58: 0 | AJ58: 0 | AK58: 200000 | AL58: 0 | AM58: 0 | AR58: 4759
C59: Natural | D59: 15 | E59: BOYACÁ | F59: 15759 | G59: SOGAMOSO | H59: 4799 | I59: COMERCIO AL POR MAYOR Y AL POR MENOR; REPARACIÓN DE VEHÍCULOS AUTOMOTORES Y MOTOCICLETAS | P59: 600000 | V59: 0 | W59: 0 | X59: Natural | Y59: 5 | Z59: ANTIOQUIA | AA59: 5604 | AB59: REMEDIOS | AC59: 4711 | AD59: COMERCIO AL POR MAYOR Y AL POR MENOR; REPARACIÓN DE VEHÍCULOS AUTOMOTORES Y MOTOCICLETAS | AE59: 0 | AF59: 0 | AG59: 0 | AH59: 0 | AI59: 0 | AJ59: 0 | AK59: 0 | AL59: 0 | AM59: 0 | AR59: 4719
C60: Natural | D60: 5 | E60: ANTIOQUIA | F60: 5001 | G60: MEDELLÍN | H60: 141 | I60: AGRICULTURA, GANADERÍA, CAZA, SILVICULTURA Y PESCA | P60: 0 | V60: 0 | W60: 0 | X60: Natural | Y60: 5 | Z60: ANTIOQUIA | AA60: 5736 | AB60: SEGOVIA | AC60: 4723 | AD60: COMERCIO AL POR MAYOR Y AL POR MENOR; REPARACIÓN DE VEHÍCULOS AUTOMOTORES Y MOTOCICLETAS | AE60: 0 | AF60: 0 | AG60: 0 | AH60: 0 | AI60: 0 | AJ60: 0 | AK60: 6275572 | AL60: 0 | AM60: 0 | AR60: 8622
C61: Natural | D61: 5 | E61: ANTIOQUIA | F61: 5001 | G61: MEDELLÍN | H61: 5611 | I61: ALOJAMIENTO Y SERVICIOS DE COMIDA | P61: 100000 | V61: 0 | W61: 0 | X61: Natural | Y61: 5 | Z61: ANTIOQUIA | AA61: 5837 | AB61: TURBO | AC61: 4761 | AD61: COMERCIO AL POR MAYOR Y AL POR MENOR; REPARACIÓN DE VEHÍCULOS AUTOMOTORES Y MOTOCICLETAS | AE61: 0 | AF61: 0 | AG61: 0 | AH61: 0 | AI61: 0 | AJ61: 0 | AK61: 8561847 | AL61: 0 | AM61: 0 | AR61: 4724
C62: Natural | D62: 5 | E62: ANTIOQUIA | F62: 5001 | G62: MEDELLÍN | H62: 4722 | I62: COMERCIO AL POR MAYOR Y AL POR MENOR; REPARACIÓN DE VEHÍCULOS AUTOMOTORES Y MOTOCICLETAS | P62: 3740000 | V62: 0 | W62: 0 | X62: Natural | Y62: 5 | Z62: ANTIOQUIA | AA62: 5376 | AB62: LA CEJA | AC62: 125 | AD62: AGRICULTURA, GANADERÍA, CAZA, SILVICULTURA Y PESCA | AE62: 0 | AF62: 0 | AG62: 0 | AH62: 0 | AI62: 0 | AJ62: 0 | AK62: 0 | AL62: 0 | AM62: 0 | AR62: 1051
C63: Natural | D63: 5 | E63: ANTIOQUIA | F63: 5001 | G63: MEDELLÍN | H63: 3240 | I63: INDUSTRIAS MANUFACTURERAS | P63: 1654262 | V63: 0 | W63: 0 | X63: Natural | Y63: 5 | Z63: ANTIOQUIA | AA63: 5001 | AB63: MEDELLÍN | AC63: 6920 | AD63: ACTIVIDADES PROFESIONALES, CIENTÍFICAS Y TÉCNICAS | AE63: 0 | AF63: 0 | AG63: 0 | AH63: 0 | AI63: 0 | AJ63: 0 | AK63: 1226818 | AL63: 0 | AM63: 0 | AR63: 6820
C64: Natural | D64: 5 | E64: ANTIOQUIA | F64: 5001 | G64: MEDELLÍN | H64: 4771 | I64: COMERCIO AL POR MAYOR Y AL POR MENOR; REPARACIÓN DE VEHÍCULOS AUTOMOTORES Y MOTOCICLETAS | P64: 908524 | V64: 0 | W64: 0 | X64: Natural | Y64: 5 | Z64: ANTIOQUIA | AA64: 5001 | AB64: MEDELLÍN | AC64: 6920 | AD64: ACTIVIDADES PROFESIONALES, CIENTÍFICAS Y TÉCNICAS | AE64: 0 | AF64: 0 | AG64: 0 | AH64: 0 | AI64: 0 | AJ64: 0 | AK64: 0 | AL64: 0 | AM64: 0 | AR64: 7490
C65: Natural | D65: 41 | E65: HUILA | F65: 41001 | G65: NEIVA | H65: 4755 | I65: COMERCIO AL POR MAYOR Y AL POR MENOR; REPARACIÓN DE VEHÍCULOS AUTOMOTORES Y MOTOCICLETAS | P65: 0 | V65: 0 | W65: 0 | X65: Natural | Y65: 5 | Z65: ANTIOQUIA | AA65: 5001 | AB65: MEDELLÍN | AC65: 4645 | AD65: COMERCIO AL POR MAYOR Y AL POR MENOR; REPARACIÓN DE VEHÍCULOS AUTOMOTORES Y MOTOCICLETAS | AE65: 0 | AF65: 0 | AG65: 0 | AH65: 0 | AI65: 0 | AJ65: 0 | AK65: 1422000 | AL65: 0 | AM65: 0 | AR65: 8129
C66: Natural | D66: 5 | E66: ANTIOQUIA | F66: 5591 | G66: PUERTO TRIUNFO | H66: 4711 | I66: COMERCIO AL POR MAYOR Y AL POR MENOR; REPARACIÓN DE VEHÍCULOS AUTOMOTORES Y MOTOCICLETAS | P66: 0 | V66: 0 | W66: 0 | X66: Natural | Y66: 5 | Z66: ANTIOQUIA | AA66: 5034 | AB66: ANDES | AC66: 4632 | AD66: COMERCIO AL POR MAYOR Y AL POR MENOR; REPARACIÓN DE VEHÍCULOS AUTOMOTORES Y MOTOCICLETAS | AE66: 0 | AF66: 0 | AG66: 0 | AH66: 0 | AI66: 0 | AJ66: 0 | AK66: 6821617 | AL66: 0 | AM66: 0 | AR66: 8530
C67: Natural | D67: 5 | E67: ANTIOQUIA | F67: 5001 | G67: MEDELLÍN | H67: 121 | I67: AGRICULTURA, GANADERÍA, CAZA, SILVICULTURA Y PESCA | P67: 0 | V67: 0 | W67: 0 | X67: Natural | Y67: 5 | Z67: ANTIOQUIA | AA67: 5088 | AB67: BELLO | AC67: 1081 | AD67: INDUSTRIAS MANUFACTURERAS | AE67: 0 | AF67: 0 | AG67: 0 | AH67: 0 | AI67: 0 | AJ67: 0 | AK67: 0 | AL67: 0 | AM67: 0 | AR67: 8899
C68: Natural | D68: 5 | E68: ANTIOQUIA | F68: 5264 | G68: ENTRERRIOS | H68: 121 | I68: AGRICULTURA, GANADERÍA, CAZA, SILVICULTURA Y PESCA | P68: 0 | V68: 0 | W68: 0 | X68: Natural | Y68: 5 | Z68: ANTIOQUIA | AA68: 5045 | AB68: APARTADÓ | AC68: 4530 | AD68: COMERCIO AL POR MAYOR Y AL POR MENOR; REPARACIÓN DE VEHÍCULOS AUTOMOTORES Y MOTOCICLETAS | AE68: 0 | AF68: 0 | AG68: 0 | AH68: 0 | AI68: 0 | AJ68: 0 | AK68: 0 | AL68: 0 | AM68: 0 | AR68: 4721
C69: Natural | D69: 5 | E69: ANTIOQUIA | F69: 5264 | G69: ENTRERRIOS | H69: 4724 | I69: COMERCIO AL POR MAYOR Y AL POR MENOR; REPARACIÓN DE VEHÍCULOS AUTOMOTORES Y MOTOCICLETAS | P69: 0 | V69: 0 | W69: 0 | X69: Natural | Y69: 5 | Z69: ANTIOQUIA | AA69: 5001 | AB69: MEDELLÍN | AC69: 6920 | AD69: ACTIVIDADES PROFESIONALES, CIENTÍFICAS Y TÉCNICAS | AE69: 0 | AF69: 0 | AG69: 0 | AH69: 0 | AI69: 0 | AJ69: 0 | AK69: 1200000 | AL69: 0 | AM69: 0 | AR69: 4799
C70: Natural | D70: 5 | E70: ANTIOQUIA | F70: 5264 | G70: ENTRERRIOS | H70: 121 | I70: AGRICULTURA, GANADERÍA, CAZA, SILVICULTURA Y PESCA | P70: 0 | V70: 0 | W70: 0 | X70: Natural | Y70: 5 | Z70: ANTIOQUIA | AA70: 5001 | AB70: MEDELLÍN | AC70: 4520 | AD70: COMERCIO AL POR MAYOR Y AL POR MENOR; REPARACIÓN DE VEHÍCULOS AUTOMOTORES Y MOTOCICLETAS | AE70: 0 | AF70: 0 | AG70: 0 | AH70: 0 | AI70: 0 | AJ70: 0 | AK70: 1000000 | AL70: 0 | AM70: 0 | AR70: 5621
C71: Natural | D71: 23 | E71: CÓRDOBA | F71: 23001 | G71: MONTERÍA | H71: 4711 | I71: COMERCIO AL POR MAYOR Y AL POR MENOR; REPARACIÓN DE VEHÍCULOS AUTOMOTORES Y MOTOCICLETAS | P71: 0 | V71: 0 | W71: 0 | X71: Natural | Y71: 5 | Z71: ANTIOQUIA | AA71: 5697 | AB71: EL SANTUARIO | AC71: 1392 | AD71: INDUSTRIAS MANUFACTURERAS | AE71: 0 | AF71: 0 | AG71: 0 | AH71: 0 | AI71: 0 | AJ71: 0 | AK71: 0 | AL71: 0 | AM71: 0 | AR71: 4772
C72: Natural | D72: 5 | E72: ANTIOQUIA | F72: 5001 | G72: MEDELLÍN | H72: 4711 | I72: COMERCIO AL POR MAYOR Y AL POR MENOR; REPARACIÓN DE VEHÍCULOS AUTOMOTORES Y MOTOCICLETAS | P72: 0 | V72: 0 | W72: 0 | X72: Natural | Y72: 5 | Z72: ANTIOQUIA | AA72: 5686 | AB72: SANTA ROSA DE OSOS | AC72: 4771 | AD72: COMERCIO AL POR MAYOR Y AL POR MENOR; REPARACIÓN DE VEHÍCULOS AUTOMOTORES Y MOTOCICLETAS | AE72: 0 | AF72: 0 | AG72: 0 | AH72: 0 | AI72: 0 | AJ72: 0 | AK72: 4022000 | AL72: 0 | AM72: 0 | AR72: 8513
C73: Natural | D73: 11 | E73: BOGOTÁ, D.C. | F73: 11001 | G73: BOGOTÁ, D.C. | H73: 1410 | I73: INDUSTRIAS MANUFACTURERAS | P73: 0 | V73: 0 | W73: 0 | X73: Natural | Y73: 5 | Z73: ANTIOQUIA | AA73: 5631 | AB73: SABANETA | AC73: 7990 | AD73: ACTIVIDADES DE SERVICIOS ADMINISTRATIVOS Y DE APOYO | AE73: 0 | AF73: 0 | AG73: 0 | AH73: 0 | AI73: 0 | AJ73: 0 | AK73: 5786000 | AL73: 0 | AM73: 0 | AR73: 10
C74: Natural | D74: 11 | E74: BOGOTÁ, D.C. | F74: 11001 | G74: BOGOTÁ, D.C. | H74: 4771 | I74: COMERCIO AL POR MAYOR Y AL POR MENOR; REPARACIÓN DE VEHÍCULOS AUTOMOTORES Y MOTOCICLETAS | P74: 454262 | V74: 0 | W74: 0 | X74: Natural | Y74: 5 | Z74: ANTIOQUIA | AA74: 5615 | AB74: RIONEGRO | AC74: 4390 | AD74: CONSTRUCCIÓN | AE74: 0 | AF74: 0 | AG74: 0 | AH74: 0 | AI74: 0 | AJ74: 0 | AK74: 1250000 | AL74: 0 | AM74: 0 | AR74: 5619
C75: Natural | D75: 5 | E75: ANTIOQUIA | F75: 5001 | G75: MEDELLÍN | H75: 4520 | I75: COMERCIO AL POR MAYOR Y AL POR MENOR; REPARACIÓN DE VEHÍCULOS AUTOMOTORES Y MOTOCICLETAS | P75: 0 | V75: 0 | W75: 0 | X75: Natural | Y75: 5 | Z75: ANTIOQUIA | AA75: 5001 | AB75: MEDELLÍN | AC75: 1410 | AD75: INDUSTRIAS MANUFACTURERAS | AE75: 0 | AF75: 0 | AG75: 0 | AH75: 0 | AI75: 0 | AJ75: 0 | AK75: 13996000 | AL75: 0 | AM75: 0 | AR75: 8512
C76: Natural | D76: 5 | E76: ANTIOQUIA | F76: 5209 | G76: CONCORDIA | H76: 123 | I76: AGRICULTURA, GANADERÍA, CAZA, SILVICULTURA Y PESCA | P76: 0 | V76: 0 | W76: 0 | X76: Natural | Y76: 5 | Z76: ANTIOQUIA | AA76: 5129 | AB76: CALDAS | AC76: 4620 | AD76: COMERCIO AL POR MAYOR Y AL POR MENOR; REPARACIÓN DE VEHÍCULOS AUTOMOTORES Y MOTOCICLETAS | AE76: 0 | AF76: 0 | AG76: 0 | AH76: 0 | AI76: 0 | AJ76: 0 | AK76: 0 | AL76: 0 | AM76: 0 | AR76: 7729
C77: Natural | D77: 5 | E77: ANTIOQUIA | F77: 5697 | G77: EL SANTUARIO | H77: 4773 | I77: COMERCIO AL POR MAYOR Y AL POR MENOR; REPARACIÓN DE VEHÍCULOS AUTOMOTORES Y MOTOCICLETAS | P77: 454262 | V77: 0 | W77: 0 | X77: Natural | Y77: 5 | Z77: ANTIOQUIA | AA77: 5631 | AB77: SABANETA | AC77: 4923 | AD77: TRANSPORTE Y ALMACENAMIENTO | AE77: 0 | AF77: 0 | AG77: 0 | AH77: 0 | AI77: 0 | AJ77: 0 | AK77: 0 | AL77: 0 | AM77: 0 | AR77: 5519
C78: Natural | D78: 5 | E78: ANTIOQUIA | F78: 5001 | G78: MEDELLÍN | H78: 141 | I78: AGRICULTURA, GANADERÍA, CAZA, SILVICULTURA Y PESCA | P78: 0 | V78: 0 | W78: 0 | X78: Natural | Y78: 5 | Z78: ANTIOQUIA | AA78: 5380 | AB78: LA ESTRELLA | AC78: 4752 | AD78: COMERCIO AL POR MAYOR Y AL POR MENOR; REPARACIÓN DE VEHÍCULOS AUTOMOTORES Y MOTOCICLETAS | AE78: 0 | AF78: 0 | AG78: 0 | AH78: 0 | AI78: 0 | AJ78: 0 | AK78: 800000 | AL78: 0 | AM78: 0 | AR78: 4729
C79: Natural | D79: 11 | E79: BOGOTÁ, D.C. | F79: 11001 | G79: BOGOTÁ, D.C. | H79: 4652 | I79: COMERCIO AL POR MAYOR Y AL POR MENOR; REPARACIÓN DE VEHÍCULOS AUTOMOTORES Y MOTOCICLETAS | P79: 227131 | V79: 0 | W79: 0 | X79: Natural | Y79: 5 | Z79: ANTIOQUIA | AA79: 5240 | AB79: EBÉJICO | AC79: 4752 | AD79: COMERCIO AL POR MAYOR Y AL POR MENOR; REPARACIÓN DE VEHÍCULOS AUTOMOTORES Y MOTOCICLETAS | AE79: 0 | AF79: 0 | AG79: 0 | AH79: 0 | AI79: 0 | AJ79: 0 | AK79: 577131 | AL79: 0 | AM79: 0 | AR79: 7911
C80: Natural | D80: 54 | E80: NORTE DE SANTANDER | F80: 54001 | G80: CÚCUTA | H80: 4631 | I80: COMERCIO AL POR MAYOR Y AL POR MENOR; REPARACIÓN DE VEHÍCULOS AUTOMOTORES Y MOTOCICLETAS | P80: 454262 | V80: 0 | W80: 0 | X80: Natural | Y80: 5 | Z80: ANTIOQUIA | AA80: 5887 | AB80: YARUMAL | AC80: 4631 | AD80: COMERCIO AL POR MAYOR Y AL POR MENOR; REPARACIÓN DE VEHÍCULOS AUTOMOTORES Y MOTOCICLETAS | AE80: 0 | AF80: 0 | AG80: 0 | AH80: 0 | AI80: 0 | AJ80: 0 | AK80: 15227131 | AL80: 0 | AM80: 0 | AR80: 1062
C81: Natural | D81: 11 | E81: BOGOTÁ, D.C. | F81: 11001 | G81: BOGOTÁ, D.C. | H81: 4530 | I81: COMERCIO AL POR MAYOR Y AL POR MENOR; REPARACIÓN DE VEHÍCULOS AUTOMOTORES Y MOTOCICLETAS | P81: 0 | V81: 0 | W81: 0 | X81: Natural | Y81: 5 | Z81: ANTIOQUIA | AA81: 5001 | AB81: MEDELLÍN | AC81: 4210 | AD81: CONSTRUCCIÓN | AE81: 0 | AF81: 0 | AG81: 0 | AH81: 0 | AI81: 0 | AJ81: 0 | AK81: 590539 | AL81: 0 | AM81: 0 | AR81: 8551
C82: Natural | D82: 5 | E82: ANTIOQUIA | F82: 5001 | G82: MEDELLÍN | H82: 6810 | I82: ACTIVIDADES INMOBILIARIAS | P82: 90852 | V82: 0 | W82: 0 | X82: Natural | Y82: 5 | Z82: ANTIOQUIA | AA82: 5001 | AB82: MEDELLÍN | AC82: 1709 | AD82: INDUSTRIAS MANUFACTURERAS | AE82: 0 | AF82: 0 | AG82: 0 | AH82: 0 | AI82: 0 | AJ82: 0 | AK82: 0 | AL82: 0 | AM82: 0 | AR82: 1630
C83: Natural | D83: 15 | E83: BOYACÁ | F83: 15667 | G83: SAN LUIS DE GACENO | H83: 4711 | I83: COMERCIO AL POR MAYOR Y AL POR MENOR; REPARACIÓN DE VEHÍCULOS AUTOMOTORES Y MOTOCICLETAS | P83: 0 | V83: 0 | W83: 0 | X83: Natural | Y83: 5 | Z83: ANTIOQUIA | AA83: 5360 | AB83: ITAGUI | AC83: 1011 | AD83: INDUSTRIAS MANUFACTURERAS | AE83: 0 | AF83: 0 | AG83: 0 | AH83: 0 | AI83: 0 | AJ83: 0 | AK83: 3406965 | AL83: 0 | AM83: 0 | AR83: 6910
C84: Natural | D84: 15 | E84: BOYACÁ | F84: 15759 | G84: SOGAMOSO | H84: 8512 | I84: EDUCACIÓN | P84: 2950000 | V84: 0 | W84: 0 | X84: Natural | Y84: 5 | Z84: ANTIOQUIA | AA84: 5887 | AB84: YARUMAL | AC84: 4799 | AD84: COMERCIO AL POR MAYOR Y AL POR MENOR; REPARACIÓN DE VEHÍCULOS AUTOMOTORES Y MOTOCICLETAS | AE84: 0 | AF84: 0 | AG84: 0 | AH84: 0 | AI84: 0 | AJ84: 0 | AK84: 0 | AL84: 0 | AM84: 0 | AR84: 3319
C85: Natural | D85: 15 | E85: BOYACÁ | F85: 15176 | G85: CHIQUINQUIRÁ | H85: 1081 | I85: INDUSTRIAS MANUFACTURERAS | P85: 3700000 | V85: 0 | W85: 0 | X85: Natural | Y85: 5 | Z85: ANTIOQUIA | AA85: 5887 | AB85: YARUMAL | AC85: 4711 | AD85: COMERCIO AL POR MAYOR Y AL POR MENOR; REPARACIÓN DE VEHÍCULOS AUTOMOTORES Y MOTOCICLETAS | AE85: 0 | AF85: 0 | AG85: 0 | AH85: 0 | AI85: 0 | AJ85: 0 | AK85: 750000 | AL85: 0 | AM85: 0 | AR85: 3290
C86: Natural | D86: 11 | E86: BOGOTÁ, D.C. | F86: 11001 | G86: BOGOTÁ, D.C. | H86: 2920 | I86: INDUSTRIAS MANUFACTURERAS | P86: 1800000 | V86: 0 | W86: 0 | X86: Natural | Y86: 5 | Z86: ANTIOQUIA | AA86: 5887 | AB86: YARUMAL | AC86: 4690 | AD86: COMERCIO AL POR MAYOR Y AL POR MENOR; REPARACIÓN DE VEHÍCULOS AUTOMOTORES Y MOTOCICLETAS | AE86: 0 | AF86: 0 | AG86: 0 | AH86: 0 | AI86: 0 | AJ86: 0 | AK86: 22498441 | AL86: 0 | AM86: 0 | AR86: 9007
C87: Natural | D87: 11 | E87: BOGOTÁ, D.C. | F87: 11001 | G87: BOGOTÁ, D.C. | H87: 1392 | I87: INDUSTRIAS MANUFACTURERAS | P87: 0 | V87: 0 | W87: 0 | X87: Natural | Y87: 5 | Z87: ANTIOQUIA | AA87: 5679 | AB87: SANTA BÁRBARA | AC87: 4663 | AD87: COMERCIO AL POR MAYOR Y AL POR MENOR; REPARACIÓN DE VEHÍCULOS AUTOMOTORES Y MOTOCICLETAS | AE87: 0 | AF87: 0 | AG87: 0 | AH87: 0 | AI87: 0 | AJ87: 0 | AK87: 1740852 | AL87: 0 | AM87: 0 | AR87: 1313
C88: Natural | D88: 15 | E88: BOYACÁ | F88: 15238 | G88: DUITAMA | H88: 4923 | I88: TRANSPORTE Y ALMACENAMIENTO | P88: 500000 | V88: 0 | W88: 0 | X88: Natural | Y88: 5 | Z88: ANTIOQUIA | AA88: 5088 | AB88: BELLO | AC88: 4923 | AD88: TRANSPORTE Y ALMACENAMIENTO | AE88: 0 | AF88: 0 | AG88: 0 | AH88: 0 | AI88: 0 | AJ88: 0 | AK88: 0 | AL88: 0 | AM88: 0 | AR88: 4669
C89: Natural | D89: 85 | E89: CASANARE | F89: 85001 | G89: YOPAL | H89: 4542 | I89: COMERCIO AL POR MAYOR Y AL POR MENOR; REPARACIÓN DE VEHÍCULOS AUTOMOTORES Y MOTOCICLETAS | P89: 4181393 | V89: 0 | W89: 0 | X89: Natural | Y89: 5 | Z89: ANTIOQUIA | AA89: 5631 | AB89: SABANETA | AC89: 5630 | AD89: ALOJAMIENTO Y SERVICIOS DE COMIDA | AE89: 0 | AF89: 0 | AG89: 0 | AH89: 0 | AI89: 0 | AJ89: 0 | AK89: 900000 | AL89: 0 | AM89: 0 | AR89: 2395
C90: Natural | D90: 15 | E90: BOYACÁ | F90: 15759 | G90: SOGAMOSO | H90: 2395 | I90: INDUSTRIAS MANUFACTURERAS | P90: 100000 | V90: 0 | W90: 0 | X90: Natural | Y90: 5 | Z90: ANTIOQUIA | AA90: 5001 | AB90: MEDELLÍN | AC90: 4751 | AD90: COMERCIO AL POR MAYOR Y AL POR MENOR; REPARACIÓN DE VEHÍCULOS AUTOMOTORES Y MOTOCICLETAS | AE90: 0 | AF90: 0 | AG90: 0 | AH90: 0 | AI90: 0 | AJ90: 0 | AK90: 681393 | AL90: 0 | AM90: 0 | AR90: 3250
C91: Natural | D91: 11 | E91: BOGOTÁ, D.C. | F91: 11001 | G91: BOGOTÁ, D.C. | H91: 4752 | I91: COMERCIO AL POR MAYOR Y AL POR MENOR; REPARACIÓN DE VEHÍCULOS AUTOMOTORES Y MOTOCICLETAS | P91: 0 | V91: 0 | W91: 0 | X91: Natural | Y91: 5 | Z91: ANTIOQUIA | AA91: 5001 | AB91: MEDELLÍN | AC91: 5511 | AD91: ALOJAMIENTO Y SERVICIOS DE COMIDA | AE91: 0 | AF91: 0 | AG91: 0 | AH91: 0 | AI91: 0 | AJ91: 0 | AK91: 600000 | AL91: 0 | AM91: 0 | AR91: 8692
C92: Natural | D92: 11 | E92: BOGOTÁ, D.C. | F92: 11001 | G92: BOGOTÁ, D.C. | H92: 4663 | I92: COMERCIO AL POR MAYOR Y AL POR MENOR; REPARACIÓN DE VEHÍCULOS AUTOMOTORES Y MOTOCICLETAS | P92: 500000 | V92: 0 | W92: 0 | X92: Natural | Y92: 5 | Z92: ANTIOQUIA | AA92: 5266 | AB92: ENVIGADO | AC92: 141 | AD92: AGRICULTURA, GANADERÍA, CAZA, SILVICULTURA Y PESCA | AE92: 0 | AF92: 0 | AG92: 0 | AH92: 0 | AI92: 0 | AJ92: 0 | AK92: 0 | AL92: 0 | AM92: 0 | AR92: 4742
C93: Natural | D93: 11 | E93: BOGOTÁ, D.C. | F93: 11001 | G93: BOGOTÁ, D.C. | H93: 4771 | I93: COMERCIO AL POR MAYOR Y AL POR MENOR; REPARACIÓN DE VEHÍCULOS AUTOMOTORES Y MOTOCICLETAS | P93: 0 | V93: 0 | W93: 0 | X93: Natural | Y93: 5 | Z93: ANTIOQUIA | AA93: 5615 | AB93: RIONEGRO | AC93: 5611 | AD93: ALOJAMIENTO Y SERVICIOS DE COMIDA | AE93: 0 | AF93: 0 | AG93: 0 | AH93: 0 | AI93: 0 | AJ93: 0 | AK93: 36200000 | AL93: 0 | AM93: 0 | AR93: 3210
C94: Natural | D94: 15 | E94: BOYACÁ | F94: 15753 | G94: SOATÁ | H94: 4631 | I94: COMERCIO AL POR MAYOR Y AL POR MENOR; REPARACIÓN DE VEHÍCULOS AUTOMOTORES Y MOTOCICLETAS | P94: 381704 | V94: 0 | W94: 0 | X94: Natural | Y94: 5 | Z94: ANTIOQUIA | AA94: 5376 | AB94: LA CEJA | AC94: 9522 | AD94: OTRAS ACTIVIDADES DE SERVICIOS | AE94: 0 | AF94: 0 | AG94: 0 | AH94: 0 | AI94: 0 | AJ94: 0 | AK94: 6586818 | AL94: 0 | AM94: 0 | AR94: 510
C95: Natural | D95: 54 | E95: NORTE DE SANTANDER | F95: 54874 | G95: VILLA DEL ROSARIO | H95: 5630 | I95: ALOJAMIENTO Y SERVICIOS DE COMIDA | P95: 0 | V95: 0 | W95: 0 | X95: Natural | Y95: 5 | Z95: ANTIOQUIA | AA95: 5148 | AB95: EL CARMEN DE VIBORAL | AC95: 8130 | AD95: ACTIVIDADES DE SERVICIOS ADMINISTRATIVOS Y DE APOYO | AE95: 0 | AF95: 0 | AG95: 0 | AH95: 0 | AI95: 0 | AJ95: 0 | AK95: 4900000 | AL95: 0 | AM95: 0 | AR95: 8621
C96: Natural | D96: 11 | E96: BOGOTÁ, D.C. | F96: 11001 | G96: BOGOTÁ, D.C. | H96: 1081 | I96: INDUSTRIAS MANUFACTURERAS | P96: 5658524 | V96: 0 | W96: 0 | X96: Natural | Y96: 5 | Z96: ANTIOQUIA | AA96: 5761 | AB96: SOPETRÁN | AC96: 1081 | AD96: INDUSTRIAS MANUFACTURERAS | AE96: 0 | AF96: 0 | AG96: 0 | AH96: 0 | AI96: 0 | AJ96: 0 | AK96: 0 | AL96: 0 | AM96: 0 | AR96: 4775
C97: Natural | D97: 15 | E97: BOYACÁ | F97: 15759 | G97: SOGAMOSO | H97: 4923 | I97: TRANSPORTE Y ALMACENAMIENTO | P97: 1450000 | V97: 0 | W97: 0 | X97: Natural | Y97: 5 | Z97: ANTIOQUIA | AA97: 5615 | AB97: RIONEGRO | AC97: 4732 | AD97: COMERCIO AL POR MAYOR Y AL POR MENOR; REPARACIÓN DE VEHÍCULOS AUTOMOTORES Y MOTOCICLETAS | AE97: 0 | AF97: 0 | AG97: 0 | AH97: 0 | AI97: 0 | AJ97: 0 | AK97: 5160000 | AL97: 0 | AM97: 0 | AR97: 119
C98: Natural | D98: 11 | E98: BOGOTÁ, D.C. | F98: 11001 | G98: BOGOTÁ, D.C. | H98: 4923 | I98: TRANSPORTE Y ALMACENAMIENTO | P98: 2526818 | V98: 0 | W98: 0 | X98: Natural | Y98: 5 | Z98: ANTIOQUIA | AA98: 5615 | AB98: RIONEGRO | AC98: 4631 | AD98: COMERCIO AL POR MAYOR Y AL POR MENOR; REPARACIÓN DE VEHÍCULOS AUTOMOTORES Y MOTOCICLETAS | AE98: 0 | AF98: 0 | AG98: 0 | AH98: 0 | AI98: 0 | AJ98: 0 | AK98: 250000 | AL98: 0 | AM98: 0 | AR98: 4922
C99: Natural | D99: 85 | E99: CASANARE | F99: 85001 | G99: YOPAL | H99: 811 | I99: EXPLOTACIÓN DE MINAS Y CANTERAS | P99: 0 | V99: 0 | W99: 0 | X99: Natural | Y99: 5 | Z99: ANTIOQUIA | AA99: 5001 | AB99: MEDELLÍN | AC99: 4711 | AD99: COMERCIO AL POR MAYOR Y AL POR MENOR; REPARACIÓN DE VEHÍCULOS AUTOMOTORES Y MOTOCICLETAS | AE99: 0 | AF99: 0 | AG99: 0 | AH99: 0 | AI99: 0 | AJ99: 0 | AK99: 1450000 | AL99: 0 | AM99: 0 | AR99: 4290
C100: Natural | D100: 15 | E100: BOYACÁ | F100: 15808 | G100: TINJACÁ | H100: 4752 | I100: COMERCIO AL POR MAYOR Y AL POR MENOR; REPARACIÓN DE VEHÍCULOS AUTOMOTORES Y MOTOCICLETAS | P100: 0 | V100: 0 | W100: 0 | X100: Natural | Y100: 5 | Z100: ANTIOQUIA | AA100: 5376 | AB100: LA CEJA | AC100: 4771 | AD100: COMERCIO AL POR MAYOR Y AL POR MENOR; REPARACIÓN DE VEHÍCULOS AUTOMOTORES Y MOTOCICLETAS | AE100: 0 | AF100: 0 | AG100: 0 | AH100: 0 | AI100: 0 | AJ100: 0 | AK100: 1704262 | AL100: 0 | AM100: 0 | AR100: 4731
C101: Natural | D101: 11 | E101: BOGOTÁ, D.C. | F101: 11001 | G101: BOGOTÁ, D.C. | H101: 2592 | I101: INDUSTRIAS MANUFACTURERAS | P101: 0 | V101: 0 | W101: 0 | X101: Natural | Y101: 5 | Z101: ANTIOQUIA | AA101: 5615 | AB101: RIONEGRO | AC101: 6920 | AD101: ACTIVIDADES PROFESIONALES, CIENTÍFICAS Y TÉCNICAS | AE101: 0 | AF101: 0 | AG101: 0 | AH101: 0 | AI101: 0 | AJ101: 0 | AK101: 0 | AL101: 0 | AM101: 0 | AR101: 4322
C102: Natural | D102: 11 | E102: BOGOTÁ, D.C. | F102: 11001 | G102: BOGOTÁ, D.C. | H102: 5611 | I102: ALOJAMIENTO Y SERVICIOS DE COMIDA | P102: 1800000 | V102: 0 | W102: 0 | X102: Natural | Y102: 5 | Z102: ANTIOQUIA | AA102: 5440 | AB102: MARINILLA | AC102: 6920 | AD102: ACTIVIDADES PROFESIONALES, CIENTÍFICAS Y TÉCNICAS | AE102: 0 | AF102: 0 | AG102: 0 | AH102: 0 | AI102: 0 | AJ102: 0 | AK102: 250000 | AL102: 0 | AM102: 0 | AR102: 113
C103: Natural | D103: 18 | E103: CAQUETÁ | F103: 18001 | G103: FLORENCIA | H103: 4651 | I103: COMERCIO AL POR MAYOR Y AL POR MENOR; REPARACIÓN DE VEHÍCULOS AUTOMOTORES Y MOTOCICLETAS | P103: 0 | V103: 0 | W103: 0 | X103: Natural | Y103: 5 | Z103: ANTIOQUIA | AA103: 5148 | AB103: EL CARMEN DE VIBORAL | AC103: 1630 | AD103: INDUSTRIAS MANUFACTURERAS | AE103: 0 | AF103: 0 | AG103: 0 | AH103: 0 | AI103: 0 | AJ103: 0 | AK103: 0 | AL103: 0 | AM103: 0 | AR103: 2023
C104: Natural | D104: 5 | E104: ANTIOQUIA | F104: 5266 | G104: ENVIGADO | H104: 4541 | I104: COMERCIO AL POR MAYOR Y AL POR MENOR; REPARACIÓN DE VEHÍCULOS AUTOMOTORES Y MOTOCICLETAS | P104: 227131 | V104: 0 | W104: 0 | X104: Natural | Y104: 5 | Z104: ANTIOQUIA | AA104: 5376 | AB104: LA CEJA | AC104: 1610 | AD104: INDUSTRIAS MANUFACTURERAS | AE104: 0 | AF104: 0 | AG104: 0 | AH104: 0 | AI104: 0 | AJ104: 0 | AK104: 227131 | AL104: 0 | AM104: 0 | AR104: 8691
C105: Natural | D105: 76 | E105: VALLE DEL CAUCA | F105: 76001 | G105: CALI | H105: 4530 | I105: COMERCIO AL POR MAYOR Y AL POR MENOR; REPARACIÓN DE VEHÍCULOS AUTOMOTORES Y MOTOCICLETAS | P105: 0 | V105: 0 | W105: 0 | X105: Natural | Y105: 5 | Z105: ANTIOQUIA | AA105: 5615 | AB105: RIONEGRO | AC105: 7111 | AD105: ACTIVIDADES PROFESIONALES, CIENTÍFICAS Y TÉCNICAS | AE105: 0 | AF105: 0 | AG105: 0 | AH105: 0 | AI105: 0 | AJ105: 0 | AK105: 750000 | AL105: 0 | AM105: 0 | AR105: 9609
C106: Natural | D106: 17 | E106: CALDAS | F106: 17442 | G106: MARMATO | H106: 722 | I106: EXPLOTACIÓN DE MINAS Y CANTERAS | P106: 19698000 | V106: 0 | W106: 0 | X106: Natural | Y106: 5 | Z106: ANTIOQUIA | AA106: 5615 | AB106: RIONEGRO | AC106: 9700 | AD106: ACTIVIDADES DE LOS HOGARES INDIVIDUALES EN CALIDAD DE EMPLEADORES; ACTIVIDADES NO DIFERENCIADAS DE LOS HOGARES INDIVIDUALES COMO PRODUCTORES DE BIENES Y SERVICIOS PARA USO PROPIO | AE106: 0 | AF106: 0 | AG106: 0 | AH106: 0 | AI106: 0 | AJ106: 0 | AK106: 250000 | AL106: 0 | AM106: 0 | AR106: 7120
C107: Natural | D107: 17 | E107: CALDAS | F107: 17442 | G107: MARMATO | H107: 722 | I107: EXPLOTACIÓN DE MINAS Y CANTERAS | P107: 18354000 | V107: 0 | W107: 0 | X107: Natural | Y107: 5 | Z107: ANTIOQUIA | AA107: 5615 | AB107: RIONEGRO | AC107: 4111 | AD107: CONSTRUCCIÓN | AE107: 0 | AF107: 0 | AG107: 0 | AH107: 0 | AI107: 0 | AJ107: 0 | AK107: 600000 | AL107: 0 | AM107: 0 | AR107: 2599
C108: Natural | D108: 50 | E108: META | F108: 50001 | G108: VILLAVICENCIO | H108: 4321 | I108: CONSTRUCCIÓN | P108: 1000000 | V108: 0 | W108: 0 | X108: Natural | Y108: 5 | Z108: ANTIOQUIA | AA108: 5615 | AB108: RIONEGRO | AC108: 4762 | AD108: COMERCIO AL POR MAYOR Y AL POR MENOR; REPARACIÓN DE VEHÍCULOS AUTOMOTORES Y MOTOCICLETAS | AE108: 0 | AF108: 0 | AG108: 0 | AH108: 0 | AI108: 0 | AJ108: 0 | AK108: 250000 | AL108: 0 | AM108: 0 | AR108: 1690
C109: Natural | D109: 66 | E109: RISARALDA | F109: 66001 | G109: PEREIRA | H109: 9609 | I109: OTRAS ACTIVIDADES DE SERVICIOS | P109: 1958522 | V109: 0 | W109: 0 | X109: Natural | Y109: 5 | Z109: ANTIOQUIA | AA109: 5615 | AB109: RIONEGRO | AC109: 4530 | AD109: COMERCIO AL POR MAYOR Y AL POR MENOR; REPARACIÓN DE VEHÍCULOS AUTOMOTORES Y MOTOCICLETAS | AE109: 0 | AF109: 0 | AG109: 0 | AH109: 0 | AI109: 0 | AJ109: 0 | AK109: 250000 | AL109: 0 | AM109: 0 | AR109: 7912
C110: Natural | D110: 66 | E110: RISARALDA | F110: 66001 | G110: PEREIRA | H110: 4711 | I110: COMERCIO AL POR MAYOR Y AL POR MENOR; REPARACIÓN DE VEHÍCULOS AUTOMOTORES Y MOTOCICLETAS | P110: 0 | V110: 0 | W110: 0 | X110: Natural | Y110: 5 | Z110: ANTIOQUIA | AA110: 5615 | AB110: RIONEGRO | AC110: 6201 | AD110: INFORMACIÓN Y COMUNICACIONES | AE110: 0 | AF110: 0 | AG110: 0 | AH110: 0 | AI110: 0 | AJ110: 0 | AK110: 4536278 | AL110: 0 | AM110: 0 | AR110: 1020
C111: Natural | D111: 66 | E111: RISARALDA | F111: 66594 | G111: QUINCHÍA | H111: 4711 | I111: COMERCIO AL POR MAYOR Y AL POR MENOR; REPARACIÓN DE VEHÍCULOS AUTOMOTORES Y MOTOCICLETAS | P111: 7150000 | V111: 0 | W111: 0 | X111: Natural | Y111: 5 | Z111: ANTIOQUIA | AA111: 5615 | AB111: RIONEGRO | AC111: 4923 | AD111: TRANSPORTE Y ALMACENAMIENTO | AE111: 0 | AF111: 0 | AG111: 0 | AH111: 0 | AI111: 0 | AJ111: 0 | AK111: 5221393 | AL111: 0 | AM111: 0 | AR111: 7112
C112: Natural | D112: 63 | E112: QUINDÍO | F112: 63001 | G112: ARMENIA | H112: 5611 | I112: ALOJAMIENTO Y SERVICIOS DE COMIDA | P112: 0 | V112: 0 | W112: 0 | X112: Natural | Y112: 5 | Z112: ANTIOQUIA | AA112: 5001 | AB112: MEDELLÍN | AC112: 4752 | AD112: COMERCIO AL POR MAYOR Y AL POR MENOR; REPARACIÓN DE VEHÍCULOS AUTOMOTORES Y MOTOCICLETAS | AE112: 0 | AF112: 0 | AG112: 0 | AH112: 0 | AI112: 0 | AJ112: 0 | AK112: 0 | AL112: 0 | AM112: 0 | AR112: 5820
C113: Natural | D113: 63 | E113: QUINDÍO | F113: 63001 | G113: ARMENIA | H113: 8530 | I113: EDUCACIÓN | P113: 0 | V113: 0 | W113: 0 | X113: Natural | Y113: 5 | Z113: ANTIOQUIA | AA113: 5001 | AB113: MEDELLÍN | AC113: 8130 | AD113: ACTIVIDADES DE SERVICIOS ADMINISTRATIVOS Y DE APOYO | AE113: 0 | AF113: 0 | AG113: 0 | AH113: 0 | AI113: 0 | AJ113: 0 | AK113: 0 | AL113: 0 | AM113: 0 | AR113: 4220
C114: Natural | D114: 66 | E114: RISARALDA | F114: 66170 | G114: DOSQUEBRADAS | H114: 4775 | I114: COMERCIO AL POR MAYOR Y AL POR MENOR; REPARACIÓN DE VEHÍCULOS AUTOMOTORES Y MOTOCICLETAS | P114: 1000000 | V114: 0 | W114: 0 | X114: Natural | Y114: 5 | Z114: ANTIOQUIA | AA114: 5129 | AB114: CALDAS | AC114: 5611 | AD114: ALOJAMIENTO Y SERVICIOS DE COMIDA | AE114: 0 | AF114: 0 | AG114: 0 | AH114: 0 | AI114: 0 | AJ114: 0 | AK114: 0 | AL114: 0 | AM114: 0 | AR114: 1811
C115: Natural | D115: 66 | E115: RISARALDA | F115: 66170 | G115: DOSQUEBRADAS | H115: 6910 | I115: ACTIVIDADES PROFESIONALES, CIENTÍFICAS Y TÉCNICAS | P115: 6400000 | V115: 0 | W115: 0 | X115: Natural | Y115: 5 | Z115: ANTIOQUIA | AA115: 5001 | AB115: MEDELLÍN | AC115: 5613 | AD115: ALOJAMIENTO Y SERVICIOS DE COMIDA | AE115: 0 | AF115: 0 | AG115: 0 | AH115: 0 | AI115: 0 | AJ115: 0 | AK115: 2933409 | AL115: 0 | AM115: 0 | AR115: 2930
C116: Natural | D116: 66 | E116: RISARALDA | F116: 66001 | G116: PEREIRA | H116: 4754 | I116: COMERCIO AL POR MAYOR Y AL POR MENOR; REPARACIÓN DE VEHÍCULOS AUTOMOTORES Y MOTOCICLETAS | P116: 7980000 | V116: 0 | W116: 0 | X116: Natural | Y116: 5 | Z116: ANTIOQUIA | AA116: 5001 | AB116: MEDELLÍN | AC116: 3110 | AD116: INDUSTRIAS MANUFACTURERAS | AE116: 0 | AF116: 0 | AG116: 0 | AH116: 0 | AI116: 0 | AJ116: 0 | AK116: 0 | AL116: 0 | AM116: 0 | AR116: 162
C117: Natural | D117: 17 | E117: CALDAS | F117: 17777 | G117: SUPÍA | H117: 4759 | I117: COMERCIO AL POR MAYOR Y AL POR MENOR; REPARACIÓN DE VEHÍCULOS AUTOMOTORES Y MOTOCICLETAS | P117: 0 | V117: 0 | W117: 0 | X117: Natural | Y117: 5 | Z117: ANTIOQUIA | AA117: 5045 | AB117: APARTADÓ | AC117: 4769 | AD117: COMERCIO AL POR MAYOR Y AL POR MENOR; REPARACIÓN DE VEHÍCULOS AUTOMOTORES Y MOTOCICLETAS | AE117: 0 | AF117: 0 | AG117: 0 | AH117: 0 | AI117: 0 | AJ117: 0 | AK117: 1654262 | AL117: 0 | AM117: 0 | AR117: 4330
C118: Natural | D118: 18 | E118: CAQUETÁ | F118: 18205 | G118: CURILLO | H118: 1040 | I118: INDUSTRIAS MANUFACTURERAS | P118: 12232000 | V118: 0 | W118: 0 | X118: Natural | Y118: 5 | Z118: ANTIOQUIA | AA118: 5212 | AB118: COPACABANA | AC118: 4541 | AD118: COMERCIO AL POR MAYOR Y AL POR MENOR; REPARACIÓN DE VEHÍCULOS AUTOMOTORES Y MOTOCICLETAS | AE118: 0 | AF118: 0 | AG118: 0 | AH118: 0 | AI118: 0 | AJ118: 0 | AK118: 0 | AL118: 0 | AM118: 0 | AR118: 4754
C119: Natural | D119: 19 | E119: CAUCA | F119: 19001 | G119: POPAYÁN | H119: 8559 | I119: EDUCACIÓN | P119: 317982 | V119: 0 | W119: 0 | X119: Natural | Y119: 5 | Z119: ANTIOQUIA | AA119: 5631 | AB119: SABANETA | AC119: 4752 | AD119: COMERCIO AL POR MAYOR Y AL POR MENOR; REPARACIÓN DE VEHÍCULOS AUTOMOTORES Y MOTOCICLETAS | AE119: 0 | AF119: 0 | AG119: 0 | AH119: 0 | AI119: 0 | AJ119: 0 | AK119: 0 | AL119: 0 | AM119: 0 | AR119: 6020
C120: Natural | D120: 19 | E120: CAUCA | F120: 19698 | G120: SANTANDER DE QUILICHAO | H120: 4719 | I120: COMERCIO AL POR MAYOR Y AL POR MENOR; REPARACIÓN DE VEHÍCULOS AUTOMOTORES Y MOTOCICLETAS | P120: 0 | V120: 0 | W120: 0 | X120: Natural | Y120: 5 | Z120: ANTIOQUIA | AA120: 5001 | AB120: MEDELLÍN | AC120: 8110 | AD120: ACTIVIDADES DE SERVICIOS ADMINISTRATIVOS Y DE APOYO | AE120: 0 | AF120: 0 | AG120: 0 | AH120: 0 | AI120: 0 | AJ120: 0 | AK120: 700000 | AL120: 0 | AM120: 0 | AR120: 161
C121: Natural | D121: 76 | E121: VALLE DEL CAUCA | F121: 76001 | G121: CALI | H121: 4752 | I121: COMERCIO AL POR MAYOR Y AL POR MENOR; REPARACIÓN DE VEHÍCULOS AUTOMOTORES Y MOTOCICLETAS | P121: 7748441 | V121: 0 | W121: 0 | X121: Natural | Y121: 5 | Z121: ANTIOQUIA | AA121: 5154 | AB121: CAUCASIA | AC121: 141 | AD121: AGRICULTURA, GANADERÍA, CAZA, SILVICULTURA Y PESCA | AE121: 0 | AF121: 0 | AG121: 0 | AH121: 0 | AI121: 0 | AJ121: 0 | AK121: 2380000 | AL121: 0 | AM121: 0 | AR121: 1082
C122: Natural | D122: 76 | E122: VALLE DEL CAUCA | F122: 76001 | G122: CALI | H122: 7730 | I122: ACTIVIDADES DE SERVICIOS ADMINISTRATIVOS Y DE APOYO | P122: 0 | V122: 0 | W122: 0 | X122: Natural | Y122: 5 | Z122: ANTIOQUIA | AA122: 5318 | AB122: GUARNE | AC122: 4620 | AD122: COMERCIO AL POR MAYOR Y AL POR MENOR; REPARACIÓN DE VEHÍCULOS AUTOMOTORES Y MOTOCICLETAS | AE122: 0 | AF122: 0 | AG122: 0 | AH122: 0 | AI122: 0 | AJ122: 0 | AK122: 454262 | AL122: 0 | AM122: 0 | AR122: 7020
C123: Natural | D123: 41 | E123: HUILA | F123: 41807 | G123: TIMANÁ | H123: 4711 | I123: COMERCIO AL POR MAYOR Y AL POR MENOR; REPARACIÓN DE VEHÍCULOS AUTOMOTORES Y MOTOCICLETAS | P123: 0 | V123: 0 | W123: 0 | X123: Natural | Y123: 5 | Z123: ANTIOQUIA | AA123: 5001 | AB123: MEDELLÍN | AC123: 4530 | AD123: COMERCIO AL POR MAYOR Y AL POR MENOR; REPARACIÓN DE VEHÍCULOS AUTOMOTORES Y MOTOCICLETAS | AE123: 0 | AF123: 0 | AG123: 0 | AH123: 0 | AI123: 0 | AJ123: 0 | AK123: 0 | AL123: 0 | AM123: 0 | AR123: 4321
C124: Natural | D124: 41 | E124: HUILA | F124: 41001 | G124: NEIVA | H124: 4752 | I124: COMERCIO AL POR MAYOR Y AL POR MENOR; REPARACIÓN DE VEHÍCULOS AUTOMOTORES Y MOTOCICLETAS | P124: 12050000 | V124: 0 | W124: 0 | X124: Natural | Y124: 5 | Z124: ANTIOQUIA | AA124: 5001 | AB124: MEDELLÍN | AC124: 4774 | AD124: COMERCIO AL POR MAYOR Y AL POR MENOR; REPARACIÓN DE VEHÍCULOS AUTOMOTORES Y MOTOCICLETAS | AE124: 0 | AF124: 0 | AG124: 0 | AH124: 0 | AI124: 0 | AJ124: 0 | AK124: 454262 | AL124: 0 | AM124: 0 | AR124: 2219
C125: Natural | D125: 41 | E125: HUILA | F125: 41001 | G125: NEIVA | H125: 4711 | I125: COMERCIO AL POR MAYOR Y AL POR MENOR; REPARACIÓN DE VEHÍCULOS AUTOMOTORES Y MOTOCICLETAS | P125: 227131 | V125: 0 | W125: 0 | X125: Natural | Y125: 5 | Z125: ANTIOQUIA | AA125: 5001 | AB125: MEDELLÍN | AC125: 1313 | AD125: INDUSTRIAS MANUFACTURERAS | AE125: 0 | AF125: 0 | AG125: 0 | AH125: 0 | AI125: 0 | AJ125: 0 | AK125: 0 | AL125: 0 | AM125: 0 | AR125: 8211
C126: Natural | D126: 41 | E126: HUILA | F126: 41551 | G126: PITALITO | H126: 4754 | I126: COMERCIO AL POR MAYOR Y AL POR MENOR; REPARACIÓN DE VEHÍCULOS AUTOMOTORES Y MOTOCICLETAS | P126: 363409 | V126: 0 | W126: 0 | X126: Natural | Y126: 5 | Z126: ANTIOQUIA | AA126: 5001 | AB126: MEDELLÍN | AC126: 1081 | AD126: INDUSTRIAS MANUFACTURERAS | AE126: 0 | AF126: 0 | AG126: 0 | AH126: 0 | AI126: 0 | AJ126: 0 | AK126: 1800000 | AL126: 0 | AM126: 0 | AR126: 9511
C127: Natural | D127: 41 | E127: HUILA | F127: 41551 | G127: PITALITO | H127: 4620 | I127: COMERCIO AL POR MAYOR Y AL POR MENOR; REPARACIÓN DE VEHÍCULOS AUTOMOTORES Y MOTOCICLETAS | P127: 1000000 | V127: 0 | W127: 0 | X127: Natural | Y127: 5 | Z127: ANTIOQUIA | AA127: 5001 | AB127: MEDELLÍN | AC127: 1051 | AD127: INDUSTRIAS MANUFACTURERAS | AE127: 0 | AF127: 0 | AG127: 0 | AH127: 0 | AI127: 0 | AJ127: 0 | AK127: 0 | AL127: 0 | AM127: 0 | AR127: 4921
C128: Natural | D128: 54 | E128: NORTE DE SANTANDER | F128: 54498 | G128: OCAÑA | H128: 4541 | I128: COMERCIO AL POR MAYOR Y AL POR MENOR; REPARACIÓN DE VEHÍCULOS AUTOMOTORES Y MOTOCICLETAS | P128: 1181393 | V128: 0 | W128: 0 | X128: Natural | Y128: 5 | Z128: ANTIOQUIA | AA128: 5059 | AB128: ARMENIA | AC128: 4721 | AD128: COMERCIO AL POR MAYOR Y AL POR MENOR; REPARACIÓN DE VEHÍCULOS AUTOMOTORES Y MOTOCICLETAS | AE128: 0 | AF128: 0 | AG128: 0 | AH128: 0 | AI128: 0 | AJ128: 0 | AK128: 0 | AL128: 0 | AM128: 0 | AR128: 8560
C129: Natural | D129: 20 | E129: CESAR | F129: 20011 | G129: AGUACHICA | H129: 4759 | I129: COMERCIO AL POR MAYOR Y AL POR MENOR; REPARACIÓN DE VEHÍCULOS AUTOMOTORES Y MOTOCICLETAS | P129: 0 | V129: 0 | W129: 0 | X129: Natural | Y129: 5 | Z129: ANTIOQUIA | AA129: 5045 | AB129: APARTADÓ | AC129: 1089 | AD129: INDUSTRIAS MANUFACTURERAS | AE129: 0 | AF129: 0 | AG129: 0 | AH129: 0 | AI129: 0 | AJ129: 0 | AK129: 16812371 | AL129: 0 | AM129: 0 | AR129: 7310
C130: Natural | D130: 52 | E130: NARIÑO | F130: 52001 | G130: PASTO | H130: 4530 | I130: COMERCIO AL POR MAYOR Y AL POR MENOR; REPARACIÓN DE VEHÍCULOS AUTOMOTORES Y MOTOCICLETAS | P130: 0 | V130: 0 | W130: 0 | X130: Natural | Y130: 5 | Z130: ANTIOQUIA | AA130: 5001 | AB130: MEDELLÍN | AC130: 1081 | AD130: INDUSTRIAS MANUFACTURERAS | AE130: 0 | AF130: 0 | AG130: 0 | AH130: 0 | AI130: 0 | AJ130: 0 | AK130: 500000 | AL130: 0 | AM130: 0 | AR130: 4755
C131: Natural | D131: 52 | E131: NARIÑO | F131: 52001 | G131: PASTO | H131: 4752 | I131: COMERCIO AL POR MAYOR Y AL POR MENOR; REPARACIÓN DE VEHÍCULOS AUTOMOTORES Y MOTOCICLETAS | P131: 0 | V131: 0 | W131: 0 | X131: Natural | Y131: 5 | Z131: ANTIOQUIA | AA131: 5001 | AB131: MEDELLÍN | AC131: 5611 | AD131: ALOJAMIENTO Y SERVICIOS DE COMIDA | AE131: 0 | AF131: 0 | AG131: 0 | AH131: 0 | AI131: 0 | AJ131: 0 | AK131: 250000 | AL131: 0 | AM131: 0 | AR131: 9524
C132: Natural | D132: 52 | E132: NARIÑO | F132: 52001 | G132: PASTO | H132: 5512 | I132: ALOJAMIENTO Y SERVICIOS DE COMIDA | P132: 0 | V132: 0 | W132: 0 | X132: Natural | Y132: 5 | Z132: ANTIOQUIA | AA132: 5030 | AB132: AMAGÁ | AC132: 4661 | AD132: COMERCIO AL POR MAYOR Y AL POR MENOR; REPARACIÓN DE VEHÍCULOS AUTOMOTORES Y MOTOCICLETAS | AE132: 0 | AF132: 0 | AG132: 0 | AH132: 0 | AI132: 0 | AJ132: 0 | AK132: 0 | AL132: 0 | AM132: 0 | AR132: 6202
C133: Natural | D133: 52 | E133: NARIÑO | F133: 52317 | G133: GUACHUCAL | H133: 4731 | I133: COMERCIO AL POR MAYOR Y AL POR MENOR; REPARACIÓN DE VEHÍCULOS AUTOMOTORES Y MOTOCICLETAS | P133: 1750000 | V133: 0 | W133: 0 | X133: Natural | Y133: 5 | Z133: ANTIOQUIA | AA133: 5001 | AB133: MEDELLÍN | AC133: 5611 | AD133: ALOJAMIENTO Y SERVICIOS DE COMIDA | AE133: 0 | AF133: 0 | AG133: 0 | AH133: 0 | AI133: 0 | AJ133: 0 | AK133: 0 | AL133: 0 | AM133: 0 | AR133: 4659
C134: Natural | D134: 52 | E134: NARIÑO | F134: 52001 | G134: PASTO | H134: 4731 | I134: COMERCIO AL POR MAYOR Y AL POR MENOR; REPARACIÓN DE VEHÍCULOS AUTOMOTORES Y MOTOCICLETAS | P134: 0 | V134: 0 | W134: 0 | X134: Natural | Y134: 5 | Z134: ANTIOQUIA | AA134: 5001 | AB134: MEDELLÍN | AC134: 4290 | AD134: CONSTRUCCIÓN | AE134: 0 | AF134: 0 | AG134: 0 | AH134: 0 | AI134: 0 | AJ134: 0 | AK134: 0 | AL134: 0 | AM134: 0 | AR134: 1311
C135: Natural | D135: 52 | E135: NARIÑO | F135: 52560 | G135: POTOSÍ | H135: 1040 | I135: INDUSTRIAS MANUFACTURERAS | P135: 1650000 | V135: 0 | W135: 0 | X135: Natural | Y135: 5 | Z135: ANTIOQUIA | AA135: 5001 | AB135: MEDELLÍN | AC135: 1410 | AD135: INDUSTRIAS MANUFACTURERAS | AE135: 0 | AF135: 0 | AG135: 0 | AH135: 0 | AI135: 0 | AJ135: 0 | AK135: 12083338 | AL135: 0 | AM135: 0 | AR135: 322
C136: Natural | D136: 52 | E136: NARIÑO | F136: 52683 | G136: SANDONÁ | H136: 4711 | I136: COMERCIO AL POR MAYOR Y AL POR MENOR; REPARACIÓN DE VEHÍCULOS AUTOMOTORES Y MOTOCICLETAS | P136: 250000 | V136: 0 | W136: 0 | X136: Natural | Y136: 5 | Z136: ANTIOQUIA | AA136: 5264 | AB136: ENTRERRIOS | AC136: 6920 | AD136: ACTIVIDADES PROFESIONALES, CIENTÍFICAS Y TÉCNICAS | AE136: 0 | AF136: 0 | AG136: 0 | AH136: 0 | AI136: 0 | AJ136: 0 | AK136: 227131 | AL136: 0 | AM136: 0 | AR136: 8010
C137: Natural | D137: 54 | E137: NORTE DE SANTANDER | F137: 54001 | G137: CÚCUTA | H137: 2599 | I137: INDUSTRIAS MANUFACTURERAS | P137: 227131 | V137: 0 | W137: 0 | X137: Natural | Y137: 5 | Z137: ANTIOQUIA | AA137: 5001 | AB137: MEDELLÍN | AC137: 5612 | AD137: ALOJAMIENTO Y SERVICIOS DE COMIDA | AE137: 0 | AF137: 0 | AG137: 0 | AH137: 0 | AI137: 0 | AJ137: 0 | AK137: 4685965 | AL137: 0 | AM137: 0 | AR137: 5530
C138: Natural | D138: 54 | E138: NORTE DE SANTANDER | F138: 54001 | G138: CÚCUTA | H138: 4923 | I138: TRANSPORTE Y ALMACENAMIENTO | P138: 250000 | V138: 0 | W138: 0 | X138: Natural | Y138: 5 | Z138: ANTIOQUIA | AA138: 5266 | AB138: ENVIGADO | AC138: 1081 | AD138: INDUSTRIAS MANUFACTURERAS | AE138: 0 | AF138: 0 | AG138: 0 | AH138: 0 | AI138: 0 | AJ138: 0 | AK138: 0 | AL138: 0 | AM138: 0 | AR138: 7730
C139: Natural | D139: 54 | E139: NORTE DE SANTANDER | F139: 54498 | G139: OCAÑA | H139: 4923 | I139: TRANSPORTE Y ALMACENAMIENTO | P139: 0 | V139: 0 | W139: 0 | X139: Natural | Y139: 5 | Z139: ANTIOQUIA | AA139: 5360 | AB139: ITAGUI | AC139: 8121 | AD139: ACTIVIDADES DE SERVICIOS ADMINISTRATIVOS Y DE APOYO | AE139: 0 | AF139: 0 | AG139: 0 | AH139: 0 | AI139: 0 | AJ139: 0 | AK139: 1400000 | AL139: 0 | AM139: 0 | AR139: 4112
C140: Natural | D140: 54 | E140: NORTE DE SANTANDER | F140: 54518 | G140: PAMPLONA | H140: 5611 | I140: ALOJAMIENTO Y SERVICIOS DE COMIDA | P140: 20184262 | V140: 0 | W140: 0 | X140: Natural | Y140: 5 | Z140: ANTIOQUIA | AA140: 5615 | AB140: RIONEGRO | AC140: 5511 | AD140: ALOJAMIENTO Y SERVICIOS DE COMIDA | AE140: 0 | AF140: 0 | AG140: 0 | AH140: 0 | AI140: 0 | AJ140: 0 | AK140: 4550000 | AL140: 0 | AM140: 0 | AR140: 1392
C141: Natural | D141: 54 | E141: NORTE DE SANTANDER | F141: 54001 | G141: CÚCUTA | H141: 4752 | I141: COMERCIO AL POR MAYOR Y AL POR MENOR; REPARACIÓN DE VEHÍCULOS AUTOMOTORES Y MOTOCICLETAS | P141: 100000 | V141: 0 | W141: 0 | X141: Natural | Y141: 5 | Z141: ANTIOQUIA | AA141: 5264 | AB141: ENTRERRIOS | AC141: 141 | AD141: AGRICULTURA, GANADERÍA, CAZA, SILVICULTURA Y PESCA | AE141: 0 | AF141: 0 | AG141: 0 | AH141: 0 | AI141: 0 | AJ141: 0 | AK141: 2910000 | AL141: 0 | AM141: 0 | AR141: 125
C142: Natural | D142: 68 | E142: SANTANDER | F142: 68001 | G142: BUCARAMANGA | H142: 1610 | I142: INDUSTRIAS MANUFACTURERAS | P142: 250000 | V142: 0 | W142: 0 | X142: Natural | Y142: 5 | Z142: ANTIOQUIA | AA142: 5001 | AB142: MEDELLÍN | AC142: 4541 | AD142: COMERCIO AL POR MAYOR Y AL POR MENOR; REPARACIÓN DE VEHÍCULOS AUTOMOTORES Y MOTOCICLETAS | AE142: 0 | AF142: 0 | AG142: 0 | AH142: 0 | AI142: 0 | AJ142: 0 | AK142: 2550000 | AL142: 0 | AM142: 0 | AR142: 4511
C143: Natural | D143: 11 | E143: BOGOTÁ, D.C. | F143: 11001 | G143: BOGOTÁ, D.C. | H143: 1410 | I143: INDUSTRIAS MANUFACTURERAS | P143: 0 | V143: 0 | W143: 0 | X143: Natural | Y143: 5 | Z143: ANTIOQUIA | AA143: 5001 | AB143: MEDELLÍN | AC143: 4771 | AD143: COMERCIO AL POR MAYOR Y AL POR MENOR; REPARACIÓN DE VEHÍCULOS AUTOMOTORES Y MOTOCICLETAS | AE143: 0 | AF143: 0 | AG143: 0 | AH143: 0 | AI143: 0 | AJ143: 0 | AK143: 0 | AL143: 0 | AM143: 0 | AR143: 8610
C144: Natural | D144: 11 | E144: BOGOTÁ, D.C. | F144: 11001 | G144: BOGOTÁ, D.C. | H144: 4773 | I144: COMERCIO AL POR MAYOR Y AL POR MENOR; REPARACIÓN DE VEHÍCULOS AUTOMOTORES Y MOTOCICLETAS | P144: 0 | V144: 0 | W144: 0 | X144: Natural | Y144: 5 | Z144: ANTIOQUIA | AA144: 5001 | AB144: MEDELLÍN | AC144: 4752 | AD144: COMERCIO AL POR MAYOR Y AL POR MENOR; REPARACIÓN DE VEHÍCULOS AUTOMOTORES Y MOTOCICLETAS | AE144: 0 | AF144: 0 | AG144: 0 | AH144: 0 | AI144: 0 | AJ144: 0 | AK144: 200000 | AL144: 0 | AM144: 0 | AR144: 7820
C145: Natural | D145: 68 | E145: SANTANDER | F145: 68001 | G145: BUCARAMANGA | H145: 4774 | I145: COMERCIO AL POR MAYOR Y AL POR MENOR; REPARACIÓN DE VEHÍCULOS AUTOMOTORES Y MOTOCICLETAS | P145: 6250000 | V145: 0 | W145: 0 | X145: Natural | Y145: 5 | Z145: ANTIOQUIA | AA145: 5376 | AB145: LA CEJA | AC145: 5611 | AD145: ALOJAMIENTO Y SERVICIOS DE COMIDA | AE145: 0 | AF145: 0 | AG145: 0 | AH145: 0 | AI145: 0 | AJ145: 0 | AK145: 817671 | AL145: 0 | AM145: 0 | AR145: 1063
C146: Natural | D146: 68 | E146: SANTANDER | F146: 68001 | G146: BUCARAMANGA | H146: 4729 | I146: COMERCIO AL POR MAYOR Y AL POR MENOR; REPARACIÓN DE VEHÍCULOS AUTOMOTORES Y MOTOCICLETAS | P146: 0 | V146: 0 | W146: 0 | X146: Natural | Y146: 5 | Z146: ANTIOQUIA | AA146: 5656 | AB146: SAN JERÓNIMO | AC146: 4759 | AD146: COMERCIO AL POR MAYOR Y AL POR MENOR; REPARACIÓN DE VEHÍCULOS AUTOMOTORES Y MOTOCICLETAS | AE146: 0 | AF146: 0 | AG146: 0 | AH146: 0 | AI146: 0 | AJ146: 0 | AK146: 4256000 | AL146: 0 | AM146: 0 | AR146: 1620
C147: Natural | D147: 68 | E147: SANTANDER | F147: 68307 | G147: GIRÓN | H147: 8513 | I147: EDUCACIÓN | P147: 0 | V147: 0 | W147: 0 | X147: Natural | Y147: 5 | Z147: ANTIOQUIA | AA147: 5628 | AB147: SABANALARGA | AC147: 4719 | AD147: COMERCIO AL POR MAYOR Y AL POR MENOR; REPARACIÓN DE VEHÍCULOS AUTOMOTORES Y MOTOCICLETAS | AE147: 0 | AF147: 0 | AG147: 0 | AH147: 0 | AI147: 0 | AJ147: 0 | AK147: 5222243 | AL147: 0 | AM147: 0 | AR147: 2229
C148: Natural | D148: 11 | E148: BOGOTÁ, D.C. | F148: 11001 | G148: BOGOTÁ, D.C. | H148: 4732 | I148: COMERCIO AL POR MAYOR Y AL POR MENOR; REPARACIÓN DE VEHÍCULOS AUTOMOTORES Y MOTOCICLETAS | P148: 11866421 | V148: 0 | W148: 0 | X148: Natural | Y148: 5 | Z148: ANTIOQUIA | AA148: 5088 | AB148: BELLO | AC148: 8530 | AD148: EDUCACIÓN | AE148: 0 | AF148: 0 | AG148: 0 | AH148: 0 | AI148: 0 | AJ148: 0 | AK148: 0 | AL148: 0 | AM148: 0 | AR148: 7110
C149: Natural | D149: 54 | E149: NORTE DE SANTANDER | F149: 54001 | G149: CÚCUTA | H149: 1410 | I149: INDUSTRIAS MANUFACTURERAS | P149: 1158524 | V149: 0 | W149: 0 | X149: Natural | Y149: 5 | Z149: ANTIOQUIA | AA149: 5360 | AB149: ITAGUI | AC149: 4771 | AD149: COMERCIO AL POR MAYOR Y AL POR MENOR; REPARACIÓN DE VEHÍCULOS AUTOMOTORES Y MOTOCICLETAS | AE149: 0 | AF149: 0 | AG149: 0 | AH149: 0 | AI149: 0 | AJ149: 0 | AK149: 2250000 | AL149: 0 | AM149: 0 | AR149: 5229
C150: Natural | D150: 68 | E150: SANTANDER | F150: 68001 | G150: BUCARAMANGA | H150: 7420 | I150: ACTIVIDADES PROFESIONALES, CIENTÍFICAS Y TÉCNICAS | P150: 1710000 | V150: 0 | W150: 0 | X150: Natural | Y150: 5 | Z150: ANTIOQUIA | AA150: 5360 | AB150: ITAGUI | AC150: 1020 | AD150: INDUSTRIAS MANUFACTURERAS | AE150: 0 | AF150: 0 | AG150: 0 | AH150: 0 | AI150: 0 | AJ150: 0 | AK150: 0 | AL150: 0 | AM150: 0 | AR150: 5629
C151: Natural | D151: 68 | E151: SANTANDER | F151: 68547 | G151: PIEDECUESTA | H151: 1410 | I151: INDUSTRIAS MANUFACTURERAS | P151: 0 | V151: 0 | W151: 0 | X151: Natural | Y151: 5 | Z151: ANTIOQUIA | AA151: 5480 | AB151: MUTATÁ | AC151: 4752 | AD151: COMERCIO AL POR MAYOR Y AL POR MENOR; REPARACIÓN DE VEHÍCULOS AUTOMOTORES Y MOTOCICLETAS | AE151: 0 | AF151: 0 | AG151: 0 | AH151: 0 | AI151: 0 | AJ151: 0 | AK151: 0 | AL151: 0 | AM151: 0 | AR151: 3315
C152: Natural | D152: 68 | E152: SANTANDER | F152: 68081 | G152: BARRANCABERMEJA | H152: 4731 | I152: COMERCIO AL POR MAYOR Y AL POR MENOR; REPARACIÓN DE VEHÍCULOS AUTOMOTORES Y MOTOCICLETAS | P152: 0 | V152: 0 | W152: 0 | X152: Natural | Y152: 5 | Z152: ANTIOQUIA | AA152: 5001 | AB152: MEDELLÍN | AC152: 4754 | AD152: COMERCIO AL POR MAYOR Y AL POR MENOR; REPARACIÓN DE VEHÍCULOS AUTOMOTORES Y MOTOCICLETAS | AE152: 0 | AF152: 0 | AG152: 0 | AH152: 0 | AI152: 0 | AJ152: 0 | AK152: 0 | AL152: 0 | AM152: 0 | AR152: 5021
C153: Natural | D153: 68 | E153: SANTANDER | F153: 68679 | G153: SAN GIL | H153: 4711 | I153: COMERCIO AL POR MAYOR Y AL POR MENOR; REPARACIÓN DE VEHÍCULOS AUTOMOTORES Y MOTOCICLETAS | P153: 22200000 | V153: 0 | W153: 0 | X153: Natural | Y153: 5 | Z153: ANTIOQUIA | AA153: 5001 | AB153: MEDELLÍN | AC153: 4761 | AD153: COMERCIO AL POR MAYOR Y AL POR MENOR; REPARACIÓN DE VEHÍCULOS AUTOMOTORES Y MOTOCICLETAS | AE153: 0 | AF153: 0 | AG153: 0 | AH153: 0 | AI153: 0 | AJ153: 0 | AK153: 4552000 | AL153: 0 | AM153: 0 | AR153: 5320
C154: Natural | D154: 11 | E154: BOGOTÁ, D.C. | F154: 11001 | G154: BOGOTÁ, D.C. | H154: 4723 | I154: COMERCIO AL POR MAYOR Y AL POR MENOR; REPARACIÓN DE VEHÍCULOS AUTOMOTORES Y MOTOCICLETAS | P154: 0 | V154: 0 | W154: 0 | X154: Natural | Y154: 5 | Z154: ANTIOQUIA | AA154: 5001 | AB154: MEDELLÍN | AC154: 5613 | AD154: ALOJAMIENTO Y SERVICIOS DE COMIDA | AE154: 0 | AF154: 0 | AG154: 0 | AH154: 0 | AI154: 0 | AJ154: 0 | AK154: 1000000 | AL154: 0 | AM154: 0 | AR154: 8699
C155: Natural | D155: 5 | E155: ANTIOQUIA | F155: 5001 | G155: MEDELLÍN | H155: 4390 | I155: CONSTRUCCIÓN | P155: 0 | V155: 0 | W155: 0 | X155: Natural | Y155: 5 | Z155: ANTIOQUIA | AA155: 5059 | AB155: ARMENIA | AC155: 4520 | AD155: COMERCIO AL POR MAYOR Y AL POR MENOR; REPARACIÓN DE VEHÍCULOS AUTOMOTORES Y MOTOCICLETAS | AE155: 0 | AF155: 0 | AG155: 0 | AH155: 0 | AI155: 0 | AJ155: 0 | AK155: 0 | AL155: 0 | AM155: 0 | AR155: 3312
C156: Natural | D156: 68 | E156: SANTANDER | F156: 68861 | G156: VÉLEZ | H156: 1089 | I156: INDUSTRIAS MANUFACTURERAS | P156: 954262 | V156: 0 | W156: 0 | X156: Natural | Y156: 5 | Z156: ANTIOQUIA | AA156: 5360 | AB156: ITAGUI | AC156: 8121 | AD156: ACTIVIDADES DE SERVICIOS ADMINISTRATIVOS Y DE APOYO | AE156: 0 | AF156: 0 | AG156: 0 | AH156: 0 | AI156: 0 | AJ156: 0 | AK156: 14308521 | AL156: 0 | AM156: 0 | AR156: 2014
C157: Natural | D157: 68 | E157: SANTANDER | F157: 68001 | G157: BUCARAMANGA | H157: 6621 | I157: ACTIVIDADES FINANCIERAS Y DE SEGUROS | P157: 0 | V157: 0 | W157: 0 | X157: Natural | Y157: 5 | Z157: ANTIOQUIA | AA157: 5360 | AB157: ITAGUI | AC157: 3240 | AD157: INDUSTRIAS MANUFACTURERAS | AE157: 0 | AF157: 0 | AG157: 0 | AH157: 0 | AI157: 0 | AJ157: 0 | AK157: 2580000 | AL157: 0 | AM157: 0 | AR157: 1521
C158: Natural | D158: 68 | E158: SANTANDER | F158: 68001 | G158: BUCARAMANGA | H158: 4711 | I158: COMERCIO AL POR MAYOR Y AL POR MENOR; REPARACIÓN DE VEHÍCULOS AUTOMOTORES Y MOTOCICLETAS | P158: 1000000 | V158: 0 | W158: 0 | X158: Natural | Y158: 5 | Z158: ANTIOQUIA | AA158: 5001 | AB158: MEDELLÍN | AC158: 4762 | AD158: COMERCIO AL POR MAYOR Y AL POR MENOR; REPARACIÓN DE VEHÍCULOS AUTOMOTORES Y MOTOCICLETAS | AE158: 0 | AF158: 0 | AG158: 0 | AH158: 0 | AI158: 0 | AJ158: 0 | AK158: 1250000 | AL158: 0 | AM158: 0 | AR158: 4651
C159: Natural | D159: 68 | E159: SANTANDER | F159: 68079 | G159: BARICHARA | H159: 5511 | I159: ALOJAMIENTO Y SERVICIOS DE COMIDA | P159: 0 | V159: 0 | W159: 0 | X159: Natural | Y159: 5 | Z159: ANTIOQUIA | AA159: 5001 | AB159: MEDELLÍN | AC159: 8622 | AD159: ACTIVIDADES DE ATENCIÓN DE LA SALUD HUMANA Y DE ASISTENCIA SOCIAL | AE159: 0 | AF159: 0 | AG159: 0 | AH159: 0 | AI159: 0 | AJ159: 0 | AK159: 727131 | AL159: 0 | AM159: 0 | AR159: 6499
C160: Natural | D160: 11 | E160: BOGOTÁ, D.C. | F160: 11001 | G160: BOGOTÁ, D.C. | H160: 8121 | I160: ACTIVIDADES DE SERVICIOS ADMINISTRATIVOS Y DE APOYO | P160: 400000 | V160: 0 | W160: 0 | X160: Natural | Y160: 5 | Z160: ANTIOQUIA | AA160: 5686 | AB160: SANTA ROSA DE OSOS | AC160: 4771 | AD160: COMERCIO AL POR MAYOR Y AL POR MENOR; REPARACIÓN DE VEHÍCULOS AUTOMOTORES Y MOTOCICLETAS | AE160: 0 | AF160: 0 | AG160: 0 | AH160: 0 | AI160: 0 | AJ160: 0 | AK160: 1250000 | AL160: 0 | AM160: 0 | AR160: 5223
C161: Natural | D161: 73 | E161: TOLIMA | F161: 73001 | G161: IBAGUÉ | H161: 4751 | I161: COMERCIO AL POR MAYOR Y AL POR MENOR; REPARACIÓN DE VEHÍCULOS AUTOMOTORES Y MOTOCICLETAS | P161: 0 | V161: 0 | W161: 0 | X161: Natural | Y161: 5 | Z161: ANTIOQUIA | AA161: 5088 | AB161: BELLO | AC161: 4759 | AD161: COMERCIO AL POR MAYOR Y AL POR MENOR; REPARACIÓN DE VEHÍCULOS AUTOMOTORES Y MOTOCICLETAS | AE161: 0 | AF161: 0 | AG161: 0 | AH161: 0 | AI161: 0 | AJ161: 0 | AK161: 100000 | AL161: 0 | AM161: 0 | AR161: 9499
C162: Natural | D162: 41 | E162: HUILA | F162: 41001 | G162: NEIVA | H162: 5511 | I162: ALOJAMIENTO Y SERVICIOS DE COMIDA | P162: 750000 | V162: 0 | W162: 0 | X162: Natural | Y162: 5 | Z162: ANTIOQUIA | AA162: 5001 | AB162: MEDELLÍN | AC162: 5613 | AD162: ALOJAMIENTO Y SERVICIOS DE COMIDA | AE162: 0 | AF162: 0 | AG162: 0 | AH162: 0 | AI162: 0 | AJ162: 0 | AK162: 500000 | AL162: 0 | AM162: 0 | AR162: 2012
C163: Natural | D163: 11 | E163: BOGOTÁ, D.C. | F163: 11001 | G163: BOGOTÁ, D.C. | H163: 6910 | I163: ACTIVIDADES PROFESIONALES, CIENTÍFICAS Y TÉCNICAS | P163: 0 | V163: 0 | W163: 0 | X163: Natural | Y163: 5 | Z163: ANTIOQUIA | AA163: 5001 | AB163: MEDELLÍN | AC163: 8430 | AD163: ADMINISTRACIÓN PÚBLICA Y DEFENSA; PLANES DE SEGURIDAD SOCIAL DE AFILIACIÓN OBLIGATORIA | AE163: 0 | AF163: 0 | AG163: 0 | AH163: 0 | AI163: 0 | AJ163: 0 | AK163: 0 | AL163: 0 | AM163: 0 | AR163: 2022
C164: Natural | D164: 73 | E164: TOLIMA | F164: 73001 | G164: IBAGUÉ | H164: 4773 | I164: COMERCIO AL POR MAYOR Y AL POR MENOR; REPARACIÓN DE VEHÍCULOS AUTOMOTORES Y MOTOCICLETAS | P164: 550000 | V164: 0 | W164: 0 | X164: Natural | Y164: 5 | Z164: ANTIOQUIA | AA164: 5001 | AB164: MEDELLÍN | AC164: 6920 | AD164: ACTIVIDADES PROFESIONALES, CIENTÍFICAS Y TÉCNICAS | AE164: 0 | AF164: 0 | AG164: 0 | AH164: 0 | AI164: 0 | AJ164: 0 | AK164: 1589914 | AL164: 0 | AM164: 0 | AR164: 8020
C165: Natural | D165: 76 | E165: VALLE DEL CAUCA | F165: 76001 | G165: CALI | H165: 1811 | I165: INDUSTRIAS MANUFACTURERAS | P165: 750000 | V165: 0 | W165: 0 | X165: Natural | Y165: 5 | Z165: ANTIOQUIA | AA165: 5664 | AB165: SAN PEDRO DE LOS MILAGROS | AC165: 8291 | AD165: ACTIVIDADES DE SERVICIOS ADMINISTRATIVOS Y DE APOYO | AE165: 0 | AF165: 0 | AG165: 0 | AH165: 0 | AI165: 0 | AJ165: 0 | AK165: 0 | AL165: 0 | AM165: 0 | AR165: 9321
C166: Natural | D166: 73 | E166: TOLIMA | F166: 73001 | G166: IBAGUÉ | H166: 4752 | I166: COMERCIO AL POR MAYOR Y AL POR MENOR; REPARACIÓN DE VEHÍCULOS AUTOMOTORES Y MOTOCICLETAS | P166: 2408524 | V166: 0 | W166: 0 | X166: Natural | Y166: 5 | Z166: ANTIOQUIA | AA166: 5282 | AB166: FREDONIA | AC166: 4711 | AD166: COMERCIO AL POR MAYOR Y AL POR MENOR; REPARACIÓN DE VEHÍCULOS AUTOMOTORES Y MOTOCICLETAS | AE166: 0 | AF166: 0 | AG166: 0 | AH166: 0 | AI166: 0 | AJ166: 0 | AK166: 0 | AL166: 0 | AM166: 0 | AR166: 7830
C167: Natural | D167: 73 | E167: TOLIMA | F167: 73268 | G167: ESPINAL | H167: 4290 | I167: CONSTRUCCIÓN | P167: 0 | V167: 0 | W167: 0 | X167: Natural | Y167: 5 | Z167: ANTIOQUIA | AA167: 5001 | AB167: MEDELLÍN | AC167: 4711 | AD167: COMERCIO AL POR MAYOR Y AL POR MENOR; REPARACIÓN DE VEHÍCULOS AUTOMOTORES Y MOTOCICLETAS | AE167: 0 | AF167: 0 | AG167: 0 | AH167: 0 | AI167: 0 | AJ167: 0 | AK167: 0 | AL167: 0 | AM167: 0 | AR167: 4664
C168: Natural | D168: 5 | E168: ANTIOQUIA | F168: 5001 | G168: MEDELLÍN | H168: 4719 | I168: COMERCIO AL POR MAYOR Y AL POR MENOR; REPARACIÓN DE VEHÍCULOS AUTOMOTORES Y MOTOCICLETAS | P168: 0 | V168: 0 | W168: 0 | X168: Natural | Y168: 5 | Z168: ANTIOQUIA | AA168: 5001 | AB168: MEDELLÍN | AC168: 4724 | AD168: COMERCIO AL POR MAYOR Y AL POR MENOR; REPARACIÓN DE VEHÍCULOS AUTOMOTORES Y MOTOCICLETAS | AE168: 0 | AF168: 0 | AG168: 0 | AH168: 0 | AI168: 0 | AJ168: 0 | AK168: 150000 | AL168: 0 | AM168: 0 | AR168: 3120
C169: Natural | D169: 66 | E169: RISARALDA | F169: 66170 | G169: DOSQUEBRADAS | H169: 4923 | I169: TRANSPORTE Y ALMACENAMIENTO | P169: 0 | V169: 0 | W169: 0 | X169: Natural | Y169: 5 | Z169: ANTIOQUIA | AA169: 5697 | AB169: EL SANTUARIO | AC169: 4774 | AD169: COMERCIO AL POR MAYOR Y AL POR MENOR; REPARACIÓN DE VEHÍCULOS AUTOMOTORES Y MOTOCICLETAS | AE169: 0 | AF169: 0 | AG169: 0 | AH169: 0 | AI169: 0 | AJ169: 0 | AK169: 0 | AL169: 0 | AM169: 0 | AR169: 4644
C170: Natural | D170: 50 | E170: META | F170: 50001 | G170: VILLAVICENCIO | H170: 5511 | I170: ALOJAMIENTO Y SERVICIOS DE COMIDA | P170: 4253949 | V170: 0 | W170: 0 | X170: Natural | Y170: 5 | Z170: ANTIOQUIA | AA170: 5001 | AB170: MEDELLÍN | AC170: 9609 | AD170: OTRAS ACTIVIDADES DE SERVICIOS | AE170: 0 | AF170: 0 | AG170: 0 | AH170: 0 | AI170: 0 | AJ170: 0 | AK170: 0 | AL170: 0 | AM170: 0 | AR170: 2826
C171: Natural | D171: 76 | E171: VALLE DEL CAUCA | F171: 76834 | G171: TULUÁ | H171: 4751 | I171: COMERCIO AL POR MAYOR Y AL POR MENOR; REPARACIÓN DE VEHÍCULOS AUTOMOTORES Y MOTOCICLETAS | P171: 3328000 | V171: 0 | W171: 0 | X171: Natural | Y171: 5 | Z171: ANTIOQUIA | AA171: 5686 | AB171: SANTA ROSA DE OSOS | AC171: 1410 | AD171: INDUSTRIAS MANUFACTURERAS | AE171: 0 | AF171: 0 | AG171: 0 | AH171: 0 | AI171: 0 | AJ171: 0 | AK171: 0 | AL171: 0 | AM171: 0 | AR171: 4641
C172: Natural | D172: 76 | E172: VALLE DEL CAUCA | F172: 76020 | G172: ALCALÁ | H172: 4752 | I172: COMERCIO AL POR MAYOR Y AL POR MENOR; REPARACIÓN DE VEHÍCULOS AUTOMOTORES Y MOTOCICLETAS | P172: 2000000 | V172: 0 | W172: 0 | X172: Natural | Y172: 5 | Z172: ANTIOQUIA | AA172: 5368 | AB172: JERICÓ | AC172: 5611 | AD172: ALOJAMIENTO Y SERVICIOS DE COMIDA | AE172: 0 | AF172: 0 | AG172: 0 | AH172: 0 | AI172: 0 | AJ172: 0 | AK172: 7834000 | AL172: 0 | AM172: 0 | AR172: 2100
C173: Natural | D173: 76 | E173: VALLE DEL CAUCA | F173: 76001 | G173: CALI | H173: 4762 | I173: COMERCIO AL POR MAYOR Y AL POR MENOR; REPARACIÓN DE VEHÍCULOS AUTOMOTORES Y MOTOCICLETAS | P173: 0 | V173: 0 | W173: 0 | X173: Natural | Y173: 5 | Z173: ANTIOQUIA | AA173: 5001 | AB173: MEDELLÍN | AC173: 4771 | AD173: COMERCIO AL POR MAYOR Y AL POR MENOR; REPARACIÓN DE VEHÍCULOS AUTOMOTORES Y MOTOCICLETAS | AE173: 0 | AF173: 0 | AG173: 0 | AH173: 0 | AI173: 0 | AJ173: 0 | AK173: 0 | AL173: 0 | AM173: 0 | AR173: 126
C174: Natural | D174: 76 | E174: VALLE DEL CAUCA | F174: 76001 | G174: CALI | H174: 150 | I174: AGRICULTURA, GANADERÍA, CAZA, SILVICULTURA Y PESCA | P174: 0 | V174: 0 | W174: 0 | X174: Natural | Y174: 5 | Z174: ANTIOQUIA | AA174: 5001 | AB174: MEDELLÍN | AC174: 1051 | AD174: INDUSTRIAS MANUFACTURERAS | AE174: 0 | AF174: 0 | AG174: 0 | AH174: 0 | AI174: 0 | AJ174: 0 | AK174: 2498441 | AL174: 0 | AM174: 0 | AR174: 5811
C175: Natural | D175: 11 | E175: BOGOTÁ, D.C. | F175: 11001 | G175: BOGOTÁ, D.C. | H175: 2599 | I175: INDUSTRIAS MANUFACTURERAS | P175: 0 | V175: 0 | W175: 0 | X175: Natural | Y175: 5 | Z175: ANTIOQUIA | AA175: 5665 | AB175: SAN PEDRO DE URABA | AC175: 4773 | AD175: COMERCIO AL POR MAYOR Y AL POR MENOR; REPARACIÓN DE VEHÍCULOS AUTOMOTORES Y MOTOCICLETAS | AE175: 0 | AF175: 0 | AG175: 0 | AH175: 0 | AI175: 0 | AJ175: 0 | AK175: 4196000 | AL175: 0 | AM175: 0 | AR175: 8220
C176: Natural | D176: 76 | E176: VALLE DEL CAUCA | F176: 76001 | G176: CALI | H176: 5611 | I176: ALOJAMIENTO Y SERVICIOS DE COMIDA | P176: 6370000 | V176: 0 | W176: 0 | X176: Natural | Y176: 5 | Z176: ANTIOQUIA | AA176: 5390 | AB176: LA PINTADA | AC176: 4723 | AD176: COMERCIO AL POR MAYOR Y AL POR MENOR; REPARACIÓN DE VEHÍCULOS AUTOMOTORES Y MOTOCICLETAS | AE176: 0 | AF176: 0 | AG176: 0 | AH176: 0 | AI176: 0 | AJ176: 0 | AK176: 0 | AL176: 0 | AM176: 0 | AR176: 1312
C177: Natural | D177: 5 | E177: ANTIOQUIA | F177: 5001 | G177: MEDELLÍN | H177: 1410 | I177: INDUSTRIAS MANUFACTURERAS | P177: 0 | V177: 0 | W177: 0 | X177: Natural | Y177: 5 | Z177: ANTIOQUIA | AA177: 5147 | AB177: CAREPA | AC177: 4773 | AD177: COMERCIO AL POR MAYOR Y AL POR MENOR; REPARACIÓN DE VEHÍCULOS AUTOMOTORES Y MOTOCICLETAS | AE177: 0 | AF177: 0 | AG177: 0 | AH177: 0 | AI177: 0 | AJ177: 0 | AK177: 0 | AL177: 0 | AM177: 0 | AR177: 2011
C178: Natural | D178: 76 | E178: VALLE DEL CAUCA | F178: 76122 | G178: CAICEDONIA | H178: 6920 | I178: ACTIVIDADES PROFESIONALES, CIENTÍFICAS Y TÉCNICAS | P178: 250000 | V178: 0 | W178: 0 | X178: Natural | Y178: 5 | Z178: ANTIOQUIA | AA178: 5380 | AB178: LA ESTRELLA | AC178: 5611 | AD178: ALOJAMIENTO Y SERVICIOS DE COMIDA | AE178: 0 | AF178: 0 | AG178: 0 | AH178: 0 | AI178: 0 | AJ178: 0 | AK178: 0 | AL178: 0 | AM178: 0 | AR178: 1709
C179: Natural | D179: 76 | E179: VALLE DEL CAUCA | F179: 76248 | G179: EL CERRITO | H179: 3110 | I179: INDUSTRIAS MANUFACTURERAS | P179: 0 | V179: 0 | W179: 0 | X179: Natural | Y179: 5 | Z179: ANTIOQUIA | AA179: 5266 | AB179: ENVIGADO | AC179: 6820 | AD179: ACTIVIDADES INMOBILIARIAS | AE179: 0 | AF179: 0 | AG179: 0 | AH179: 0 | AI179: 0 | AJ179: 0 | AK179: 250000 | AL179: 0 | AM179: 0 | AR179: 6629
C180: Natural | D180: 50 | E180: META | F180: 50001 | G180: VILLAVICENCIO | H180: 4719 | I180: COMERCIO AL POR MAYOR Y AL POR MENOR; REPARACIÓN DE VEHÍCULOS AUTOMOTORES Y MOTOCICLETAS | P180: 0 | V180: 0 | W180: 0 | X180: Natural | Y180: 5 | Z180: ANTIOQUIA | AA180: 5266 | AB180: ENVIGADO | AC180: 8511 | AD180: EDUCACIÓN | AE180: 0 | AF180: 0 | AG180: 0 | AH180: 0 | AI180: 0 | AJ180: 0 | AK180: 0 | AL180: 0 | AM180: 0 | AR180: 7410
C181: Natural | D181: 76 | E181: VALLE DEL CAUCA | F181: 76892 | G181: YUMBO | H181: 1690 | I181: INDUSTRIAS MANUFACTURERAS | P181: 0 | V181: 0 | W181: 0 | X181: Natural | Y181: 5 | Z181: ANTIOQUIA | AA181: 5088 | AB181: BELLO | AC181: 5613 | AD181: ALOJAMIENTO Y SERVICIOS DE COMIDA | AE181: 0 | AF181: 0 | AG181: 0 | AH181: 0 | AI181: 0 | AJ181: 0 | AK181: 11976000 | AL181: 0 | AM181: 0 | AR181: 9521
C182: Natural | D182: 76 | E182: VALLE DEL CAUCA | F182: 76400 | G182: LA UNIÓN | H182: 130 | I182: AGRICULTURA, GANADERÍA, CAZA, SILVICULTURA Y PESCA | P182: 6198441 | V182: 0 | W182: 0 | X182: Natural | Y182: 5 | Z182: ANTIOQUIA | AA182: 5129 | AB182: CALDAS | AC182: 4752 | AD182: COMERCIO AL POR MAYOR Y AL POR MENOR; REPARACIÓN DE VEHÍCULOS AUTOMOTORES Y MOTOCICLETAS | AE182: 0 | AF182: 0 | AG182: 0 | AH182: 0 | AI182: 0 | AJ182: 0 | AK182: 227131 | AL182: 0 | AM182: 0 | AR182: 3511
C183: Natural | D183: 76 | E183: VALLE DEL CAUCA | F183: 76001 | G183: CALI | H183: 4741 | I183: COMERCIO AL POR MAYOR Y AL POR MENOR; REPARACIÓN DE VEHÍCULOS AUTOMOTORES Y MOTOCICLETAS | P183: 290852 | V183: 0 | W183: 0 | X183: Natural | Y183: 5 | Z183: ANTIOQUIA | AA183: 5266 | AB183: ENVIGADO | AC183: 8230 | AD183: ACTIVIDADES DE SERVICIOS ADMINISTRATIVOS Y DE APOYO | AE183: 0 | AF183: 0 | AG183: 0 | AH183: 0 | AI183: 0 | AJ183: 0 | AK183: 0 | AL183: 0 | AM183: 0 | AR183: 5224
C184: Natural | D184: 76 | E184: VALLE DEL CAUCA | F184: 76001 | G184: CALI | H184: 1081 | I184: INDUSTRIAS MANUFACTURERAS | P184: 500000 | V184: 0 | W184: 0 | X184: Natural | Y184: 5 | Z184: ANTIOQUIA | AA184: 5001 | AB184: MEDELLÍN | AC184: 4741 | AD184: COMERCIO AL POR MAYOR Y AL POR MENOR; REPARACIÓN DE VEHÍCULOS AUTOMOTORES Y MOTOCICLETAS | AE184: 0 | AF184: 0 | AG184: 0 | AH184: 0 | AI184: 0 | AJ184: 0 | AK184: 0 | AL184: 0 | AM184: 0 | AR184: 2029
C185: Natural | D185: 17 | E185: CALDAS | F185: 17442 | G185: MARMATO | H185: 722 | I185: EXPLOTACIÓN DE MINAS Y CANTERAS | P185: 0 | V185: 0 | W185: 0 | X185: Natural | Y185: 5 | Z185: ANTIOQUIA | AA185: 5360 | AB185: ITAGUI | AC185: 4724 | AD185: COMERCIO AL POR MAYOR Y AL POR MENOR; REPARACIÓN DE VEHÍCULOS AUTOMOTORES Y MOTOCICLETAS | AE185: 0 | AF185: 0 | AG185: 0 | AH185: 0 | AI185: 0 | AJ185: 0 | AK185: 750000 | AL185: 0 | AM185: 0 | AR185: 8522
C186: Natural | D186: 76 | E186: VALLE DEL CAUCA | F186: 76122 | G186: CAICEDONIA | H186: 4669 | I186: COMERCIO AL POR MAYOR Y AL POR MENOR; REPARACIÓN DE VEHÍCULOS AUTOMOTORES Y MOTOCICLETAS | P186: 0 | V186: 0 | W186: 0 | X186: Natural | Y186: 5 | Z186: ANTIOQUIA | AA186: 5001 | AB186: MEDELLÍN | AC186: 4761 | AD186: COMERCIO AL POR MAYOR Y AL POR MENOR; REPARACIÓN DE VEHÍCULOS AUTOMOTORES Y MOTOCICLETAS | AE186: 0 | AF186: 0 | AG186: 0 | AH186: 0 | AI186: 0 | AJ186: 0 | AK186: 0 | AL186: 0 | AM186: 0 | AR186: 6492
C187: Natural | D187: 76 | E187: VALLE DEL CAUCA | F187: 76001 | G187: CALI | H187: 1410 | I187: INDUSTRIAS MANUFACTURERAS | P187: 227131 | V187: 0 | W187: 0 | X187: Natural | Y187: 5 | Z187: ANTIOQUIA | AA187: 5001 | AB187: MEDELLÍN | AC187: 1410 | AD187: INDUSTRIAS MANUFACTURERAS | AE187: 0 | AF187: 0 | AG187: 0 | AH187: 0 | AI187: 0 | AJ187: 0 | AK187: 272556 | AL187: 0 | AM187: 0 | AR187: 2711
C188: Natural | D188: 11 | E188: BOGOTÁ, D.C. | F188: 11001 | G188: BOGOTÁ, D.C. | H188: 8530 | I188: EDUCACIÓN | P188: 0 | V188: 0 | W188: 0 | X188: Natural | Y188: 5 | Z188: ANTIOQUIA | AA188: 5001 | AB188: MEDELLÍN | AC188: 4773 | AD188: COMERCIO AL POR MAYOR Y AL POR MENOR; REPARACIÓN DE VEHÍCULOS AUTOMOTORES Y MOTOCICLETAS | AE188: 0 | AF188: 0 | AG188: 0 | AH188: 0 | AI188: 0 | AJ188: 0 | AK188: 1250000 | AL188: 0 | AM188: 0 | AR188: 8720
C189: Natural | D189: 76 | E189: VALLE DEL CAUCA | F189: 76834 | G189: TULUÁ | H189: 4774 | I189: COMERCIO AL POR MAYOR Y AL POR MENOR; REPARACIÓN DE VEHÍCULOS AUTOMOTORES Y MOTOCICLETAS | P189: 12524320 | V189: 0 | W189: 0 | X189: Natural | Y189: 5 | Z189: ANTIOQUIA | AA189: 5001 | AB189: MEDELLÍN | AC189: 4775 | AD189: COMERCIO AL POR MAYOR Y AL POR MENOR; REPARACIÓN DE VEHÍCULOS AUTOMOTORES Y MOTOCICLETAS | AE189: 0 | AF189: 0 | AG189: 0 | AH189: 0 | AI189: 0 | AJ189: 0 | AK189: 0 | AL189: 0 | AM189: 0 | AR189: 7010
C190: Natural | D190: 76 | E190: VALLE DEL CAUCA | F190: 76111 | G190: GUADALAJARA DE BUGA | H190: 4923 | I190: TRANSPORTE Y ALMACENAMIENTO | P190: 90852 | V190: 0 | W190: 0 | X190: Natural | Y190: 5 | Z190: ANTIOQUIA | AA190: 5001 | AB190: MEDELLÍN | AC190: 9601 | AD190: OTRAS ACTIVIDADES DE SERVICIOS | AE190: 0 | AF190: 0 | AG190: 0 | AH190: 0 | AI190: 0 | AJ190: 0 | AK190: 0 | AL190: 0 | AM190: 0 | AR190: 6621
C191: Natural | D191: 76 | E191: VALLE DEL CAUCA | F191: 76001 | G191: CALI | H191: 4773 | I191: COMERCIO AL POR MAYOR Y AL POR MENOR; REPARACIÓN DE VEHÍCULOS AUTOMOTORES Y MOTOCICLETAS | P191: 0 | V191: 0 | W191: 0 | X191: Natural | Y191: 5 | Z191: ANTIOQUIA | AA191: 5266 | AB191: ENVIGADO | AC191: 7490 | AD191: ACTIVIDADES PROFESIONALES, CIENTÍFICAS Y TÉCNICAS | AE191: 0 | AF191: 0 | AG191: 0 | AH191: 0 | AI191: 0 | AJ191: 0 | AK191: 2908524 | AL191: 0 | AM191: 0 | AR191: 1040
C192: Natural | D192: 5 | E192: ANTIOQUIA | F192: 5088 | G192: BELLO | H192: 4752 | I192: COMERCIO AL POR MAYOR Y AL POR MENOR; REPARACIÓN DE VEHÍCULOS AUTOMOTORES Y MOTOCICLETAS | P192: 750000 | V192: 0 | W192: 0 | X192: Natural | Y192: 5 | Z192: ANTIOQUIA | AA192: 5615 | AB192: RIONEGRO | AC192: 1081 | AD192: INDUSTRIAS MANUFACTURERAS | AE192: 0 | AF192: 0 | AG192: 0 | AH192: 0 | AI192: 0 | AJ192: 0 | AK192: 5317048 | AL192: 0 | AM192: 0 | AR192: 144
C193: Natural | D193: 41 | E193: HUILA | F193: 41551 | G193: PITALITO | H193: 4711 | I193: COMERCIO AL POR MAYOR Y AL POR MENOR; REPARACIÓN DE VEHÍCULOS AUTOMOTORES Y MOTOCICLETAS | P193: 227131 | V193: 0 | W193: 0 | X193: Natural | Y193: 5 | Z193: ANTIOQUIA | AA193: 5615 | AB193: RIONEGRO | AC193: 4923 | AD193: TRANSPORTE Y ALMACENAMIENTO | AE193: 0 | AF193: 0 | AG193: 0 | AH193: 0 | AI193: 0 | AJ193: 0 | AK193: 763408 | AL193: 0 | AM193: 0 | AR193: 5513
C194: Natural | D194: 15 | E194: BOYACÁ | F194: 15001 | G194: TUNJA | H194: 7420 | I194: ACTIVIDADES PROFESIONALES, CIENTÍFICAS Y TÉCNICAS | P194: 0 | V194: 0 | W194: 0 | X194: Natural | Y194: 5 | Z194: ANTIOQUIA | AA194: 5129 | AB194: CALDAS | AC194: 8129 | AD194: ACTIVIDADES DE SERVICIOS ADMINISTRATIVOS Y DE APOYO | AE194: 0 | AF194: 0 | AG194: 0 | AH194: 0 | AI194: 0 | AJ194: 0 | AK194: 400000 | AL194: 0 | AM194: 0 | AR194: 4329
C195: Natural | D195: 15 | E195: BOYACÁ | F195: 15001 | G195: TUNJA | H195: 8512 | I195: EDUCACIÓN | P195: 0 | V195: 0 | W195: 0 | X195: Natural | Y195: 5 | Z195: ANTIOQUIA | AA195: 5001 | AB195: MEDELLÍN | AC195: 2221 | AD195: INDUSTRIAS MANUFACTURERAS | AE195: 0 | AF195: 0 | AG195: 0 | AH195: 0 | AI195: 0 | AJ195: 0 | AK195: 3181393 | AL195: 0 | AM195: 0 | AR195: 8559
C196: Natural | D196: 11 | E196: BOGOTÁ, D.C. | F196: 11001 | G196: BOGOTÁ, D.C. | H196: 8521 | I196: EDUCACIÓN | P196: 454262 | V196: 0 | W196: 0 | X196: Natural | Y196: 5 | Z196: ANTIOQUIA | AA196: 5079 | AB196: BARBOSA | AC196: 8530 | AD196: EDUCACIÓN | AE196: 0 | AF196: 0 | AG196: 0 | AH196: 0 | AI196: 0 | AJ196: 0 | AK196: 300000 | AL196: 0 | AM196: 0 | AR196: 4643
C197: Natural | D197: 11 | E197: BOGOTÁ, D.C. | F197: 11001 | G197: BOGOTÁ, D.C. | H197: 5611 | I197: ALOJAMIENTO Y SERVICIOS DE COMIDA | P197: 5704262 | V197: 0 | W197: 0 | X197: Natural | Y197: 5 | Z197: ANTIOQUIA | AA197: 5154 | AB197: CAUCASIA | AC197: 8899 | AD197: ACTIVIDADES DE ATENCIÓN DE LA SALUD HUMANA Y DE ASISTENCIA SOCIAL | AE197: 0 | AF197: 0 | AG197: 0 | AH197: 0 | AI197: 0 | AJ197: 0 | AK197: 436278 | AL197: 0 | AM197: 0 | AR197: 7210
C198: Natural | D198: 11 | E198: BOGOTÁ, D.C. | F198: 11001 | G198: BOGOTÁ, D.C. | H198: 4210 | I198: CONSTRUCCIÓN | P198: 10250000 | V198: 0 | W198: 0 | X198: Natural | Y198: 5 | Z198: ANTIOQUIA | AA198: 5154 | AB198: CAUCASIA | AC198: 7730 | AD198: ACTIVIDADES DE SERVICIOS ADMINISTRATIVOS Y DE APOYO | AE198: 0 | AF198: 0 | AG198: 0 | AH198: 0 | AI198: 0 | AJ198: 0 | AK198: 0 | AL198: 0 | AM198: 0 | AR198: 7710
C199: Natural | D199: 50 | E199: META | F199: 50001 | G199: VILLAVICENCIO | H199: 4752 | I199: COMERCIO AL POR MAYOR Y AL POR MENOR; REPARACIÓN DE VEHÍCULOS AUTOMOTORES Y MOTOCICLETAS | P199: 0 | V199: 0 | W199: 0 | X199: Natural | Y199: 5 | Z199: ANTIOQUIA | AA199: 5837 | AB199: TURBO | AC199: 4759 | AD199: COMERCIO AL POR MAYOR Y AL POR MENOR; REPARACIÓN DE VEHÍCULOS AUTOMOTORES Y MOTOCICLETAS | AE199: 0 | AF199: 0 | AG199: 0 | AH199: 0 | AI199: 0 | AJ199: 0 | AK199: 1240540 | AL199: 0 | AM199: 0 | AR199: 9491
C200: Natural | D200: 15 | E200: BOYACÁ | F200: 15001 | G200: TUNJA | H200: 8219 | I200: ACTIVIDADES DE SERVICIOS ADMINISTRATIVOS Y DE APOYO | P200: 0 | V200: 0 | W200: 0 | X200: Natural | Y200: 5 | Z200: ANTIOQUIA | AA200: 5001 | AB200: MEDELLÍN | AC200: 5611 | AD200: ALOJAMIENTO Y SERVICIOS DE COMIDA | AE200: 0 | AF200: 0 | AG200: 0 | AH200: 0 | AI200: 0 | AJ200: 0 | AK200: 381704 | AL200: 0 | AM200: 0 | AR200: 2740
... 2050 more rows

Sheet Mapas (hidden)
B1: ANTIOQUIA | C1: Antioquia | I1: Departamento | J1: Celdas | K1: =+IFERROR(VLOOKUP(Visor!$M$7,Mapas!I2:J34,2,0),"Vacío") -> ANTIOQUIA
B2: ATLÁNTICO | C2: Atlantico | I2: ANTIOQUIA | J2: ANTIOQUIA
B3: CUNDINAMARCA | C3: Cundinamarca | I3: ATLÁNTICO | J3: ATLÁNTICO
B4: VALLE DEL CAUCA | C4: Valle_del_cauca | I4: CUNDINAMARCA | J4: CUNDINAMARCA
B5: AMAZONAS | C5: Amazonas | I5: VALLE DEL CAUCA | J5: VALLE_DEL_CAUCA
B6: ARAUCA | C6: Arauca | I6: AMAZONAS | J6: AMAZONAS
B7: ARCHIPIÉLAGO DE SAN ANDRÉS, PROVIDENCIA Y SANTA CATALINA | C7: Archipielago De San Andres, Providencia Y Santa Catalina | I7: ARAUCA | J7: ARAUCA
B8: BOGOTÁ, D.C. | C8: Bogota, D.C. | I8: ARCHIPIÉLAGO DE SAN ANDRÉS, PROVIDENCIA Y SANTA CATALINA | J8: ARCHIPIÉLAGO_DE_SAN_ANDRÉS__PROVIDENCIA_Y_SANTA_CATALINA
B9: BOLÍVAR | C9: Bolivar | I9: BOGOTÁ, D.C. | J9: BOGOTÁ__D.C.
B10: BOYACÁ | C10: Boyaca | I10: BOLÍVAR | J10: BOLÍVAR
B11: CALDAS | C11: Caldas | I11: BOYACÁ | J11: BOYACÁ
B12: CAQUETÁ | C12: Caqueta | I12: CALDAS | J12: CALDAS
B13: CASANARE | C13: Casanare | I13: CAQUETÁ | J13: CAQUETÁ
B14: CAUCA | C14: Cauca | I14: CASANARE | J14: CASANARE
B15: CESAR | C15: Cesar | I15: CAUCA | J15: CAUCA
B16: CHOCÓ | C16: Choco | I16: CESAR | J16: CESAR
B17: CÓRDOBA | C17: Cordoba | I17: CHOCÓ | J17: CHOCÓ
B18: GUAINÍA | C18: Guainia | I18: CÓRDOBA | J18: CÓRDOBA
B19: GUAVIARE | C19: Guaviare | I19: GUAINÍA | J19: GUAINÍA
B20: HUILA | C20: Huila | I20: GUAVIARE | J20: GUAVIARE
B21: LA GUAJIRA | C21: La_guajira | I21: HUILA | J21: HUILA
B22: MAGDALENA | C22: Magdalena | I22: LA GUAJIRA | J22: LA_GUAJIRA
B23: META | C23: Meta | I23: MAGDALENA | J23: MAGDALENA
B24: NARIÑO | C24: Nariño | I24: META | J24: META
B25: NORTE DE SANTANDER | C25: Norte_Santander | I25: NARIÑO | J25: NARIÑO
B26: PUTUMAYO | C26: Putumayo | I26: NORTE DE SANTANDER | J26: NORTE_DE_SANTANDER
B27: QUINDÍO | C27: Quindio | I27: PUTUMAYO | J27: PUTUMAYO
B28: RISARALDA | C28: Risaralda | I28: QUINDÍO | J28: QUINDÍO
B29: SANTANDER | C29: Santander | I29: RISARALDA | J29: RISARALDA
B30: SUCRE | C30: Sucre | I30: SANTANDER | J30: SANTANDER
B31: TOLIMA | C31: Tolima | I31: SUCRE | J31: SUCRE
B32: VAUPÉS | C32: Vaupes | I32: TOLIMA | J32: TOLIMA
B33: VICHADA | C33: Vichada | I33: VAUPÉS | J33: VAUPÉS
B34: Vacío | C34: Vacío | I34: VICHADA | J34: VICHADA

Sheet Montos (hidden)
A1: Ciclo | B1: DIVIPOLA1 | C1: MpioNOM | D1: Depto | E1: DeptoNOM | F1: NOM_AECONOMICA1 | G1: SECTOR_ECONOMICO1 | H1: TIPO_PERSONA1 | I1: SIZE1 | J1: Suma de RECURSOS1 | P1: Ciclo | Q1: DIVIPOLA1 | R1: MpioNOM | S1: Depto | T1: DeptoNOM | U1: NOM_AECONOMICA1 | V1: SECTOR_ECONOMICO1 | W1: TIPO_PERSONA1 | X1: SIZE1 | Y1: Suma de RECURSOS1 | AC1: DeptoNOM | AD1: META | AG1: DeptoNOM | AH1: META
B2: 5001 | C2: MEDELLÍN | D2: 5 | E2: ANTIOQUIA | F2: 141 | G2: AGRICULTURA, GANADERÍA, CAZA, SILVICULTURA Y PESCA | H2: Natural | I2: MICRO | J2: 454262 | P2: =+_xlfn._xlws.FILTER($A$2:$J$396860,E2:$E$396860=Visor!$M$7,"") -> 0 | Q2: 5001 | R2: MEDELLÍN | S2: 5 | T2: ANTIOQUIA | U2: 141 | V2: AGRICULTURA, GANADERÍA, CAZA, SILVICULTURA Y PESCA | W2: Natural | X2: MICRO | Y2: 454262 | AG2: MpioNOM | AH2: VILLAVICENCIO
B3: 25307 | C3: GIRARDOT | D3: 25 | E3: CUNDINAMARCA | F3: 4530 | G3: COMERCIO AL POR MAYOR Y AL POR MENOR; REPARACIÓN DE VEHÍCULOS AUTOMOTORES Y MOTOCICLETAS | H3: Natural | I3: MICRO | J3: 250000 | P3: 0 | Q3: 5001 | R3: MEDELLÍN | S3: 5 | T3: ANTIOQUIA | U3: 5611 | V3: ALOJAMIENTO Y SERVICIOS DE COMIDA | W3: Natural | X3: MICRO | Y3: 3530000 | AC3: Etiquetas de fila | AD3: Suma de Suma de RECURSOS1 | AE3: Suma de Suma de RECURSOS1_2
B4: 5001 | C4: MEDELLÍN | D4: 5 | E4: ANTIOQUIA | F4: 5611 | G4: ALOJAMIENTO Y SERVICIOS DE COMIDA | H4: Natural | I4: MICRO | J4: 3530000 | P4: 0 | Q4: 5001 | R4: MEDELLÍN | S4: 5 | T4: ANTIOQUIA | U4: 90 | V4: OTRAS | W4: Natural | X4: MICRO | Y4: 400000 | AC4: ACTIVIDADES ARTÍSTICAS, DE ENTRETENIMIENTO Y RECREACIÓN | AD4: 1034907000 | AE4: 0.0183614159 | AG4: Etiquetas de fila | AH4: Suma de Suma de RECURSOS1 | AI4: Suma de Suma de RECURSOS1_2
B5: 11001 | C5: BOGOTÁ, D.C. | D5: 11 | E5: BOGOTÁ, D.C. | F5: 4663 | G5: COMERCIO AL POR MAYOR Y AL POR MENOR; REPARACIÓN DE VEHÍCULOS AUTOMOTORES Y MOTOCICLETAS | H5: Natural | I5: MICRO | J5: 3977131 | P5: 0 | Q5: 5001 | R5: MEDELLÍN | S5: 5 | T5: ANTIOQUIA | U5: 5611 | V5: ALOJAMIENTO Y SERVICIOS DE COMIDA | W5: Natural | X5: MICRO | Y5: 100000 | AC5: ACTIVIDADES DE ATENCIÓN DE LA SALUD HUMANA Y DE ASISTENCIA SOCIAL | AD5: 5530371000 | AE5: 0.0981203548 | AG5: ACTIVIDADES ARTÍSTICAS, DE ENTRETENIMIENTO Y RECREACIÓN | AH5: 993923000 | AI5: 0.02131175662
B6: 15176 | C6: CHIQUINQUIRÁ | D6: 15 | E6: BOYACÁ | F6: 4752 | G6: COMERCIO AL POR MAYOR Y AL POR MENOR; REPARACIÓN DE VEHÍCULOS AUTOMOTORES Y MOTOCICLETAS | H6: Natural | I6: MICRO | J6: 2858524 | P6: 0 | Q6: 5001 | R6: MEDELLÍN | S6: 5 | T6: ANTIOQUIA | U6: 4722 | V6: COMERCIO AL POR MAYOR Y AL POR MENOR; REPARACIÓN DE VEHÍCULOS AUTOMOTORES Y MOTOCICLETAS | W6: Natural | X6: MICRO | Y6: 3740000 | AC6: ACTIVIDADES DE SERVICIOS ADMINISTRATIVOS Y DE APOYO | AD6: 9990424000 | AE6: 0.1772510285 | AG6: ACTIVIDADES DE ATENCIÓN DE LA SALUD HUMANA Y DE ASISTENCIA SOCIAL | AH6: 5262221000 | AI6: 0.1128328585
B7: 76001 | C7: CALI | D7: 76 | E7: VALLE DEL CAUCA | F7: 4774 | G7: COMERCIO AL POR MAYOR Y AL POR MENOR; REPARACIÓN DE VEHÍCULOS AUTOMOTORES Y MOTOCICLETAS | H7: Natural | I7: MICRO | J7: 454262 | P7: 0 | Q7: 5001 | R7: MEDELLÍN | S7: 5 | T7: ANTIOQUIA | U7: 3240 | V7: INDUSTRIAS MANUFACTURERAS | W7: Natural | X7: MICRO | Y7: 1654262 | AC7: ACTIVIDADES FINANCIERAS Y DE SEGUROS | AD7: 601724000 | AE7: 0.01067584297 | AG7: ACTIVIDADES DE SERVICIOS ADMINISTRATIVOS Y DE APOYO | AH7: 9448062000 | AI7: 0.2025859124
B8: 76001 | C8: CALI | D8: 76 | E8: VALLE DEL CAUCA | F8: 5511 | G8: ALOJAMIENTO Y SERVICIOS DE COMIDA | H8: Natural | I8: MICRO | J8: 454262 | P8: 0 | Q8: 5001 | R8: MEDELLÍN | S8: 5 | T8: ANTIOQUIA | U8: 4771 | V8: COMERCIO AL POR MAYOR Y AL POR MENOR; REPARACIÓN DE VEHÍCULOS AUTOMOTORES Y MOTOCICLETAS | W8: Natural | X8: MICRO | Y8: 908524 | AC8: ACTIVIDADES INMOBILIARIAS | AD8: 282527000 | AE8: 0.005012620217 | AG8: ACTIVIDADES FINANCIERAS Y DE SEGUROS | AH8: 586462000 | AI8: 0.0125749534
B9: 41001 | C9: NEIVA | D9: 41 | E9: HUILA | F9: 4729 | G9: COMERCIO AL POR MAYOR Y AL POR MENOR; REPARACIÓN DE VEHÍCULOS AUTOMOTORES Y MOTOCICLETAS | H9: Natural | I9: MICRO | J9: 1550000 | P9: 0 | Q9: 5697 | R9: EL SANTUARIO | S9: 5 | T9: ANTIOQUIA | U9: 4773 | V9: COMERCIO AL POR MAYOR Y AL POR MENOR; REPARACIÓN DE VEHÍCULOS AUTOMOTORES Y MOTOCICLETAS | W9: Natural | X9: MICRO | Y9: 454262 | AC9: ACTIVIDADES PROFESIONALES, CIENTÍFICAS Y TÉCNICAS | AD9: 1550199000 | AE9: 0.02750377432 | AG9: ACTIVIDADES INMOBILIARIAS | AH9: 213971000 | AI9: 0.004587979024
B10: 52356 | C10: IPIALES | D10: 52 | E10: NARIÑO | F10: 4923 | G10: TRANSPORTE Y ALMACENAMIENTO | H10: Natural | I10: MICRO | J10: 400000 | P10: 0 | Q10: 5001 | R10: MEDELLÍN | S10: 5 | T10: ANTIOQUIA | U10: 6810 | V10: ACTIVIDADES INMOBILIARIAS | W10: Natural | X10: MICRO | Y10: 90852 | AC10: ADMINISTRACIÓN PÚBLICA Y DEFENSA; PLANES DE SEGURIDAD SOCIAL DE AFILIACIÓN OBLIGATORIA | AD10: 434604000 | AE10: 0.007710784444 | AG10: ACTIVIDADES PROFESIONALES, CIENTÍFICAS Y TÉCNICAS | AH10: 1393778000 | AI10: 0.02988547152
B11: 54001 | C11: CÚCUTA | D11: 54 | E11: NORTE DE SANTANDER | F11: 90 | G11: OTRAS | H11: Natural | I11: PEQUEÑA | J11: 2700000 | P11: 0 | Q11: 5266 | R11: ENVIGADO | S11: 5 | T11: ANTIOQUIA | U11: 4541 | V11: COMERCIO AL POR MAYOR Y AL POR MENOR; REPARACIÓN DE VEHÍCULOS AUTOMOTORES Y MOTOCICLETAS | W11: Natural | X11: MICRO | Y11: 227131 | AC11: AGRICULTURA, GANADERÍA, CAZA, SILVICULTURA Y PESCA | AD11: 2267926000 | AE11: 0.04023775327 | AG11: ADMINISTRACIÓN PÚBLICA Y DEFENSA; PLANES DE SEGURIDAD SOCIAL DE AFILIACIÓN OBLIGATORIA | AH11: 101437000 | AI11: 0.002175018242
B12: 54405 | C12: LOS PATIOS | D12: 54 | E12: NORTE DE SANTANDER | F12: 4923 | G12: TRANSPORTE Y ALMACENAMIENTO | H12: Natural | I12: MICRO | J12: 317983 | P12: 0 | Q12: 5088 | R12: BELLO | S12: 5 | T12: ANTIOQUIA | U12: 4752 | V12: COMERCIO AL POR MAYOR Y AL POR MENOR; REPARACIÓN DE VEHÍCULOS AUTOMOTORES Y MOTOCICLETAS | W12: Natural | X12: MICRO | Y12: 750000 | AC12: ALOJAMIENTO Y SERVICIOS DE COMIDA | AD12: 2510646000 | AE12: 0.044544114 | AG12: AGRICULTURA, GANADERÍA, CAZA, SILVICULTURA Y PESCA | AH12: 1241925000 | AI12: 0.02662943039
B13: 76828 | C13: TRUJILLO | D13: 76 | E13: VALLE DEL CAUCA | F13: 4752 | G13: COMERCIO AL POR MAYOR Y AL POR MENOR; REPARACIÓN DE VEHÍCULOS AUTOMOTORES Y MOTOCICLETAS | H13: Natural | I13: MICRO | J13: 3631080 | P13: 0 | Q13: 5631 | R13: SABANETA | S13: 5 | T13: ANTIOQUIA | U13: 4771 | V13: COMERCIO AL POR MAYOR Y AL POR MENOR; REPARACIÓN DE VEHÍCULOS AUTOMOTORES Y MOTOCICLETAS | W13: Natural | X13: MICRO | Y13: 3448524 | AC13: COMERCIO AL POR MAYOR Y AL POR MENOR; REPARACIÓN DE VEHÍCULOS AUTOMOTORES Y MOTOCICLETAS | AD13: 9763086000 | AE13: 0.1732175766 | AG13: ALOJAMIENTO Y SERVICIOS DE COMIDA | AH13: 1902988000 | AI13: 0.04080398291
B14: 11001 | C14: BOGOTÁ, D.C. | D14: 11 | E14: BOGOTÁ, D.C. | F14: 1313 | G14: INDUSTRIAS MANUFACTURERAS | H14: Natural | I14: MICRO | J14: 726818 | P14: 0 | Q14: 5266 | R14: ENVIGADO | S14: 5 | T14: ANTIOQUIA | U14: 7111 | V14: ACTIVIDADES PROFESIONALES, CIENTÍFICAS Y TÉCNICAS | W14: Natural | X14: MICRO | Y14: 2776195 | AC14: CONSTRUCCIÓN | AD14: 4627826000 | AE14: 0.08210731777 | AG14: COMERCIO AL POR MAYOR Y AL POR MENOR; REPARACIÓN DE VEHÍCULOS AUTOMOTORES Y MOTOCICLETAS | AH14: 7857303000 | AI14: 0.1684767625
B15: 11001 | C15: BOGOTÁ, D.C. | D15: 11 | E15: BOGOTÁ, D.C. | F15: 4754 | G15: COMERCIO AL POR MAYOR Y AL POR MENOR; REPARACIÓN DE VEHÍCULOS AUTOMOTORES Y MOTOCICLETAS | H15: Natural | I15: MICRO | J15: 1000000 | P15: 0 | Q15: 5318 | R15: GUARNE | S15: 5 | T15: ANTIOQUIA | U15: 2221 | V15: INDUSTRIAS MANUFACTURERAS | W15: Natural | X15: PEQUEÑA | Y15: 1650000 | AC15: DISTRIBUCIÓN DE AGUA; EVACUACIÓN Y TRATAMIENTO DE AGUAS RESIDUALES, GESTIÓN DE DESECHOS Y ACTIVIDADES DE SANEAMIENTO AMBIENTAL | AD15: 851688000 | AE15: 0.01511072742 | AG15: CONSTRUCCIÓN | AH15: 3651332000 | AI15: 0.07829207988
B16: 11001 | C16: BOGOTÁ, D.C. | D16: 11 | E16: BOGOTÁ, D.C. | F16: 8512 | G16: EDUCACIÓN | H16: Natural | I16: MICRO | J16: 750000 | P16: 0 | Q16: 5001 | R16: MEDELLÍN | S16: 5 | T16: ANTIOQUIA | U16: 8299 | V16: ACTIVIDADES DE SERVICIOS ADMINISTRATIVOS Y DE APOYO | W16: Natural | X16: MICRO | Y16: 8858000 | AC16: EDUCACIÓN | AD16: 3265265000 | AE16: 0.05793263423 | AG16: DISTRIBUCIÓN DE AGUA; EVACUACIÓN Y TRATAMIENTO DE AGUAS RESIDUALES, GESTIÓN DE DESECHOS Y ACTIVIDADES DE SANEAMIENTO AMBIENTAL | AH16: 827123000 | AI16: 0.01773522101
B17: 25181 | C17: CHOACHÍ | D17: 25 | E17: CUNDINAMARCA | F17: 145 | G17: AGRICULTURA, GANADERÍA, CAZA, SILVICULTURA Y PESCA | H17: Natural | I17: MICRO | J17: 1048000 | P17: 0 | Q17: 5001 | R17: MEDELLÍN | S17: 5 | T17: ANTIOQUIA | U17: 2511 | V17: INDUSTRIAS MANUFACTURERAS | W17: Natural | X17: MICRO | Y17: 1227131 | AC17: EXPLOTACIÓN DE MINAS Y CANTERAS | AD17: 231515000 | AE17: 0.004107560585 | AG17: EDUCACIÓN | AH17: 2771547000 | AI17: 0.05942767711
B18: 25181 | C18: CHOACHÍ | D18: 25 | E18: CUNDINAMARCA | F18: 4663 | G18: COMERCIO AL POR MAYOR Y AL POR MENOR; REPARACIÓN DE VEHÍCULOS AUTOMOTORES Y MOTOCICLETAS | H18: Natural | I18: PEQUEÑA | J18: 181704 | P18: 0 | Q18: 5631 | R18: SABANETA | S18: 5 | T18: ANTIOQUIA | U18: 5630 | V18: ALOJAMIENTO Y SERVICIOS DE COMIDA | W18: Natural | X18: MICRO | Y18: 3613096 | AC18: INDUSTRIAS MANUFACTURERAS | AD18: 3604890000 | AE18: 0.06395829246 | AG18: EXPLOTACIÓN DE MINAS Y CANTERAS | AH18: 192466000 | AI18: 0.004126867523
B19: 25279 | C19: FOMEQUE | D19: 25 | E19: CUNDINAMARCA | F19: 145 | G19: AGRICULTURA, GANADERÍA, CAZA, SILVICULTURA Y PESCA | H19: Natural | I19: PEQUEÑA | J19: 250000 | P19: 0 | Q19: 5001 | R19: MEDELLÍN | S19: 5 | T19: ANTIOQUIA | U19: 1089 | V19: INDUSTRIAS MANUFACTURERAS | W19: Natural | X19: MICRO | Y19: 800000 | AC19: INFORMACIÓN Y COMUNICACIONES | AD19: 214168000 | AE19: 0.003799788504 | AG19: INDUSTRIAS MANUFACTURERAS | AH19: 2714779000 | AI19: 0.05821045425
B20: 25214 | C20: COTA | D20: 25 | E20: CUNDINAMARCA | F20: 4290 | G20: CONSTRUCCIÓN | H20: Natural | I20: MICRO | J20: 90852 | P20: 0 | Q20: 5001 | R20: MEDELLÍN | S20: 5 | T20: ANTIOQUIA | U20: 7420 | V20: ACTIVIDADES PROFESIONALES, CIENTÍFICAS Y TÉCNICAS | W20: Natural | X20: MICRO | Y20: 750000 | AC20: OTRAS ACTIVIDADES DE SERVICIOS | AD20: 2884552000 | AE20: 0.0511779889 | AG20: INFORMACIÓN Y COMUNICACIONES | AH20: 181764000 | AI20: 0.003897394597
B21: 25758 | C21: SOPÓ | D21: 25 | E21: CUNDINAMARCA | F21: 141 | G21: AGRICULTURA, GANADERÍA, CAZA, SILVICULTURA Y PESCA | H21: Natural | I21: MICRO | J21: 2046000 | P21: 0 | Q21: 5001 | R21: MEDELLÍN | S21: 5 | T21: ANTIOQUIA | U21: 5612 | V21: ALOJAMIENTO Y SERVICIOS DE COMIDA | W21: Natural | X21: MICRO | Y21: 5948000 | AC21: SUMINISTRO DE ELECTRICIDAD, GAS, VAPOR Y AIRE ACONDICIONADO | AD21: 228692000 | AE21: 0.004057474658 | AG21: OTRAS ACTIVIDADES DE SERVICIOS | AH21: 2286499000 | AI21: 0.04902724878
B22: 25297 | C22: GACHETÁ | D22: 25 | E22: CUNDINAMARCA | F22: 4663 | G22: COMERCIO AL POR MAYOR Y AL POR MENOR; REPARACIÓN DE VEHÍCULOS AUTOMOTORES Y MOTOCICLETAS | H22: Natural | I22: MICRO | J22: 750000 | P22: 0 | Q22: 5686 | R22: SANTA ROSA DE OSOS | S22: 5 | T22: ANTIOQUIA | U22: 141 | V22: AGRICULTURA, GANADERÍA, CAZA, SILVICULTURA Y PESCA | W22: Natural | X22: MICRO | Y22: 100000 | AC22: TRANSPORTE Y ALMACENAMIENTO | AD22: 6488127000 | AE22: 0.1151129505 | AG22: SUMINISTRO DE ELECTRICIDAD, GAS, VAPOR Y AIRE ACONDICIONADO | AH22: 76194000 | AI22: 0.001633756321
B23: 11001 | C23: BOGOTÁ, D.C. | D23: 11 | E23: BOGOTÁ, D.C. | F23: 7310 | G23: ACTIVIDADES PROFESIONALES, CIENTÍFICAS Y TÉCNICAS | H23: Natural | I23: MICRO | J23: 227131 | P23: 0 | Q23: 5686 | R23: SANTA ROSA DE OSOS | S23: 5 | T23: ANTIOQUIA | U23: 1610 | V23: INDUSTRIAS MANUFACTURERAS | W23: Natural | X23: MICRO | Y23: 2250000 | AC23: Total general | AD23: 56363137000 | AE23: 1 | AG23: TRANSPORTE Y ALMACENAMIENTO | AH23: 4933536000 | AI23: 0.105785175
B24: 25430 | C24: MADRID | D24: 25 | E24: CUNDINAMARCA | F24: 145 | G24: AGRICULTURA, GANADERÍA, CAZA, SILVICULTURA Y PESCA | H24: Natural | I24: MICRO | J24: 250000 | P24: 0 | Q24: 5001 | R24: MEDELLÍN | S24: 5 | T24: ANTIOQUIA | U24: 4741 | V24: COMERCIO AL POR MAYOR Y AL POR MENOR; REPARACIÓN DE VEHÍCULOS AUTOMOTORES Y MOTOCICLETAS | W24: Natural | X24: MICRO | Y24: 1907900 | AG24: Total general | AH24: 46637310000 | AI24: 1
B25: 25754 | C25: SOACHA | D25: 25 | E25: CUNDINAMARCA | F25: 8219 | G25: ACTIVIDADES DE SERVICIOS ADMINISTRATIVOS Y DE APOYO | H25: Natural | I25: MICRO | J25: 3160000 | P25: 0 | Q25: 5001 | R25: MEDELLÍN | S25: 5 | T25: ANTIOQUIA | U25: 1081 | V25: INDUSTRIAS MANUFACTURERAS | W25: Natural | X25: PEQUEÑA | Y25: 227131
B26: 11001 | C26: BOGOTÁ, D.C. | D26: 11 | E26: BOGOTÁ, D.C. | F26: 6910 | G26: ACTIVIDADES PROFESIONALES, CIENTÍFICAS Y TÉCNICAS | H26: Natural | I26: PEQUEÑA | J26: 8630978 | P26: 0 | Q26: 5001 | R26: MEDELLÍN | S26: 5 | T26: ANTIOQUIA | U26: 1410 | V26: INDUSTRIAS MANUFACTURERAS | W26: Natural | X26: PEQUEÑA | Y26: 250000
B27: 11001 | C27: BOGOTÁ, D.C. | D27: 11 | E27: BOGOTÁ, D.C. | F27: 4751 | G27: COMERCIO AL POR MAYOR Y AL POR MENOR; REPARACIÓN DE VEHÍCULOS AUTOMOTORES Y MOTOCICLETAS | H27: Natural | I27: MICRO | J27: 681393 | P27: 0 | Q27: 5001 | R27: MEDELLÍN | S27: 5 | T27: ANTIOQUIA | U27: 6495 | V27: ACTIVIDADES FINANCIERAS Y DE SEGUROS | W27: Natural | X27: MICRO | Y27: 250000
B28: 25785 | C28: TABIO | D28: 25 | E28: CUNDINAMARCA | F28: 9004 | G28: ACTIVIDADES ARTÍSTICAS, DE ENTRETENIMIENTO Y RECREACIÓN | H28: Natural | I28: MICRO | J28: 250000 | P28: 0 | Q28: 5266 | R28: ENVIGADO | S28: 5 | T28: ANTIOQUIA | U28: 4620 | V28: COMERCIO AL POR MAYOR Y AL POR MENOR; REPARACIÓN DE VEHÍCULOS AUTOMOTORES Y MOTOCICLETAS | W28: Natural | X28: MICRO | Y28: 350000
B29: 50001 | C29: VILLAVICENCIO | D29: 50 | E29: META | F29: 4729 | G29: COMERCIO AL POR MAYOR Y AL POR MENOR; REPARACIÓN DE VEHÍCULOS AUTOMOTORES Y MOTOCICLETAS | H29: Natural | I29: MICRO | J29: 5797131 | P29: 0 | Q29: 5001 | R29: MEDELLÍN | S29: 5 | T29: ANTIOQUIA | U29: 5611 | V29: ALOJAMIENTO Y SERVICIOS DE COMIDA | W29: Natural | X29: MICRO | Y29: 250000
B30: 25875 | C30: VILLETA | D30: 25 | E30: CUNDINAMARCA | F30: 1081 | G30: INDUSTRIAS MANUFACTURERAS | H30: Natural | I30: PEQUEÑA | J30: 454262 | P30: 0 | Q30: 5631 | R30: SABANETA | S30: 5 | T30: ANTIOQUIA | U30: 3110 | V30: INDUSTRIAS MANUFACTURERAS | W30: Natural | X30: PEQUEÑA | Y30: 1200000
B31: 25269 | C31: FACATATIVÁ | D31: 25 | E31: CUNDINAMARCA | F31: 8560 | G31: EDUCACIÓN | H31: Natural | I31: MICRO | J31: 2100000 | P31: 0 | Q31: 5001 | R31: MEDELLÍN | S31: 5 | T31: ANTIOQUIA | U31: 4530 | V31: COMERCIO AL POR MAYOR Y AL POR MENOR; REPARACIÓN DE VEHÍCULOS AUTOMOTORES Y MOTOCICLETAS | W31: Natural | X31: MICRO | Y31: 227131
B32: 85001 | C32: YOPAL | D32: 85 | E32: CASANARE | F32: 4769 | G32: COMERCIO AL POR MAYOR Y AL POR MENOR; REPARACIÓN DE VEHÍCULOS AUTOMOTORES Y MOTOCICLETAS | H32: Natural | I32: MICRO | J32: 2450000 | P32: 0 | Q32: 5001 | R32: MEDELLÍN | S32: 5 | T32: ANTIOQUIA | U32: 4711 | V32: COMERCIO AL POR MAYOR Y AL POR MENOR; REPARACIÓN DE VEHÍCULOS AUTOMOTORES Y MOTOCICLETAS | W32: Natural | X32: PEQUEÑA | Y32: 750000
B33: 5001 | C33: MEDELLÍN | D33: 5 | E33: ANTIOQUIA | F33: 90 | G33: OTRAS | H33: Natural | I33: MICRO | J33: 400000 | P33: 0 | Q33: 5368 | R33: JERICÓ | S33: 5 | T33: ANTIOQUIA | U33: 1084 | V33: INDUSTRIAS MANUFACTURERAS | W33: Natural | X33: PEQUEÑA | Y33: 20148126
B34: 15759 | C34: SOGAMOSO | D34: 15 | E34: BOYACÁ | F34: 4799 | G34: COMERCIO AL POR MAYOR Y AL POR MENOR; REPARACIÓN DE VEHÍCULOS AUTOMOTORES Y MOTOCICLETAS | H34: Natural | I34: MICRO | J34: 600000 | P34: 0 | Q34: 5631 | R34: SABANETA | S34: 5 | T34: ANTIOQUIA | U34: 4541 | V34: COMERCIO AL POR MAYOR Y AL POR MENOR; REPARACIÓN DE VEHÍCULOS AUTOMOTORES Y MOTOCICLETAS | W34: Natural | X34: MICRO | Y34: 3808211
B35: 5001 | C35: MEDELLÍN | D35: 5 | E35: ANTIOQUIA | F35: 5611 | G35: ALOJAMIENTO Y SERVICIOS DE COMIDA | H35: Natural | I35: MICRO | J35: 100000 | P35: 0 | Q35: 5001 | R35: MEDELLÍN | S35: 5 | T35: ANTIOQUIA | U35: 4723 | V35: COMERCIO AL POR MAYOR Y AL POR MENOR; REPARACIÓN DE VEHÍCULOS AUTOMOTORES Y MOTOCICLETAS | W35: Natural | X35: MICRO | Y35: 200000
B36: 5001 | C36: MEDELLÍN | D36: 5 | E36: ANTIOQUIA | F36: 4722 | G36: COMERCIO AL POR MAYOR Y AL POR MENOR; REPARACIÓN DE VEHÍCULOS AUTOMOTORES Y MOTOCICLETAS | H36: Natural | I36: MICRO | J36: 3740000 | P36: 0 | Q36: 5736 | R36: SEGOVIA | S36: 5 | T36: ANTIOQUIA | U36: 4723 | V36: COMERCIO AL POR MAYOR Y AL POR MENOR; REPARACIÓN DE VEHÍCULOS AUTOMOTORES Y MOTOCICLETAS | W36: Natural | X36: MICRO | Y36: 6275572
B37: 5001 | C37: MEDELLÍN | D37: 5 | E37: ANTIOQUIA | F37: 3240 | G37: INDUSTRIAS MANUFACTURERAS | H37: Natural | I37: MICRO | J37: 1654262 | P37: 0 | Q37: 5837 | R37: TURBO | S37: 5 | T37: ANTIOQUIA | U37: 4761 | V37: COMERCIO AL POR MAYOR Y AL POR MENOR; REPARACIÓN DE VEHÍCULOS AUTOMOTORES Y MOTOCICLETAS | W37: Natural | X37: PEQUEÑA | Y37: 8561847
B38: 5001 | C38: MEDELLÍN | D38: 5 | E38: ANTIOQUIA | F38: 4771 | G38: COMERCIO AL POR MAYOR Y AL POR MENOR; REPARACIÓN DE VEHÍCULOS AUTOMOTORES Y MOTOCICLETAS | H38: Natural | I38: MICRO | J38: 908524 | P38: 0 | Q38: 5001 | R38: MEDELLÍN | S38: 5 | T38: ANTIOQUIA | U38: 6920 | V38: ACTIVIDADES PROFESIONALES, CIENTÍFICAS Y TÉCNICAS | W38: Natural | X38: MICRO | Y38: 1226818
B39: 11001 | C39: BOGOTÁ, D.C. | D39: 11 | E39: BOGOTÁ, D.C. | F39: 4771 | G39: COMERCIO AL POR MAYOR Y AL POR MENOR; REPARACIÓN DE VEHÍCULOS AUTOMOTORES Y MOTOCICLETAS | H39: Natural | I39: PEQUEÑA | J39: 454262 | P39: 0 | Q39: 5001 | R39: MEDELLÍN | S39: 5 | T39: ANTIOQUIA | U39: 4645 | V39: COMERCIO AL POR MAYOR Y AL POR MENOR; REPARACIÓN DE VEHÍCULOS AUTOMOTORES Y MOTOCICLETAS | W39: Natural | X39: MICRO | Y39: 1422000
B40: 5697 | C40: EL SANTUARIO | D40: 5 | E40: ANTIOQUIA | F40: 4773 | G40: COMERCIO AL POR MAYOR Y AL POR MENOR; REPARACIÓN DE VEHÍCULOS AUTOMOTORES Y MOTOCICLETAS | H40: Natural | I40: MICRO | J40: 454262 | P40: 0 | Q40: 5034 | R40: ANDES | S40: 5 | T40: ANTIOQUIA | U40: 4632 | V40: COMERCIO AL POR MAYOR Y AL POR MENOR; REPARACIÓN DE VEHÍCULOS AUTOMOTORES Y MOTOCICLETAS | W40: Natural | X40: MICRO | Y40: 6821617
B41: 11001 | C41: BOGOTÁ, D.C. | D41: 11 | E41: BOGOTÁ, D.C. | F41: 4652 | G41: COMERCIO AL POR MAYOR Y AL POR MENOR; REPARACIÓN DE VEHÍCULOS AUTOMOTORES Y MOTOCICLETAS | H41: Natural | I41: MICRO | J41: 227131 | P41: 0 | Q41: 5001 | R41: MEDELLÍN | S41: 5 | T41: ANTIOQUIA | U41: 6920 | V41: ACTIVIDADES PROFESIONALES, CIENTÍFICAS Y TÉCNICAS | W41: Natural | X41: MICRO | Y41: 1200000
B42: 54001 | C42: CÚCUTA | D42: 54 | E42: NORTE DE SANTANDER | F42: 4631 | G42: COMERCIO AL POR MAYOR Y AL POR MENOR; REPARACIÓN DE VEHÍCULOS AUTOMOTORES Y MOTOCICLETAS | H42: Natural | I42: PEQUEÑA | J42: 454262 | P42: 0 | Q42: 5001 | R42: MEDELLÍN | S42: 5 | T42: ANTIOQUIA | U42: 4520 | V42: COMERCIO AL POR MAYOR Y AL POR MENOR; REPARACIÓN DE VEHÍCULOS AUTOMOTORES Y MOTOCICLETAS | W42: Natural | X42: MICRO | Y42: 1000000
B43: 5001 | C43: MEDELLÍN | D43: 5 | E43: ANTIOQUIA | F43: 6810 | G43: ACTIVIDADES INMOBILIARIAS | H43: Natural | I43: MICRO | J43: 90852 | P43: 0 | Q43: 5686 | R43: SANTA ROSA DE OSOS | S43: 5 | T43: ANTIOQUIA | U43: 4771 | V43: COMERCIO AL POR MAYOR Y AL POR MENOR; REPARACIÓN DE VEHÍCULOS AUTOMOTORES Y MOTOCICLETAS | W43: Natural | X43: MICRO | Y43: 4022000
B44: 15759 | C44: SOGAMOSO | D44: 15 | E44: BOYACÁ | F44: 8512 | G44: EDUCACIÓN | H44: Natural | I44: MICRO | J44: 2950000 | P44: 0 | Q44: 5631 | R44: SABANETA | S44: 5 | T44: ANTIOQUIA | U44: 7990 | V44: ACTIVIDADES DE SERVICIOS ADMINISTRATIVOS Y DE APOYO | W44: Natural | X44: MICRO | Y44: 5786000
B45: 15176 | C45: CHIQUINQUIRÁ | D45: 15 | E45: BOYACÁ | F45: 1081 | G45: INDUSTRIAS MANUFACTURERAS | H45: Natural | I45: MICRO | J45: 3700000 | P45: 0 | Q45: 5615 | R45: RIONEGRO | S45: 5 | T45: ANTIOQUIA | U45: 4390 | V45: CONSTRUCCIÓN | W45: Natural | X45: MICRO | Y45: 1250000
B46: 11001 | C46: BOGOTÁ, D.C. | D46: 11 | E46: BOGOTÁ, D.C. | F46: 2920 | G46: INDUSTRIAS MANUFACTURERAS | H46: Natural | I46: MICRO | J46: 1800000 | P46: 0 | Q46: 5001 | R46: MEDELLÍN | S46: 5 | T46: ANTIOQUIA | U46: 1410 | V46: INDUSTRIAS MANUFACTURERAS | W46: Natural | X46: MICRO | Y46: 13996000
B47: 15238 | C47: DUITAMA | D47: 15 | E47: BOYACÁ | F47: 4923 | G47: TRANSPORTE Y ALMACENAMIENTO | H47: Natural | I47: MICRO | J47: 500000 | P47: 0 | Q47: 5380 | R47: LA ESTRELLA | S47: 5 | T47: ANTIOQUIA | U47: 4752 | V47: COMERCIO AL POR MAYOR Y AL POR MENOR; REPARACIÓN DE VEHÍCULOS AUTOMOTORES Y MOTOCICLETAS | W47: Natural | X47: MICRO | Y47: 800000
B48: 85001 | C48: YOPAL | D48: 85 | E48: CASANARE | F48: 4542 | G48: COMERCIO AL POR MAYOR Y AL POR MENOR; REPARACIÓN DE VEHÍCULOS AUTOMOTORES Y MOTOCICLETAS | H48: Natural | I48: MICRO | J48: 4181393 | P48: 0 | Q48: 5240 | R48: EBÉJICO | S48: 5 | T48: ANTIOQUIA | U48: 4752 | V48: COMERCIO AL POR MAYOR Y AL POR MENOR; REPARACIÓN DE VEHÍCULOS AUTOMOTORES Y MOTOCICLETAS | W48: Natural | X48: MICRO | Y48: 577131
B49: 15759 | C49: SOGAMOSO | D49: 15 | E49: BOYACÁ | F49: 2395 | G49: INDUSTRIAS MANUFACTURERAS | H49: Natural | I49: PEQUEÑA | J49: 100000 | P49: 0 | Q49: 5887 | R49: YARUMAL | S49: 5 | T49: ANTIOQUIA | U49: 4631 | V49: COMERCIO AL POR MAYOR Y AL POR MENOR; REPARACIÓN DE VEHÍCULOS AUTOMOTORES Y MOTOCICLETAS | W49: Natural | X49: PEQUEÑA | Y49: 15227131
B50: 11001 | C50: BOGOTÁ, D.C. | D50: 11 | E50: BOGOTÁ, D.C. | F50: 4663 | G50: COMERCIO AL POR MAYOR Y AL POR MENOR; REPARACIÓN DE VEHÍCULOS AUTOMOTORES Y MOTOCICLETAS | H50: Natural | I50: MICRO | J50: 500000 | P50: 0 | Q50: 5001 | R50: MEDELLÍN | S50: 5 | T50: ANTIOQUIA | U50: 4210 | V50: CONSTRUCCIÓN | W50: Natural | X50: PEQUEÑA | Y50: 590539
B51: 15753 | C51: SOATÁ | D51: 15 | E51: BOYACÁ | F51: 4631 | G51: COMERCIO AL POR MAYOR Y AL POR MENOR; REPARACIÓN DE VEHÍCULOS AUTOMOTORES Y MOTOCICLETAS | H51: Natural | I51: MICRO | J51: 381704 | P51: 0 | Q51: 5360 | R51: ITAGUI | S51: 5 | T51: ANTIOQUIA | U51: 1011 | V51: INDUSTRIAS MANUFACTURERAS | W51: Natural | X51: MEDIANA | Y51: 3406965
B52: 11001 | C52: BOGOTÁ, D.C. | D52: 11 | E52: BOGOTÁ, D.C. | F52: 1081 | G52: INDUSTRIAS MANUFACTURERAS | H52: Natural | I52: MICRO | J52: 5658524 | P52: 0 | Q52: 5887 | R52: YARUMAL | S52: 5 | T52: ANTIOQUIA | U52: 4711 | V52: COMERCIO AL POR MAYOR Y AL POR MENOR; REPARACIÓN DE VEHÍCULOS AUTOMOTORES Y MOTOCICLETAS | W52: Natural | X52: PEQUEÑA | Y52: 750000
B53: 15759 | C53: SOGAMOSO | D53: 15 | E53: BOYACÁ | F53: 4923 | G53: TRANSPORTE Y ALMACENAMIENTO | H53: Natural | I53: MICRO | J53: 1450000 | P53: 0 | Q53: 5887 | R53: YARUMAL | S53: 5 | T53: ANTIOQUIA | U53: 4690 | V53: COMERCIO AL POR MAYOR Y AL POR MENOR; REPARACIÓN DE VEHÍCULOS AUTOMOTORES Y MOTOCICLETAS | W53: Natural | X53: PEQUEÑA | Y53: 22498441
B54: 11001 | C54: BOGOTÁ, D.C. | D54: 11 | E54: BOGOTÁ, D.C. | F54: 4923 | G54: TRANSPORTE Y ALMACENAMIENTO | H54: Natural | I54: MICRO | J54: 2526818 | P54: 0 | Q54: 5679 | R54: SANTA BÁRBARA | S54: 5 | T54: ANTIOQUIA | U54: 4663 | V54: COMERCIO AL POR MAYOR Y AL POR MENOR; REPARACIÓN DE VEHÍCULOS AUTOMOTORES Y MOTOCICLETAS | W54: Natural | X54: MICRO | Y54: 1740852
B55: 11001 | C55: BOGOTÁ, D.C. | D55: 11 | E55: BOGOTÁ, D.C. | F55: 5611 | G55: ALOJAMIENTO Y SERVICIOS DE COMIDA | H55: Natural | I55: MICRO | J55: 1800000 | P55: 0 | Q55: 5631 | R55: SABANETA | S55: 5 | T55: ANTIOQUIA | U55: 5630 | V55: ALOJAMIENTO Y SERVICIOS DE COMIDA | W55: Natural | X55: MICRO | Y55: 900000
B56: 5266 | C56: ENVIGADO | D56: 5 | E56: ANTIOQUIA | F56: 4541 | G56: COMERCIO AL POR MAYOR Y AL POR MENOR; REPARACIÓN DE VEHÍCULOS AUTOMOTORES Y MOTOCICLETAS | H56: Natural | I56: MICRO | J56: 227131 | P56: 0 | Q56: 5001 | R56: MEDELLÍN | S56: 5 | T56: ANTIOQUIA | U56: 4751 | V56: COMERCIO AL POR MAYOR Y AL POR MENOR; REPARACIÓN DE VEHÍCULOS AUTOMOTORES Y MOTOCICLETAS | W56: Natural | X56: PEQUEÑA | Y56: 681393
B57: 17442 | C57: MARMATO | D57: 17 | E57: CALDAS | F57: 722 | G57: EXPLOTACIÓN DE MINAS Y CANTERAS | H57: Natural | I57: PEQUEÑA | J57: 19698000 | P57: 0 | Q57: 5001 | R57: MEDELLÍN | S57: 5 | T57: ANTIOQUIA | U57: 5511 | V57: ALOJAMIENTO Y SERVICIOS DE COMIDA | W57: Natural | X57: MICRO | Y57: 600000
B58: 17442 | C58: MARMATO | D58: 17 | E58: CALDAS | F58: 722 | G58: EXPLOTACIÓN DE MINAS Y CANTERAS | H58: Natural | I58: PEQUEÑA | J58: 18354000 | P58: 0 | Q58: 5615 | R58: RIONEGRO | S58: 5 | T58: ANTIOQUIA | U58: 5611 | V58: ALOJAMIENTO Y SERVICIOS DE COMIDA | W58: Natural | X58: PEQUEÑA | Y58: 36200000
B59: 50001 | C59: VILLAVICENCIO | D59: 50 | E59: META | F59: 4321 | G59: CONSTRUCCIÓN | H59: Natural | I59: MICRO | J59: 1000000 | P59: 0 | Q59: 5376 | R59: LA CEJA | S59: 5 | T59: ANTIOQUIA | U59: 9522 | V59: OTRAS ACTIVIDADES DE SERVICIOS | W59: Natural | X59: MICRO | Y59: 6586818
B60: 66001 | C60: PEREIRA | D60: 66 | E60: RISARALDA | F60: 9609 | G60: OTRAS ACTIVIDADES DE SERVICIOS | H60: Natural | I60: MICRO | J60: 1958522 | P60: 0 | Q60: 5148 | R60: EL CARMEN DE VIBORAL | S60: 5 | T60: ANTIOQUIA | U60: 8130 | V60: ACTIVIDADES DE SERVICIOS ADMINISTRATIVOS Y DE APOYO | W60: Natural | X60: MICRO | Y60: 4900000
B61: 66594 | C61: QUINCHÍA | D61: 66 | E61: RISARALDA | F61: 4711 | G61: COMERCIO AL POR MAYOR Y AL POR MENOR; REPARACIÓN DE VEHÍCULOS AUTOMOTORES Y MOTOCICLETAS | H61: Natural | I61: MICRO | J61: 7150000 | P61: 0 | Q61: 5615 | R61: RIONEGRO | S61: 5 | T61: ANTIOQUIA | U61: 4732 | V61: COMERCIO AL POR MAYOR Y AL POR MENOR; REPARACIÓN DE VEHÍCULOS AUTOMOTORES Y MOTOCICLETAS | W61: Natural | X61: MICRO | Y61: 5160000
B62: 66170 | C62: DOSQUEBRADAS | D62: 66 | E62: RISARALDA | F62: 4775 | G62: COMERCIO AL POR MAYOR Y AL POR MENOR; REPARACIÓN DE VEHÍCULOS AUTOMOTORES Y MOTOCICLETAS | H62: Natural | I62: MICRO | J62: 1000000 | P62: 0 | Q62: 5615 | R62: RIONEGRO | S62: 5 | T62: ANTIOQUIA | U62: 4631 | V62: COMERCIO AL POR MAYOR Y AL POR MENOR; REPARACIÓN DE VEHÍCULOS AUTOMOTORES Y MOTOCICLETAS | W62: Natural | X62: MICRO | Y62: 250000
B63: 66170 | C63: DOSQUEBRADAS | D63: 66 | E63: RISARALDA | F63: 6910 | G63: ACTIVIDADES PROFESIONALES, CIENTÍFICAS Y TÉCNICAS | H63: Natural | I63: PEQUEÑA | J63: 6400000 | P63: 0 | Q63: 5001 | R63: MEDELLÍN | S63: 5 | T63: ANTIOQUIA | U63: 4711 | V63: COMERCIO AL POR MAYOR Y AL POR MENOR; REPARACIÓN DE VEHÍCULOS AUTOMOTORES Y MOTOCICLETAS | W63: Natural | X63: MICRO | Y63: 1450000
B64: 66001 | C64: PEREIRA | D64: 66 | E64: RISARALDA | F64: 4754 | G64: COMERCIO AL POR MAYOR Y AL POR MENOR; REPARACIÓN DE VEHÍCULOS AUTOMOTORES Y MOTOCICLETAS | H64: Natural | I64: PEQUEÑA | J64: 7980000 | P64: 0 | Q64: 5376 | R64: LA CEJA | S64: 5 | T64: ANTIOQUIA | U64: 4771 | V64: COMERCIO AL POR MAYOR Y AL POR MENOR; REPARACIÓN DE VEHÍCULOS AUTOMOTORES Y MOTOCICLETAS | W64: Natural | X64: PEQUEÑA | Y64: 1704262
B65: 18205 | C65: CURILLO | D65: 18 | E65: CAQUETÁ | F65: 1040 | G65: INDUSTRIAS MANUFACTURERAS | H65: Natural | I65: PEQUEÑA | J65: 12232000 | P65: 0 | Q65: 5440 | R65: MARINILLA | S65: 5 | T65: ANTIOQUIA | U65: 6920 | V65: ACTIVIDADES PROFESIONALES, CIENTÍFICAS Y TÉCNICAS | W65: Natural | X65: MICRO | Y65: 250000
B66: 19001 | C66: POPAYÁN | D66: 19 | E66: CAUCA | F66: 8559 | G66: EDUCACIÓN | H66: Natural | I66: MICRO | J66: 317982 | P66: 0 | Q66: 5376 | R66: LA CEJA | S66: 5 | T66: ANTIOQUIA | U66: 1610 | V66: INDUSTRIAS MANUFACTURERAS | W66: Natural | X66: MICRO | Y66: 227131
B67: 76001 | C67: CALI | D67: 76 | E67: VALLE DEL CAUCA | F67: 4752 | G67: COMERCIO AL POR MAYOR Y AL POR MENOR; REPARACIÓN DE VEHÍCULOS AUTOMOTORES Y MOTOCICLETAS | H67: Natural | I67: MICRO | J67: 7748441 | P67: 0 | Q67: 5615 | R67: RIONEGRO | S67: 5 | T67: ANTIOQUIA | U67: 7111 | V67: ACTIVIDADES PROFESIONALES, CIENTÍFICAS Y TÉCNICAS | W67: Natural | X67: MICRO | Y67: 750000
B68: 41001 | C68: NEIVA | D68: 41 | E68: HUILA | F68: 4752 | G68: COMERCIO AL POR MAYOR Y AL POR MENOR; REPARACIÓN DE VEHÍCULOS AUTOMOTORES Y MOTOCICLETAS | H68: Natural | I68: PEQUEÑA | J68: 12050000 | P68: 0 | Q68: 5615 | R68: RIONEGRO | S68: 5 | T68: ANTIOQUIA | U68: 9700 | V68: ACTIVIDADES DE LOS HOGARES INDIVIDUALES EN CALIDAD DE EMPLEADORES; ACTIVIDADES NO DIFERENCIADAS DE LOS HOGARES INDIVIDUALES COMO PRODUCTORES DE BIENES Y SERVICIOS PARA USO PROPIO | W68: Natural | X68: MICRO | Y68: 250000
B69: 41001 | C69: NEIVA | D69: 41 | E69: HUILA | F69: 4711 | G69: COMERCIO AL POR MAYOR Y AL POR MENOR; REPARACIÓN DE VEHÍCULOS AUTOMOTORES Y MOTOCICLETAS | H69: Natural | I69: PEQUEÑA | J69: 227131 | P69: 0 | Q69: 5615 | R69: RIONEGRO | S69: 5 | T69: ANTIOQUIA | U69: 4111 | V69: CONSTRUCCIÓN | W69: Natural | X69: MICRO | Y69: 600000
B70: 41551 | C70: PITALITO | D70: 41 | E70: HUILA | F70: 4754 | G70: COMERCIO AL POR MAYOR Y AL POR MENOR; REPARACIÓN DE VEHÍCULOS AUTOMOTORES Y MOTOCICLETAS | H70: Natural | I70: MICRO | J70: 363409 | P70: 0 | Q70: 5615 | R70: RIONEGRO | S70: 5 | T70: ANTIOQUIA | U70: 4762 | V70: COMERCIO AL POR MAYOR Y AL POR MENOR; REPARACIÓN DE VEHÍCULOS AUTOMOTORES Y MOTOCICLETAS | W70: Natural | X70: MICRO | Y70: 250000
B71: 41551 | C71: PITALITO | D71: 41 | E71: HUILA | F71: 4620 | G71: COMERCIO AL POR MAYOR Y AL POR MENOR; REPARACIÓN DE VEHÍCULOS AUTOMOTORES Y MOTOCICLETAS | H71: Natural | I71: MICRO | J71: 1000000 | P71: 0 | Q71: 5615 | R71: RIONEGRO | S71: 5 | T71: ANTIOQUIA | U71: 4530 | V71: COMERCIO AL POR MAYOR Y AL POR MENOR; REPARACIÓN DE VEHÍCULOS AUTOMOTORES Y MOTOCICLETAS | W71: Natural | X71: MICRO | Y71: 250000
B72: 54498 | C72: OCAÑA | D72: 54 | E72: NORTE DE SANTANDER | F72: 4541 | G72: COMERCIO AL POR MAYOR Y AL POR MENOR; REPARACIÓN DE VEHÍCULOS AUTOMOTORES Y MOTOCICLETAS | H72: Natural | I72: MICRO | J72: 1181393 | P72: 0 | Q72: 5615 | R72: RIONEGRO | S72: 5 | T72: ANTIOQUIA | U72: 6201 | V72: INFORMACIÓN Y COMUNICACIONES | W72: Natural | X72: MICRO | Y72: 4536278
B73: 52317 | C73: GUACHUCAL | D73: 52 | E73: NARIÑO | F73: 4731 | G73: COMERCIO AL POR MAYOR Y AL POR MENOR; REPARACIÓN DE VEHÍCULOS AUTOMOTORES Y MOTOCICLETAS | H73: Natural | I73: PEQUEÑA | J73: 1750000 | P73: 0 | Q73: 5615 | R73: RIONEGRO | S73: 5 | T73: ANTIOQUIA | U73: 4923 | V73: TRANSPORTE Y ALMACENAMIENTO | W73: Natural | X73: MICRO | Y73: 5221393
B74: 52560 | C74: POTOSÍ | D74: 52 | E74: NARIÑO | F74: 1040 | G74: INDUSTRIAS MANUFACTURERAS | H74: Natural | I74: MICRO | J74: 1650000 | P74: 0 | Q74: 5001 | R74: MEDELLÍN | S74: 5 | T74: ANTIOQUIA | U74: 5613 | V74: ALOJAMIENTO Y SERVICIOS DE COMIDA | W74: Natural | X74: MICRO | Y74: 2933409
B75: 52683 | C75: SANDONÁ | D75: 52 | E75: NARIÑO | F75: 4711 | G75: COMERCIO AL POR MAYOR Y AL POR MENOR; REPARACIÓN DE VEHÍCULOS AUTOMOTORES Y MOTOCICLETAS | H75: Natural | I75: MICRO | J75: 250000 | P75: 0 | Q75: 5045 | R75: APARTADÓ | S75: 5 | T75: ANTIOQUIA | U75: 4769 | V75: COMERCIO AL POR MAYOR Y AL POR MENOR; REPARACIÓN DE VEHÍCULOS AUTOMOTORES Y MOTOCICLETAS | W75: Natural | X75: MICRO | Y75: 1654262
B76: 54001 | C76: CÚCUTA | D76: 54 | E76: NORTE DE SANTANDER | F76: 2599 | G76: INDUSTRIAS MANUFACTURERAS | H76: Natural | I76: MICRO | J76: 227131 | P76: 0 | Q76: 5001 | R76: MEDELLÍN | S76: 5 | T76: ANTIOQUIA | U76: 8110 | V76: ACTIVIDADES DE SERVICIOS ADMINISTRATIVOS Y DE APOYO | W76: Natural | X76: MICRO | Y76: 700000
B77: 54001 | C77: CÚCUTA | D77: 54 | E77: NORTE DE SANTANDER | F77: 4923 | G77: TRANSPORTE Y ALMACENAMIENTO | H77: Natural | I77: MICRO | J77: 250000 | P77: 0 | Q77: 5154 | R77: CAUCASIA | S77: 5 | T77: ANTIOQUIA | U77: 141 | V77: AGRICULTURA, GANADERÍA, CAZA, SILVICULTURA Y PESCA | W77: Natural | X77: MICRO | Y77: 2380000
B78: 54518 | C78: PAMPLONA | D78: 54 | E78: NORTE DE SANTANDER | F78: 5611 | G78: ALOJAMIENTO Y SERVICIOS DE COMIDA | H78: Natural | I78: PEQUEÑA | J78: 20184262 | P78: 0 | Q78: 5318 | R78: GUARNE | S78: 5 | T78: ANTIOQUIA | U78: 4620 | V78: COMERCIO AL POR MAYOR Y AL POR MENOR; REPARACIÓN DE VEHÍCULOS AUTOMOTORES Y MOTOCICLETAS | W78: Natural | X78: MICRO | Y78: 454262
B79: 54001 | C79: CÚCUTA | D79: 54 | E79: NORTE DE SANTANDER | F79: 4752 | G79: COMERCIO AL POR MAYOR Y AL POR MENOR; REPARACIÓN DE VEHÍCULOS AUTOMOTORES Y MOTOCICLETAS | H79: Natural | I79: MICRO | J79: 100000 | P79: 0 | Q79: 5001 | R79: MEDELLÍN | S79: 5 | T79: ANTIOQUIA | U79: 4774 | V79: COMERCIO AL POR MAYOR Y AL POR MENOR; REPARACIÓN DE VEHÍCULOS AUTOMOTORES Y MOTOCICLETAS | W79: Natural | X79: PEQUEÑA | Y79: 454262
B80: 68001 | C80: BUCARAMANGA | D80: 68 | E80: SANTANDER | F80: 1610 | G80: INDUSTRIAS MANUFACTURERAS | H80: Natural | I80: PEQUEÑA | J80: 250000 | P80: 0 | Q80: 5001 | R80: MEDELLÍN | S80: 5 | T80: ANTIOQUIA | U80: 1081 | V80: INDUSTRIAS MANUFACTURERAS | W80: Natural | X80: MICRO | Y80: 1800000
B81: 68001 | C81: BUCARAMANGA | D81: 68 | E81: SANTANDER | F81: 4774 | G81: COMERCIO AL POR MAYOR Y AL POR MENOR; REPARACIÓN DE VEHÍCULOS AUTOMOTORES Y MOTOCICLETAS | H81: Natural | I81: MICRO | J81: 6250000 | P81: 0 | Q81: 5045 | R81: APARTADÓ | S81: 5 | T81: ANTIOQUIA | U81: 1089 | V81: INDUSTRIAS MANUFACTURERAS | W81: Natural | X81: PEQUEÑA | Y81: 16812371
B82: 11001 | C82: BOGOTÁ, D.C. | D82: 11 | E82: BOGOTÁ, D.C. | F82: 4732 | G82: COMERCIO AL POR MAYOR Y AL POR MENOR; REPARACIÓN DE VEHÍCULOS AUTOMOTORES Y MOTOCICLETAS | H82: Natural | I82: MICRO | J82: 11866421 | P82: 0 | Q82: 5001 | R82: MEDELLÍN | S82: 5 | T82: ANTIOQUIA | U82: 1081 | V82: INDUSTRIAS MANUFACTURERAS | W82: Natural | X82: MICRO | Y82: 500000
B83: 54001 | C83: CÚCUTA | D83: 54 | E83: NORTE DE SANTANDER | F83: 1410 | G83: INDUSTRIAS MANUFACTURERAS | H83: Natural | I83: MICRO | J83: 1158524 | P83: 0 | Q83: 5001 | R83: MEDELLÍN | S83: 5 | T83: ANTIOQUIA | U83: 5611 | V83: ALOJAMIENTO Y SERVICIOS DE COMIDA | W83: Natural | X83: MICRO | Y83: 250000
B84: 68001 | C84: BUCARAMANGA | D84: 68 | E84: SANTANDER | F84: 7420 | G84: ACTIVIDADES PROFESIONALES, CIENTÍFICAS Y TÉCNICAS | H84: Natural | I84: MICRO | J84: 1710000 | P84: 0 | Q84: 5001 | R84: MEDELLÍN | S84: 5 | T84: ANTIOQUIA | U84: 1410 | V84: INDUSTRIAS MANUFACTURERAS | W84: Natural | X84: MICRO | Y84: 12083338
B85: 68679 | C85: SAN GIL | D85: 68 | E85: SANTANDER | F85: 4711 | G85: COMERCIO AL POR MAYOR Y AL POR MENOR; REPARACIÓN DE VEHÍCULOS AUTOMOTORES Y MOTOCICLETAS | H85: Natural | I85: PEQUEÑA | J85: 22200000 | P85: 0 | Q85: 5264 | R85: ENTRERRIOS | S85: 5 | T85: ANTIOQUIA | U85: 6920 | V85: ACTIVIDADES PROFESIONALES, CIENTÍFICAS Y TÉCNICAS | W85: Natural | X85: MICRO | Y85: 227131
B86: 68861 | C86: VÉLEZ | D86: 68 | E86: SANTANDER | F86: 1089 | G86: INDUSTRIAS MANUFACTURERAS | H86: Natural | I86: MICRO | J86: 954262 | P86: 0 | Q86: 5001 | R86: MEDELLÍN | S86: 5 | T86: ANTIOQUIA | U86: 5612 | V86: ALOJAMIENTO Y SERVICIOS DE COMIDA | W86: Natural | X86: MICRO | Y86: 4685965
B87: 68001 | C87: BUCARAMANGA | D87: 68 | E87: SANTANDER | F87: 4711 | G87: COMERCIO AL POR MAYOR Y AL POR MENOR; REPARACIÓN DE VEHÍCULOS AUTOMOTORES Y MOTOCICLETAS | H87: Natural | I87: MEDIANA | J87: 1000000 | P87: 0 | Q87: 5360 | R87: ITAGUI | S87: 5 | T87: ANTIOQUIA | U87: 8121 | V87: ACTIVIDADES DE SERVICIOS ADMINISTRATIVOS Y DE APOYO | W87: Natural | X87: PEQUEÑA | Y87: 1400000
B88: 11001 | C88: BOGOTÁ, D.C. | D88: 11 | E88: BOGOTÁ, D.C. | F88: 8121 | G88: ACTIVIDADES DE SERVICIOS ADMINISTRATIVOS Y DE APOYO | H88: Natural | I88: MICRO | J88: 400000 | P88: 0 | Q88: 5615 | R88: RIONEGRO | S88: 5 | T88: ANTIOQUIA | U88: 5511 | V88: ALOJAMIENTO Y SERVICIOS DE COMIDA | W88: Natural | X88: MICRO | Y88: 4550000
B89: 41001 | C89: NEIVA | D89: 41 | E89: HUILA | F89: 5511 | G89: ALOJAMIENTO Y SERVICIOS DE COMIDA | H89: Natural | I89: MICRO | J89: 750000 | P89: 0 | Q89: 5264 | R89: ENTRERRIOS | S89: 5 | T89: ANTIOQUIA | U89: 141 | V89: AGRICULTURA, GANADERÍA, CAZA, SILVICULTURA Y PESCA | W89: Natural | X89: MICRO | Y89: 2910000
B90: 73001 | C90: IBAGUÉ | D90: 73 | E90: TOLIMA | F90: 4773 | G90: COMERCIO AL POR MAYOR Y AL POR MENOR; REPARACIÓN DE VEHÍCULOS AUTOMOTORES Y MOTOCICLETAS | H90: Natural | I90: MICRO | J90: 550000 | P90: 0 | Q90: 5001 | R90: MEDELLÍN | S90: 5 | T90: ANTIOQUIA | U90: 4541 | V90: COMERCIO AL POR MAYOR Y AL POR MENOR; REPARACIÓN DE VEHÍCULOS AUTOMOTORES Y MOTOCICLETAS | W90: Natural | X90: MICRO | Y90: 2550000
B91: 76001 | C91: CALI | D91: 76 | E91: VALLE DEL CAUCA | F91: 1811 | G91: INDUSTRIAS MANUFACTURERAS | H91: Natural | I91: MICRO | J91: 750000 | P91: 0 | Q91: 5001 | R91: MEDELLÍN | S91: 5 | T91: ANTIOQUIA | U91: 4752 | V91: COMERCIO AL POR MAYOR Y AL POR MENOR; REPARACIÓN DE VEHÍCULOS AUTOMOTORES Y MOTOCICLETAS | W91: Natural | X91: MICRO | Y91: 200000
B92: 73001 | C92: IBAGUÉ | D92: 73 | E92: TOLIMA | F92: 4752 | G92: COMERCIO AL POR MAYOR Y AL POR MENOR; REPARACIÓN DE VEHÍCULOS AUTOMOTORES Y MOTOCICLETAS | H92: Natural | I92: MICRO | J92: 2408524 | P92: 0 | Q92: 5376 | R92: LA CEJA | S92: 5 | T92: ANTIOQUIA | U92: 5611 | V92: ALOJAMIENTO Y SERVICIOS DE COMIDA | W92: Natural | X92: PEQUEÑA | Y92: 817671
B93: 50001 | C93: VILLAVICENCIO | D93: 50 | E93: META | F93: 5511 | G93: ALOJAMIENTO Y SERVICIOS DE COMIDA | H93: Natural | I93: PEQUEÑA | J93: 4253949 | P93: 0 | Q93: 5656 | R93: SAN JERÓNIMO | S93: 5 | T93: ANTIOQUIA | U93: 4759 | V93: COMERCIO AL POR MAYOR Y AL POR MENOR; REPARACIÓN DE VEHÍCULOS AUTOMOTORES Y MOTOCICLETAS | W93: Natural | X93: MICRO | Y93: 4256000
B94: 76834 | C94: TULUÁ | D94: 76 | E94: VALLE DEL CAUCA | F94: 4751 | G94: COMERCIO AL POR MAYOR Y AL POR MENOR; REPARACIÓN DE VEHÍCULOS AUTOMOTORES Y MOTOCICLETAS | H94: Natural | I94: PEQUEÑA | J94: 3328000 | P94: 0 | Q94: 5628 | R94: SABANALARGA | S94: 5 | T94: ANTIOQUIA | U94: 4719 | V94: COMERCIO AL POR MAYOR Y AL POR MENOR; REPARACIÓN DE VEHÍCULOS AUTOMOTORES Y MOTOCICLETAS | W94: Natural | X94: MICRO | Y94: 5222243
B95: 76020 | C95: ALCALÁ | D95: 76 | E95: VALLE DEL CAUCA | F95: 4752 | G95: COMERCIO AL POR MAYOR Y AL POR MENOR; REPARACIÓN DE VEHÍCULOS AUTOMOTORES Y MOTOCICLETAS | H95: Natural | I95: MICRO | J95: 2000000 | P95: 0 | Q95: 5360 | R95: ITAGUI | S95: 5 | T95: ANTIOQUIA | U95: 4771 | V95: COMERCIO AL POR MAYOR Y AL POR MENOR; REPARACIÓN DE VEHÍCULOS AUTOMOTORES Y MOTOCICLETAS | W95: Natural | X95: PEQUEÑA | Y95: 2250000
B96: 76001 | C96: CALI | D96: 76 | E96: VALLE DEL CAUCA | F96: 5611 | G96: ALOJAMIENTO Y SERVICIOS DE COMIDA | H96: Natural | I96: MICRO | J96: 6370000 | P96: 0 | Q96: 5001 | R96: MEDELLÍN | S96: 5 | T96: ANTIOQUIA | U96: 4761 | V96: COMERCIO AL POR MAYOR Y AL POR MENOR; REPARACIÓN DE VEHÍCULOS AUTOMOTORES Y MOTOCICLETAS | W96: Natural | X96: MICRO | Y96: 4552000
B97: 76122 | C97: CAICEDONIA | D97: 76 | E97: VALLE DEL CAUCA | F97: 6920 | G97: ACTIVIDADES PROFESIONALES, CIENTÍFICAS Y TÉCNICAS | H97: Natural | I97: MICRO | J97: 250000 | P97: 0 | Q97: 5001 | R97: MEDELLÍN | S97: 5 | T97: ANTIOQUIA | U97: 5613 | V97: ALOJAMIENTO Y SERVICIOS DE COMIDA | W97: Natural | X97: MICRO | Y97: 1000000
B98: 76400 | C98: LA UNIÓN | D98: 76 | E98: VALLE DEL CAUCA | F98: 130 | G98: AGRICULTURA, GANADERÍA, CAZA, SILVICULTURA Y PESCA | H98: Natural | I98: PEQUEÑA | J98: 6198441 | P98: 0 | Q98: 5360 | R98: ITAGUI | S98: 5 | T98: ANTIOQUIA | U98: 8121 | V98: ACTIVIDADES DE SERVICIOS ADMINISTRATIVOS Y DE APOYO | W98: Natural | X98: PEQUEÑA | Y98: 14308521
B99: 76001 | C99: CALI | D99: 76 | E99: VALLE DEL CAUCA | F99: 4741 | G99: COMERCIO AL POR MAYOR Y AL POR MENOR; REPARACIÓN DE VEHÍCULOS AUTOMOTORES Y MOTOCICLETAS | H99: Natural | I99: MICRO | J99: 290852 | P99: 0 | Q99: 5360 | R99: ITAGUI | S99: 5 | T99: ANTIOQUIA | U99: 3240 | V99: INDUSTRIAS MANUFACTURERAS | W99: Natural | X99: MICRO | Y99: 2580000
B100: 76001 | C100: CALI | D100: 76 | E100: VALLE DEL CAUCA | F100: 1081 | G100: INDUSTRIAS MANUFACTURERAS | H100: Natural | I100: MICRO | J100: 500000 | P100: 0 | Q100: 5001 | R100: MEDELLÍN | S100: 5 | T100: ANTIOQUIA | U100: 4762 | V100: COMERCIO AL POR MAYOR Y AL POR MENOR; REPARACIÓN DE VEHÍCULOS AUTOMOTORES Y MOTOCICLETAS | W100: Natural | X100: MICRO | Y100: 1250000
B101: 76001 | C101: CALI | D101: 76 | E101: VALLE DEL CAUCA | F101: 1410 | G101: INDUSTRIAS MANUFACTURERAS | H101: Natural | I101: PEQUEÑA | J101: 227131 | P101: 0 | Q101: 5001 | R101: MEDELLÍN | S101: 5 | T101: ANTIOQUIA | U101: 8622 | V101: ACTIVIDADES DE ATENCIÓN DE LA SALUD HUMANA Y DE ASISTENCIA SOCIAL | W101: Natural | X101: MICRO | Y101: 727131
B102: 76834 | C102: TULUÁ | D102: 76 | E102: VALLE DEL CAUCA | F102: 4774 | G102: COMERCIO AL POR MAYOR Y AL POR MENOR; REPARACIÓN DE VEHÍCULOS AUTOMOTORES Y MOTOCICLETAS | H102: Natural | I102: MICRO | J102: 12524320 | P102: 0 | Q102: 5686 | R102: SANTA ROSA DE OSOS | S102: 5 | T102: ANTIOQUIA | U102: 4771 | V102: COMERCIO AL POR MAYOR Y AL POR MENOR; REPARACIÓN DE VEHÍCULOS AUTOMOTORES Y MOTOCICLETAS | W102: Natural | X102: MICRO | Y102: 1250000
B103: 76111 | C103: GUADALAJARA DE BUGA | D103: 76 | E103: VALLE DEL CAUCA | F103: 4923 | G103: TRANSPORTE Y ALMACENAMIENTO | H103: Natural | I103: MICRO | J103: 90852 | P103: 0 | Q103: 5088 | R103: BELLO | S103: 5 | T103: ANTIOQUIA | U103: 4759 | V103: COMERCIO AL POR MAYOR Y AL POR MENOR; REPARACIÓN DE VEHÍCULOS AUTOMOTORES Y MOTOCICLETAS | W103: Natural | X103: MICRO | Y103: 100000
B104: 5088 | C104: BELLO | D104: 5 | E104: ANTIOQUIA | F104: 4752 | G104: COMERCIO AL POR MAYOR Y AL POR MENOR; REPARACIÓN DE VEHÍCULOS AUTOMOTORES Y MOTOCICLETAS | H104: Natural | I104: MICRO | J104: 750000 | P104: 0 | Q104: 5001 | R104: MEDELLÍN | S104: 5 | T104: ANTIOQUIA | U104: 5613 | V104: ALOJAMIENTO Y SERVICIOS DE COMIDA | W104: Natural | X104: MICRO | Y104: 500000
B105: 41551 | C105: PITALITO | D105: 41 | E105: HUILA | F105: 4711 | G105: COMERCIO AL POR MAYOR Y AL POR MENOR; REPARACIÓN DE VEHÍCULOS AUTOMOTORES Y MOTOCICLETAS | H105: Natural | I105: MEDIANA | J105: 227131 | P105: 0 | Q105: 5001 | R105: MEDELLÍN | S105: 5 | T105: ANTIOQUIA | U105: 6920 | V105: ACTIVIDADES PROFESIONALES, CIENTÍFICAS Y TÉCNICAS | W105: Natural | X105: MICRO | Y105: 1589914
B106: 11001 | C106: BOGOTÁ, D.C. | D106: 11 | E106: BOGOTÁ, D.C. | F106: 8521 | G106: EDUCACIÓN | H106: Natural | I106: PEQUEÑA | J106: 454262 | P106: 0 | Q106: 5001 | R106: MEDELLÍN | S106: 5 | T106: ANTIOQUIA | U106: 4724 | V106: COMERCIO AL POR MAYOR Y AL POR MENOR; REPARACIÓN DE VEHÍCULOS AUTOMOTORES Y MOTOCICLETAS | W106: Natural | X106: MICRO | Y106: 150000
B107: 11001 | C107: BOGOTÁ, D.C. | D107: 11 | E107: BOGOTÁ, D.C. | F107: 5611 | G107: ALOJAMIENTO Y SERVICIOS DE COMIDA | H107: Natural | I107: MICRO | J107: 5704262 | P107: 0 | Q107: 5368 | R107: JERICÓ | S107: 5 | T107: ANTIOQUIA | U107: 5611 | V107: ALOJAMIENTO Y SERVICIOS DE COMIDA | W107: Natural | X107: MICRO | Y107: 7834000
B108: 11001 | C108: BOGOTÁ, D.C. | D108: 11 | E108: BOGOTÁ, D.C. | F108: 4210 | G108: CONSTRUCCIÓN | H108: Natural | I108: PEQUEÑA | J108: 10250000 | P108: 0 | Q108: 5001 | R108: MEDELLÍN | S108: 5 | T108: ANTIOQUIA | U108: 1051 | V108: INDUSTRIAS MANUFACTURERAS | W108: Natural | X108: PEQUEÑA | Y108: 2498441
B109: 5631 | C109: SABANETA | D109: 5 | E109: ANTIOQUIA | F109: 4771 | G109: COMERCIO AL POR MAYOR Y AL POR MENOR; REPARACIÓN DE VEHÍCULOS AUTOMOTORES Y MOTOCICLETAS | H109: Natural | I109: MICRO | J109: 3448524 | P109: 0 | Q109: 5665 | R109: SAN PEDRO DE URABA | S109: 5 | T109: ANTIOQUIA | U109: 4773 | V109: COMERCIO AL POR MAYOR Y AL POR MENOR; REPARACIÓN DE VEHÍCULOS AUTOMOTORES Y MOTOCICLETAS | W109: Natural | X109: MICRO | Y109: 4196000
B110: 18001 | C110: FLORENCIA | D110: 18 | E110: CAQUETÁ | F110: 4643 | G110: COMERCIO AL POR MAYOR Y AL POR MENOR; REPARACIÓN DE VEHÍCULOS AUTOMOTORES Y MOTOCICLETAS | H110: Natural | I110: MICRO | J110: 1953949 | P110: 0 | Q110: 5266 | R110: ENVIGADO | S110: 5 | T110: ANTIOQUIA | U110: 6820 | V110: ACTIVIDADES INMOBILIARIAS | W110: Natural | X110: MICRO | Y110: 250000
B111: 18001 | C111: FLORENCIA | D111: 18 | E111: CAQUETÁ | F111: 8020 | G111: ACTIVIDADES DE SERVICIOS ADMINISTRATIVOS Y DE APOYO | H111: Natural | I111: MICRO | J111: 227131 | P111: 0 | Q111: 5088 | R111: BELLO | S111: 5 | T111: ANTIOQUIA | U111: 5613 | V111: ALOJAMIENTO Y SERVICIOS DE COMIDA | W111: Natural | X111: PEQUEÑA | Y111: 11976000
B112: 18001 | C112: FLORENCIA | D112: 18 | E112: CAQUETÁ | F112: 4741 | G112: COMERCIO AL POR MAYOR Y AL POR MENOR; REPARACIÓN DE VEHÍCULOS AUTOMOTORES Y MOTOCICLETAS | H112: Natural | I112: MICRO | J112: 2750000 | P112: 0 | Q112: 5129 | R112: CALDAS | S112: 5 | T112: ANTIOQUIA | U112: 4752 | V112: COMERCIO AL POR MAYOR Y AL POR MENOR; REPARACIÓN DE VEHÍCULOS AUTOMOTORES Y MOTOCICLETAS | W112: Natural | X112: PEQUEÑA | Y112: 227131
B113: 70001 | C113: SINCELEJO | D113: 70 | E113: SUCRE | F113: 4530 | G113: COMERCIO AL POR MAYOR Y AL POR MENOR; REPARACIÓN DE VEHÍCULOS AUTOMOTORES Y MOTOCICLETAS | H113: Natural | I113: MICRO | J113: 250000 | P113: 0 | Q113: 5360 | R113: ITAGUI | S113: 5 | T113: ANTIOQUIA | U113: 4724 | V113: COMERCIO AL POR MAYOR Y AL POR MENOR; REPARACIÓN DE VEHÍCULOS AUTOMOTORES Y MOTOCICLETAS | W113: Natural | X113: MICRO | Y113: 750000
B114: 23001 | C114: MONTERÍA | D114: 23 | E114: CÓRDOBA | F114: 4541 | G114: COMERCIO AL POR MAYOR Y AL POR MENOR; REPARACIÓN DE VEHÍCULOS AUTOMOTORES Y MOTOCICLETAS | H114: Natural | I114: MICRO | J114: 5735655 | P114: 0 | Q114: 5001 | R114: MEDELLÍN | S114: 5 | T114: ANTIOQUIA | U114: 1410 | V114: INDUSTRIAS MANUFACTURERAS | W114: Natural | X114: MICRO | Y114: 272556
B115: 23001 | C115: MONTERÍA | D115: 23 | E115: CÓRDOBA | F115: 4752 | G115: COMERCIO AL POR MAYOR Y AL POR MENOR; REPARACIÓN DE VEHÍCULOS AUTOMOTORES Y MOTOCICLETAS | H115: Natural | I115: PEQUEÑA | J115: 3050000 | P115: 0 | Q115: 5001 | R115: MEDELLÍN | S115: 5 | T115: ANTIOQUIA | U115: 4773 | V115: COMERCIO AL POR MAYOR Y AL POR MENOR; REPARACIÓN DE VEHÍCULOS AUTOMOTORES Y MOTOCICLETAS | W115: Natural | X115: MICRO | Y115: 1250000
